Workbook

Sheet Cover
C2: Powercor
C3: Revised regulatory proposal 2026-31
C5: Greater Western Melbourne supply area
C6: Model number: | D6: 3.3.05
C8: 2025-12-01
A40: =_xlfn.SHEETS() -> 54
A41: 2025-11-23

Sheet Summary
A1: =bus -> Powercor
A2: =proj -> Melton & Wyndham Transformation Capacity Project
A3: SUMMARY
A5: RESULTS
G7: PV of costs | H7: PV of benefits | I7: NPV
C8: Option | G8: =output_dollars -> 2026-06-30 | H8: =output_dollars -> 2026-06-30 | I8: =output_dollars -> 2026-06-30
C9: =options -> Option 1 (base case) | D9: =INDEX(Assumptions!$E$14:$E$18, MATCH(C9, Assumptions!$C$14:$C$18,0)) -> No change to existing practices | G9: =IF(Data!$C9, "", INDEX(Consol!$F$15:$F$82, MATCH($C9&G$7, Consol!$D$15:$D$82,0))/mill_conv) -> 0 | H9: =IF(Data!$C9, "", INDEX(Consol!$F$15:$F$82, MATCH($C9&H$7, Consol!$D$15:$D$82,0))/mill_conv) -> 0 | I9: =IF(Data!$C9, "", INDEX(Consol!$F$15:$F$82, MATCH($C9&I$7, Consol!$D$15:$D$82,0))/mill_conv) -> 0
C10: Option 2 | D10: =INDEX(Assumptions!$E$14:$E$18, MATCH(C10, Assumptions!$C$14:$C$18,0)) -> Southern capacity priority | G10: =IF(Data!$C10, "", INDEX(Consol!$F$15:$F$82, MATCH($C10&G$7, Consol!$D$15:$D$82,0))/mill_conv) -> -59.42577802 | H10: =IF(Data!$C10, "", INDEX(Consol!$F$15:$F$82, MATCH($C10&H$7, Consol!$D$15:$D$82,0))/mill_conv) -> 4808.058429 | I10: =IF(Data!$C10, "", INDEX(Consol!$F$15:$F$82, MATCH($C10&I$7, Consol!$D$15:$D$82,0))/mill_conv) -> 4748.632651
C11: Option 3 | D11: =INDEX(Assumptions!$E$14:$E$18, MATCH(C11, Assumptions!$C$14:$C$18,0)) -> Northern capacity priority | G11: =IF(Data!$C11, "", INDEX(Consol!$F$15:$F$82, MATCH($C11&G$7, Consol!$D$15:$D$82,0))/mill_conv) -> -58.53660728 | H11: =IF(Data!$C11, "", INDEX(Consol!$F$15:$F$82, MATCH($C11&H$7, Consol!$D$15:$D$82,0))/mill_conv) -> 4812.047115 | I11: =IF(Data!$C11, "", INDEX(Consol!$F$15:$F$82, MATCH($C11&I$7, Consol!$D$15:$D$82,0))/mill_conv) -> 4753.510508
C12: Option 4 | D12: =INDEX(Assumptions!$E$14:$E$18, MATCH(C12, Assumptions!$C$14:$C$18,0)) -> Lean investment, Northern capacity priority | G12: =IF(Data!$C12, "", INDEX(Consol!$F$15:$F$82, MATCH($C12&G$7, Consol!$D$15:$D$82,0))/mill_conv) -> -62.35692708 | H12: =IF(Data!$C12, "", INDEX(Consol!$F$15:$F$82, MATCH($C12&H$7, Consol!$D$15:$D$82,0))/mill_conv) -> 4707.030199 | I12: =IF(Data!$C12, "", INDEX(Consol!$F$15:$F$82, MATCH($C12&I$7, Consol!$D$15:$D$82,0))/mill_conv) -> 4644.673272
C13: Option 5 | D13: =INDEX(Assumptions!$E$14:$E$18, MATCH(C13, Assumptions!$C$14:$C$18,0)) -> Lean investment, Southern capacity priority | G13: =IF(Data!$C13, "", INDEX(Consol!$F$15:$F$82, MATCH($C13&G$7, Consol!$D$15:$D$82,0))/mill_conv) -> -53.46568664 | H13: =IF(Data!$C13, "", INDEX(Consol!$F$15:$F$82, MATCH($C13&H$7, Consol!$D$15:$D$82,0))/mill_conv) -> 4468.242354 | I13: =IF(Data!$C13, "", INDEX(Consol!$F$15:$F$82, MATCH($C13&I$7, Consol!$D$15:$D$82,0))/mill_conv) -> 4414.776667
G16: NPV
C17: Preferred option: | G17: =output_dollars -> 2026-06-30
C18: =INDEX($C$9:$C$13,MATCH(G18, $I$9:$I$13,0)) -> Option 3 | D18: =INDEX($D$9:$D$13,MATCH(G18, $I$9:$I$13,0)) -> Northern capacity priority | G18: =_xlfn.MAXIFS(I9:I13, IF(compliance, Data!$F$9:$F$13, Data!$C$9:$C$13),FALSE) -> 4753.510508
A23: PREFERRED OPTION
C25: Preferred Option
C26: =C18 -> Option 3
C29: Expenditure forecast | D29: =output_dollars -> 2026-06-30 | F29: =Assumptions!K89 -> 2026-27 | G29: =Assumptions!L89 -> 2027-28 | H29: =Assumptions!M89 -> 2028-29 | I29: =Assumptions!N89 -> 2029-30 | J29: =Assumptions!O89 -> 2030-31 | L29: Total
C30: Capital expenditure | F30: =-INDEX(Consol!$I$15:$Q$82,MATCH($C$26&$C30,Consol!$D$15:$D$82,0), MATCH(F$29, Consol!$I$9:$Q$9,0))/mill_conv -> 30.81418161 | G30: =-INDEX(Consol!$I$15:$Q$82,MATCH($C$26&$C30,Consol!$D$15:$D$82,0), MATCH(G$29, Consol!$I$9:$Q$9,0))/mill_conv -> 20.85409085 | H30: =-INDEX(Consol!$I$15:$Q$82,MATCH($C$26&$C30,Consol!$D$15:$D$82,0), MATCH(H$29, Consol!$I$9:$Q$9,0))/mill_conv -> 25.42353519 | I30: =-INDEX(Consol!$I$15:$Q$82,MATCH($C$26&$C30,Consol!$D$15:$D$82,0), MATCH(I$29, Consol!$I$9:$Q$9,0))/mill_conv -> 44.70120829 | J30: =-INDEX(Consol!$I$15:$Q$82,MATCH($C$26&$C30,Consol!$D$15:$D$82,0), MATCH(J$29, Consol!$I$9:$Q$9,0))/mill_conv -> 24.61799584 | L30: =SUM(F30:J30) -> 146.4110118
C31: Operating expenditure | F31: =-INDEX(Consol!$I$15:$Q$82,MATCH($C$26&$C31,Consol!$D$15:$D$82,0), MATCH(F$29, Consol!$I$9:$Q$9,0))/mill_conv -> 0 | G31: =-INDEX(Consol!$I$15:$Q$82,MATCH($C$26&$C31,Consol!$D$15:$D$82,0), MATCH(G$29, Consol!$I$9:$Q$9,0))/mill_conv -> 0 | H31: =-INDEX(Consol!$I$15:$Q$82,MATCH($C$26&$C31,Consol!$D$15:$D$82,0), MATCH(H$29, Consol!$I$9:$Q$9,0))/mill_conv -> 0 | I31: =-INDEX(Consol!$I$15:$Q$82,MATCH($C$26&$C31,Consol!$D$15:$D$82,0), MATCH(I$29, Consol!$I$9:$Q$9,0))/mill_conv -> 0 | J31: =-INDEX(Consol!$I$15:$Q$82,MATCH($C$26&$C31,Consol!$D$15:$D$82,0), MATCH(J$29, Consol!$I$9:$Q$9,0))/mill_conv -> 0 | L31: =SUM(F31:J31) -> 0
A35: GREATER WESTERN MELBOURNE
C37: Capex and risk ($M, 2026) | F37: Value of expected unserved energy ($M, 2026)
A62: PCK ONLY
B64: PCK only capex and risk ($M, 2026)
A88: SENSITIVITIES
C91: Sensitivity | D91: =output_dollars -> 2026-06-30 | F91: =Sensitivity_calcs!C89 -> Option 1 (base case) | G91: =Sensitivity_calcs!D89 -> Option 2 | H91: =Sensitivity_calcs!E89 -> Option 3 | I91: =Sensitivity_calcs!F89 -> Option 4 | J91: =Sensitivity_calcs!G89 -> Option 5 | L91: Preferred option
C92: =Sensitivity_calcs!B90 -> None | F92: =Sensitivity_calcs!C90 -> 0 | G92: =Sensitivity_calcs!D90 -> 4748.632651 | H92: =Sensitivity_calcs!E90 -> 4753.510508 | I92: =Sensitivity_calcs!F90 -> 4644.673272 | J92: =Sensitivity_calcs!G90 -> 4414.776667 | L92: =Sensitivity_calcs!K90 -> Option 1 (base case)
C93: =Sensitivity_calcs!B91 -> Capex 10% higher | F93: =Sensitivity_calcs!C91 -> 0 | G93: =Sensitivity_calcs!D91 -> 4742.690074 | H93: =Sensitivity_calcs!E91 -> 4747.656847 | I93: =Sensitivity_calcs!F91 -> 4638.437579 | J93: =Sensitivity_calcs!G91 -> 4409.430098 | L93: =Sensitivity_calcs!K91 -> Option 1 (base case)
C94: =Sensitivity_calcs!B92 -> Capex 10% lower | F94: =Sensitivity_calcs!C92 -> 0 | G94: =Sensitivity_calcs!D92 -> 4754.575229 | H94: =Sensitivity_calcs!E92 -> 4759.364169 | I94: =Sensitivity_calcs!F92 -> 4650.908965 | J94: =Sensitivity_calcs!G92 -> 4420.123236 | L94: =Sensitivity_calcs!K92 -> Option 1 (base case)
C95: =Sensitivity_calcs!B93 -> Total benefits 10% higher | F95: =Sensitivity_calcs!C93 -> 0 | G95: =Sensitivity_calcs!D93 -> 5229.438494 | H95: =Sensitivity_calcs!E93 -> 5234.715219 | I95: =Sensitivity_calcs!F93 -> 5115.376292 | J95: =Sensitivity_calcs!G93 -> 4861.600902 | L95: =Sensitivity_calcs!K93 -> Option 1 (base case)
C96: =Sensitivity_calcs!B94 -> Total benefits 10% lower | F96: =Sensitivity_calcs!C94 -> 0 | G96: =Sensitivity_calcs!D94 -> 4267.826808 | H96: =Sensitivity_calcs!E94 -> 4272.305796 | I96: =Sensitivity_calcs!F94 -> 4173.970252 | J96: =Sensitivity_calcs!G94 -> 3967.952432 | L96: =Sensitivity_calcs!K94 -> Option 1 (base case)
C97: =Sensitivity_calcs!B95 -> Capex 10% higher & Total benefits 10% lower | F97: =Sensitivity_calcs!C95 -> 0 | G97: =Sensitivity_calcs!D95 -> 4261.884231 | H97: =Sensitivity_calcs!E95 -> 4266.452136 | I97: =Sensitivity_calcs!F95 -> 4167.734559 | J97: =Sensitivity_calcs!G95 -> 3962.605863 | L97: =Sensitivity_calcs!K95 -> Option 1 (base case)
C98: =Sensitivity_calcs!B96 -> 0 | F98: =Sensitivity_calcs!C96 ->  | G98: =Sensitivity_calcs!D96 ->  | H98: =Sensitivity_calcs!E96 ->  | I98: =Sensitivity_calcs!F96 ->  | J98: =Sensitivity_calcs!G96 ->  | L98: =Sensitivity_calcs!K96 -> 
C99: =Sensitivity_calcs!B97 -> 0 | F99: =Sensitivity_calcs!C97 ->  | G99: =Sensitivity_calcs!D97 ->  | H99: =Sensitivity_calcs!E97 ->  | I99: =Sensitivity_calcs!F97 ->  | J99: =Sensitivity_calcs!G97 ->  | K99: =IF(C99=0,0, INDEX($F$91:$J$91, MATCH(MAX($F99:$I99),$F99:$I99,0))) -> 0 | L99: =Sensitivity_calcs!K97 -> 
D100: =Sensitivity_calcs!B98 -> 0 | F100: =Sensitivity_calcs!C98 ->  | G100: =Sensitivity_calcs!D98 ->  | H100: =Sensitivity_calcs!E98 ->  | I100: =Sensitivity_calcs!F98 ->  | J100: =Sensitivity_calcs!G98 ->  | L100: =Sensitivity_calcs!K98 -> 
D101: =Sensitivity_calcs!B99 -> 0

Sheet Assumptions
A1: =bus -> Powercor
A2: =proj -> Melton & Wyndham Transformation Capacity Project
A4: Project
C6: Business: | E6: Powercor
C8: Descripton: | E8: Melton & Wyndham Transformation Capacity Project
C10: Date of cost inputs: | E10: December | G10: 2023
C13: Option | E13: Description
C14: =options -> Option 1 (base case) | E14: No change to existing practices
C15: Option 2 | E15: Southern capacity priority
C16: Option 3 | E16: Northern capacity priority
C17: Option 4 | E17: Lean investment, Northern capacity priority
C18: Option 5 | E18: Lean investment, Southern capacity priority
C20: Compliance project | E20: No
C22: Expenditure starts | E22: 2026-27 | F22: [start]
A25: Timing & WACC
C27: Input dollars | G27: =EOMONTH(DATE(Assumptions!$G$10,INDEX(Data!$K$107:$K$108, MATCH(Assumptions!$E$10, Data!$J$107:$J$108,0)), 1),0) -> 2023-12-31 | H27: [input_dollars]
C28: Pre-tax real WACC | G28: 0.035 | H28: [real_disc]
C29: VCR date | G29: 2024-12-31 | H29: [vcr_date]
C31: Analysis period (years) | G31: 20 | H31: [years]\
C33: Output dollars | G33: 2026-06-30 | H33: [output_dollars]
C34: Other benefits date | G34: 2023-12-31 | H34: [custval_date]
C35: Value of CO2 reductions input date | G35: 2023-06-30
A39: VCR
C41: Enter ZSS code >> | D41: eg. AR | E41: Region average | G41: Melton/Wyndham | H41: 35869.74909 | I41: 2024 VCR ($/MWh)
A45: Risks
B48: SAFETY
C50: Value of statistical life | G50: 5400000 | H50: 2023-06-30
C52: Value of injury | G52: 0 | H52: =input_dollars -> 2023-12-31
C54: =Data!A83 -> Disproportionate factors applied to various bushfire and other risk valuations
C55: =Data!B85 -> Harm to property from network | G55: =Data!F85 -> 1
C56: =Data!B86 -> Harm to property from bushfire | G56: =Data!F86 -> 1
C57: =Data!B87 -> Harm to environment | G57: =Data!F87 -> 1
C58: =Data!B88 -> Safety - Public trespass | G58: =Data!F88 -> 1
C59: =Data!B89 -> Safety - Single fatality or serious injury ^ | G59: =Data!F89 -> 3
C60: =Data!B90 -> Safety from bushfire in HBRA | G60: =Data!F90 -> 3
C61: =Data!B91 -> Safety - Multiple fatality or serious injury ^ | G61: =Data!F91 -> 6
C62: =Data!B92 -> Safety from bushfire (REFCL declared areas) | G62: =Data!F92 -> 6
C63: =Data!B93 -> Safety from bushfire (electric line construction areas) | G63: =Data!F93 -> 10
C66: ^ Public or employee
C69: Incident type | G69: Value | H69: Probability | I69: DF selected | J69: Description/comment
C70: Safety (fatality) | G70: =G50*INDEX(hy_escalation, MATCH(input_dollars,hy_dates,0))/INDEX(hy_escalation, MATCH(H50,hy_dates,0)) -> 5607473.52 | H70: 0 | I70: 0 | J70: 0
C71: Safety (injury) | G71: =G52*INDEX(hy_escalation, MATCH(input_dollars,hy_dates,0))/INDEX(hy_escalation, MATCH(H52,hy_dates,0)) -> 0 | H71: 0 | I71: 0 | J71: 0
B77: UNPLANNED REPLACEMENT/REPAIR
C78: Major failure (replace) | G78: 0 | H78: =input_dollars -> 2023-12-31
C79: Minor failure (repair) | G79: 0 | H79: =input_dollars -> 2023-12-31
C81: Premium for failure | G81: 0.2
A87: Other benefits
B89: ENVIRONMENTAL | K89: 2026-27 | L89: 2027-28 | M89: 2028-29 | N89: 2029-30 | O89: 2030-31 | P89: 2031-32
C90: Value of CO2 reductions | H90: =G35 -> 2023-06-30 | I90: $/kWh | K90: 0.0247304868 | L90: 0.02234074009 | M90: 0.02019632912 | N90: 0.01806294208 | O90: 0.01591339762 | P90: 0.01371506943
B93: CUSTOMER VALUE | G93: Value
C94: =Data!B60 -> Reliability in worst-served areas | G94: =INDEX(Data!$D$60:$D$67,,MATCH(bus,Data!$D$59:$D$59,0)) -> 151432.8174 | H94: =custval_date -> 2023-12-31 | I94: per MWh
C95: =Data!B61 -> Network resilience | G95: 24590 | H95: 2023-12-31 | I95: per MWh
C96: =Data!B62 -> Enabling solar exports | G96: 88.35771951 | H96: 2023-12-31 | I96: per MWh
C97: =Data!B63 -> Aesthetics | G97: 0 | H97: 2023-12-31 | I97: per customer
C98: =Data!B64 -> Customer value of time - residential | G98: 0.3518133654 | H98: 2023-12-31 | I98: per customer minute
C99: =Data!B65 -> Customer value of time - business | G99: 0.3518133654 | H99: 2023-12-31 | I99: per customer minute
C100: =Data!B66 -> Communication | G100: 0 | H100: 2023-12-31 | I100: per customer
C101: =Data!B67 -> Information accessibility | G101: 0 | H101: 2023-12-31 | I101: per customer
A106: Sensitivities
G110: Capex | H110: Total benefits
B111: 1 | C111: =IF(G111=0, "", G$110&" "&ABS($G111)*100&"%"&IF($G111>0, " higher", " lower"))&IF(AND(G111<>0, H111<>0), " & ", "")&IF(H111=0, "", H$110&" "&ABS($H111)*100&"%"&IF($H111>0, " higher", " lower")) -> Capex 10% higher | G111: 0.1 | H111: 0
B112: 2 | C112: =IF(G112=0, "", G$110&" "&ABS($G112)*100&"%"&IF($G112>0, " higher", " lower"))&IF(AND(G112<>0, H112<>0), " & ", "")&IF(H112=0, "", H$110&" "&ABS($H112)*100&"%"&IF($H112>0, " higher", " lower")) -> Capex 10% lower | G112: -0.1 | H112: 0
B113: 3 | C113: =IF(G113=0, "", G$110&" "&ABS($G113)*100&"%"&IF($G113>0, " higher", " lower"))&IF(AND(G113<>0, H113<>0), " & ", "")&IF(H113=0, "", H$110&" "&ABS($H113)*100&"%"&IF($H113>0, " higher", " lower")) -> Total benefits 10% higher | G113: 0 | H113: 0.1
B114: 4 | C114: =IF(G114=0, "", G$110&" "&ABS($G114)*100&"%"&IF($G114>0, " higher", " lower"))&IF(AND(G114<>0, H114<>0), " & ", "")&IF(H114=0, "", H$110&" "&ABS($H114)*100&"%"&IF($H114>0, " higher", " lower")) -> Total benefits 10% lower | G114: 0 | H114: -0.1
B115: 5 | C115: =IF(G115=0, "", G$110&" "&ABS($G115)*100&"%"&IF($G115>0, " higher", " lower"))&IF(AND(G115<>0, H115<>0), " & ", "")&IF(H115=0, "", H$110&" "&ABS($H115)*100&"%"&IF($H115>0, " higher", " lower")) -> Capex 10% higher & Total benefits 10% lower | G115: 0.1 | H115: -0.1

Sheet Option1 (base case)
A1: =bus -> Powercor
A2: =proj -> Melton & Wyndham Transformation Capacity Project
A3: OPTION 1 (base case)
A6: Count | H6: 0 | I6: =H6+1 -> 1 | J6: 2 | K6: 3 | L6: 4 | M6: 5 | N6: 6 | O6: 7 | P6: 8 | Q6: 9 | R6: 10 | S6: 11 | T6: 12 | U6: 13 | V6: 14 | W6: 15 | X6: 16 | Y6: 17 | Z6: 18 | AA6: 19 | AB6: 20 | AC6: 21 | AD6: 22 | AE6: 23 | AF6: 24 | AG6: 25
A7: Value of CO2 reductions | G7: $/MWh | I7: =IF(ISBLANK(Assumptions!K90), H7,Assumptions!K90*thous_conv) -> 24.7304868 | J7: =IF(ISBLANK(Assumptions!L90), I7,Assumptions!L90*thous_conv) -> 22.34074009 | K7: =IF(ISBLANK(Assumptions!M90), J7,Assumptions!M90*thous_conv) -> 20.19632912 | L7: =IF(ISBLANK(Assumptions!N90), K7,Assumptions!N90*thous_conv) -> 18.06294208 | M7: =IF(ISBLANK(Assumptions!O90), L7,Assumptions!O90*thous_conv) -> 15.91339762 | N7: =IF(ISBLANK(Assumptions!P90), M7,Assumptions!P90*thous_conv) -> 13.71506943 | O7: =IF(ISBLANK(Assumptions!Q90), N7,Assumptions!Q90*thous_conv) -> 13.71506943 | P7: =IF(ISBLANK(Assumptions!R90), O7,Assumptions!R90*thous_conv) -> 13.71506943 | Q7: =IF(ISBLANK(Assumptions!S90), P7,Assumptions!S90*thous_conv) -> 13.71506943 | R7: =IF(ISBLANK(Assumptions!T90), Q7,Assumptions!T90*thous_conv) -> 13.71506943 | S7: =IF(ISBLANK(Assumptions!U90), R7,Assumptions!U90*thous_conv) -> 13.71506943 | T7: =IF(ISBLANK(Assumptions!V90), S7,Assumptions!V90*thous_conv) -> 13.71506943 | U7: =IF(ISBLANK(Assumptions!W90), T7,Assumptions!W90*thous_conv) -> 13.71506943 | V7: =IF(ISBLANK(Assumptions!X90), U7,Assumptions!X90*thous_conv) -> 13.71506943 | W7: =IF(ISBLANK(Assumptions!Y90), V7,Assumptions!Y90*thous_conv) -> 13.71506943 | X7: =IF(ISBLANK(Assumptions!Z90), W7,Assumptions!Z90*thous_conv) -> 13.71506943 | Y7: =IF(ISBLANK(Assumptions!AA90), X7,Assumptions!AA90*thous_conv) -> 13.71506943 | Z7: =IF(ISBLANK(Assumptions!AB90), Y7,Assumptions!AB90*thous_conv) -> 13.71506943 | AA7: =IF(ISBLANK(Assumptions!AC90), Z7,Assumptions!AC90*thous_conv) -> 13.71506943 | AB7: =IF(ISBLANK(Assumptions!AD90), AA7,Assumptions!AD90*thous_conv) -> 13.71506943 | AC7: =IF(ISBLANK(Assumptions!AE90), AB7,Assumptions!AE90*thous_conv) -> 13.71506943 | AD7: =IF(ISBLANK(Assumptions!AF90), AC7,Assumptions!AF90*thous_conv) -> 13.71506943 | AE7: =IF(ISBLANK(Assumptions!AG90), AD7,Assumptions!AG90*thous_conv) -> 13.71506943 | AF7: =IF(ISBLANK(Assumptions!AH90), AE7,Assumptions!AH90*thous_conv) -> 13.71506943 | AG7: =IF(ISBLANK(Assumptions!AI90), AF7,Assumptions!AI90*thous_conv) -> 13.71506943
G9: Units | H9: =DATE(LEFT(I9,4), 6,30) -> 2026-06-30 | I9: =start -> 2026-27 | J9: =LEFT(I9,4)+1&"-"&RIGHT(I9,2)+1 -> 2027-28 | K9: 2028-29 | L9: 2029-30 | M9: 2030-31 | N9: 2031-32 | O9: 2032-33 | P9: 2033-34 | Q9: 2034-35 | R9: 2035-36 | S9: 2036-37 | T9: 2037-38 | U9: 2038-39 | V9: 2039-40 | W9: 2040-41 | X9: 2041-42 | Y9: 2042-43 | Z9: 2043-44 | AA9: 2044-45 | AB9: 2045-46 | AC9: 2046-47 | AD9: 2047-48 | AE9: 2048-49 | AF9: 2049-50 | AG9: 2050-51
A11: INVESTMENT & OPERATING COST
C13: Capex | E13: Asset life (yrs)
C14: < Enter description > | E14: 0 | G14: =input_dollars -> 2023-12-31 | I14: 0 | J14: 0 | K14: 0 | L14: 0 | M14: 0 | N14: 0 | O14: 0 | P14: 0 | Q14: 0 | R14: 0 | S14: 0 | T14: 0 | U14: 0 | V14: 0 | W14: 0 | X14: 0 | Y14: 0 | Z14: 0 | AA14: 0 | AB14: 0 | AC14: 0 | AD14: 0 | AE14: 0 | AF14: 0 | AG14: 0
C15: < Enter description > | E15: 0 | G15: =input_dollars -> 2023-12-31 | I15: 0 | J15: 0 | K15: 0 | L15: 0 | M15: 0 | N15: 0 | O15: 0 | P15: 0 | Q15: 0 | R15: 0 | S15: 0 | T15: 0 | U15: 0 | V15: 0 | W15: 0 | X15: 0 | Y15: 0 | Z15: 0 | AA15: 0 | AB15: 0 | AC15: 0 | AD15: 0 | AE15: 0 | AF15: 0 | AG15: 0
C16: < Enter description > | E16: 0 | G16: =input_dollars -> 2023-12-31 | I16: 0 | J16: 0 | K16: 0 | L16: 0 | M16: 0 | N16: 0 | O16: 0 | P16: 0 | Q16: 0 | R16: 0 | S16: 0 | T16: 0 | U16: 0 | V16: 0 | W16: 0 | X16: 0 | Y16: 0 | Z16: 0 | AA16: 0 | AB16: 0 | AC16: 0 | AD16: 0 | AE16: 0 | AF16: 0 | AG16: 0
C17: < Enter description > | E17: 0 | G17: =input_dollars -> 2023-12-31 | I17: 0 | J17: 0 | K17: 0 | L17: 0 | M17: 0 | N17: 0 | O17: 0 | P17: 0 | Q17: 0 | R17: 0 | S17: 0 | T17: 0 | U17: 0 | V17: 0 | W17: 0 | X17: 0 | Y17: 0 | Z17: 0 | AA17: 0 | AB17: 0 | AC17: 0 | AD17: 0 | AE17: 0 | AF17: 0 | AG17: 0
C18: Capital expenditure | G18: =input_dollars -> 2023-12-31 | I18: =SUM(I14:I17) -> 0 | J18: =SUM(J14:J17) -> 0 | K18: 0 | L18: 0 | M18: 0 | N18: 0 | O18: 0 | P18: 0 | Q18: 0 | R18: 0 | S18: 0 | T18: 0 | U18: 0 | V18: 0 | W18: 0 | X18: 0 | Y18: 0 | Z18: 0 | AA18: 0 | AB18: 0 | AC18: 0 | AD18: 0 | AE18: 0 | AF18: 0 | AG18: 0
C20: Operating expenditure | G20: =input_dollars -> 2023-12-31 | I20: 0 | J20: 0 | K20: 0 | L20: 0 | M20: 0 | N20: 0 | O20: 0 | P20: 0 | Q20: 0 | R20: 0 | S20: 0 | T20: 0 | U20: 0 | V20: 0 | W20: 0 | X20: 0 | Y20: 0 | Z20: 0 | AA20: 0 | AB20: 0 | AC20: 0 | AD20: 0 | AE20: 0 | AF20: 0 | AG20: 0
A23: RISK ASSUMPTIONS
C25: PoF (major) | I25: 0 | J25: 0 | K25: 0 | L25: 0 | M25: 0 | N25: 0 | O25: 0 | P25: 0 | Q25: 0 | R25: 0 | S25: 0 | T25: 0 | U25: 0 | V25: 0 | W25: 0 | X25: 0 | Y25: 0 | Z25: 0 | AA25: 0 | AB25: 0 | AC25: 0 | AD25: 0 | AE25: 0 | AF25: 0 | AG25: 0
C26: PoF (reparable) | I26: 0 | J26: 0 | K26: 0 | L26: 0 | M26: 0 | N26: 0 | O26: 0 | P26: 0 | Q26: 0 | R26: 0 | S26: 0 | T26: 0 | U26: 0 | V26: 0 | W26: 0 | X26: 0 | Y26: 0 | Z26: 0 | AA26: 0 | AB26: 0 | AC26: 0 | AD26: 0 | AE26: 0 | AF26: 0 | AG26: 0
C29: Energy at risk 10% PoE | E29: 0.3 | G29: MWh | I29: =SUM('EaR Opt1 BMH Rebuild - BMH'!I$10,'EaR Opt1 BMH Rebuild - MLN'!I$10,'EaR Opt1 MTC 3rd Tx - MTC'!I$10,'EaR Opt1 MTC 3rd Tx - TNA'!I$10,'EaR Opt1 New PCK - LV'!I$10,'EaR Opt1 New PCK - LVN'!I$10,'EaR Opt1 New PCK - WBE'!I$10) -> 377.3473715 | J29: =SUM('EaR Opt1 BMH Rebuild - BMH'!J$10,'EaR Opt1 BMH Rebuild - MLN'!J$10,'EaR Opt1 MTC 3rd Tx - MTC'!J$10,'EaR Opt1 MTC 3rd Tx - TNA'!J$10,'EaR Opt1 New PCK - LV'!J$10,'EaR Opt1 New PCK - LVN'!J$10,'EaR Opt1 New PCK - WBE'!J$10) -> 590.5162543 | K29: =SUM('EaR Opt1 BMH Rebuild - BMH'!K$10,'EaR Opt1 BMH Rebuild - MLN'!K$10,'EaR Opt1 MTC 3rd Tx - MTC'!K$10,'EaR Opt1 MTC 3rd Tx - TNA'!K$10,'EaR Opt1 New PCK - LV'!K$10,'EaR Opt1 New PCK - LVN'!K$10,'EaR Opt1 New PCK - WBE'!K$10) -> 1008.029495 | L29: =SUM('EaR Opt1 BMH Rebuild - BMH'!L$10,'EaR Opt1 BMH Rebuild - MLN'!L$10,'EaR Opt1 MTC 3rd Tx - MTC'!L$10,'EaR Opt1 MTC 3rd Tx - TNA'!L$10,'EaR Opt1 New PCK - LV'!L$10,'EaR Opt1 New PCK - LVN'!L$10,'EaR Opt1 New PCK - WBE'!L$10) -> 1694.936824 | M29: =SUM('EaR Opt1 BMH Rebuild - BMH'!M$10,'EaR Opt1 BMH Rebuild - MLN'!M$10,'EaR Opt1 MTC 3rd Tx - MTC'!M$10,'EaR Opt1 MTC 3rd Tx - TNA'!M$10,'EaR Opt1 New PCK - LV'!M$10,'EaR Opt1 New PCK - LVN'!M$10,'EaR Opt1 New PCK - WBE'!M$10) -> 3220.101898 | N29: =SUM('EaR Opt1 BMH Rebuild - BMH'!N$10,'EaR Opt1 BMH Rebuild - MLN'!N$10,'EaR Opt1 MTC 3rd Tx - MTC'!N$10,'EaR Opt1 MTC 3rd Tx - TNA'!N$10,'EaR Opt1 New PCK - LV'!N$10,'EaR Opt1 New PCK - LVN'!N$10,'EaR Opt1 New PCK - WBE'!N$10) -> 6654.286793 | O29: =SUM('EaR Opt1 BMH Rebuild - BMH'!O$10,'EaR Opt1 BMH Rebuild - MLN'!O$10,'EaR Opt1 MTC 3rd Tx - MTC'!O$10,'EaR Opt1 MTC 3rd Tx - TNA'!O$10,'EaR Opt1 New PCK - LV'!O$10,'EaR Opt1 New PCK - LVN'!O$10,'EaR Opt1 New PCK - WBE'!O$10) -> 12871.89869 | P29: =SUM('EaR Opt1 BMH Rebuild - BMH'!P$10,'EaR Opt1 BMH Rebuild - MLN'!P$10,'EaR Opt1 MTC 3rd Tx - MTC'!P$10,'EaR Opt1 MTC 3rd Tx - TNA'!P$10,'EaR Opt1 New PCK - LV'!P$10,'EaR Opt1 New PCK - LVN'!P$10,'EaR Opt1 New PCK - WBE'!P$10) -> 21340.66228 | Q29: =SUM('EaR Opt1 BMH Rebuild - BMH'!Q$10,'EaR Opt1 BMH Rebuild - MLN'!Q$10,'EaR Opt1 MTC 3rd Tx - MTC'!Q$10,'EaR Opt1 MTC 3rd Tx - TNA'!Q$10,'EaR Opt1 New PCK - LV'!Q$10,'EaR Opt1 New PCK - LVN'!Q$10,'EaR Opt1 New PCK - WBE'!Q$10) -> 31464.63077 | R29: =SUM('EaR Opt1 BMH Rebuild - BMH'!R$10,'EaR Opt1 BMH Rebuild - MLN'!R$10,'EaR Opt1 MTC 3rd Tx - MTC'!R$10,'EaR Opt1 MTC 3rd Tx - TNA'!R$10,'EaR Opt1 New PCK - LV'!R$10,'EaR Opt1 New PCK - LVN'!R$10,'EaR Opt1 New PCK - WBE'!R$10) -> 31464.63077 | S29: =SUM('EaR Opt1 BMH Rebuild - BMH'!S$10,'EaR Opt1 BMH Rebuild - MLN'!S$10,'EaR Opt1 MTC 3rd Tx - MTC'!S$10,'EaR Opt1 MTC 3rd Tx - TNA'!S$10,'EaR Opt1 New PCK - LV'!S$10,'EaR Opt1 New PCK - LVN'!S$10,'EaR Opt1 New PCK - WBE'!S$10) -> 31464.63077 | T29: =SUM('EaR Opt1 BMH Rebuild - BMH'!T$10,'EaR Opt1 BMH Rebuild - MLN'!T$10,'EaR Opt1 MTC 3rd Tx - MTC'!T$10,'EaR Opt1 MTC 3rd Tx - TNA'!T$10,'EaR Opt1 New PCK - LV'!T$10,'EaR Opt1 New PCK - LVN'!T$10,'EaR Opt1 New PCK - WBE'!T$10) -> 31464.63077 | U29: =SUM('EaR Opt1 BMH Rebuild - BMH'!U$10,'EaR Opt1 BMH Rebuild - MLN'!U$10,'EaR Opt1 MTC 3rd Tx - MTC'!U$10,'EaR Opt1 MTC 3rd Tx - TNA'!U$10,'EaR Opt1 New PCK - LV'!U$10,'EaR Opt1 New PCK - LVN'!U$10,'EaR Opt1 New PCK - WBE'!U$10) -> 31464.63077 | V29: =SUM('EaR Opt1 BMH Rebuild - BMH'!V$10,'EaR Opt1 BMH Rebuild - MLN'!V$10,'EaR Opt1 MTC 3rd Tx - MTC'!V$10,'EaR Opt1 MTC 3rd Tx - TNA'!V$10,'EaR Opt1 New PCK - LV'!V$10,'EaR Opt1 New PCK - LVN'!V$10,'EaR Opt1 New PCK - WBE'!V$10) -> 31464.63077 | W29: =SUM('EaR Opt1 BMH Rebuild - BMH'!W$10,'EaR Opt1 BMH Rebuild - MLN'!W$10,'EaR Opt1 MTC 3rd Tx - MTC'!W$10,'EaR Opt1 MTC 3rd Tx - TNA'!W$10,'EaR Opt1 New PCK - LV'!W$10,'EaR Opt1 New PCK - LVN'!W$10,'EaR Opt1 New PCK - WBE'!W$10) -> 31464.63077 | X29: =SUM('EaR Opt1 BMH Rebuild - BMH'!X$10,'EaR Opt1 BMH Rebuild - MLN'!X$10,'EaR Opt1 MTC 3rd Tx - MTC'!X$10,'EaR Opt1 MTC 3rd Tx - TNA'!X$10,'EaR Opt1 New PCK - LV'!X$10,'EaR Opt1 New PCK - LVN'!X$10,'EaR Opt1 New PCK - WBE'!X$10) -> 31464.63077 | Y29: =SUM('EaR Opt1 BMH Rebuild - BMH'!Y$10,'EaR Opt1 BMH Rebuild - MLN'!Y$10,'EaR Opt1 MTC 3rd Tx - MTC'!Y$10,'EaR Opt1 MTC 3rd Tx - TNA'!Y$10,'EaR Opt1 New PCK - LV'!Y$10,'EaR Opt1 New PCK - LVN'!Y$10,'EaR Opt1 New PCK - WBE'!Y$10) -> 31464.63077 | Z29: =SUM('EaR Opt1 BMH Rebuild - BMH'!Z$10,'EaR Opt1 BMH Rebuild - MLN'!Z$10,'EaR Opt1 MTC 3rd Tx - MTC'!Z$10,'EaR Opt1 MTC 3rd Tx - TNA'!Z$10,'EaR Opt1 New PCK - LV'!Z$10,'EaR Opt1 New PCK - LVN'!Z$10,'EaR Opt1 New PCK - WBE'!Z$10) -> 31464.63077 | AA29: =SUM('EaR Opt1 BMH Rebuild - BMH'!AA$10,'EaR Opt1 BMH Rebuild - MLN'!AA$10,'EaR Opt1 MTC 3rd Tx - MTC'!AA$10,'EaR Opt1 MTC 3rd Tx - TNA'!AA$10,'EaR Opt1 New PCK - LV'!AA$10,'EaR Opt1 New PCK - LVN'!AA$10,'EaR Opt1 New PCK - WBE'!AA$10) -> 31464.63077 | AB29: =SUM('EaR Opt1 BMH Rebuild - BMH'!AB$10,'EaR Opt1 BMH Rebuild - MLN'!AB$10,'EaR Opt1 MTC 3rd Tx - MTC'!AB$10,'EaR Opt1 MTC 3rd Tx - TNA'!AB$10,'EaR Opt1 New PCK - LV'!AB$10,'EaR Opt1 New PCK - LVN'!AB$10,'EaR Opt1 New PCK - WBE'!AB$10) -> 31464.63077 | AC29: =SUM('EaR Opt1 BMH Rebuild - BMH'!AC$10,'EaR Opt1 BMH Rebuild - MLN'!AC$10,'EaR Opt1 MTC 3rd Tx - MTC'!AC$10,'EaR Opt1 MTC 3rd Tx - TNA'!AC$10,'EaR Opt1 New PCK - LV'!AC$10,'EaR Opt1 New PCK - LVN'!AC$10,'EaR Opt1 New PCK - WBE'!AC$10) -> 31464.63077 | AD29: =SUM('EaR Opt1 BMH Rebuild - BMH'!AD$10,'EaR Opt1 BMH Rebuild - MLN'!AD$10,'EaR Opt1 MTC 3rd Tx - MTC'!AD$10,'EaR Opt1 MTC 3rd Tx - TNA'!AD$10,'EaR Opt1 New PCK - LV'!AD$10,'EaR Opt1 New PCK - LVN'!AD$10,'EaR Opt1 New PCK - WBE'!AD$10) -> 31464.63077 | AE29: =SUM('EaR Opt1 BMH Rebuild - BMH'!AE$10,'EaR Opt1 BMH Rebuild - MLN'!AE$10,'EaR Opt1 MTC 3rd Tx - MTC'!AE$10,'EaR Opt1 MTC 3rd Tx - TNA'!AE$10,'EaR Opt1 New PCK - LV'!AE$10,'EaR Opt1 New PCK - LVN'!AE$10,'EaR Opt1 New PCK - WBE'!AE$10) -> 31464.63077 | AF29: =AE29 -> 31464.63077 | AG29: =AF29 -> 31464.63077
C30: Energy at risk 50% PoE | E30: 0.7 | G30: MWh | I30: =SUM('EaR Opt1 BMH Rebuild - BMH'!I$9,'EaR Opt1 BMH Rebuild - MLN'!I$9,'EaR Opt1 MTC 3rd Tx - MTC'!I$9,'EaR Opt1 MTC 3rd Tx - TNA'!I$9,'EaR Opt1 New PCK - LV'!I$9,'EaR Opt1 New PCK - LVN'!I$9,'EaR Opt1 New PCK - WBE'!I$9) -> 101.3053814 | J30: =SUM('EaR Opt1 BMH Rebuild - BMH'!J$9,'EaR Opt1 BMH Rebuild - MLN'!J$9,'EaR Opt1 MTC 3rd Tx - MTC'!J$9,'EaR Opt1 MTC 3rd Tx - TNA'!J$9,'EaR Opt1 New PCK - LV'!J$9,'EaR Opt1 New PCK - LVN'!J$9,'EaR Opt1 New PCK - WBE'!J$9) -> 196.8515984 | K30: =SUM('EaR Opt1 BMH Rebuild - BMH'!K$9,'EaR Opt1 BMH Rebuild - MLN'!K$9,'EaR Opt1 MTC 3rd Tx - MTC'!K$9,'EaR Opt1 MTC 3rd Tx - TNA'!K$9,'EaR Opt1 New PCK - LV'!K$9,'EaR Opt1 New PCK - LVN'!K$9,'EaR Opt1 New PCK - WBE'!K$9) -> 307.3673394 | L30: =SUM('EaR Opt1 BMH Rebuild - BMH'!L$9,'EaR Opt1 BMH Rebuild - MLN'!L$9,'EaR Opt1 MTC 3rd Tx - MTC'!L$9,'EaR Opt1 MTC 3rd Tx - TNA'!L$9,'EaR Opt1 New PCK - LV'!L$9,'EaR Opt1 New PCK - LVN'!L$9,'EaR Opt1 New PCK - WBE'!L$9) -> 444.9771841 | M30: =SUM('EaR Opt1 BMH Rebuild - BMH'!M$9,'EaR Opt1 BMH Rebuild - MLN'!M$9,'EaR Opt1 MTC 3rd Tx - MTC'!M$9,'EaR Opt1 MTC 3rd Tx - TNA'!M$9,'EaR Opt1 New PCK - LV'!M$9,'EaR Opt1 New PCK - LVN'!M$9,'EaR Opt1 New PCK - WBE'!M$9) -> 689.1157166 | N30: =SUM('EaR Opt1 BMH Rebuild - BMH'!N$9,'EaR Opt1 BMH Rebuild - MLN'!N$9,'EaR Opt1 MTC 3rd Tx - MTC'!N$9,'EaR Opt1 MTC 3rd Tx - TNA'!N$9,'EaR Opt1 New PCK - LV'!N$9,'EaR Opt1 New PCK - LVN'!N$9,'EaR Opt1 New PCK - WBE'!N$9) -> 1288.475739 | O30: =SUM('EaR Opt1 BMH Rebuild - BMH'!O$9,'EaR Opt1 BMH Rebuild - MLN'!O$9,'EaR Opt1 MTC 3rd Tx - MTC'!O$9,'EaR Opt1 MTC 3rd Tx - TNA'!O$9,'EaR Opt1 New PCK - LV'!O$9,'EaR Opt1 New PCK - LVN'!O$9,'EaR Opt1 New PCK - WBE'!O$9) -> 2656.906089 | P30: =SUM('EaR Opt1 BMH Rebuild - BMH'!P$9,'EaR Opt1 BMH Rebuild - MLN'!P$9,'EaR Opt1 MTC 3rd Tx - MTC'!P$9,'EaR Opt1 MTC 3rd Tx - TNA'!P$9,'EaR Opt1 New PCK - LV'!P$9,'EaR Opt1 New PCK - LVN'!P$9,'EaR Opt1 New PCK - WBE'!P$9) -> 4996.298793 | Q30: =SUM('EaR Opt1 BMH Rebuild - BMH'!Q$9,'EaR Opt1 BMH Rebuild - MLN'!Q$9,'EaR Opt1 MTC 3rd Tx - MTC'!Q$9,'EaR Opt1 MTC 3rd Tx - TNA'!Q$9,'EaR Opt1 New PCK - LV'!Q$9,'EaR Opt1 New PCK - LVN'!Q$9,'EaR Opt1 New PCK - WBE'!Q$9) -> 8268.429691 | R30: =SUM('EaR Opt1 BMH Rebuild - BMH'!R$9,'EaR Opt1 BMH Rebuild - MLN'!R$9,'EaR Opt1 MTC 3rd Tx - MTC'!R$9,'EaR Opt1 MTC 3rd Tx - TNA'!R$9,'EaR Opt1 New PCK - LV'!R$9,'EaR Opt1 New PCK - LVN'!R$9,'EaR Opt1 New PCK - WBE'!R$9) -> 8268.429691 | S30: =SUM('EaR Opt1 BMH Rebuild - BMH'!S$9,'EaR Opt1 BMH Rebuild - MLN'!S$9,'EaR Opt1 MTC 3rd Tx - MTC'!S$9,'EaR Opt1 MTC 3rd Tx - TNA'!S$9,'EaR Opt1 New PCK - LV'!S$9,'EaR Opt1 New PCK - LVN'!S$9,'EaR Opt1 New PCK - WBE'!S$9) -> 8268.429691 | T30: =SUM('EaR Opt1 BMH Rebuild - BMH'!T$9,'EaR Opt1 BMH Rebuild - MLN'!T$9,'EaR Opt1 MTC 3rd Tx - MTC'!T$9,'EaR Opt1 MTC 3rd Tx - TNA'!T$9,'EaR Opt1 New PCK - LV'!T$9,'EaR Opt1 New PCK - LVN'!T$9,'EaR Opt1 New PCK - WBE'!T$9) -> 8268.429691 | U30: =SUM('EaR Opt1 BMH Rebuild - BMH'!U$9,'EaR Opt1 BMH Rebuild - MLN'!U$9,'EaR Opt1 MTC 3rd Tx - MTC'!U$9,'EaR Opt1 MTC 3rd Tx - TNA'!U$9,'EaR Opt1 New PCK - LV'!U$9,'EaR Opt1 New PCK - LVN'!U$9,'EaR Opt1 New PCK - WBE'!U$9) -> 8268.429691 | V30: =SUM('EaR Opt1 BMH Rebuild - BMH'!V$9,'EaR Opt1 BMH Rebuild - MLN'!V$9,'EaR Opt1 MTC 3rd Tx - MTC'!V$9,'EaR Opt1 MTC 3rd Tx - TNA'!V$9,'EaR Opt1 New PCK - LV'!V$9,'EaR Opt1 New PCK - LVN'!V$9,'EaR Opt1 New PCK - WBE'!V$9) -> 8268.429691 | W30: =SUM('EaR Opt1 BMH Rebuild - BMH'!W$9,'EaR Opt1 BMH Rebuild - MLN'!W$9,'EaR Opt1 MTC 3rd Tx - MTC'!W$9,'EaR Opt1 MTC 3rd Tx - TNA'!W$9,'EaR Opt1 New PCK - LV'!W$9,'EaR Opt1 New PCK - LVN'!W$9,'EaR Opt1 New PCK - WBE'!W$9) -> 8268.429691 | X30: =SUM('EaR Opt1 BMH Rebuild - BMH'!X$9,'EaR Opt1 BMH Rebuild - MLN'!X$9,'EaR Opt1 MTC 3rd Tx - MTC'!X$9,'EaR Opt1 MTC 3rd Tx - TNA'!X$9,'EaR Opt1 New PCK - LV'!X$9,'EaR Opt1 New PCK - LVN'!X$9,'EaR Opt1 New PCK - WBE'!X$9) -> 8268.429691 | Y30: =SUM('EaR Opt1 BMH Rebuild - BMH'!Y$9,'EaR Opt1 BMH Rebuild - MLN'!Y$9,'EaR Opt1 MTC 3rd Tx - MTC'!Y$9,'EaR Opt1 MTC 3rd Tx - TNA'!Y$9,'EaR Opt1 New PCK - LV'!Y$9,'EaR Opt1 New PCK - LVN'!Y$9,'EaR Opt1 New PCK - WBE'!Y$9) -> 8268.429691 | Z30: =SUM('EaR Opt1 BMH Rebuild - BMH'!Z$9,'EaR Opt1 BMH Rebuild - MLN'!Z$9,'EaR Opt1 MTC 3rd Tx - MTC'!Z$9,'EaR Opt1 MTC 3rd Tx - TNA'!Z$9,'EaR Opt1 New PCK - LV'!Z$9,'EaR Opt1 New PCK - LVN'!Z$9,'EaR Opt1 New PCK - WBE'!Z$9) -> 8268.429691 | AA30: =SUM('EaR Opt1 BMH Rebuild - BMH'!AA$9,'EaR Opt1 BMH Rebuild - MLN'!AA$9,'EaR Opt1 MTC 3rd Tx - MTC'!AA$9,'EaR Opt1 MTC 3rd Tx - TNA'!AA$9,'EaR Opt1 New PCK - LV'!AA$9,'EaR Opt1 New PCK - LVN'!AA$9,'EaR Opt1 New PCK - WBE'!AA$9) -> 8268.429691 | AB30: =SUM('EaR Opt1 BMH Rebuild - BMH'!AB$9,'EaR Opt1 BMH Rebuild - MLN'!AB$9,'EaR Opt1 MTC 3rd Tx - MTC'!AB$9,'EaR Opt1 MTC 3rd Tx - TNA'!AB$9,'EaR Opt1 New PCK - LV'!AB$9,'EaR Opt1 New PCK - LVN'!AB$9,'EaR Opt1 New PCK - WBE'!AB$9) -> 8268.429691 | AC30: =SUM('EaR Opt1 BMH Rebuild - BMH'!AC$9,'EaR Opt1 BMH Rebuild - MLN'!AC$9,'EaR Opt1 MTC 3rd Tx - MTC'!AC$9,'EaR Opt1 MTC 3rd Tx - TNA'!AC$9,'EaR Opt1 New PCK - LV'!AC$9,'EaR Opt1 New PCK - LVN'!AC$9,'EaR Opt1 New PCK - WBE'!AC$9) -> 8268.429691 | AD30: =SUM('EaR Opt1 BMH Rebuild - BMH'!AD$9,'EaR Opt1 BMH Rebuild - MLN'!AD$9,'EaR Opt1 MTC 3rd Tx - MTC'!AD$9,'EaR Opt1 MTC 3rd Tx - TNA'!AD$9,'EaR Opt1 New PCK - LV'!AD$9,'EaR Opt1 New PCK - LVN'!AD$9,'EaR Opt1 New PCK - WBE'!AD$9) -> 8268.429691 | AE30: =SUM('EaR Opt1 BMH Rebuild - BMH'!AE$9,'EaR Opt1 BMH Rebuild - MLN'!AE$9,'EaR Opt1 MTC 3rd Tx - MTC'!AE$9,'EaR Opt1 MTC 3rd Tx - TNA'!AE$9,'EaR Opt1 New PCK - LV'!AE$9,'EaR Opt1 New PCK - LVN'!AE$9,'EaR Opt1 New PCK - WBE'!AE$9) -> 8268.429691 | AF30: =AE30 -> 8268.429691 | AG30: =AF30 -> 8268.429691
C32: Energy at risk (weighted) | G32: MWh | I32: =SUMPRODUCT(I$29:I$30, $E$29:$E$30) -> 184.1179785 | J32: =SUMPRODUCT(J$29:J$30, $E$29:$E$30) -> 314.9509952 | K32: 517.565986 | L32: 819.9650762 | M32: 1448.411571 | N32: 2898.219055 | O32: 5721.40387 | P32: 9899.60784 | Q32: 15227.29002 | R32: 15227.29002 | S32: 15227.29002 | T32: 15227.29002 | U32: 15227.29002 | V32: 15227.29002 | W32: 15227.29002 | X32: 15227.29002 | Y32: 15227.29002 | Z32: 15227.29002 | AA32: 15227.29002 | AB32: 15227.29002 | AC32: 15227.29002 | AD32: 15227.29002 | AE32: 15227.29002 | AF32: 15227.29002 | AG32: 15227.29002
C33: Energy at risk value | D33: $/MWh | E33: =Assumptions!H41*vcr_esc -> 33863.33108 | F33: =IF(AND(SUM(I32:AG32)<>0, E33=0), "!", "") ->  | G33: =input_dollars -> 2023-12-31 | I33: =I32*$E$33 -> 6234848.062 | J33: =J32*$E$33 -> 10665289.82 | K33: 17526508.34 | L33: 27766748.85 | M33: 49048040.57 | N33: 98143351.4 | O33: 193745793.5 | P33: 335233697.8 | Q33: 515646763.2 | R33: 515646763.2 | S33: 515646763.2 | T33: 515646763.2 | U33: 515646763.2 | V33: 515646763.2 | W33: 515646763.2 | X33: 515646763.2 | Y33: 515646763.2 | Z33: 515646763.2 | AA33: 515646763.2 | AB33: 515646763.2 | AC33: 515646763.2 | AD33: 515646763.2 | AE33: 515646763.2 | AF33: 515646763.2 | AG33: 515646763.2
C35: Safety consequence | D35: (after DF) | G35: =input_dollars -> 2023-12-31 | I35: 0 | J35: 0 | K35: 0 | L35: 0 | M35: 0 | N35: 0 | O35: 0 | P35: 0 | Q35: 0 | R35: 0 | S35: 0 | T35: 0 | U35: 0 | V35: 0 | W35: 0 | X35: 0 | Y35: 0 | Z35: 0 | AA35: 0 | AB35: 0 | AC35: 0 | AD35: 0 | AE35: 0 | AF35: 0 | AG35: 0
C36: Unplanned replacements | G36: =input_dollars -> 2023-12-31 | I36: 0 | J36: 0 | K36: 0 | L36: 0 | M36: 0 | N36: 0 | O36: 0 | P36: 0 | Q36: 0 | R36: 0 | S36: 0 | T36: 0 | U36: 0 | V36: 0 | W36: 0 | X36: 0 | Y36: 0 | Z36: 0 | AA36: 0 | AB36: 0 | AC36: 0 | AD36: 0 | AE36: 0 | AF36: 0 | AG36: 0
C37: Environmental consequence | D37: (after DF) | G37: =input_dollars -> 2023-12-31 | I37: 0 | J37: 0 | K37: 0 | L37: 0 | M37: 0 | N37: 0 | O37: 0 | P37: 0 | Q37: 0 | R37: 0 | S37: 0 | T37: 0 | U37: 0 | V37: 0 | W37: 0 | X37: 0 | Y37: 0 | Z37: 0 | AA37: 0 | AB37: 0 | AC37: 0 | AD37: 0 | AE37: 0 | AF37: 0 | AG37: 0
C38: < Other risk - enter description > | G38: =input_dollars -> 2023-12-31 | I38: 0 | J38: 0 | K38: 0 | L38: 0 | M38: 0 | N38: 0 | O38: 0 | P38: 0 | Q38: 0 | R38: 0 | S38: 0 | T38: 0 | U38: 0 | V38: 0 | W38: 0 | X38: 0 | Y38: 0 | Z38: 0 | AA38: 0 | AB38: 0 | AC38: 0 | AD38: 0 | AE38: 0 | AF38: 0 | AG38: 0
C39: < Other risk - enter description > | G39: =input_dollars -> 2023-12-31 | I39: 0 | J39: 0 | K39: 0 | L39: 0 | M39: 0 | N39: 0 | O39: 0 | P39: 0 | Q39: 0 | R39: 0 | S39: 0 | T39: 0 | U39: 0 | V39: 0 | W39: 0 | X39: 0 | Y39: 0 | Z39: 0 | AA39: 0 | AB39: 0 | AC39: 0 | AD39: 0 | AE39: 0 | AF39: 0 | AG39: 0
C41: Total risk cost | I41: =SUM(I33:I39) -> 6234848.062 | J41: =SUM(J33:J39) -> 10665289.82 | K41: 17526508.34 | L41: 27766748.85 | M41: 49048040.57 | N41: 98143351.4 | O41: 193745793.5 | P41: 335233697.8 | Q41: 515646763.2 | R41: 515646763.2 | S41: 515646763.2 | T41: 515646763.2 | U41: 515646763.2 | V41: 515646763.2 | W41: 515646763.2 | X41: 515646763.2 | Y41: 515646763.2 | Z41: 515646763.2 | AA41: 515646763.2 | AB41: 515646763.2 | AC41: =SUM(AC33:AC39) -> 515646763.2 | AD41: =SUM(AD33:AD39) -> 515646763.2 | AE41: =SUM(AE33:AE39) -> 515646763.2 | AF41: =SUM(AF33:AF39) -> 515646763.2 | AG41: =SUM(AG33:AG39) -> 515646763.2
A43: OTHER BENEFITS
C46: Reduction in CO2 emissions | G46: MWh | I46: 0 | J46: 0 | K46: 0 | L46: 0 | M46: 0 | N46: 0 | O46: 0 | P46: 0 | Q46: 0 | R46: 0 | S46: 0 | T46: 0 | U46: 0 | V46: 0 | W46: 0 | X46: 0 | Y46: 0 | Z46: 0 | AA46: 0 | AB46: 0 | AC46: 0 | AD46: 0 | AE46: 0 | AF46: 0 | AG46: 0
C47: Value of reduction in CO2 emissions | G47: $ | I47: =I46*I7 -> 0 | J47: 0 | K47: 0 | L47: 0 | M47: 0 | N47: 0 | O47: 0 | P47: 0 | Q47: 0 | R47: 0 | S47: 0 | T47: 0 | U47: 0 | V47: 0 | W47: 0 | X47: 0 | Y47: 0 | Z47: 0 | AA47: 0 | AB47: 0 | AC47: 0 | AD47: 0 | AE47: 0 | AF47: 0 | AG47: 0
C50: Reliability in worst-served areas | D50: $/MWh | E50: =Assumptions!G94 -> 151432.8174 | G50: MWh | I50: 0 | J50: 0 | K50: 0 | L50: 0 | M50: 0 | N50: 0 | O50: 0 | P50: 0 | Q50: 0 | R50: 0 | S50: 0 | T50: 0 | U50: 0 | V50: 0 | W50: 0 | X50: 0 | Y50: 0 | Z50: 0 | AA50: 0 | AB50: 0 | AC50: 0 | AD50: 0 | AE50: 0 | AF50: 0 | AG50: 0
C51: Network resilience | D51: $/MWh | E51: =Assumptions!G95 -> 24590 | G51: MWh | I51: 0 | J51: 0 | K51: 0 | L51: 0 | M51: 0 | N51: 0 | O51: 0 | P51: 0 | Q51: 0 | R51: 0 | S51: 0 | T51: 0 | U51: 0 | V51: 0 | W51: 0 | X51: 0 | Y51: 0 | Z51: 0 | AA51: 0 | AB51: 0 | AC51: 0 | AD51: 0 | AE51: 0 | AF51: 0 | AG51: 0
C52: Enabling solar exports | D52: $/MWh | E52: =Assumptions!G96 -> 88.35771951 | G52: MWh | I52: 0 | J52: 0 | K52: 0 | L52: 0 | M52: 0 | N52: 0 | O52: 0 | P52: 0 | Q52: 0 | R52: 0 | S52: 0 | T52: 0 | U52: 0 | V52: 0 | W52: 0 | X52: 0 | Y52: 0 | Z52: 0 | AA52: 0 | AB52: 0 | AC52: 0 | AD52: 0 | AE52: 0 | AF52: 0 | AG52: 0
C53: Aesthetics | D53: $/customer | E53: =Assumptions!G97 -> 0 | G53: customers | I53: 0 | J53: 0 | K53: 0 | L53: 0 | M53: 0 | N53: 0 | O53: 0 | P53: 0 | Q53: 0 | R53: 0 | S53: 0 | T53: 0 | U53: 0 | V53: 0 | W53: 0 | X53: 0 | Y53: 0 | Z53: 0 | AA53: 0 | AB53: 0 | AC53: 0 | AD53: 0 | AE53: 0 | AF53: 0 | AG53: 0
C54: Customer value of time (res) | D54: $/customer min | E54: =Assumptions!G98 -> 0.3518133654 | G54: mins | I54: 0 | J54: 0 | K54: 0 | L54: 0 | M54: 0 | N54: 0 | O54: 0 | P54: 0 | Q54: 0 | R54: 0 | S54: 0 | T54: 0 | U54: 0 | V54: 0 | W54: 0 | X54: 0 | Y54: 0 | Z54: 0 | AA54: 0 | AB54: 0 | AC54: 0 | AD54: 0 | AE54: 0 | AF54: 0 | AG54: 0
C55: Customer value of time (bus) | D55: $/customer min | E55: =Assumptions!G99 -> 0.3518133654 | G55: mins | I55: 0 | J55: 0 | K55: 0 | L55: 0 | M55: 0 | N55: 0 | O55: 0 | P55: 0 | Q55: 0 | R55: 0 | S55: 0 | T55: 0 | U55: 0 | V55: 0 | W55: 0 | X55: 0 | Y55: 0 | Z55: 0 | AA55: 0 | AB55: 0 | AC55: 0 | AD55: 0 | AE55: 0 | AF55: 0 | AG55: 0
C56: Communication | D56: $/customer | E56: =Assumptions!G100 -> 0 | G56: customers | I56: 0 | J56: 0 | K56: 0 | L56: 0 | M56: 0 | N56: 0 | O56: 0 | P56: 0 | Q56: 0 | R56: 0 | S56: 0 | T56: 0 | U56: 0 | V56: 0 | W56: 0 | X56: 0 | Y56: 0 | Z56: 0 | AA56: 0 | AB56: 0 | AC56: 0 | AD56: 0 | AE56: 0 | AF56: 0 | AG56: 0
C57: Information accessibility | D57: $/customer | E57: =Assumptions!G101 -> 0 | G57: customers | I57: 0 | J57: 0 | K57: 0 | L57: 0 | M57: 0 | N57: 0 | O57: 0 | P57: 0 | Q57: 0 | R57: 0 | S57: 0 | T57: 0 | U57: 0 | V57: 0 | W57: 0 | X57: 0 | Y57: 0 | Z57: 0 | AA57: 0 | AB57: 0 | AC57: 0 | AD57: 0 | AE57: 0 | AF57: 0 | AG57: 0
C59: Other benefits 1 | G59: =input_dollars -> 2023-12-31 | I59: 0 | J59: 0 | K59: 0 | L59: 0 | M59: 0 | N59: 0 | O59: 0 | P59: 0 | Q59: 0 | R59: 0 | S59: 0 | T59: 0 | U59: 0 | V59: 0 | W59: 0 | X59: 0 | Y59: 0 | Z59: 0 | AA59: 0 | AB59: 0 | AC59: 0 | AD59: 0 | AE59: 0 | AF59: 0 | AG59: 0
C60: Other benefits 2 | G60: =input_dollars -> 2023-12-31 | I60: 0 | J60: 0 | K60: 0 | L60: 0 | M60: 0 | N60: 0 | O60: 0 | P60: 0 | Q60: 0 | R60: 0 | S60: 0 | T60: 0 | U60: 0 | V60: 0 | W60: 0 | X60: 0 | Y60: 0 | Z60: 0 | AA60: 0 | AB60: 0 | AC60: 0 | AD60: 0 | AE60: 0 | AF60: 0 | AG60: 0
C62: Total other benefits | G62: =input_dollars -> 2023-12-31 | I62: =SUMPRODUCT((I$50:I$57)*($E$50:$E$57))+SUM(I59:I60)+I47 -> 0 | J62: =SUMPRODUCT((J$50:J$57)*($E$50:$E$57))+SUM(J59:J60)+J47 -> 0 | K62: =SUMPRODUCT((K$50:K$57)*($E$50:$E$57))+SUM(K59:K60)+K47 -> 0 | L62: =SUMPRODUCT((L$50:L$57)*($E$50:$E$57))+SUM(L59:L60)+L47 -> 0 | M62: =SUMPRODUCT((M$50:M$57)*($E$50:$E$57))+SUM(M59:M60)+M47 -> 0 | N62: =SUMPRODUCT((N$50:N$57)*($E$50:$E$57))+SUM(N59:N60)+N47 -> 0 | O62: =SUMPRODUCT((O$50:O$57)*($E$50:$E$57))+SUM(O59:O60)+O47 -> 0 | P62: =SUMPRODUCT((P$50:P$57)*($E$50:$E$57))+SUM(P59:P60)+P47 -> 0 | Q62: =SUMPRODUCT((Q$50:Q$57)*($E$50:$E$57))+SUM(Q59:Q60)+Q47 -> 0 | R62: =SUMPRODUCT((R$50:R$57)*($E$50:$E$57))+SUM(R59:R60)+R47 -> 0 | S62: =SUMPRODUCT((S$50:S$57)*($E$50:$E$57))+SUM(S59:S60)+S47 -> 0 | T62: =SUMPRODUCT((T$50:T$57)*($E$50:$E$57))+SUM(T59:T60)+T47 -> 0 | U62: =SUMPRODUCT((U$50:U$57)*($E$50:$E$57))+SUM(U59:U60)+U47 -> 0 | V62: =SUMPRODUCT((V$50:V$57)*($E$50:$E$57))+SUM(V59:V60)+V47 -> 0 | W62: =SUMPRODUCT((W$50:W$57)*($E$50:$E$57))+SUM(W59:W60)+W47 -> 0 | X62: =SUMPRODUCT((X$50:X$57)*($E$50:$E$57))+SUM(X59:X60)+X47 -> 0 | Y62: =SUMPRODUCT((Y$50:Y$57)*($E$50:$E$57))+SUM(Y59:Y60)+Y47 -> 0 | Z62: =SUMPRODUCT((Z$50:Z$57)*($E$50:$E$57))+SUM(Z59:Z60)+Z47 -> 0 | AA62: =SUMPRODUCT((AA$50:AA$57)*($E$50:$E$57))+SUM(AA59:AA60)+AA47 -> 0 | AB62: =SUMPRODUCT((AB$50:AB$57)*($E$50:$E$57))+SUM(AB59:AB60)+AB47 -> 0 | AC62: =SUMPRODUCT((AC$50:AC$57)*($E$50:$E$57))+SUM(AC59:AC60)+AC47 -> 0 | AD62: =SUMPRODUCT((AD$50:AD$57)*($E$50:$E$57))+SUM(AD59:AD60)+AD47 -> 0 | AE62: =SUMPRODUCT((AE$50:AE$57)*($E$50:$E$57))+SUM(AE59:AE60)+AE47 -> 0 | AF62: =SUMPRODUCT((AF$50:AF$57)*($E$50:$E$57))+SUM(AF59:AF60)+AF47 -> 0 | AG62: =SUMPRODUCT((AG$50:AG$57)*($E$50:$E$57))+SUM(AG59:AG60)+AG47 -> 0
A65: SUMMARY
C69: Risks mitigated vs base case | G69: =input_dollars -> 2023-12-31
C71: Capital expenditure
C72: =C14 -> < Enter description > | G72: =input_dollars -> 2023-12-31 | I72: =-I14 -> 0 | J72: 0 | K72: 0 | L72: 0 | M72: 0 | N72: 0 | O72: 0 | P72: 0 | Q72: 0 | R72: 0 | S72: 0 | T72: 0 | U72: 0 | V72: 0 | W72: 0 | X72: 0 | Y72: 0 | Z72: 0 | AA72: 0 | AB72: 0 | AC72: 0 | AD72: 0 | AE72: 0 | AF72: 0 | AG72: 0
C73: =C15 -> < Enter description > | G73: =input_dollars -> 2023-12-31 | I73: =-I15 -> 0 | J73: 0 | K73: 0 | L73: 0 | M73: 0 | N73: 0 | O73: 0 | P73: 0 | Q73: 0 | R73: 0 | S73: 0 | T73: 0 | U73: 0 | V73: 0 | W73: 0 | X73: 0 | Y73: 0 | Z73: 0 | AA73: 0 | AB73: 0 | AC73: 0 | AD73: 0 | AE73: 0 | AF73: 0 | AG73: 0
C74: =C17 -> < Enter description > | G74: =input_dollars -> 2023-12-31 | I74: =-I17 -> 0 | J74: 0 | K74: 0 | L74: 0 | M74: 0 | N74: 0 | O74: 0 | P74: 0 | Q74: 0 | R74: 0 | S74: 0 | T74: 0 | U74: 0 | V74: 0 | W74: 0 | X74: 0 | Y74: 0 | Z74: 0 | AA74: 0 | AB74: 0 | AC74: 0 | AD74: 0 | AE74: 0 | AF74: 0 | AG74: 0
C76: Cumulative capex
C77: =C14 -> < Enter description > | G77: =input_dollars -> 2023-12-31 | I77: =SUMPRODUCT(($I72:I72))-SUMPRODUCT(($I72:I72)*($I$6:I$6<=(I$6-$E14))) -> 0 | J77: =SUMPRODUCT(($I72:J72))-SUMPRODUCT(($I72:J72)*($I$6:J$6<=(J$6-$E14))) -> 0 | K77: =SUMPRODUCT(($I72:K72))-SUMPRODUCT(($I72:K72)*($I$6:K$6<=(K$6-$E14))) -> 0 | L77: =SUMPRODUCT(($I72:L72))-SUMPRODUCT(($I72:L72)*($I$6:L$6<=(L$6-$E14))) -> 0 | M77: =SUMPRODUCT(($I72:M72))-SUMPRODUCT(($I72:M72)*($I$6:M$6<=(M$6-$E14))) -> 0 | N77: =SUMPRODUCT(($I72:N72))-SUMPRODUCT(($I72:N72)*($I$6:N$6<=(N$6-$E14))) -> 0 | O77: =SUMPRODUCT(($I72:O72))-SUMPRODUCT(($I72:O72)*($I$6:O$6<=(O$6-$E14))) -> 0 | P77: =SUMPRODUCT(($I72:P72))-SUMPRODUCT(($I72:P72)*($I$6:P$6<=(P$6-$E14))) -> 0 | Q77: =SUMPRODUCT(($I72:Q72))-SUMPRODUCT(($I72:Q72)*($I$6:Q$6<=(Q$6-$E14))) -> 0 | R77: =SUMPRODUCT(($I72:R72))-SUMPRODUCT(($I72:R72)*($I$6:R$6<=(R$6-$E14))) -> 0 | S77: =SUMPRODUCT(($I72:S72))-SUMPRODUCT(($I72:S72)*($I$6:S$6<=(S$6-$E14))) -> 0 | T77: =SUMPRODUCT(($I72:T72))-SUMPRODUCT(($I72:T72)*($I$6:T$6<=(T$6-$E14))) -> 0 | U77: =SUMPRODUCT(($I72:U72))-SUMPRODUCT(($I72:U72)*($I$6:U$6<=(U$6-$E14))) -> 0 | V77: =SUMPRODUCT(($I72:V72))-SUMPRODUCT(($I72:V72)*($I$6:V$6<=(V$6-$E14))) -> 0 | W77: =SUMPRODUCT(($I72:W72))-SUMPRODUCT(($I72:W72)*($I$6:W$6<=(W$6-$E14))) -> 0 | X77: =SUMPRODUCT(($I72:X72))-SUMPRODUCT(($I72:X72)*($I$6:X$6<=(X$6-$E14))) -> 0 | Y77: =SUMPRODUCT(($I72:Y72))-SUMPRODUCT(($I72:Y72)*($I$6:Y$6<=(Y$6-$E14))) -> 0 | Z77: =SUMPRODUCT(($I72:Z72))-SUMPRODUCT(($I72:Z72)*($I$6:Z$6<=(Z$6-$E14))) -> 0 | AA77: =SUMPRODUCT(($I72:AA72))-SUMPRODUCT(($I72:AA72)*($I$6:AA$6<=(AA$6-$E14))) -> 0 | AB77: =SUMPRODUCT(($I72:AB72))-SUMPRODUCT(($I72:AB72)*($I$6:AB$6<=(AB$6-$E14))) -> 0 | AC77: =SUMPRODUCT(($I72:AC72))-SUMPRODUCT(($I72:AC72)*($I$6:AC$6<=(AC$6-$E14))) -> 0 | AD77: =SUMPRODUCT(($I72:AD72))-SUMPRODUCT(($I72:AD72)*($I$6:AD$6<=(AD$6-$E14))) -> 0 | AE77: =SUMPRODUCT(($I72:AE72))-SUMPRODUCT(($I72:AE72)*($I$6:AE$6<=(AE$6-$E14))) -> 0 | AF77: =SUMPRODUCT(($I72:AF72))-SUMPRODUCT(($I72:AF72)*($I$6:AF$6<=(AF$6-$E14))) -> 0 | AG77: =SUMPRODUCT(($I72:AG72))-SUMPRODUCT(($I72:AG72)*($I$6:AG$6<=(AG$6-$E14))) -> 0
C78: =C15 -> < Enter description > | G78: =input_dollars -> 2023-12-31 | I78: =SUMPRODUCT(($I73:I73))-SUMPRODUCT(($I73:I73)*($I$6:I$6<=(I$6-$E15))) -> 0 | J78: =SUMPRODUCT(($I73:J73))-SUMPRODUCT(($I73:J73)*($I$6:J$6<=(J$6-$E15))) -> 0 | K78: =SUMPRODUCT(($I73:K73))-SUMPRODUCT(($I73:K73)*($I$6:K$6<=(K$6-$E15))) -> 0 | L78: =SUMPRODUCT(($I73:L73))-SUMPRODUCT(($I73:L73)*($I$6:L$6<=(L$6-$E15))) -> 0 | M78: =SUMPRODUCT(($I73:M73))-SUMPRODUCT(($I73:M73)*($I$6:M$6<=(M$6-$E15))) -> 0 | N78: =SUMPRODUCT(($I73:N73))-SUMPRODUCT(($I73:N73)*($I$6:N$6<=(N$6-$E15))) -> 0 | O78: =SUMPRODUCT(($I73:O73))-SUMPRODUCT(($I73:O73)*($I$6:O$6<=(O$6-$E15))) -> 0 | P78: =SUMPRODUCT(($I73:P73))-SUMPRODUCT(($I73:P73)*($I$6:P$6<=(P$6-$E15))) -> 0 | Q78: =SUMPRODUCT(($I73:Q73))-SUMPRODUCT(($I73:Q73)*($I$6:Q$6<=(Q$6-$E15))) -> 0 | R78: =SUMPRODUCT(($I73:R73))-SUMPRODUCT(($I73:R73)*($I$6:R$6<=(R$6-$E15))) -> 0 | S78: =SUMPRODUCT(($I73:S73))-SUMPRODUCT(($I73:S73)*($I$6:S$6<=(S$6-$E15))) -> 0 | T78: =SUMPRODUCT(($I73:T73))-SUMPRODUCT(($I73:T73)*($I$6:T$6<=(T$6-$E15))) -> 0 | U78: =SUMPRODUCT(($I73:U73))-SUMPRODUCT(($I73:U73)*($I$6:U$6<=(U$6-$E15))) -> 0 | V78: =SUMPRODUCT(($I73:V73))-SUMPRODUCT(($I73:V73)*($I$6:V$6<=(V$6-$E15))) -> 0 | W78: =SUMPRODUCT(($I73:W73))-SUMPRODUCT(($I73:W73)*($I$6:W$6<=(W$6-$E15))) -> 0 | X78: =SUMPRODUCT(($I73:X73))-SUMPRODUCT(($I73:X73)*($I$6:X$6<=(X$6-$E15))) -> 0 | Y78: =SUMPRODUCT(($I73:Y73))-SUMPRODUCT(($I73:Y73)*($I$6:Y$6<=(Y$6-$E15))) -> 0 | Z78: =SUMPRODUCT(($I73:Z73))-SUMPRODUCT(($I73:Z73)*($I$6:Z$6<=(Z$6-$E15))) -> 0 | AA78: =SUMPRODUCT(($I73:AA73))-SUMPRODUCT(($I73:AA73)*($I$6:AA$6<=(AA$6-$E15))) -> 0 | AB78: =SUMPRODUCT(($I73:AB73))-SUMPRODUCT(($I73:AB73)*($I$6:AB$6<=(AB$6-$E15))) -> 0 | AC78: =SUMPRODUCT(($I73:AC73))-SUMPRODUCT(($I73:AC73)*($I$6:AC$6<=(AC$6-$E15))) -> 0 | AD78: =SUMPRODUCT(($I73:AD73))-SUMPRODUCT(($I73:AD73)*($I$6:AD$6<=(AD$6-$E15))) -> 0 | AE78: =SUMPRODUCT(($I73:AE73))-SUMPRODUCT(($I73:AE73)*($I$6:AE$6<=(AE$6-$E15))) -> 0 | AF78: =SUMPRODUCT(($I73:AF73))-SUMPRODUCT(($I73:AF73)*($I$6:AF$6<=(AF$6-$E15))) -> 0 | AG78: =SUMPRODUCT(($I73:AG73))-SUMPRODUCT(($I73:AG73)*($I$6:AG$6<=(AG$6-$E15))) -> 0
C79: =C17 -> < Enter description > | G79: =input_dollars -> 2023-12-31 | I79: =SUMPRODUCT(($I74:I74))-SUMPRODUCT(($I74:I74)*($I$6:I$6<=(I$6-$E17))) -> 0 | J79: =SUMPRODUCT(($I74:J74))-SUMPRODUCT(($I74:J74)*($I$6:J$6<=(J$6-$E17))) -> 0 | K79: =SUMPRODUCT(($I74:K74))-SUMPRODUCT(($I74:K74)*($I$6:K$6<=(K$6-$E17))) -> 0 | L79: =SUMPRODUCT(($I74:L74))-SUMPRODUCT(($I74:L74)*($I$6:L$6<=(L$6-$E17))) -> 0 | M79: =SUMPRODUCT(($I74:M74))-SUMPRODUCT(($I74:M74)*($I$6:M$6<=(M$6-$E17))) -> 0 | N79: =SUMPRODUCT(($I74:N74))-SUMPRODUCT(($I74:N74)*($I$6:N$6<=(N$6-$E17))) -> 0 | O79: =SUMPRODUCT(($I74:O74))-SUMPRODUCT(($I74:O74)*($I$6:O$6<=(O$6-$E17))) -> 0 | P79: =SUMPRODUCT(($I74:P74))-SUMPRODUCT(($I74:P74)*($I$6:P$6<=(P$6-$E17))) -> 0 | Q79: =SUMPRODUCT(($I74:Q74))-SUMPRODUCT(($I74:Q74)*($I$6:Q$6<=(Q$6-$E17))) -> 0 | R79: =SUMPRODUCT(($I74:R74))-SUMPRODUCT(($I74:R74)*($I$6:R$6<=(R$6-$E17))) -> 0 | S79: =SUMPRODUCT(($I74:S74))-SUMPRODUCT(($I74:S74)*($I$6:S$6<=(S$6-$E17))) -> 0 | T79: =SUMPRODUCT(($I74:T74))-SUMPRODUCT(($I74:T74)*($I$6:T$6<=(T$6-$E17))) -> 0 | U79: =SUMPRODUCT(($I74:U74))-SUMPRODUCT(($I74:U74)*($I$6:U$6<=(U$6-$E17))) -> 0 | V79: =SUMPRODUCT(($I74:V74))-SUMPRODUCT(($I74:V74)*($I$6:V$6<=(V$6-$E17))) -> 0 | W79: =SUMPRODUCT(($I74:W74))-SUMPRODUCT(($I74:W74)*($I$6:W$6<=(W$6-$E17))) -> 0 | X79: =SUMPRODUCT(($I74:X74))-SUMPRODUCT(($I74:X74)*($I$6:X$6<=(X$6-$E17))) -> 0 | Y79: =SUMPRODUCT(($I74:Y74))-SUMPRODUCT(($I74:Y74)*($I$6:Y$6<=(Y$6-$E17))) -> 0 | Z79: =SUMPRODUCT(($I74:Z74))-SUMPRODUCT(($I74:Z74)*($I$6:Z$6<=(Z$6-$E17))) -> 0 | AA79: =SUMPRODUCT(($I74:AA74))-SUMPRODUCT(($I74:AA74)*($I$6:AA$6<=(AA$6-$E17))) -> 0 | AB79: =SUMPRODUCT(($I74:AB74))-SUMPRODUCT(($I74:AB74)*($I$6:AB$6<=(AB$6-$E17))) -> 0 | AC79: =SUMPRODUCT(($I74:AC74))-SUMPRODUCT(($I74:AC74)*($I$6:AC$6<=(AC$6-$E17))) -> 0 | AD79: =SUMPRODUCT(($I74:AD74))-SUMPRODUCT(($I74:AD74)*($I$6:AD$6<=(AD$6-$E17))) -> 0 | AE79: =SUMPRODUCT(($I74:AE74))-SUMPRODUCT(($I74:AE74)*($I$6:AE$6<=(AE$6-$E17))) -> 0 | AF79: =SUMPRODUCT(($I74:AF74))-SUMPRODUCT(($I74:AF74)*($I$6:AF$6<=(AF$6-$E17))) -> 0 | AG79: =SUMPRODUCT(($I74:AG74))-SUMPRODUCT(($I74:AG74)*($I$6:AG$6<=(AG$6-$E17))) -> 0
C81: Annualised capex
C82: =$C$81&" - "&C14 -> Annualised capex - < Enter description > | G82: =input_dollars -> 2023-12-31 | I82: =IF($E14=0,0,-PMT(real_disc, $E14,H77,)) -> 0 | J82: 0 | K82: 0 | L82: 0 | M82: 0 | N82: 0 | O82: 0 | P82: 0 | Q82: 0 | R82: 0 | S82: 0 | T82: 0 | U82: 0 | V82: 0 | W82: 0 | X82: 0 | Y82: 0 | Z82: 0 | AA82: 0 | AB82: 0 | AC82: 0 | AD82: 0 | AE82: 0 | AF82: 0 | AG82: 0
C83: =$C$81&" - "&C15 -> Annualised capex - < Enter description > | G83: =input_dollars -> 2023-12-31 | I83: =IF($E15=0,0,-PMT(real_disc, $E15,H78,)) -> 0 | J83: 0 | K83: 0 | L83: 0 | M83: 0 | N83: 0 | O83: 0 | P83: 0 | Q83: 0 | R83: 0 | S83: 0 | T83: 0 | U83: 0 | V83: 0 | W83: 0 | X83: 0 | Y83: 0 | Z83: 0 | AA83: 0 | AB83: 0 | AC83: 0 | AD83: 0 | AE83: 0 | AF83: 0 | AG83: 0
C84: =$C$81&" - "&C17 -> Annualised capex - < Enter description > | G84: =input_dollars -> 2023-12-31 | I84: =IF($E17=0,0,-PMT(real_disc, $E17,H79,)) -> 0 | J84: 0 | K84: 0 | L84: 0 | M84: 0 | N84: 0 | O84: 0 | P84: 0 | Q84: 0 | R84: 0 | S84: 0 | T84: 0 | U84: 0 | V84: 0 | W84: 0 | X84: 0 | Y84: 0 | Z84: 0 | AA84: 0 | AB84: 0 | AC84: 0 | AD84: 0 | AE84: 0 | AF84: 0 | AG84: 0
C85: Total annualised capex | G85: =input_dollars -> 2023-12-31 | I85: =SUM(I82:I84) -> 0 | J85: =SUM(J82:J84) -> 0 | K85: 0 | L85: 0 | M85: 0 | N85: 0 | O85: 0 | P85: 0 | Q85: 0 | R85: 0 | S85: 0 | T85: 0 | U85: 0 | V85: 0 | W85: 0 | X85: 0 | Y85: 0 | Z85: 0 | AA85: 0 | AB85: 0 | AC85: =SUM(AC82:AC84) -> 0 | AD85: =SUM(AD82:AD84) -> 0 | AE85: =SUM(AE82:AE84) -> 0 | AF85: =SUM(AF82:AF84) -> 0 | AG85: =SUM(AG82:AG84) -> 0
C87: Annualised capex | G87: =input_dollars -> 2023-12-31 | I87: =I85 -> 0 | J87: =J85 -> 0 | K87: 0 | L87: 0 | M87: 0 | N87: 0 | O87: 0 | P87: 0 | Q87: 0 | R87: 0 | S87: 0 | T87: 0 | U87: 0 | V87: 0 | W87: 0 | X87: 0 | Y87: 0 | Z87: 0 | AA87: 0 | AB87: 0 | AC87: =AC85 -> 0 | AD87: =AD85 -> 0 | AE87: =AE85 -> 0 | AF87: =AF85 -> 0 | AG87: =AG85 -> 0
C88: Operating expenditure | G88: 2023-12-31 | I88: =-I20 -> 0 | J88: 0 | K88: 0 | L88: 0 | M88: 0 | N88: 0 | O88: 0 | P88: 0 | Q88: 0 | R88: 0 | S88: 0 | T88: 0 | U88: 0 | V88: 0 | W88: 0 | X88: 0 | Y88: 0 | Z88: 0 | AA88: 0 | AB88: 0 | AC88: 0 | AD88: 0 | AE88: 0 | AF88: 0 | AG88: 0
C89: Risk mitigated | G89: 2023-12-31 | I89: =I69 -> 0 | J89: =J69 -> 0 | K89: 0 | L89: 0 | M89: 0 | N89: 0 | O89: 0 | P89: 0 | Q89: 0 | R89: 0 | S89: 0 | T89: 0 | U89: 0 | V89: 0 | W89: 0 | X89: 0 | Y89: 0 | Z89: 0 | AA89: 0 | AB89: 0 | AC89: =AC69 -> 0 | AD89: =AD69 -> 0 | AE89: =AE69 -> 0 | AF89: =AF69 -> 0 | AG89: =AG69 -> 0
C90: Other benefits value | G90: 2023-12-31 | I90: =I62 -> 0 | J90: 0 | K90: 0 | L90: 0 | M90: 0 | N90: 0 | O90: 0 | P90: 0 | Q90: 0 | R90: 0 | S90: 0 | T90: 0 | U90: 0 | V90: 0 | W90: 0 | X90: 0 | Y90: 0 | Z90: 0 | AA90: 0 | AB90: 0 | AC90: 0 | AD90: 0 | AE90: 0 | AF90: 0 | AG90: 0
C92: Net benefits | G92: 2023-12-31 | I92: =SUM(I87:I91) -> 0 | J92: 0 | K92: 0 | L92: 0 | M92: 0 | N92: 0 | O92: 0 | P92: 0 | Q92: 0 | R92: 0 | S92: 0 | T92: 0 | U92: 0 | V92: 0 | W92: 0 | X92: 0 | Y92: 0 | Z92: 0 | AA92: 0 | AB92: 0 | AC92: =SUM(AC87:AC91) -> 0 | AD92: =SUM(AD87:AD91) -> 0 | AE92: =SUM(AE87:AE91) -> 0 | AF92: =SUM(AF87:AF91) -> 0 | AG92: =SUM(AG87:AG91) -> 0
A107: SENSITIVITIES
A111: NPV | C111: Net benefits | G111: =PROPER($A$3)&A111 -> Option 1 (Base Case)NPV | I111: =I92 -> 0 | J111: =J92 -> 0 | K111: 0 | L111: 0 | M111: 0 | N111: 0 | O111: 0 | P111: 0 | Q111: 0 | R111: 0 | S111: 0 | T111: 0 | U111: 0 | V111: 0 | W111: 0 | X111: 0 | Y111: 0 | Z111: 0 | AA111: 0 | AB111: 0 | AC111: 0 | AD111: 0 | AE111: 0 | AF111: 0 | AG111: 0
C112: Total annualised capex | I112: =I87 -> 0 | J112: =J87 -> 0 | K112: 0 | L112: 0 | M112: 0 | N112: 0 | O112: 0 | P112: 0 | Q112: 0 | R112: 0 | S112: 0 | T112: 0 | U112: 0 | V112: 0 | W112: 0 | X112: 0 | Y112: 0 | Z112: 0 | AA112: 0 | AB112: 0 | AC112: 0 | AD112: 0 | AE112: 0 | AF112: 0 | AG112: 0
C113: Total benefits | I113: =SUM(I89:I90) -> 0 | J113: =SUM(J89:J90) -> 0 | K113: 0 | L113: 0 | M113: 0 | N113: 0 | O113: 0 | P113: 0 | Q113: 0 | R113: 0 | S113: 0 | T113: 0 | U113: 0 | V113: 0 | W113: 0 | X113: 0 | Y113: 0 | Z113: 0 | AA113: 0 | AB113: 0 | AC113: 0 | AD113: 0 | AE113: 0 | AF113: 0 | AG113: 0
D114: =Assumptions!G110 -> Capex | E114: =Assumptions!H110 -> Total benefits
A115: ="sens"&Assumptions!B111 -> sens1 | C115: =Assumptions!C111 -> Capex 10% higher | D115: =Assumptions!G111 -> 0.1 | E115: =Assumptions!H111 -> 0 | G115: =PROPER($A$3)&A115 -> Option 1 (Base Case)sens1 | I115: =I$111+IF($C115<>0,SUMPRODUCT((I$112:I$113)*TRANSPOSE(($D115:$E115))),0) -> 0 | J115: =J$111+IF($C115<>0,SUMPRODUCT((J$112:J$113)*TRANSPOSE(($D115:$E115))),0) -> 0 | K115: =K$111+IF($C115<>0,SUMPRODUCT((K$112:K$113)*TRANSPOSE(($D115:$E115))),0) -> 0 | L115: =L$111+IF($C115<>0,SUMPRODUCT((L$112:L$113)*TRANSPOSE(($D115:$E115))),0) -> 0 | M115: =M$111+IF($C115<>0,SUMPRODUCT((M$112:M$113)*TRANSPOSE(($D115:$E115))),0) -> 0 | N115: =N$111+IF($C115<>0,SUMPRODUCT((N$112:N$113)*TRANSPOSE(($D115:$E115))),0) -> 0 | O115: =O$111+IF($C115<>0,SUMPRODUCT((O$112:O$113)*TRANSPOSE(($D115:$E115))),0) -> 0 | P115: =P$111+IF($C115<>0,SUMPRODUCT((P$112:P$113)*TRANSPOSE(($D115:$E115))),0) -> 0 | Q115: =Q$111+IF($C115<>0,SUMPRODUCT((Q$112:Q$113)*TRANSPOSE(($D115:$E115))),0) -> 0 | R115: =R$111+IF($C115<>0,SUMPRODUCT((R$112:R$113)*TRANSPOSE(($D115:$E115))),0) -> 0 | S115: =S$111+IF($C115<>0,SUMPRODUCT((S$112:S$113)*TRANSPOSE(($D115:$E115))),0) -> 0 | T115: =T$111+IF($C115<>0,SUMPRODUCT((T$112:T$113)*TRANSPOSE(($D115:$E115))),0) -> 0 | U115: =U$111+IF($C115<>0,SUMPRODUCT((U$112:U$113)*TRANSPOSE(($D115:$E115))),0) -> 0 | V115: =V$111+IF($C115<>0,SUMPRODUCT((V$112:V$113)*TRANSPOSE(($D115:$E115))),0) -> 0 | W115: =W$111+IF($C115<>0,SUMPRODUCT((W$112:W$113)*TRANSPOSE(($D115:$E115))),0) -> 0 | X115: =X$111+IF($C115<>0,SUMPRODUCT((X$112:X$113)*TRANSPOSE(($D115:$E115))),0) -> 0 | Y115: =Y$111+IF($C115<>0,SUMPRODUCT((Y$112:Y$113)*TRANSPOSE(($D115:$E115))),0) -> 0 | Z115: =Z$111+IF($C115<>0,SUMPRODUCT((Z$112:Z$113)*TRANSPOSE(($D115:$E115))),0) -> 0 | AA115: =AA$111+IF($C115<>0,SUMPRODUCT((AA$112:AA$113)*TRANSPOSE(($D115:$E115))),0) -> 0 | AB115: =AB$111+IF($C115<>0,SUMPRODUCT((AB$112:AB$113)*TRANSPOSE(($D115:$E115))),0) -> 0 | AC115: =AC$111+IF($C115<>0,SUMPRODUCT((AC$112:AC$113)*TRANSPOSE(($D115:$E115))),0) -> 0 | AD115: =AD$111+IF($C115<>0,SUMPRODUCT((AD$112:AD$113)*TRANSPOSE(($D115:$E115))),0) -> 0 | AE115: =AE$111+IF($C115<>0,SUMPRODUCT((AE$112:AE$113)*TRANSPOSE(($D115:$E115))),0) -> 0 | AF115: =AF$111+IF($C115<>0,SUMPRODUCT((AF$112:AF$113)*TRANSPOSE(($D115:$E115))),0) -> 0 | AG115: =AG$111+IF($C115<>0,SUMPRODUCT((AG$112:AG$113)*TRANSPOSE(($D115:$E115))),0) -> 0
A116: ="sens"&Assumptions!B112 -> sens2 | C116: =Assumptions!C112 -> Capex 10% lower | D116: =Assumptions!G112 -> -0.1 | E116: =Assumptions!H112 -> 0 | G116: =PROPER($A$3)&A116 -> Option 1 (Base Case)sens2 | I116: =I$111+IF($C116<>0,SUMPRODUCT((I$112:I$113)*TRANSPOSE(($D116:$E116))),0) -> 0 | J116: =J$111+IF($C116<>0,SUMPRODUCT((J$112:J$113)*TRANSPOSE(($D116:$E116))),0) -> 0 | K116: =K$111+IF($C116<>0,SUMPRODUCT((K$112:K$113)*TRANSPOSE(($D116:$E116))),0) -> 0 | L116: =L$111+IF($C116<>0,SUMPRODUCT((L$112:L$113)*TRANSPOSE(($D116:$E116))),0) -> 0 | M116: =M$111+IF($C116<>0,SUMPRODUCT((M$112:M$113)*TRANSPOSE(($D116:$E116))),0) -> 0 | N116: =N$111+IF($C116<>0,SUMPRODUCT((N$112:N$113)*TRANSPOSE(($D116:$E116))),0) -> 0 | O116: =O$111+IF($C116<>0,SUMPRODUCT((O$112:O$113)*TRANSPOSE(($D116:$E116))),0) -> 0 | P116: =P$111+IF($C116<>0,SUMPRODUCT((P$112:P$113)*TRANSPOSE(($D116:$E116))),0) -> 0 | Q116: =Q$111+IF($C116<>0,SUMPRODUCT((Q$112:Q$113)*TRANSPOSE(($D116:$E116))),0) -> 0 | R116: =R$111+IF($C116<>0,SUMPRODUCT((R$112:R$113)*TRANSPOSE(($D116:$E116))),0) -> 0 | S116: =S$111+IF($C116<>0,SUMPRODUCT((S$112:S$113)*TRANSPOSE(($D116:$E116))),0) -> 0 | T116: =T$111+IF($C116<>0,SUMPRODUCT((T$112:T$113)*TRANSPOSE(($D116:$E116))),0) -> 0 | U116: =U$111+IF($C116<>0,SUMPRODUCT((U$112:U$113)*TRANSPOSE(($D116:$E116))),0) -> 0 | V116: =V$111+IF($C116<>0,SUMPRODUCT((V$112:V$113)*TRANSPOSE(($D116:$E116))),0) -> 0 | W116: =W$111+IF($C116<>0,SUMPRODUCT((W$112:W$113)*TRANSPOSE(($D116:$E116))),0) -> 0 | X116: =X$111+IF($C116<>0,SUMPRODUCT((X$112:X$113)*TRANSPOSE(($D116:$E116))),0) -> 0 | Y116: =Y$111+IF($C116<>0,SUMPRODUCT((Y$112:Y$113)*TRANSPOSE(($D116:$E116))),0) -> 0 | Z116: =Z$111+IF($C116<>0,SUMPRODUCT((Z$112:Z$113)*TRANSPOSE(($D116:$E116))),0) -> 0 | AA116: =AA$111+IF($C116<>0,SUMPRODUCT((AA$112:AA$113)*TRANSPOSE(($D116:$E116))),0) -> 0 | AB116: =AB$111+IF($C116<>0,SUMPRODUCT((AB$112:AB$113)*TRANSPOSE(($D116:$E116))),0) -> 0 | AC116: =AC$111+IF($C116<>0,SUMPRODUCT((AC$112:AC$113)*TRANSPOSE(($D116:$E116))),0) -> 0 | AD116: =AD$111+IF($C116<>0,SUMPRODUCT((AD$112:AD$113)*TRANSPOSE(($D116:$E116))),0) -> 0 | AE116: =AE$111+IF($C116<>0,SUMPRODUCT((AE$112:AE$113)*TRANSPOSE(($D116:$E116))),0) -> 0 | AF116: =AF$111+IF($C116<>0,SUMPRODUCT((AF$112:AF$113)*TRANSPOSE(($D116:$E116))),0) -> 0 | AG116: =AG$111+IF($C116<>0,SUMPRODUCT((AG$112:AG$113)*TRANSPOSE(($D116:$E116))),0) -> 0
A117: ="sens"&Assumptions!B113 -> sens3 | C117: =Assumptions!C113 -> Total benefits 10% higher | D117: =Assumptions!G113 -> 0 | E117: =Assumptions!H113 -> 0.1 | G117: Option 1 (Base Case)sens3 | I117: =I$111+IF($C117<>0,SUMPRODUCT((I$112:I$113)*TRANSPOSE(($D117:$E117))),0) -> 0 | J117: =J$111+IF($C117<>0,SUMPRODUCT((J$112:J$113)*TRANSPOSE(($D117:$E117))),0) -> 0 | K117: =K$111+IF($C117<>0,SUMPRODUCT((K$112:K$113)*TRANSPOSE(($D117:$E117))),0) -> 0 | L117: =L$111+IF($C117<>0,SUMPRODUCT((L$112:L$113)*TRANSPOSE(($D117:$E117))),0) -> 0 | M117: =M$111+IF($C117<>0,SUMPRODUCT((M$112:M$113)*TRANSPOSE(($D117:$E117))),0) -> 0 | N117: =N$111+IF($C117<>0,SUMPRODUCT((N$112:N$113)*TRANSPOSE(($D117:$E117))),0) -> 0 | O117: =O$111+IF($C117<>0,SUMPRODUCT((O$112:O$113)*TRANSPOSE(($D117:$E117))),0) -> 0 | P117: =P$111+IF($C117<>0,SUMPRODUCT((P$112:P$113)*TRANSPOSE(($D117:$E117))),0) -> 0 | Q117: =Q$111+IF($C117<>0,SUMPRODUCT((Q$112:Q$113)*TRANSPOSE(($D117:$E117))),0) -> 0 | R117: =R$111+IF($C117<>0,SUMPRODUCT((R$112:R$113)*TRANSPOSE(($D117:$E117))),0) -> 0 | S117: =S$111+IF($C117<>0,SUMPRODUCT((S$112:S$113)*TRANSPOSE(($D117:$E117))),0) -> 0 | T117: =T$111+IF($C117<>0,SUMPRODUCT((T$112:T$113)*TRANSPOSE(($D117:$E117))),0) -> 0 | U117: =U$111+IF($C117<>0,SUMPRODUCT((U$112:U$113)*TRANSPOSE(($D117:$E117))),0) -> 0 | V117: =V$111+IF($C117<>0,SUMPRODUCT((V$112:V$113)*TRANSPOSE(($D117:$E117))),0) -> 0 | W117: =W$111+IF($C117<>0,SUMPRODUCT((W$112:W$113)*TRANSPOSE(($D117:$E117))),0) -> 0 | X117: =X$111+IF($C117<>0,SUMPRODUCT((X$112:X$113)*TRANSPOSE(($D117:$E117))),0) -> 0 | Y117: =Y$111+IF($C117<>0,SUMPRODUCT((Y$112:Y$113)*TRANSPOSE(($D117:$E117))),0) -> 0 | Z117: =Z$111+IF($C117<>0,SUMPRODUCT((Z$112:Z$113)*TRANSPOSE(($D117:$E117))),0) -> 0 | AA117: =AA$111+IF($C117<>0,SUMPRODUCT((AA$112:AA$113)*TRANSPOSE(($D117:$E117))),0) -> 0 | AB117: =AB$111+IF($C117<>0,SUMPRODUCT((AB$112:AB$113)*TRANSPOSE(($D117:$E117))),0) -> 0 | AC117: =AC$111+IF($C117<>0,SUMPRODUCT((AC$112:AC$113)*TRANSPOSE(($D117:$E117))),0) -> 0 | AD117: =AD$111+IF($C117<>0,SUMPRODUCT((AD$112:AD$113)*TRANSPOSE(($D117:$E117))),0) -> 0 | AE117: =AE$111+IF($C117<>0,SUMPRODUCT((AE$112:AE$113)*TRANSPOSE(($D117:$E117))),0) -> 0 | AF117: =AF$111+IF($C117<>0,SUMPRODUCT((AF$112:AF$113)*TRANSPOSE(($D117:$E117))),0) -> 0 | AG117: =AG$111+IF($C117<>0,SUMPRODUCT((AG$112:AG$113)*TRANSPOSE(($D117:$E117))),0) -> 0
A118: ="sens"&Assumptions!B114 -> sens4 | C118: =Assumptions!C114 -> Total benefits 10% lower | D118: =Assumptions!G114 -> 0 | E118: =Assumptions!H114 -> -0.1 | G118: Option 1 (Base Case)sens4 | I118: =I$111+IF($C118<>0,SUMPRODUCT((I$112:I$113)*TRANSPOSE(($D118:$E118))),0) -> 0 | J118: =J$111+IF($C118<>0,SUMPRODUCT((J$112:J$113)*TRANSPOSE(($D118:$E118))),0) -> 0 | K118: =K$111+IF($C118<>0,SUMPRODUCT((K$112:K$113)*TRANSPOSE(($D118:$E118))),0) -> 0 | L118: =L$111+IF($C118<>0,SUMPRODUCT((L$112:L$113)*TRANSPOSE(($D118:$E118))),0) -> 0 | M118: =M$111+IF($C118<>0,SUMPRODUCT((M$112:M$113)*TRANSPOSE(($D118:$E118))),0) -> 0 | N118: =N$111+IF($C118<>0,SUMPRODUCT((N$112:N$113)*TRANSPOSE(($D118:$E118))),0) -> 0 | O118: =O$111+IF($C118<>0,SUMPRODUCT((O$112:O$113)*TRANSPOSE(($D118:$E118))),0) -> 0 | P118: =P$111+IF($C118<>0,SUMPRODUCT((P$112:P$113)*TRANSPOSE(($D118:$E118))),0) -> 0 | Q118: =Q$111+IF($C118<>0,SUMPRODUCT((Q$112:Q$113)*TRANSPOSE(($D118:$E118))),0) -> 0 | R118: =R$111+IF($C118<>0,SUMPRODUCT((R$112:R$113)*TRANSPOSE(($D118:$E118))),0) -> 0 | S118: =S$111+IF($C118<>0,SUMPRODUCT((S$112:S$113)*TRANSPOSE(($D118:$E118))),0) -> 0 | T118: =T$111+IF($C118<>0,SUMPRODUCT((T$112:T$113)*TRANSPOSE(($D118:$E118))),0) -> 0 | U118: =U$111+IF($C118<>0,SUMPRODUCT((U$112:U$113)*TRANSPOSE(($D118:$E118))),0) -> 0 | V118: =V$111+IF($C118<>0,SUMPRODUCT((V$112:V$113)*TRANSPOSE(($D118:$E118))),0) -> 0 | W118: =W$111+IF($C118<>0,SUMPRODUCT((W$112:W$113)*TRANSPOSE(($D118:$E118))),0) -> 0 | X118: =X$111+IF($C118<>0,SUMPRODUCT((X$112:X$113)*TRANSPOSE(($D118:$E118))),0) -> 0 | Y118: =Y$111+IF($C118<>0,SUMPRODUCT((Y$112:Y$113)*TRANSPOSE(($D118:$E118))),0) -> 0 | Z118: =Z$111+IF($C118<>0,SUMPRODUCT((Z$112:Z$113)*TRANSPOSE(($D118:$E118))),0) -> 0 | AA118: =AA$111+IF($C118<>0,SUMPRODUCT((AA$112:AA$113)*TRANSPOSE(($D118:$E118))),0) -> 0 | AB118: =AB$111+IF($C118<>0,SUMPRODUCT((AB$112:AB$113)*TRANSPOSE(($D118:$E118))),0) -> 0 | AC118: =AC$111+IF($C118<>0,SUMPRODUCT((AC$112:AC$113)*TRANSPOSE(($D118:$E118))),0) -> 0 | AD118: =AD$111+IF($C118<>0,SUMPRODUCT((AD$112:AD$113)*TRANSPOSE(($D118:$E118))),0) -> 0 | AE118: =AE$111+IF($C118<>0,SUMPRODUCT((AE$112:AE$113)*TRANSPOSE(($D118:$E118))),0) -> 0 | AF118: =AF$111+IF($C118<>0,SUMPRODUCT((AF$112:AF$113)*TRANSPOSE(($D118:$E118))),0) -> 0 | AG118: =AG$111+IF($C118<>0,SUMPRODUCT((AG$112:AG$113)*TRANSPOSE(($D118:$E118))),0) -> 0
A119: ="sens"&Assumptions!B115 -> sens5 | C119: =Assumptions!C115 -> Capex 10% higher & Total benefits 10% lower | D119: =Assumptions!G115 -> 0.1 | E119: =Assumptions!H115 -> -0.1 | G119: Option 1 (Base Case)sens5 | I119: =I$111+IF($C119<>0,SUMPRODUCT((I$112:I$113)*TRANSPOSE(($D119:$E119))),0) -> 0 | J119: =J$111+IF($C119<>0,SUMPRODUCT((J$112:J$113)*TRANSPOSE(($D119:$E119))),0) -> 0 | K119: =K$111+IF($C119<>0,SUMPRODUCT((K$112:K$113)*TRANSPOSE(($D119:$E119))),0) -> 0 | L119: =L$111+IF($C119<>0,SUMPRODUCT((L$112:L$113)*TRANSPOSE(($D119:$E119))),0) -> 0 | M119: =M$111+IF($C119<>0,SUMPRODUCT((M$112:M$113)*TRANSPOSE(($D119:$E119))),0) -> 0 | N119: =N$111+IF($C119<>0,SUMPRODUCT((N$112:N$113)*TRANSPOSE(($D119:$E119))),0) -> 0 | O119: =O$111+IF($C119<>0,SUMPRODUCT((O$112:O$113)*TRANSPOSE(($D119:$E119))),0) -> 0 | P119: =P$111+IF($C119<>0,SUMPRODUCT((P$112:P$113)*TRANSPOSE(($D119:$E119))),0) -> 0 | Q119: =Q$111+IF($C119<>0,SUMPRODUCT((Q$112:Q$113)*TRANSPOSE(($D119:$E119))),0) -> 0 | R119: =R$111+IF($C119<>0,SUMPRODUCT((R$112:R$113)*TRANSPOSE(($D119:$E119))),0) -> 0 | S119: =S$111+IF($C119<>0,SUMPRODUCT((S$112:S$113)*TRANSPOSE(($D119:$E119))),0) -> 0 | T119: =T$111+IF($C119<>0,SUMPRODUCT((T$112:T$113)*TRANSPOSE(($D119:$E119))),0) -> 0 | U119: =U$111+IF($C119<>0,SUMPRODUCT((U$112:U$113)*TRANSPOSE(($D119:$E119))),0) -> 0 | V119: =V$111+IF($C119<>0,SUMPRODUCT((V$112:V$113)*TRANSPOSE(($D119:$E119))),0) -> 0 | W119: =W$111+IF($C119<>0,SUMPRODUCT((W$112:W$113)*TRANSPOSE(($D119:$E119))),0) -> 0 | X119: =X$111+IF($C119<>0,SUMPRODUCT((X$112:X$113)*TRANSPOSE(($D119:$E119))),0) -> 0 | Y119: =Y$111+IF($C119<>0,SUMPRODUCT((Y$112:Y$113)*TRANSPOSE(($D119:$E119))),0) -> 0 | Z119: =Z$111+IF($C119<>0,SUMPRODUCT((Z$112:Z$113)*TRANSPOSE(($D119:$E119))),0) -> 0 | AA119: =AA$111+IF($C119<>0,SUMPRODUCT((AA$112:AA$113)*TRANSPOSE(($D119:$E119))),0) -> 0 | AB119: =AB$111+IF($C119<>0,SUMPRODUCT((AB$112:AB$113)*TRANSPOSE(($D119:$E119))),0) -> 0 | AC119: =AC$111+IF($C119<>0,SUMPRODUCT((AC$112:AC$113)*TRANSPOSE(($D119:$E119))),0) -> 0 | AD119: =AD$111+IF($C119<>0,SUMPRODUCT((AD$112:AD$113)*TRANSPOSE(($D119:$E119))),0) -> 0 | AE119: =AE$111+IF($C119<>0,SUMPRODUCT((AE$112:AE$113)*TRANSPOSE(($D119:$E119))),0) -> 0 | AF119: =AF$111+IF($C119<>0,SUMPRODUCT((AF$112:AF$113)*TRANSPOSE(($D119:$E119))),0) -> 0 | AG119: =AG$111+IF($C119<>0,SUMPRODUCT((AG$112:AG$113)*TRANSPOSE(($D119:$E119))),0) -> 0
A120: ="sens"&Assumptions!B116 -> sens | C120: =Assumptions!C116 -> 0 | D120: =Assumptions!G116 -> 0 | E120: =Assumptions!H116 -> 0 | G120: Option 1 (Base Case)sens | I120: =I$111+IF($C120<>0,SUMPRODUCT((I$112:I$113)*TRANSPOSE(($D120:$E120))),0) -> 0 | J120: =J$111+IF($C120<>0,SUMPRODUCT((J$112:J$113)*TRANSPOSE(($D120:$E120))),0) -> 0 | K120: =K$111+IF($C120<>0,SUMPRODUCT((K$112:K$113)*TRANSPOSE(($D120:$E120))),0) -> 0 | L120: =L$111+IF($C120<>0,SUMPRODUCT((L$112:L$113)*TRANSPOSE(($D120:$E120))),0) -> 0 | M120: =M$111+IF($C120<>0,SUMPRODUCT((M$112:M$113)*TRANSPOSE(($D120:$E120))),0) -> 0 | N120: =N$111+IF($C120<>0,SUMPRODUCT((N$112:N$113)*TRANSPOSE(($D120:$E120))),0) -> 0 | O120: =O$111+IF($C120<>0,SUMPRODUCT((O$112:O$113)*TRANSPOSE(($D120:$E120))),0) -> 0 | P120: =P$111+IF($C120<>0,SUMPRODUCT((P$112:P$113)*TRANSPOSE(($D120:$E120))),0) -> 0 | Q120: =Q$111+IF($C120<>0,SUMPRODUCT((Q$112:Q$113)*TRANSPOSE(($D120:$E120))),0) -> 0 | R120: =R$111+IF($C120<>0,SUMPRODUCT((R$112:R$113)*TRANSPOSE(($D120:$E120))),0) -> 0 | S120: =S$111+IF($C120<>0,SUMPRODUCT((S$112:S$113)*TRANSPOSE(($D120:$E120))),0) -> 0 | T120: =T$111+IF($C120<>0,SUMPRODUCT((T$112:T$113)*TRANSPOSE(($D120:$E120))),0) -> 0 | U120: =U$111+IF($C120<>0,SUMPRODUCT((U$112:U$113)*TRANSPOSE(($D120:$E120))),0) -> 0 | V120: =V$111+IF($C120<>0,SUMPRODUCT((V$112:V$113)*TRANSPOSE(($D120:$E120))),0) -> 0 | W120: =W$111+IF($C120<>0,SUMPRODUCT((W$112:W$113)*TRANSPOSE(($D120:$E120))),0) -> 0 | X120: =X$111+IF($C120<>0,SUMPRODUCT((X$112:X$113)*TRANSPOSE(($D120:$E120))),0) -> 0 | Y120: =Y$111+IF($C120<>0,SUMPRODUCT((Y$112:Y$113)*TRANSPOSE(($D120:$E120))),0) -> 0 | Z120: =Z$111+IF($C120<>0,SUMPRODUCT((Z$112:Z$113)*TRANSPOSE(($D120:$E120))),0) -> 0 | AA120: =AA$111+IF($C120<>0,SUMPRODUCT((AA$112:AA$113)*TRANSPOSE(($D120:$E120))),0) -> 0 | AB120: =AB$111+IF($C120<>0,SUMPRODUCT((AB$112:AB$113)*TRANSPOSE(($D120:$E120))),0) -> 0 | AC120: =AC$111+IF($C120<>0,SUMPRODUCT((AC$112:AC$113)*TRANSPOSE(($D120:$E120))),0) -> 0 | AD120: =AD$111+IF($C120<>0,SUMPRODUCT((AD$112:AD$113)*TRANSPOSE(($D120:$E120))),0) -> 0 | AE120: =AE$111+IF($C120<>0,SUMPRODUCT((AE$112:AE$113)*TRANSPOSE(($D120:$E120))),0) -> 0 | AF120: =AF$111+IF($C120<>0,SUMPRODUCT((AF$112:AF$113)*TRANSPOSE(($D120:$E120))),0) -> 0 | AG120: =AG$111+IF($C120<>0,SUMPRODUCT((AG$112:AG$113)*TRANSPOSE(($D120:$E120))),0) -> 0
A121: ="sens"&Assumptions!B117 -> sens | C121: =Assumptions!C117 -> 0 | D121: =Assumptions!G117 -> 0 | E121: =Assumptions!H117 -> 0 | G121: Option 1 (Base Case)sens | I121: =I$111+IF($C121<>0,SUMPRODUCT((I$112:I$113)*TRANSPOSE(($D121:$E121))),0) -> 0 | J121: =J$111+IF($C121<>0,SUMPRODUCT((J$112:J$113)*TRANSPOSE(($D121:$E121))),0) -> 0 | K121: =K$111+IF($C121<>0,SUMPRODUCT((K$112:K$113)*TRANSPOSE(($D121:$E121))),0) -> 0 | L121: =L$111+IF($C121<>0,SUMPRODUCT((L$112:L$113)*TRANSPOSE(($D121:$E121))),0) -> 0 | M121: =M$111+IF($C121<>0,SUMPRODUCT((M$112:M$113)*TRANSPOSE(($D121:$E121))),0) -> 0 | N121: =N$111+IF($C121<>0,SUMPRODUCT((N$112:N$113)*TRANSPOSE(($D121:$E121))),0) -> 0 | O121: =O$111+IF($C121<>0,SUMPRODUCT((O$112:O$113)*TRANSPOSE(($D121:$E121))),0) -> 0 | P121: =P$111+IF($C121<>0,SUMPRODUCT((P$112:P$113)*TRANSPOSE(($D121:$E121))),0) -> 0 | Q121: =Q$111+IF($C121<>0,SUMPRODUCT((Q$112:Q$113)*TRANSPOSE(($D121:$E121))),0) -> 0 | R121: =R$111+IF($C121<>0,SUMPRODUCT((R$112:R$113)*TRANSPOSE(($D121:$E121))),0) -> 0 | S121: =S$111+IF($C121<>0,SUMPRODUCT((S$112:S$113)*TRANSPOSE(($D121:$E121))),0) -> 0 | T121: =T$111+IF($C121<>0,SUMPRODUCT((T$112:T$113)*TRANSPOSE(($D121:$E121))),0) -> 0 | U121: =U$111+IF($C121<>0,SUMPRODUCT((U$112:U$113)*TRANSPOSE(($D121:$E121))),0) -> 0 | V121: =V$111+IF($C121<>0,SUMPRODUCT((V$112:V$113)*TRANSPOSE(($D121:$E121))),0) -> 0 | W121: =W$111+IF($C121<>0,SUMPRODUCT((W$112:W$113)*TRANSPOSE(($D121:$E121))),0) -> 0 | X121: =X$111+IF($C121<>0,SUMPRODUCT((X$112:X$113)*TRANSPOSE(($D121:$E121))),0) -> 0 | Y121: =Y$111+IF($C121<>0,SUMPRODUCT((Y$112:Y$113)*TRANSPOSE(($D121:$E121))),0) -> 0 | Z121: =Z$111+IF($C121<>0,SUMPRODUCT((Z$112:Z$113)*TRANSPOSE(($D121:$E121))),0) -> 0 | AA121: =AA$111+IF($C121<>0,SUMPRODUCT((AA$112:AA$113)*TRANSPOSE(($D121:$E121))),0) -> 0 | AB121: =AB$111+IF($C121<>0,SUMPRODUCT((AB$112:AB$113)*TRANSPOSE(($D121:$E121))),0) -> 0 | AC121: =AC$111+IF($C121<>0,SUMPRODUCT((AC$112:AC$113)*TRANSPOSE(($D121:$E121))),0) -> 0 | AD121: =AD$111+IF($C121<>0,SUMPRODUCT((AD$112:AD$113)*TRANSPOSE(($D121:$E121))),0) -> 0 | AE121: =AE$111+IF($C121<>0,SUMPRODUCT((AE$112:AE$113)*TRANSPOSE(($D121:$E121))),0) -> 0 | AF121: =AF$111+IF($C121<>0,SUMPRODUCT((AF$112:AF$113)*TRANSPOSE(($D121:$E121))),0) -> 0 | AG121: =AG$111+IF($C121<>0,SUMPRODUCT((AG$112:AG$113)*TRANSPOSE(($D121:$E121))),0) -> 0
A122: ="sens"&Assumptions!B118 -> sens | C122: =Assumptions!C118 -> 0 | D122: =Assumptions!G118 -> 0 | E122: =Assumptions!H118 -> 0 | G122: Option 1 (Base Case)sens | I122: =I$111+IF($C122<>0,SUMPRODUCT((I$112:I$113)*TRANSPOSE(($D122:$E122))),0) -> 0 | J122: =J$111+IF($C122<>0,SUMPRODUCT((J$112:J$113)*TRANSPOSE(($D122:$E122))),0) -> 0 | K122: =K$111+IF($C122<>0,SUMPRODUCT((K$112:K$113)*TRANSPOSE(($D122:$E122))),0) -> 0 | L122: =L$111+IF($C122<>0,SUMPRODUCT((L$112:L$113)*TRANSPOSE(($D122:$E122))),0) -> 0 | M122: =M$111+IF($C122<>0,SUMPRODUCT((M$112:M$113)*TRANSPOSE(($D122:$E122))),0) -> 0 | N122: =N$111+IF($C122<>0,SUMPRODUCT((N$112:N$113)*TRANSPOSE(($D122:$E122))),0) -> 0 | O122: =O$111+IF($C122<>0,SUMPRODUCT((O$112:O$113)*TRANSPOSE(($D122:$E122))),0) -> 0 | P122: =P$111+IF($C122<>0,SUMPRODUCT((P$112:P$113)*TRANSPOSE(($D122:$E122))),0) -> 0 | Q122: =Q$111+IF($C122<>0,SUMPRODUCT((Q$112:Q$113)*TRANSPOSE(($D122:$E122))),0) -> 0 | R122: =R$111+IF($C122<>0,SUMPRODUCT((R$112:R$113)*TRANSPOSE(($D122:$E122))),0) -> 0 | S122: =S$111+IF($C122<>0,SUMPRODUCT((S$112:S$113)*TRANSPOSE(($D122:$E122))),0) -> 0 | T122: =T$111+IF($C122<>0,SUMPRODUCT((T$112:T$113)*TRANSPOSE(($D122:$E122))),0) -> 0 | U122: =U$111+IF($C122<>0,SUMPRODUCT((U$112:U$113)*TRANSPOSE(($D122:$E122))),0) -> 0 | V122: =V$111+IF($C122<>0,SUMPRODUCT((V$112:V$113)*TRANSPOSE(($D122:$E122))),0) -> 0 | W122: =W$111+IF($C122<>0,SUMPRODUCT((W$112:W$113)*TRANSPOSE(($D122:$E122))),0) -> 0 | X122: =X$111+IF($C122<>0,SUMPRODUCT((X$112:X$113)*TRANSPOSE(($D122:$E122))),0) -> 0 | Y122: =Y$111+IF($C122<>0,SUMPRODUCT((Y$112:Y$113)*TRANSPOSE(($D122:$E122))),0) -> 0 | Z122: =Z$111+IF($C122<>0,SUMPRODUCT((Z$112:Z$113)*TRANSPOSE(($D122:$E122))),0) -> 0 | AA122: =AA$111+IF($C122<>0,SUMPRODUCT((AA$112:AA$113)*TRANSPOSE(($D122:$E122))),0) -> 0 | AB122: =AB$111+IF($C122<>0,SUMPRODUCT((AB$112:AB$113)*TRANSPOSE(($D122:$E122))),0) -> 0 | AC122: =AC$111+IF($C122<>0,SUMPRODUCT((AC$112:AC$113)*TRANSPOSE(($D122:$E122))),0) -> 0 | AD122: =AD$111+IF($C122<>0,SUMPRODUCT((AD$112:AD$113)*TRANSPOSE(($D122:$E122))),0) -> 0 | AE122: =AE$111+IF($C122<>0,SUMPRODUCT((AE$112:AE$113)*TRANSPOSE(($D122:$E122))),0) -> 0 | AF122: =AF$111+IF($C122<>0,SUMPRODUCT((AF$112:AF$113)*TRANSPOSE(($D122:$E122))),0) -> 0 | AG122: =AG$111+IF($C122<>0,SUMPRODUCT((AG$112:AG$113)*TRANSPOSE(($D122:$E122))),0) -> 0

Sheet Option2
A1: =bus -> Powercor
A2: =proj -> Melton & Wyndham Transformation Capacity Project
A3: OPTION 2 | C3: =INDEX(Assumptions!$E$14:$E$18, MATCH(A3,_xlfn.ANCHORARRAY( Assumptions!$C$14),0)) -> Southern capacity priority
A4: =(INDEX(Data!$D$9:$D$13, MATCH(A3, options,0))) -> 
A6: ='Option1 (base case)'!A6 -> Count | I6: ='Option1 (base case)'!I6 -> 1 | J6: ='Option1 (base case)'!J6 -> 2 | K6: ='Option1 (base case)'!K6 -> 3 | L6: ='Option1 (base case)'!L6 -> 4 | M6: ='Option1 (base case)'!M6 -> 5 | N6: ='Option1 (base case)'!N6 -> 6 | O6: ='Option1 (base case)'!O6 -> 7 | P6: ='Option1 (base case)'!P6 -> 8 | Q6: ='Option1 (base case)'!Q6 -> 9 | R6: ='Option1 (base case)'!R6 -> 10 | S6: ='Option1 (base case)'!S6 -> 11 | T6: ='Option1 (base case)'!T6 -> 12 | U6: ='Option1 (base case)'!U6 -> 13 | V6: ='Option1 (base case)'!V6 -> 14 | W6: ='Option1 (base case)'!W6 -> 15 | X6: ='Option1 (base case)'!X6 -> 16 | Y6: ='Option1 (base case)'!Y6 -> 17 | Z6: ='Option1 (base case)'!Z6 -> 18 | AA6: ='Option1 (base case)'!AA6 -> 19 | AB6: ='Option1 (base case)'!AB6 -> 20 | AC6: ='Option1 (base case)'!AC6 -> 21 | AD6: ='Option1 (base case)'!AD6 -> 22 | AE6: ='Option1 (base case)'!AE6 -> 23 | AF6: ='Option1 (base case)'!AF6 -> 24 | AG6: ='Option1 (base case)'!AG6 -> 25
A7: ='Option1 (base case)'!A7 -> Value of CO2 reductions | G7: $/MWh | I7: ='Option1 (base case)'!I7 -> 24.7304868 | J7: ='Option1 (base case)'!J7 -> 22.34074009 | K7: ='Option1 (base case)'!K7 -> 20.19632912 | L7: ='Option1 (base case)'!L7 -> 18.06294208 | M7: ='Option1 (base case)'!M7 -> 15.91339762 | N7: ='Option1 (base case)'!N7 -> 13.71506943 | O7: ='Option1 (base case)'!O7 -> 13.71506943 | P7: ='Option1 (base case)'!P7 -> 13.71506943 | Q7: ='Option1 (base case)'!Q7 -> 13.71506943 | R7: ='Option1 (base case)'!R7 -> 13.71506943 | S7: ='Option1 (base case)'!S7 -> 13.71506943 | T7: ='Option1 (base case)'!T7 -> 13.71506943 | U7: ='Option1 (base case)'!U7 -> 13.71506943 | V7: ='Option1 (base case)'!V7 -> 13.71506943 | W7: ='Option1 (base case)'!W7 -> 13.71506943 | X7: ='Option1 (base case)'!X7 -> 13.71506943 | Y7: ='Option1 (base case)'!Y7 -> 13.71506943 | Z7: ='Option1 (base case)'!Z7 -> 13.71506943 | AA7: ='Option1 (base case)'!AA7 -> 13.71506943 | AB7: ='Option1 (base case)'!AB7 -> 13.71506943 | AC7: ='Option1 (base case)'!AC7 -> 13.71506943 | AD7: ='Option1 (base case)'!AD7 -> 13.71506943 | AE7: ='Option1 (base case)'!AE7 -> 13.71506943 | AF7: ='Option1 (base case)'!AF7 -> 13.71506943 | AG7: ='Option1 (base case)'!AG7 -> 13.71506943
I8: =_xlfn.NUMBERVALUE(LEFT(I$9,4))+1 -> 2027 | J8: =_xlfn.NUMBERVALUE(LEFT(J$9,4))+1 -> 2028 | K8: 2029 | L8: 2030 | M8: 2031 | N8: 2032 | O8: 2033 | P8: 2034 | Q8: 2035 | R8: 2036 | S8: 2037 | T8: 2038 | U8: 2039 | V8: 2040 | W8: 2041 | X8: 2042 | Y8: 2043 | Z8: 2044 | AA8: 2045 | AB8: 2046 | AC8: 2047 | AD8: 2048 | AE8: 2049 | AF8: 2050 | AG8: 2051
G9: Units | I9: ='Option1 (base case)'!I9 -> 2026-27 | J9: ='Option1 (base case)'!J9 -> 2027-28 | K9: ='Option1 (base case)'!K9 -> 2028-29 | L9: ='Option1 (base case)'!L9 -> 2029-30 | M9: ='Option1 (base case)'!M9 -> 2030-31 | N9: ='Option1 (base case)'!N9 -> 2031-32 | O9: ='Option1 (base case)'!O9 -> 2032-33 | P9: ='Option1 (base case)'!P9 -> 2033-34 | Q9: ='Option1 (base case)'!Q9 -> 2034-35 | R9: ='Option1 (base case)'!R9 -> 2035-36 | S9: ='Option1 (base case)'!S9 -> 2036-37 | T9: ='Option1 (base case)'!T9 -> 2037-38 | U9: ='Option1 (base case)'!U9 -> 2038-39 | V9: ='Option1 (base case)'!V9 -> 2039-40 | W9: ='Option1 (base case)'!W9 -> 2040-41 | X9: ='Option1 (base case)'!X9 -> 2041-42 | Y9: ='Option1 (base case)'!Y9 -> 2042-43 | Z9: ='Option1 (base case)'!Z9 -> 2043-44 | AA9: ='Option1 (base case)'!AA9 -> 2044-45 | AB9: ='Option1 (base case)'!AB9 -> 2045-46 | AC9: ='Option1 (base case)'!AC9 -> 2046-47 | AD9: ='Option1 (base case)'!AD9 -> 2047-48 | AE9: ='Option1 (base case)'!AE9 -> 2048-49 | AF9: ='Option1 (base case)'!AF9 -> 2049-50 | AG9: ='Option1 (base case)'!AG9 -> 2050-51
A11: INVESTMENT & OPERATING COST
C13: Capex | E13: Asset life (yrs)
C14: MTC 3rd Tx | E14: 50 | G14: =input_dollars -> 2023-12-31 | I14: 14291649 | J14: 0 | K14: 0 | L14: 0 | M14: 0 | N14: 0 | O14: 0 | P14: 0 | Q14: 0 | R14: 0 | S14: 0 | T14: 0 | U14: 0 | V14: 0 | W14: 0 | X14: 0 | Y14: 0 | Z14: 0 | AA14: 0 | AB14: 0 | AC14: 0 | AD14: 0 | AE14: 0 | AF14: 0 | AG14: 0
C15: BMH Rebuild | E15: 50 | G15: =input_dollars -> 2023-12-31 | I15: 13551742.67 | J15: 13551742.67 | K15: 0 | L15: 0 | M15: 0 | N15: 0 | O15: 0 | P15: 0 | Q15: 0 | R15: 0
C16: PCK Stage 1 | E16: 50 | G16: =input_dollars -> 2023-12-31 | I16: 0 | J16: 5408395.3 | K16: 24286555.6 | L16: 22244579.1 | M16: 0 | N16: 0 | O16: 0 | P16: 0 | Q16: 10425980.33 | S16: 0 | T16: 0 | U16: 0 | V16: 0 | W16: 0 | X16: 0 | Y16: 0 | Z16: 0 | AA16: 0 | AB16: 0 | AC16: 0 | AD16: 0 | AE16: 0 | AF16: 0 | AG16: 0
C17: New RBE ZSS | E17: 50 | G17: =input_dollars -> 2023-12-31 | I17: 0 | J17: 0 | K17: 5291808.87 | L17: 17564061.24 | M17: 16105016.89 | N17: 0 | O17: 0 | P17: 0 | Q17: 0 | R17: 0 | S17: 0 | T17: 0 | U17: 0 | V17: 0 | W17: 0 | X17: 0 | Y17: 0 | Z17: 0 | AA17: 0 | AB17: 0 | AC17: 0 | AD17: 0 | AE17: 0 | AF17: 0 | AG17: 0
C18: Capital expenditure | G18: =input_dollars -> 2023-12-31 | I18: =SUM(I14:I17) -> 27843391.67 | J18: =SUM(J14:J17) -> 18960137.97 | K18: 29578364.47 | L18: 39808640.34 | M18: 16105016.89 | N18: 0 | O18: 0 | P18: 0 | Q18: 10425980.33 | R18: 0 | S18: 0 | T18: 0 | U18: 0 | V18: 0 | W18: 0 | X18: 0 | Y18: 0 | Z18: 0 | AA18: 0 | AB18: 0 | AC18: 0 | AD18: 0 | AE18: 0 | AF18: 0 | AG18: 0
C20: Operating expenditure | G20: =input_dollars -> 2023-12-31 | I20: 0 | J20: 0 | K20: 0 | L20: 0 | M20: 0 | N20: 0 | O20: 0 | P20: 0 | Q20: 0 | R20: 0 | S20: 0 | T20: 0 | U20: 0 | V20: 0 | W20: 0 | X20: 0 | Y20: 0 | Z20: 0 | AA20: 0 | AB20: 0 | AC20: 0 | AD20: 0 | AE20: 0 | AF20: 0 | AG20: 0
A23: RISK ASSUMPTIONS
C25: PoF (major) | I25: 0 | J25: 0 | K25: 0 | L25: 0 | M25: 0 | N25: 0 | O25: 0 | P25: 0 | Q25: 0 | R25: 0 | S25: 0 | T25: 0 | U25: 0 | V25: 0 | W25: 0 | X25: 0 | Y25: 0 | Z25: 0 | AA25: 0 | AB25: 0 | AC25: 0 | AD25: 0 | AE25: 0 | AF25: 0 | AG25: 0
C26: PoF (reparable) | I26: 0 | J26: 0 | K26: 0 | L26: 0 | M26: 0 | N26: 0 | O26: 0 | P26: 0 | Q26: 0 | R26: 0 | S26: 0 | T26: 0 | U26: 0 | V26: 0 | W26: 0 | X26: 0 | Y26: 0 | Z26: 0 | AA26: 0 | AB26: 0 | AC26: 0 | AD26: 0 | AE26: 0 | AF26: 0 | AG26: 0
C28: Const end date | E28: 2027
C29: Energy at risk 10% PoE | E29: 0.3 | G29: MWh | I29: =_xlfn.IFS(I$8<=$E$28,'Option1 (base case)'!I$29,I$8>$E$28,SUM('EaR Opt2 BMH Rebuild - BMH'!I$15,'EaR Opt2 New PCK - LVN'!I$15,'EaR Opt2 New PCK - PCK'!I$15,'EaR Opt2 New RBE - LV'!I$15,'EaR Opt2 New RBE - MLN'!I$15,'EaR Opt2 New RBE - MTC'!I$15,'EaR Opt2 New RBE - RBE'!I$15,'EaR Opt2 New RBE - TNA'!I$15,'EaR Opt2 New RBE - WBE'!I$15)) -> 377.3473715 | J29: =_xlfn.IFS(J$8<=$E$28,'Option1 (base case)'!J$29,J$8>$E$28,SUM('EaR Opt2 BMH Rebuild - BMH'!J$15,'EaR Opt2 New PCK - LVN'!J$15,'EaR Opt2 New PCK - PCK'!J$15,'EaR Opt2 New RBE - LV'!J$15,'EaR Opt2 New RBE - MLN'!J$15,'EaR Opt2 New RBE - MTC'!J$15,'EaR Opt2 New RBE - RBE'!J$15,'EaR Opt2 New RBE - TNA'!J$15,'EaR Opt2 New RBE - WBE'!J$15)) -> 266.9183368 | K29: =_xlfn.IFS(K$8<=$E$28,'Option1 (base case)'!K$29,K$8>$E$28,SUM('EaR Opt2 BMH Rebuild - BMH'!K$15,'EaR Opt2 New PCK - LVN'!K$15,'EaR Opt2 New PCK - PCK'!K$15,'EaR Opt2 New RBE - LV'!K$15,'EaR Opt2 New RBE - MLN'!K$15,'EaR Opt2 New RBE - MTC'!K$15,'EaR Opt2 New RBE - RBE'!K$15,'EaR Opt2 New RBE - TNA'!K$15,'EaR Opt2 New RBE - WBE'!K$15)) -> 230.4645121 | L29: =_xlfn.IFS(L$8<=$E$28,'Option1 (base case)'!L$29,L$8>$E$28,SUM('EaR Opt2 BMH Rebuild - BMH'!L$15,'EaR Opt2 New PCK - LVN'!L$15,'EaR Opt2 New PCK - PCK'!L$15,'EaR Opt2 New RBE - LV'!L$15,'EaR Opt2 New RBE - MLN'!L$15,'EaR Opt2 New RBE - MTC'!L$15,'EaR Opt2 New RBE - RBE'!L$15,'EaR Opt2 New RBE - TNA'!L$15,'EaR Opt2 New RBE - WBE'!L$15)) -> 447.6506233 | M29: =_xlfn.IFS(M$8<=$E$28,'Option1 (base case)'!M$29,M$8>$E$28,SUM('EaR Opt2 BMH Rebuild - BMH'!M$15,'EaR Opt2 New PCK - LVN'!M$15,'EaR Opt2 New PCK - PCK'!M$15,'EaR Opt2 New RBE - LV'!M$15,'EaR Opt2 New RBE - MLN'!M$15,'EaR Opt2 New RBE - MTC'!M$15,'EaR Opt2 New RBE - RBE'!M$15,'EaR Opt2 New RBE - TNA'!M$15,'EaR Opt2 New RBE - WBE'!M$15)) -> 321.9607104 | N29: =_xlfn.IFS(N$8<=$E$28,'Option1 (base case)'!N$29,N$8>$E$28,SUM('EaR Opt2 BMH Rebuild - BMH'!N$15,'EaR Opt2 New PCK - LVN'!N$15,'EaR Opt2 New PCK - PCK'!N$15,'EaR Opt2 New RBE - LV'!N$15,'EaR Opt2 New RBE - MLN'!N$15,'EaR Opt2 New RBE - MTC'!N$15,'EaR Opt2 New RBE - RBE'!N$15,'EaR Opt2 New RBE - TNA'!N$15,'EaR Opt2 New RBE - WBE'!N$15)) -> 121.8586438 | O29: =_xlfn.IFS(O$8<=$E$28,'Option1 (base case)'!O$29,O$8>$E$28,SUM('EaR Opt2 BMH Rebuild - BMH'!O$15,'EaR Opt2 New PCK - LVN'!O$15,'EaR Opt2 New PCK - PCK'!O$15,'EaR Opt2 New RBE - LV'!O$15,'EaR Opt2 New RBE - MLN'!O$15,'EaR Opt2 New RBE - MTC'!O$15,'EaR Opt2 New RBE - RBE'!O$15,'EaR Opt2 New RBE - TNA'!O$15,'EaR Opt2 New RBE - WBE'!O$15)) -> 231.2151184 | P29: =_xlfn.IFS(P$8<=$E$28,'Option1 (base case)'!P$29,P$8>$E$28,SUM('EaR Opt2 BMH Rebuild - BMH'!P$15,'EaR Opt2 New PCK - LVN'!P$15,'EaR Opt2 New PCK - PCK'!P$15,'EaR Opt2 New RBE - LV'!P$15,'EaR Opt2 New RBE - MLN'!P$15,'EaR Opt2 New RBE - MTC'!P$15,'EaR Opt2 New RBE - RBE'!P$15,'EaR Opt2 New RBE - TNA'!P$15,'EaR Opt2 New RBE - WBE'!P$15)) -> 395.7138986 | Q29: =_xlfn.IFS(Q$8<=$E$28,'Option1 (base case)'!Q$29,Q$8>$E$28,SUM('EaR Opt2 BMH Rebuild - BMH'!Q$15,'EaR Opt2 New PCK - LVN'!Q$15,'EaR Opt2 New PCK - PCK'!Q$15,'EaR Opt2 New RBE - LV'!Q$15,'EaR Opt2 New RBE - MLN'!Q$15,'EaR Opt2 New RBE - MTC'!Q$15,'EaR Opt2 New RBE - RBE'!Q$15,'EaR Opt2 New RBE - TNA'!Q$15,'EaR Opt2 New RBE - WBE'!Q$15)) -> 555.795536 | R29: =_xlfn.IFS(R$8<=$E$28,'Option1 (base case)'!R$29,R$8>$E$28,SUM('EaR Opt2 BMH Rebuild - BMH'!R$15,'EaR Opt2 New PCK - LVN'!R$15,'EaR Opt2 New PCK - PCK'!R$15,'EaR Opt2 New RBE - LV'!R$15,'EaR Opt2 New RBE - MLN'!R$15,'EaR Opt2 New RBE - MTC'!R$15,'EaR Opt2 New RBE - RBE'!R$15,'EaR Opt2 New RBE - TNA'!R$15,'EaR Opt2 New RBE - WBE'!R$15)) -> 555.6345159 | S29: =_xlfn.IFS(S$8<=$E$28,'Option1 (base case)'!S$29,S$8>$E$28,SUM('EaR Opt2 BMH Rebuild - BMH'!S$15,'EaR Opt2 New PCK - LVN'!S$15,'EaR Opt2 New PCK - PCK'!S$15,'EaR Opt2 New RBE - LV'!S$15,'EaR Opt2 New RBE - MLN'!S$15,'EaR Opt2 New RBE - MTC'!S$15,'EaR Opt2 New RBE - RBE'!S$15,'EaR Opt2 New RBE - TNA'!S$15,'EaR Opt2 New RBE - WBE'!S$15)) -> 555.5720263 | T29: =_xlfn.IFS(T$8<=$E$28,'Option1 (base case)'!T$29,T$8>$E$28,SUM('EaR Opt2 BMH Rebuild - BMH'!T$15,'EaR Opt2 New PCK - LVN'!T$15,'EaR Opt2 New PCK - PCK'!T$15,'EaR Opt2 New RBE - LV'!T$15,'EaR Opt2 New RBE - MLN'!T$15,'EaR Opt2 New RBE - MTC'!T$15,'EaR Opt2 New RBE - RBE'!T$15,'EaR Opt2 New RBE - TNA'!T$15,'EaR Opt2 New RBE - WBE'!T$15)) -> 555.5116705 | U29: =_xlfn.IFS(U$8<=$E$28,'Option1 (base case)'!U$29,U$8>$E$28,SUM('EaR Opt2 BMH Rebuild - BMH'!U$15,'EaR Opt2 New PCK - LVN'!U$15,'EaR Opt2 New PCK - PCK'!U$15,'EaR Opt2 New RBE - LV'!U$15,'EaR Opt2 New RBE - MLN'!U$15,'EaR Opt2 New RBE - MTC'!U$15,'EaR Opt2 New RBE - RBE'!U$15,'EaR Opt2 New RBE - TNA'!U$15,'EaR Opt2 New RBE - WBE'!U$15)) -> 555.4508799 | V29: =_xlfn.IFS(V$8<=$E$28,'Option1 (base case)'!V$29,V$8>$E$28,SUM('EaR Opt2 BMH Rebuild - BMH'!V$15,'EaR Opt2 New PCK - LVN'!V$15,'EaR Opt2 New PCK - PCK'!V$15,'EaR Opt2 New RBE - LV'!V$15,'EaR Opt2 New RBE - MLN'!V$15,'EaR Opt2 New RBE - MTC'!V$15,'EaR Opt2 New RBE - RBE'!V$15,'EaR Opt2 New RBE - TNA'!V$15,'EaR Opt2 New RBE - WBE'!V$15)) -> 555.3849198 | W29: =_xlfn.IFS(W$8<=$E$28,'Option1 (base case)'!W$29,W$8>$E$28,SUM('EaR Opt2 BMH Rebuild - BMH'!W$15,'EaR Opt2 New PCK - LVN'!W$15,'EaR Opt2 New PCK - PCK'!W$15,'EaR Opt2 New RBE - LV'!W$15,'EaR Opt2 New RBE - MLN'!W$15,'EaR Opt2 New RBE - MTC'!W$15,'EaR Opt2 New RBE - RBE'!W$15,'EaR Opt2 New RBE - TNA'!W$15,'EaR Opt2 New RBE - WBE'!W$15)) -> 555.3241107 | X29: =_xlfn.IFS(X$8<=$E$28,'Option1 (base case)'!X$29,X$8>$E$28,SUM('EaR Opt2 BMH Rebuild - BMH'!X$15,'EaR Opt2 New PCK - LVN'!X$15,'EaR Opt2 New PCK - PCK'!X$15,'EaR Opt2 New RBE - LV'!X$15,'EaR Opt2 New RBE - MLN'!X$15,'EaR Opt2 New RBE - MTC'!X$15,'EaR Opt2 New RBE - RBE'!X$15,'EaR Opt2 New RBE - TNA'!X$15,'EaR Opt2 New RBE - WBE'!X$15)) -> 555.2633009 | Y29: =_xlfn.IFS(Y$8<=$E$28,'Option1 (base case)'!Y$29,Y$8>$E$28,SUM('EaR Opt2 BMH Rebuild - BMH'!Y$15,'EaR Opt2 New PCK - LVN'!Y$15,'EaR Opt2 New PCK - PCK'!Y$15,'EaR Opt2 New RBE - LV'!Y$15,'EaR Opt2 New RBE - MLN'!Y$15,'EaR Opt2 New RBE - MTC'!Y$15,'EaR Opt2 New RBE - RBE'!Y$15,'EaR Opt2 New RBE - TNA'!Y$15,'EaR Opt2 New RBE - WBE'!Y$15)) -> 555.1969333 | Z29: =_xlfn.IFS(Z$8<=$E$28,'Option1 (base case)'!Z$29,Z$8>$E$28,SUM('EaR Opt2 BMH Rebuild - BMH'!Z$15,'EaR Opt2 New PCK - LVN'!Z$15,'EaR Opt2 New PCK - PCK'!Z$15,'EaR Opt2 New RBE - LV'!Z$15,'EaR Opt2 New RBE - MLN'!Z$15,'EaR Opt2 New RBE - MTC'!Z$15,'EaR Opt2 New RBE - RBE'!Z$15,'EaR Opt2 New RBE - TNA'!Z$15,'EaR Opt2 New RBE - WBE'!Z$15)) -> 555.1305793 | AA29: =_xlfn.IFS(AA$8<=$E$28,'Option1 (base case)'!AA$29,AA$8>$E$28,SUM('EaR Opt2 BMH Rebuild - BMH'!AA$15,'EaR Opt2 New PCK - LVN'!AA$15,'EaR Opt2 New PCK - PCK'!AA$15,'EaR Opt2 New RBE - LV'!AA$15,'EaR Opt2 New RBE - MLN'!AA$15,'EaR Opt2 New RBE - MTC'!AA$15,'EaR Opt2 New RBE - RBE'!AA$15,'EaR Opt2 New RBE - TNA'!AA$15,'EaR Opt2 New RBE - WBE'!AA$15)) -> 555.0693625 | AB29: =_xlfn.IFS(AB$8<=$E$28,'Option1 (base case)'!AB$29,AB$8>$E$28,SUM('EaR Opt2 BMH Rebuild - BMH'!AB$15,'EaR Opt2 New PCK - LVN'!AB$15,'EaR Opt2 New PCK - PCK'!AB$15,'EaR Opt2 New RBE - LV'!AB$15,'EaR Opt2 New RBE - MLN'!AB$15,'EaR Opt2 New RBE - MTC'!AB$15,'EaR Opt2 New RBE - RBE'!AB$15,'EaR Opt2 New RBE - TNA'!AB$15,'EaR Opt2 New RBE - WBE'!AB$15)) -> 555.0030342 | AC29: =_xlfn.IFS(AC$8<=$E$28,'Option1 (base case)'!AC$29,AC$8>$E$28,SUM('EaR Opt2 BMH Rebuild - BMH'!AC$15,'EaR Opt2 New PCK - LVN'!AC$15,'EaR Opt2 New PCK - PCK'!AC$15,'EaR Opt2 New RBE - LV'!AC$15,'EaR Opt2 New RBE - MLN'!AC$15,'EaR Opt2 New RBE - MTC'!AC$15,'EaR Opt2 New RBE - RBE'!AC$15,'EaR Opt2 New RBE - TNA'!AC$15,'EaR Opt2 New RBE - WBE'!AC$15)) -> 554.9362931 | AD29: =_xlfn.IFS(AD$8<=$E$28,'Option1 (base case)'!AD$29,AD$8>$E$28,SUM('EaR Opt2 BMH Rebuild - BMH'!AD$15,'EaR Opt2 New PCK - LVN'!AD$15,'EaR Opt2 New PCK - PCK'!AD$15,'EaR Opt2 New RBE - LV'!AD$15,'EaR Opt2 New RBE - MLN'!AD$15,'EaR Opt2 New RBE - MTC'!AD$15,'EaR Opt2 New RBE - RBE'!AD$15,'EaR Opt2 New RBE - TNA'!AD$15,'EaR Opt2 New RBE - WBE'!AD$15)) -> 554.8695553 | AE29: =_xlfn.IFS(AE$8<=$E$28,'Option1 (base case)'!AE$29,AE$8>$E$28,SUM('EaR Opt2 BMH Rebuild - BMH'!AE$15,'EaR Opt2 New PCK - LVN'!AE$15,'EaR Opt2 New PCK - PCK'!AE$15,'EaR Opt2 New RBE - LV'!AE$15,'EaR Opt2 New RBE - MLN'!AE$15,'EaR Opt2 New RBE - MTC'!AE$15,'EaR Opt2 New RBE - RBE'!AE$15,'EaR Opt2 New RBE - TNA'!AE$15,'EaR Opt2 New RBE - WBE'!AE$15)) -> 554.8028247 | AF29: =_xlfn.IFS(AF$8<=$E$28,'Option1 (base case)'!AF$29,AF$8>$E$28,SUM('EaR Opt2 BMH Rebuild - BMH'!AF$15,'EaR Opt2 New PCK - LVN'!AF$15,'EaR Opt2 New PCK - PCK'!AF$15,'EaR Opt2 New RBE - LV'!AF$15,'EaR Opt2 New RBE - MLN'!AF$15,'EaR Opt2 New RBE - MTC'!AF$15,'EaR Opt2 New RBE - RBE'!AF$15,'EaR Opt2 New RBE - TNA'!AF$15,'EaR Opt2 New RBE - WBE'!AF$15)) -> 554.73608 | AG29: =_xlfn.IFS(AG$8<=$E$28,'Option1 (base case)'!AG$29,AG$8>$E$28,SUM('EaR Opt2 BMH Rebuild - BMH'!AG$15,'EaR Opt2 New PCK - LVN'!AG$15,'EaR Opt2 New PCK - PCK'!AG$15,'EaR Opt2 New RBE - LV'!AG$15,'EaR Opt2 New RBE - MLN'!AG$15,'EaR Opt2 New RBE - MTC'!AG$15,'EaR Opt2 New RBE - RBE'!AG$15,'EaR Opt2 New RBE - TNA'!AG$15,'EaR Opt2 New RBE - WBE'!AG$15)) -> 0
C30: Energy at risk 50% PoE | E30: 0.7 | G30: MWh | I30: =_xlfn.IFS(I$8<=$E$28,'Option1 (base case)'!I$30,I$8>$E$28,SUM('EaR Opt2 BMH Rebuild - BMH'!I$14,'EaR Opt2 New PCK - LVN'!I$14,'EaR Opt2 New PCK - PCK'!I$14,'EaR Opt2 New RBE - LV'!I$14,'EaR Opt2 New RBE - MLN'!I$14,'EaR Opt2 New RBE - MTC'!I$14,'EaR Opt2 New RBE - RBE'!I$14,'EaR Opt2 New RBE - TNA'!I$14,'EaR Opt2 New RBE - WBE'!I$14)) -> 101.3053814 | J30: =_xlfn.IFS(J$8<=$E$28,'Option1 (base case)'!J$30,J$8>$E$28,SUM('EaR Opt2 BMH Rebuild - BMH'!J$14,'EaR Opt2 New PCK - LVN'!J$14,'EaR Opt2 New PCK - PCK'!J$14,'EaR Opt2 New RBE - LV'!J$14,'EaR Opt2 New RBE - MLN'!J$14,'EaR Opt2 New RBE - MTC'!J$14,'EaR Opt2 New RBE - RBE'!J$14,'EaR Opt2 New RBE - TNA'!J$14,'EaR Opt2 New RBE - WBE'!J$14)) -> 44.76067267 | K30: =_xlfn.IFS(K$8<=$E$28,'Option1 (base case)'!K$30,K$8>$E$28,SUM('EaR Opt2 BMH Rebuild - BMH'!K$14,'EaR Opt2 New PCK - LVN'!K$14,'EaR Opt2 New PCK - PCK'!K$14,'EaR Opt2 New RBE - LV'!K$14,'EaR Opt2 New RBE - MLN'!K$14,'EaR Opt2 New RBE - MTC'!K$14,'EaR Opt2 New RBE - RBE'!K$14,'EaR Opt2 New RBE - TNA'!K$14,'EaR Opt2 New RBE - WBE'!K$14)) -> 24.98751539 | L30: =_xlfn.IFS(L$8<=$E$28,'Option1 (base case)'!L$30,L$8>$E$28,SUM('EaR Opt2 BMH Rebuild - BMH'!L$14,'EaR Opt2 New PCK - LVN'!L$14,'EaR Opt2 New PCK - PCK'!L$14,'EaR Opt2 New RBE - LV'!L$14,'EaR Opt2 New RBE - MLN'!L$14,'EaR Opt2 New RBE - MTC'!L$14,'EaR Opt2 New RBE - RBE'!L$14,'EaR Opt2 New RBE - TNA'!L$14,'EaR Opt2 New RBE - WBE'!L$14)) -> 47.62223135 | M30: =_xlfn.IFS(M$8<=$E$28,'Option1 (base case)'!M$30,M$8>$E$28,SUM('EaR Opt2 BMH Rebuild - BMH'!M$14,'EaR Opt2 New PCK - LVN'!M$14,'EaR Opt2 New PCK - PCK'!M$14,'EaR Opt2 New RBE - LV'!M$14,'EaR Opt2 New RBE - MLN'!M$14,'EaR Opt2 New RBE - MTC'!M$14,'EaR Opt2 New RBE - RBE'!M$14,'EaR Opt2 New RBE - TNA'!M$14,'EaR Opt2 New RBE - WBE'!M$14)) -> 65.6211461 | N30: =_xlfn.IFS(N$8<=$E$28,'Option1 (base case)'!N$30,N$8>$E$28,SUM('EaR Opt2 BMH Rebuild - BMH'!N$14,'EaR Opt2 New PCK - LVN'!N$14,'EaR Opt2 New PCK - PCK'!N$14,'EaR Opt2 New RBE - LV'!N$14,'EaR Opt2 New RBE - MLN'!N$14,'EaR Opt2 New RBE - MTC'!N$14,'EaR Opt2 New RBE - RBE'!N$14,'EaR Opt2 New RBE - TNA'!N$14,'EaR Opt2 New RBE - WBE'!N$14)) -> 27.68324997 | O30: =_xlfn.IFS(O$8<=$E$28,'Option1 (base case)'!O$30,O$8>$E$28,SUM('EaR Opt2 BMH Rebuild - BMH'!O$14,'EaR Opt2 New PCK - LVN'!O$14,'EaR Opt2 New PCK - PCK'!O$14,'EaR Opt2 New RBE - LV'!O$14,'EaR Opt2 New RBE - MLN'!O$14,'EaR Opt2 New RBE - MTC'!O$14,'EaR Opt2 New RBE - RBE'!O$14,'EaR Opt2 New RBE - TNA'!O$14,'EaR Opt2 New RBE - WBE'!O$14)) -> 56.6537319 | P30: =_xlfn.IFS(P$8<=$E$28,'Option1 (base case)'!P$30,P$8>$E$28,SUM('EaR Opt2 BMH Rebuild - BMH'!P$14,'EaR Opt2 New PCK - LVN'!P$14,'EaR Opt2 New PCK - PCK'!P$14,'EaR Opt2 New RBE - LV'!P$14,'EaR Opt2 New RBE - MLN'!P$14,'EaR Opt2 New RBE - MTC'!P$14,'EaR Opt2 New RBE - RBE'!P$14,'EaR Opt2 New RBE - TNA'!P$14,'EaR Opt2 New RBE - WBE'!P$14)) -> 97.42697021 | Q30: =_xlfn.IFS(Q$8<=$E$28,'Option1 (base case)'!Q$30,Q$8>$E$28,SUM('EaR Opt2 BMH Rebuild - BMH'!Q$14,'EaR Opt2 New PCK - LVN'!Q$14,'EaR Opt2 New PCK - PCK'!Q$14,'EaR Opt2 New RBE - LV'!Q$14,'EaR Opt2 New RBE - MLN'!Q$14,'EaR Opt2 New RBE - MTC'!Q$14,'EaR Opt2 New RBE - RBE'!Q$14,'EaR Opt2 New RBE - TNA'!Q$14,'EaR Opt2 New RBE - WBE'!Q$14)) -> 148.1990292 | R30: =_xlfn.IFS(R$8<=$E$28,'Option1 (base case)'!R$30,R$8>$E$28,SUM('EaR Opt2 BMH Rebuild - BMH'!R$14,'EaR Opt2 New PCK - LVN'!R$14,'EaR Opt2 New PCK - PCK'!R$14,'EaR Opt2 New RBE - LV'!R$14,'EaR Opt2 New RBE - MLN'!R$14,'EaR Opt2 New RBE - MTC'!R$14,'EaR Opt2 New RBE - RBE'!R$14,'EaR Opt2 New RBE - TNA'!R$14,'EaR Opt2 New RBE - WBE'!R$14)) -> 148.163265 | S30: =_xlfn.IFS(S$8<=$E$28,'Option1 (base case)'!S$30,S$8>$E$28,SUM('EaR Opt2 BMH Rebuild - BMH'!S$14,'EaR Opt2 New PCK - LVN'!S$14,'EaR Opt2 New PCK - PCK'!S$14,'EaR Opt2 New RBE - LV'!S$14,'EaR Opt2 New RBE - MLN'!S$14,'EaR Opt2 New RBE - MTC'!S$14,'EaR Opt2 New RBE - RBE'!S$14,'EaR Opt2 New RBE - TNA'!S$14,'EaR Opt2 New RBE - WBE'!S$14)) -> 148.1314654 | T30: =_xlfn.IFS(T$8<=$E$28,'Option1 (base case)'!T$30,T$8>$E$28,SUM('EaR Opt2 BMH Rebuild - BMH'!T$14,'EaR Opt2 New PCK - LVN'!T$14,'EaR Opt2 New PCK - PCK'!T$14,'EaR Opt2 New RBE - LV'!T$14,'EaR Opt2 New RBE - MLN'!T$14,'EaR Opt2 New RBE - MTC'!T$14,'EaR Opt2 New RBE - RBE'!T$14,'EaR Opt2 New RBE - TNA'!T$14,'EaR Opt2 New RBE - WBE'!T$14)) -> 148.0996822 | U30: =_xlfn.IFS(U$8<=$E$28,'Option1 (base case)'!U$30,U$8>$E$28,SUM('EaR Opt2 BMH Rebuild - BMH'!U$14,'EaR Opt2 New PCK - LVN'!U$14,'EaR Opt2 New PCK - PCK'!U$14,'EaR Opt2 New RBE - LV'!U$14,'EaR Opt2 New RBE - MLN'!U$14,'EaR Opt2 New RBE - MTC'!U$14,'EaR Opt2 New RBE - RBE'!U$14,'EaR Opt2 New RBE - TNA'!U$14,'EaR Opt2 New RBE - WBE'!U$14)) -> 148.0677731 | V30: =_xlfn.IFS(V$8<=$E$28,'Option1 (base case)'!V$30,V$8>$E$28,SUM('EaR Opt2 BMH Rebuild - BMH'!V$14,'EaR Opt2 New PCK - LVN'!V$14,'EaR Opt2 New PCK - PCK'!V$14,'EaR Opt2 New RBE - LV'!V$14,'EaR Opt2 New RBE - MLN'!V$14,'EaR Opt2 New RBE - MTC'!V$14,'EaR Opt2 New RBE - RBE'!V$14,'EaR Opt2 New RBE - TNA'!V$14,'EaR Opt2 New RBE - WBE'!V$14)) -> 148.0360282 | W30: =_xlfn.IFS(W$8<=$E$28,'Option1 (base case)'!W$30,W$8>$E$28,SUM('EaR Opt2 BMH Rebuild - BMH'!W$14,'EaR Opt2 New PCK - LVN'!W$14,'EaR Opt2 New PCK - PCK'!W$14,'EaR Opt2 New RBE - LV'!W$14,'EaR Opt2 New RBE - MLN'!W$14,'EaR Opt2 New RBE - MTC'!W$14,'EaR Opt2 New RBE - RBE'!W$14,'EaR Opt2 New RBE - TNA'!W$14,'EaR Opt2 New RBE - WBE'!W$14)) -> 148.0040244 | X30: =_xlfn.IFS(X$8<=$E$28,'Option1 (base case)'!X$30,X$8>$E$28,SUM('EaR Opt2 BMH Rebuild - BMH'!X$14,'EaR Opt2 New PCK - LVN'!X$14,'EaR Opt2 New PCK - PCK'!X$14,'EaR Opt2 New RBE - LV'!X$14,'EaR Opt2 New RBE - MLN'!X$14,'EaR Opt2 New RBE - MTC'!X$14,'EaR Opt2 New RBE - RBE'!X$14,'EaR Opt2 New RBE - TNA'!X$14,'EaR Opt2 New RBE - WBE'!X$14)) -> 147.9695435 | Y30: =_xlfn.IFS(Y$8<=$E$28,'Option1 (base case)'!Y$30,Y$8>$E$28,SUM('EaR Opt2 BMH Rebuild - BMH'!Y$14,'EaR Opt2 New PCK - LVN'!Y$14,'EaR Opt2 New PCK - PCK'!Y$14,'EaR Opt2 New RBE - LV'!Y$14,'EaR Opt2 New RBE - MLN'!Y$14,'EaR Opt2 New RBE - MTC'!Y$14,'EaR Opt2 New RBE - RBE'!Y$14,'EaR Opt2 New RBE - TNA'!Y$14,'EaR Opt2 New RBE - WBE'!Y$14)) -> 147.9377076 | Z30: =_xlfn.IFS(Z$8<=$E$28,'Option1 (base case)'!Z$30,Z$8>$E$28,SUM('EaR Opt2 BMH Rebuild - BMH'!Z$14,'EaR Opt2 New PCK - LVN'!Z$14,'EaR Opt2 New PCK - PCK'!Z$14,'EaR Opt2 New RBE - LV'!Z$14,'EaR Opt2 New RBE - MLN'!Z$14,'EaR Opt2 New RBE - MTC'!Z$14,'EaR Opt2 New RBE - RBE'!Z$14,'EaR Opt2 New RBE - TNA'!Z$14,'EaR Opt2 New RBE - WBE'!Z$14)) -> 147.9031292 | AA30: =_xlfn.IFS(AA$8<=$E$28,'Option1 (base case)'!AA$30,AA$8>$E$28,SUM('EaR Opt2 BMH Rebuild - BMH'!AA$14,'EaR Opt2 New PCK - LVN'!AA$14,'EaR Opt2 New PCK - PCK'!AA$14,'EaR Opt2 New RBE - LV'!AA$14,'EaR Opt2 New RBE - MLN'!AA$14,'EaR Opt2 New RBE - MTC'!AA$14,'EaR Opt2 New RBE - RBE'!AA$14,'EaR Opt2 New RBE - TNA'!AA$14,'EaR Opt2 New RBE - WBE'!AA$14)) -> 147.8711875 | AB30: =_xlfn.IFS(AB$8<=$E$28,'Option1 (base case)'!AB$30,AB$8>$E$28,SUM('EaR Opt2 BMH Rebuild - BMH'!AB$14,'EaR Opt2 New PCK - LVN'!AB$14,'EaR Opt2 New PCK - PCK'!AB$14,'EaR Opt2 New RBE - LV'!AB$14,'EaR Opt2 New RBE - MLN'!AB$14,'EaR Opt2 New RBE - MTC'!AB$14,'EaR Opt2 New RBE - RBE'!AB$14,'EaR Opt2 New RBE - TNA'!AB$14,'EaR Opt2 New RBE - WBE'!AB$14)) -> 147.8364926 | AC30: =_xlfn.IFS(AC$8<=$E$28,'Option1 (base case)'!AC$30,AC$8>$E$28,SUM('EaR Opt2 BMH Rebuild - BMH'!AC$14,'EaR Opt2 New PCK - LVN'!AC$14,'EaR Opt2 New PCK - PCK'!AC$14,'EaR Opt2 New RBE - LV'!AC$14,'EaR Opt2 New RBE - MLN'!AC$14,'EaR Opt2 New RBE - MTC'!AC$14,'EaR Opt2 New RBE - RBE'!AC$14,'EaR Opt2 New RBE - TNA'!AC$14,'EaR Opt2 New RBE - WBE'!AC$14)) -> 147.8019704 | AD30: =_xlfn.IFS(AD$8<=$E$28,'Option1 (base case)'!AD$30,AD$8>$E$28,SUM('EaR Opt2 BMH Rebuild - BMH'!AD$14,'EaR Opt2 New PCK - LVN'!AD$14,'EaR Opt2 New PCK - PCK'!AD$14,'EaR Opt2 New RBE - LV'!AD$14,'EaR Opt2 New RBE - MLN'!AD$14,'EaR Opt2 New RBE - MTC'!AD$14,'EaR Opt2 New RBE - RBE'!AD$14,'EaR Opt2 New RBE - TNA'!AD$14,'EaR Opt2 New RBE - WBE'!AD$14)) -> 147.7673325 | AE30: =_xlfn.IFS(AE$8<=$E$28,'Option1 (base case)'!AE$30,AE$8>$E$28,SUM('EaR Opt2 BMH Rebuild - BMH'!AE$14,'EaR Opt2 New PCK - LVN'!AE$14,'EaR Opt2 New PCK - PCK'!AE$14,'EaR Opt2 New RBE - LV'!AE$14,'EaR Opt2 New RBE - MLN'!AE$14,'EaR Opt2 New RBE - MTC'!AE$14,'EaR Opt2 New RBE - RBE'!AE$14,'EaR Opt2 New RBE - TNA'!AE$14,'EaR Opt2 New RBE - WBE'!AE$14)) -> 147.732716 | AF30: =_xlfn.IFS(AF$8<=$E$28,'Option1 (base case)'!AF$30,AF$8>$E$28,SUM('EaR Opt2 BMH Rebuild - BMH'!AF$14,'EaR Opt2 New PCK - LVN'!AF$14,'EaR Opt2 New PCK - PCK'!AF$14,'EaR Opt2 New RBE - LV'!AF$14,'EaR Opt2 New RBE - MLN'!AF$14,'EaR Opt2 New RBE - MTC'!AF$14,'EaR Opt2 New RBE - RBE'!AF$14,'EaR Opt2 New RBE - TNA'!AF$14,'EaR Opt2 New RBE - WBE'!AF$14)) -> 147.698001 | AG30: =_xlfn.IFS(AG$8<=$E$28,'Option1 (base case)'!AG$30,AG$8>$E$28,SUM('EaR Opt2 BMH Rebuild - BMH'!AG$14,'EaR Opt2 New PCK - LVN'!AG$14,'EaR Opt2 New PCK - PCK'!AG$14,'EaR Opt2 New RBE - LV'!AG$14,'EaR Opt2 New RBE - MLN'!AG$14,'EaR Opt2 New RBE - MTC'!AG$14,'EaR Opt2 New RBE - RBE'!AG$14,'EaR Opt2 New RBE - TNA'!AG$14,'EaR Opt2 New RBE - WBE'!AG$14)) -> 0
C32: Energy at risk (weighted) | G32: MWh | I32: =SUMPRODUCT(I$29:I$30, $E$29:$E$30) -> 184.1179785 | J32: =SUMPRODUCT(J$29:J$30, $E$29:$E$30) -> 111.4079719 | K32: 86.63061439 | L32: 167.6307489 | M32: 142.5230154 | N32: 55.93586811 | O32: 109.0221478 | P32: 186.9130487 | Q32: 270.4779812 | R32: 270.4046402 | S32: 270.3636337 | T32: 270.3232787 | U32: 270.2827052 | V32: 270.2406957 | W32: 270.2000503 | X32: 270.1576708 | Y32: 270.1154753 | Z32: 270.0713642 | AA32: 270.03064 | AB32: 269.9864551 | AC32: 269.9422672 | AD32: 269.8979994 | AE32: 269.8537486 | AF32: 269.8094247 | AG32: 0
C33: Energy at risk value | D33: $/MWh | E33: =Assumptions!H41*vcr_esc -> 33863.33108 | F33: =IF(AND(SUM(I32:AG32)<>0, E33=0), "!", "") ->  | G33: =input_dollars -> 2023-12-31 | I33: =I32*$E$33 -> 6234848.062 | J33: =J32*$E$33 -> 3772645.038 | K33: 2933601.176 | L33: 5676535.549 | M33: 4826304.056 | N33: 1894174.821 | O33: 3691853.087 | P33: 6329498.451 | Q33: 9159285.428 | R33: 9156801.857 | S33: 9155413.238 | T33: 9154046.684 | U33: 9152672.729 | V33: 9151250.147 | W33: 9149873.761 | X33: 9148438.647 | Y33: 9147009.768 | Z33: 9145516.021 | AA33: 9144136.964 | AB33: 9142640.715 | AC33: 9141144.366 | AD33: 9139645.309 | AE33: 9138146.832 | AF33: 9136645.877 | AG33: 0
C35: Safety consequence | D35: (after DF) | G35: =input_dollars -> 2023-12-31 | I35: 0 | J35: 0 | K35: 0 | L35: 0 | M35: 0 | N35: 0 | O35: 0 | P35: 0 | Q35: 0 | R35: 0 | S35: 0 | T35: 0 | U35: 0 | V35: 0 | W35: 0 | X35: 0 | Y35: 0 | Z35: 0 | AA35: 0 | AB35: 0 | AC35: 0 | AD35: 0 | AE35: 0 | AF35: 0 | AG35: 0
C36: Unplanned replacements | G36: =input_dollars -> 2023-12-31 | I36: 0 | J36: 0 | K36: 0 | L36: 0 | M36: 0 | N36: 0 | O36: 0 | P36: 0 | Q36: 0 | R36: 0 | S36: 0 | T36: 0 | U36: 0 | V36: 0 | W36: 0 | X36: 0 | Y36: 0 | Z36: 0 | AA36: 0 | AB36: 0 | AC36: 0 | AD36: 0 | AE36: 0 | AF36: 0 | AG36: 0
C37: Environmental consequence | D37: (after DF) | G37: =input_dollars -> 2023-12-31 | I37: 0 | J37: 0 | K37: 0 | L37: 0 | M37: 0 | N37: 0 | O37: 0 | P37: 0 | Q37: 0 | R37: 0 | S37: 0 | T37: 0 | U37: 0 | V37: 0 | W37: 0 | X37: 0 | Y37: 0 | Z37: 0 | AA37: 0 | AB37: 0 | AC37: 0 | AD37: 0 | AE37: 0 | AF37: 0 | AG37: 0
C38: < Other risk - enter description > | G38: =input_dollars -> 2023-12-31 | I38: 0 | J38: 0 | K38: 0 | L38: 0 | M38: 0 | N38: 0 | O38: 0 | P38: 0 | Q38: 0 | R38: 0 | S38: 0 | T38: 0 | U38: 0 | V38: 0 | W38: 0 | X38: 0 | Y38: 0 | Z38: 0 | AA38: 0 | AB38: 0 | AC38: 0 | AD38: 0 | AE38: 0 | AF38: 0 | AG38: 0
C39: < Other risk - enter description > | G39: =input_dollars -> 2023-12-31 | I39: 0 | J39: 0 | K39: 0 | L39: 0 | M39: 0 | N39: 0 | O39: 0 | P39: 0 | Q39: 0 | R39: 0 | S39: 0 | T39: 0 | U39: 0 | V39: 0 | W39: 0 | X39: 0 | Y39: 0 | Z39: 0 | AA39: 0 | AB39: 0 | AC39: 0 | AD39: 0 | AE39: 0 | AF39: 0 | AG39: 0
C41: Total risk cost | I41: =SUM(I33:I39) -> 6234848.062 | J41: =SUM(J33:J39) -> 3772645.038 | K41: 2933601.176 | L41: 5676535.549 | M41: 4826304.056 | N41: 1894174.821 | O41: 3691853.087 | P41: 6329498.451 | Q41: 9159285.428 | R41: 9156801.857 | S41: 9155413.238 | T41: 9154046.684 | U41: 9152672.729 | V41: 9151250.147 | W41: 9149873.761 | X41: 9148438.647 | Y41: 9147009.768 | Z41: 9145516.021 | AA41: 9144136.964 | AB41: 9142640.715 | AC41: 9141144.366 | AD41: 9139645.309 | AE41: 9138146.832 | AF41: 9136645.877 | AG41: 0
A43: OTHER BENEFITS
C46: Reduction in CO2 emissions | G46: MWh | I46: 0 | J46: 0 | K46: 0 | L46: 0 | M46: 0 | N46: 0 | O46: 0 | P46: 0 | Q46: 0 | R46: 0 | S46: 0 | T46: 0 | U46: 0 | V46: 0 | W46: 0 | X46: 0 | Y46: 0 | Z46: 0 | AA46: 0 | AB46: 0 | AC46: 0 | AD46: 0 | AE46: 0 | AF46: 0 | AG46: 0
C47: Value of reduction in CO2 emissions | G47: $ | I47: =I46*I7 -> 0 | J47: 0 | K47: 0 | L47: 0 | M47: 0 | N47: 0 | O47: 0 | P47: 0 | Q47: 0 | R47: 0 | S47: 0 | T47: 0 | U47: 0 | V47: 0 | W47: 0 | X47: 0 | Y47: 0 | Z47: 0 | AA47: 0 | AB47: 0 | AC47: 0 | AD47: 0 | AE47: 0 | AF47: 0 | AG47: 0
C50: Reliability in worst-served areas | D50: $/MWh | E50: =Assumptions!G94 -> 151432.8174 | G50: MWh | I50: 0 | J50: 0 | K50: 0 | L50: 0 | M50: 0 | N50: 0 | O50: 0 | P50: 0 | Q50: 0 | R50: 0 | S50: 0 | T50: 0 | U50: 0 | V50: 0 | W50: 0 | X50: 0 | Y50: 0 | Z50: 0 | AA50: 0 | AB50: 0 | AC50: 0 | AD50: 0 | AE50: 0 | AF50: 0 | AG50: 0
C51: Network resilience | D51: $/MWh | E51: =Assumptions!G95 -> 24590 | G51: MWh | I51: 0 | J51: 0 | K51: 0 | L51: 0 | M51: 0 | N51: 0 | O51: 0 | P51: 0 | Q51: 0 | R51: 0 | S51: 0 | T51: 0 | U51: 0 | V51: 0 | W51: 0 | X51: 0 | Y51: 0 | Z51: 0 | AA51: 0 | AB51: 0 | AC51: 0 | AD51: 0 | AE51: 0 | AF51: 0 | AG51: 0
C52: Enabling solar exports | D52: $/MWh | E52: =Assumptions!G96 -> 88.35771951 | G52: MWh | I52: 0 | J52: 0 | K52: 0 | L52: 0 | M52: 0 | N52: 0 | O52: 0 | P52: 0 | Q52: 0 | R52: 0 | S52: 0 | T52: 0 | U52: 0 | V52: 0 | W52: 0 | X52: 0 | Y52: 0 | Z52: 0 | AA52: 0 | AB52: 0 | AC52: 0 | AD52: 0 | AE52: 0 | AF52: 0 | AG52: 0
C53: Aesthetics | D53: $/customer | E53: =Assumptions!G97 -> 0 | G53: customers | I53: 0 | J53: 0 | K53: 0 | L53: 0 | M53: 0 | N53: 0 | O53: 0 | P53: 0 | Q53: 0 | R53: 0 | S53: 0 | T53: 0 | U53: 0 | V53: 0 | W53: 0 | X53: 0 | Y53: 0 | Z53: 0 | AA53: 0 | AB53: 0 | AC53: 0 | AD53: 0 | AE53: 0 | AF53: 0 | AG53: 0
C54: Customer value of time - residential | D54: $/customer min | E54: =Assumptions!G98 -> 0.3518133654 | G54: mins | I54: 0 | J54: 0 | K54: 0 | L54: 0 | M54: 0 | N54: 0 | O54: 0 | P54: 0 | Q54: 0 | R54: 0 | S54: 0 | T54: 0 | U54: 0 | V54: 0 | W54: 0 | X54: 0 | Y54: 0 | Z54: 0 | AA54: 0 | AB54: 0 | AC54: 0 | AD54: 0 | AE54: 0 | AF54: 0 | AG54: 0
C55: Customer value of time - business | D55: $/customer min | E55: =Assumptions!G99 -> 0.3518133654 | G55: mins | I55: 0 | J55: 0 | K55: 0 | L55: 0 | M55: 0 | N55: 0 | O55: 0 | P55: 0 | Q55: 0 | R55: 0 | S55: 0 | T55: 0 | U55: 0 | V55: 0 | W55: 0 | X55: 0 | Y55: 0 | Z55: 0 | AA55: 0 | AB55: 0 | AC55: 0 | AD55: 0 | AE55: 0 | AF55: 0 | AG55: 0
C56: Communication | D56: $/customer | E56: =Assumptions!G100 -> 0 | G56: customers | I56: 0 | J56: 0 | K56: 0 | L56: 0 | M56: 0 | N56: 0 | O56: 0 | P56: 0 | Q56: 0 | R56: 0 | S56: 0 | T56: 0 | U56: 0 | V56: 0 | W56: 0 | X56: 0 | Y56: 0 | Z56: 0 | AA56: 0 | AB56: 0 | AC56: 0 | AD56: 0 | AE56: 0 | AF56: 0 | AG56: 0
C57: Information accessibility | D57: $/customer | E57: =Assumptions!G101 -> 0 | G57: customers | I57: 0 | J57: 0 | K57: 0 | L57: 0 | M57: 0 | N57: 0 | O57: 0 | P57: 0 | Q57: 0 | R57: 0 | S57: 0 | T57: 0 | U57: 0 | V57: 0 | W57: 0 | X57: 0 | Y57: 0 | Z57: 0 | AA57: 0 | AB57: 0 | AC57: 0 | AD57: 0 | AE57: 0 | AF57: 0 | AG57: 0
C59: Other benefits 1 | G59: =input_dollars -> 2023-12-31 | I59: 0 | J59: 0 | K59: 0 | L59: 0 | M59: 0 | N59: 0 | O59: 0 | P59: 0 | Q59: 0 | R59: 0 | S59: 0 | T59: 0 | U59: 0 | V59: 0 | W59: 0 | X59: 0 | Y59: 0 | Z59: 0 | AA59: 0 | AB59: 0 | AC59: 0 | AD59: 0 | AE59: 0 | AF59: 0 | AG59: 0
C60: Other benefits 2 | G60: =input_dollars -> 2023-12-31 | I60: 0 | J60: 0 | K60: 0 | L60: 0 | M60: 0 | N60: 0 | O60: 0 | P60: 0 | Q60: 0 | R60: 0 | S60: 0 | T60: 0 | U60: 0 | V60: 0 | W60: 0 | X60: 0 | Y60: 0 | Z60: 0 | AA60: 0 | AB60: 0 | AC60: 0 | AD60: 0 | AE60: 0 | AF60: 0 | AG60: 0
C62: Total other benefits | G62: =input_dollars -> 2023-12-31 | I62: =SUMPRODUCT((I$50:I$57)*($E$50:$E$57))+SUM(I59:I60)+I47 -> 0 | J62: =SUMPRODUCT((J$50:J$57)*($E$50:$E$57))+SUM(J59:J60)+J47 -> 0 | K62: =SUMPRODUCT((K$50:K$57)*($E$50:$E$57))+SUM(K59:K60)+K47 -> 0 | L62: =SUMPRODUCT((L$50:L$57)*($E$50:$E$57))+SUM(L59:L60)+L47 -> 0 | M62: =SUMPRODUCT((M$50:M$57)*($E$50:$E$57))+SUM(M59:M60)+M47 -> 0 | N62: =SUMPRODUCT((N$50:N$57)*($E$50:$E$57))+SUM(N59:N60)+N47 -> 0 | O62: =SUMPRODUCT((O$50:O$57)*($E$50:$E$57))+SUM(O59:O60)+O47 -> 0 | P62: =SUMPRODUCT((P$50:P$57)*($E$50:$E$57))+SUM(P59:P60)+P47 -> 0 | Q62: =SUMPRODUCT((Q$50:Q$57)*($E$50:$E$57))+SUM(Q59:Q60)+Q47 -> 0 | R62: =SUMPRODUCT((R$50:R$57)*($E$50:$E$57))+SUM(R59:R60)+R47 -> 0 | S62: =SUMPRODUCT((S$50:S$57)*($E$50:$E$57))+SUM(S59:S60)+S47 -> 0 | T62: =SUMPRODUCT((T$50:T$57)*($E$50:$E$57))+SUM(T59:T60)+T47 -> 0 | U62: =SUMPRODUCT((U$50:U$57)*($E$50:$E$57))+SUM(U59:U60)+U47 -> 0 | V62: =SUMPRODUCT((V$50:V$57)*($E$50:$E$57))+SUM(V59:V60)+V47 -> 0 | W62: =SUMPRODUCT((W$50:W$57)*($E$50:$E$57))+SUM(W59:W60)+W47 -> 0 | X62: =SUMPRODUCT((X$50:X$57)*($E$50:$E$57))+SUM(X59:X60)+X47 -> 0 | Y62: =SUMPRODUCT((Y$50:Y$57)*($E$50:$E$57))+SUM(Y59:Y60)+Y47 -> 0 | Z62: =SUMPRODUCT((Z$50:Z$57)*($E$50:$E$57))+SUM(Z59:Z60)+Z47 -> 0 | AA62: =SUMPRODUCT((AA$50:AA$57)*($E$50:$E$57))+SUM(AA59:AA60)+AA47 -> 0 | AB62: =SUMPRODUCT((AB$50:AB$57)*($E$50:$E$57))+SUM(AB59:AB60)+AB47 -> 0 | AC62: =SUMPRODUCT((AC$50:AC$57)*($E$50:$E$57))+SUM(AC59:AC60)+AC47 -> 0 | AD62: =SUMPRODUCT((AD$50:AD$57)*($E$50:$E$57))+SUM(AD59:AD60)+AD47 -> 0 | AE62: =SUMPRODUCT((AE$50:AE$57)*($E$50:$E$57))+SUM(AE59:AE60)+AE47 -> 0 | AF62: =SUMPRODUCT((AF$50:AF$57)*($E$50:$E$57))+SUM(AF59:AF60)+AF47 -> 0 | AG62: =SUMPRODUCT((AG$50:AG$57)*($E$50:$E$57))+SUM(AG59:AG60)+AG47 -> 0
A65: SUMMARY
C69: ='Option1 (base case)'!C69 -> Risks mitigated vs base case | G69: =input_dollars -> 2023-12-31 | I69: =(1-INDEX(Data!$C$9:$C$13, MATCH($A$3, options,0)))*('Option1 (base case)'!I41-I41) -> 0 | J69: =(1-INDEX(Data!$C$9:$C$13, MATCH($A$3, options,0)))*('Option1 (base case)'!J41-J41) -> 6892644.784 | K69: =(1-INDEX(Data!$C$9:$C$13, MATCH($A$3, options,0)))*('Option1 (base case)'!K41-K41) -> 14592907.16 | L69: =(1-INDEX(Data!$C$9:$C$13, MATCH($A$3, options,0)))*('Option1 (base case)'!L41-L41) -> 22090213.3 | M69: =(1-INDEX(Data!$C$9:$C$13, MATCH($A$3, options,0)))*('Option1 (base case)'!M41-M41) -> 44221736.51 | N69: =(1-INDEX(Data!$C$9:$C$13, MATCH($A$3, options,0)))*('Option1 (base case)'!N41-N41) -> 96249176.58 | O69: =(1-INDEX(Data!$C$9:$C$13, MATCH($A$3, options,0)))*('Option1 (base case)'!O41-O41) -> 190053940.4 | P69: =(1-INDEX(Data!$C$9:$C$13, MATCH($A$3, options,0)))*('Option1 (base case)'!P41-P41) -> 328904199.3 | Q69: =(1-INDEX(Data!$C$9:$C$13, MATCH($A$3, options,0)))*('Option1 (base case)'!Q41-Q41) -> 506487477.8 | R69: =(1-INDEX(Data!$C$9:$C$13, MATCH($A$3, options,0)))*('Option1 (base case)'!R41-R41) -> 506489961.3 | S69: =(1-INDEX(Data!$C$9:$C$13, MATCH($A$3, options,0)))*('Option1 (base case)'!S41-S41) -> 506491350 | T69: =(1-INDEX(Data!$C$9:$C$13, MATCH($A$3, options,0)))*('Option1 (base case)'!T41-T41) -> 506492716.5 | U69: =(1-INDEX(Data!$C$9:$C$13, MATCH($A$3, options,0)))*('Option1 (base case)'!U41-U41) -> 506494090.5 | V69: =(1-INDEX(Data!$C$9:$C$13, MATCH($A$3, options,0)))*('Option1 (base case)'!V41-V41) -> 506495513.1 | W69: =(1-INDEX(Data!$C$9:$C$13, MATCH($A$3, options,0)))*('Option1 (base case)'!W41-W41) -> 506496889.4 | X69: =(1-INDEX(Data!$C$9:$C$13, MATCH($A$3, options,0)))*('Option1 (base case)'!X41-X41) -> 506498324.6 | Y69: =(1-INDEX(Data!$C$9:$C$13, MATCH($A$3, options,0)))*('Option1 (base case)'!Y41-Y41) -> 506499753.4 | Z69: =(1-INDEX(Data!$C$9:$C$13, MATCH($A$3, options,0)))*('Option1 (base case)'!Z41-Z41) -> 506501247.2 | AA69: =(1-INDEX(Data!$C$9:$C$13, MATCH($A$3, options,0)))*('Option1 (base case)'!AA41-AA41) -> 506502626.2 | AB69: =(1-INDEX(Data!$C$9:$C$13, MATCH($A$3, options,0)))*('Option1 (base case)'!AB41-AB41) -> 506504122.5 | AC69: =(1-INDEX(Data!$C$9:$C$13, MATCH($A$3, options,0)))*('Option1 (base case)'!AC41-AC41) -> 506505618.8 | AD69: =(1-INDEX(Data!$C$9:$C$13, MATCH($A$3, options,0)))*('Option1 (base case)'!AD41-AD41) -> 506507117.9 | AE69: =(1-INDEX(Data!$C$9:$C$13, MATCH($A$3, options,0)))*('Option1 (base case)'!AE41-AE41) -> 506508616.4 | AF69: =(1-INDEX(Data!$C$9:$C$13, MATCH($A$3, options,0)))*('Option1 (base case)'!AF41-AF41) -> 506510117.3 | AG69: =(1-INDEX(Data!$C$9:$C$13, MATCH($A$3, options,0)))*('Option1 (base case)'!AG41-AG41) -> 515646763.2
C71: Capital expenditure
C72: =C14 -> MTC 3rd Tx | G72: =input_dollars -> 2023-12-31 | I72: =-I14 -> -14291649 | J72: 0 | K72: 0 | L72: 0 | M72: 0 | N72: 0 | O72: 0 | P72: 0 | Q72: 0 | R72: 0 | S72: 0 | T72: 0 | U72: 0 | V72: 0 | W72: 0 | X72: 0 | Y72: 0 | Z72: 0 | AA72: 0 | AB72: 0 | AC72: 0 | AD72: 0 | AE72: 0 | AF72: 0 | AG72: 0
C73: =C15 -> BMH Rebuild | G73: =input_dollars -> 2023-12-31 | I73: =-I15 -> -13551742.67 | J73: -13551742.67 | K73: 0 | L73: 0 | M73: 0 | N73: 0 | O73: 0 | P73: 0 | Q73: 0 | R73: 0 | S73: 0 | T73: 0 | U73: 0 | V73: 0 | W73: 0 | X73: 0 | Y73: 0 | Z73: 0 | AA73: 0 | AB73: 0 | AC73: 0 | AD73: 0 | AE73: 0 | AF73: 0 | AG73: 0
C74: =C16 -> PCK Stage 1 | G74: =input_dollars -> 2023-12-31 | I74: =-I16 -> 0 | J74: -5408395.3 | K74: -24286555.6 | L74: -22244579.1 | M74: 0 | N74: 0 | O74: 0 | P74: 0 | Q74: -10425980.33 | R74: 0 | S74: 0 | T74: 0 | U74: 0 | V74: 0 | W74: 0 | X74: 0 | Y74: 0 | Z74: 0 | AA74: 0 | AB74: 0 | AC74: 0 | AD74: 0 | AE74: 0 | AF74: 0 | AG74: 0
C75: =C17 -> New RBE ZSS | G75: =input_dollars -> 2023-12-31 | I75: =-I17 -> 0 | J75: 0 | K75: -5291808.87 | L75: -17564061.24 | M75: -16105016.89 | N75: 0 | O75: 0 | P75: 0 | Q75: 0 | R75: 0 | S75: 0 | T75: 0 | U75: 0 | V75: 0 | W75: 0 | X75: 0 | Y75: 0 | Z75: 0 | AA75: 0 | AB75: 0 | AC75: 0 | AD75: 0 | AE75: 0 | AF75: 0 | AG75: 0
C77: Cumulative capex
C78: =C14 -> MTC 3rd Tx | G78: =input_dollars -> 2023-12-31 | I78: =SUMPRODUCT(($I72:I72))-SUMPRODUCT(($I72:I72)*($I$6:I$6<=(I$6-$E14))) -> -14291649 | J78: =SUMPRODUCT(($I72:J72))-SUMPRODUCT(($I72:J72)*($I$6:J$6<=(J$6-$E14))) -> -14291649 | K78: =SUMPRODUCT(($I72:K72))-SUMPRODUCT(($I72:K72)*($I$6:K$6<=(K$6-$E14))) -> -14291649 | L78: =SUMPRODUCT(($I72:L72))-SUMPRODUCT(($I72:L72)*($I$6:L$6<=(L$6-$E14))) -> -14291649 | M78: =SUMPRODUCT(($I72:M72))-SUMPRODUCT(($I72:M72)*($I$6:M$6<=(M$6-$E14))) -> -14291649 | N78: =SUMPRODUCT(($I72:N72))-SUMPRODUCT(($I72:N72)*($I$6:N$6<=(N$6-$E14))) -> -14291649 | O78: =SUMPRODUCT(($I72:O72))-SUMPRODUCT(($I72:O72)*($I$6:O$6<=(O$6-$E14))) -> -14291649 | P78: =SUMPRODUCT(($I72:P72))-SUMPRODUCT(($I72:P72)*($I$6:P$6<=(P$6-$E14))) -> -14291649 | Q78: =SUMPRODUCT(($I72:Q72))-SUMPRODUCT(($I72:Q72)*($I$6:Q$6<=(Q$6-$E14))) -> -14291649 | R78: =SUMPRODUCT(($I72:R72))-SUMPRODUCT(($I72:R72)*($I$6:R$6<=(R$6-$E14))) -> -14291649 | S78: =SUMPRODUCT(($I72:S72))-SUMPRODUCT(($I72:S72)*($I$6:S$6<=(S$6-$E14))) -> -14291649 | T78: =SUMPRODUCT(($I72:T72))-SUMPRODUCT(($I72:T72)*($I$6:T$6<=(T$6-$E14))) -> -14291649 | U78: =SUMPRODUCT(($I72:U72))-SUMPRODUCT(($I72:U72)*($I$6:U$6<=(U$6-$E14))) -> -14291649 | V78: =SUMPRODUCT(($I72:V72))-SUMPRODUCT(($I72:V72)*($I$6:V$6<=(V$6-$E14))) -> -14291649 | W78: =SUMPRODUCT(($I72:W72))-SUMPRODUCT(($I72:W72)*($I$6:W$6<=(W$6-$E14))) -> -14291649 | X78: =SUMPRODUCT(($I72:X72))-SUMPRODUCT(($I72:X72)*($I$6:X$6<=(X$6-$E14))) -> -14291649 | Y78: =SUMPRODUCT(($I72:Y72))-SUMPRODUCT(($I72:Y72)*($I$6:Y$6<=(Y$6-$E14))) -> -14291649 | Z78: =SUMPRODUCT(($I72:Z72))-SUMPRODUCT(($I72:Z72)*($I$6:Z$6<=(Z$6-$E14))) -> -14291649 | AA78: =SUMPRODUCT(($I72:AA72))-SUMPRODUCT(($I72:AA72)*($I$6:AA$6<=(AA$6-$E14))) -> -14291649 | AB78: =SUMPRODUCT(($I72:AB72))-SUMPRODUCT(($I72:AB72)*($I$6:AB$6<=(AB$6-$E14))) -> -14291649 | AC78: =SUMPRODUCT(($I72:AC72))-SUMPRODUCT(($I72:AC72)*($I$6:AC$6<=(AC$6-$E14))) -> -14291649 | AD78: =SUMPRODUCT(($I72:AD72))-SUMPRODUCT(($I72:AD72)*($I$6:AD$6<=(AD$6-$E14))) -> -14291649 | AE78: =SUMPRODUCT(($I72:AE72))-SUMPRODUCT(($I72:AE72)*($I$6:AE$6<=(AE$6-$E14))) -> -14291649 | AF78: =SUMPRODUCT(($I72:AF72))-SUMPRODUCT(($I72:AF72)*($I$6:AF$6<=(AF$6-$E14))) -> -14291649 | AG78: =SUMPRODUCT(($I72:AG72))-SUMPRODUCT(($I72:AG72)*($I$6:AG$6<=(AG$6-$E14))) -> -14291649
C79: =C16 -> PCK Stage 1 | G79: =input_dollars -> 2023-12-31 | I79: =SUMPRODUCT(($I74:I74))-SUMPRODUCT(($I74:I74)*($I$6:I$6<=(I$6-$E16))) -> 0 | J79: =SUMPRODUCT(($I74:J74))-SUMPRODUCT(($I74:J74)*($I$6:J$6<=(J$6-$E16))) -> -5408395.3 | K79: =SUMPRODUCT(($I74:K74))-SUMPRODUCT(($I74:K74)*($I$6:K$6<=(K$6-$E16))) -> -29694950.9 | L79: =SUMPRODUCT(($I74:L74))-SUMPRODUCT(($I74:L74)*($I$6:L$6<=(L$6-$E16))) -> -51939530 | M79: =SUMPRODUCT(($I74:M74))-SUMPRODUCT(($I74:M74)*($I$6:M$6<=(M$6-$E16))) -> -51939530 | N79: =SUMPRODUCT(($I74:N74))-SUMPRODUCT(($I74:N74)*($I$6:N$6<=(N$6-$E16))) -> -51939530 | O79: =SUMPRODUCT(($I74:O74))-SUMPRODUCT(($I74:O74)*($I$6:O$6<=(O$6-$E16))) -> -51939530 | P79: =SUMPRODUCT(($I74:P74))-SUMPRODUCT(($I74:P74)*($I$6:P$6<=(P$6-$E16))) -> -51939530 | Q79: =SUMPRODUCT(($I74:Q74))-SUMPRODUCT(($I74:Q74)*($I$6:Q$6<=(Q$6-$E16))) -> -62365510.33 | R79: =SUMPRODUCT(($I74:R74))-SUMPRODUCT(($I74:R74)*($I$6:R$6<=(R$6-$E16))) -> -62365510.33 | S79: =SUMPRODUCT(($I74:S74))-SUMPRODUCT(($I74:S74)*($I$6:S$6<=(S$6-$E16))) -> -62365510.33 | T79: =SUMPRODUCT(($I74:T74))-SUMPRODUCT(($I74:T74)*($I$6:T$6<=(T$6-$E16))) -> -62365510.33 | U79: =SUMPRODUCT(($I74:U74))-SUMPRODUCT(($I74:U74)*($I$6:U$6<=(U$6-$E16))) -> -62365510.33 | V79: =SUMPRODUCT(($I74:V74))-SUMPRODUCT(($I74:V74)*($I$6:V$6<=(V$6-$E16))) -> -62365510.33 | W79: =SUMPRODUCT(($I74:W74))-SUMPRODUCT(($I74:W74)*($I$6:W$6<=(W$6-$E16))) -> -62365510.33 | X79: =SUMPRODUCT(($I74:X74))-SUMPRODUCT(($I74:X74)*($I$6:X$6<=(X$6-$E16))) -> -62365510.33 | Y79: =SUMPRODUCT(($I74:Y74))-SUMPRODUCT(($I74:Y74)*($I$6:Y$6<=(Y$6-$E16))) -> -62365510.33 | Z79: =SUMPRODUCT(($I74:Z74))-SUMPRODUCT(($I74:Z74)*($I$6:Z$6<=(Z$6-$E16))) -> -62365510.33 | AA79: =SUMPRODUCT(($I74:AA74))-SUMPRODUCT(($I74:AA74)*($I$6:AA$6<=(AA$6-$E16))) -> -62365510.33 | AB79: =SUMPRODUCT(($I74:AB74))-SUMPRODUCT(($I74:AB74)*($I$6:AB$6<=(AB$6-$E16))) -> -62365510.33 | AC79: =SUMPRODUCT(($I74:AC74))-SUMPRODUCT(($I74:AC74)*($I$6:AC$6<=(AC$6-$E16))) -> -62365510.33 | AD79: =SUMPRODUCT(($I74:AD74))-SUMPRODUCT(($I74:AD74)*($I$6:AD$6<=(AD$6-$E16))) -> -62365510.33 | AE79: =SUMPRODUCT(($I74:AE74))-SUMPRODUCT(($I74:AE74)*($I$6:AE$6<=(AE$6-$E16))) -> -62365510.33 | AF79: =SUMPRODUCT(($I74:AF74))-SUMPRODUCT(($I74:AF74)*($I$6:AF$6<=(AF$6-$E16))) -> -62365510.33 | AG79: =SUMPRODUCT(($I74:AG74))-SUMPRODUCT(($I74:AG74)*($I$6:AG$6<=(AG$6-$E16))) -> -62365510.33
C80: =C17 -> New RBE ZSS | G80: =input_dollars -> 2023-12-31 | I80: =SUMPRODUCT(($I75:I75))-SUMPRODUCT(($I75:I75)*($I$6:I$6<=(I$6-$E17))) -> 0 | J80: =SUMPRODUCT(($I75:J75))-SUMPRODUCT(($I75:J75)*($I$6:J$6<=(J$6-$E17))) -> 0 | K80: =SUMPRODUCT(($I75:K75))-SUMPRODUCT(($I75:K75)*($I$6:K$6<=(K$6-$E17))) -> -5291808.87 | L80: =SUMPRODUCT(($I75:L75))-SUMPRODUCT(($I75:L75)*($I$6:L$6<=(L$6-$E17))) -> -22855870.11 | M80: =SUMPRODUCT(($I75:M75))-SUMPRODUCT(($I75:M75)*($I$6:M$6<=(M$6-$E17))) -> -38960887 | N80: =SUMPRODUCT(($I75:N75))-SUMPRODUCT(($I75:N75)*($I$6:N$6<=(N$6-$E17))) -> -38960887 | O80: =SUMPRODUCT(($I75:O75))-SUMPRODUCT(($I75:O75)*($I$6:O$6<=(O$6-$E17))) -> -38960887 | P80: =SUMPRODUCT(($I75:P75))-SUMPRODUCT(($I75:P75)*($I$6:P$6<=(P$6-$E17))) -> -38960887 | Q80: =SUMPRODUCT(($I75:Q75))-SUMPRODUCT(($I75:Q75)*($I$6:Q$6<=(Q$6-$E17))) -> -38960887 | R80: =SUMPRODUCT(($I75:R75))-SUMPRODUCT(($I75:R75)*($I$6:R$6<=(R$6-$E17))) -> -38960887 | S80: =SUMPRODUCT(($I75:S75))-SUMPRODUCT(($I75:S75)*($I$6:S$6<=(S$6-$E17))) -> -38960887 | T80: =SUMPRODUCT(($I75:T75))-SUMPRODUCT(($I75:T75)*($I$6:T$6<=(T$6-$E17))) -> -38960887 | U80: =SUMPRODUCT(($I75:U75))-SUMPRODUCT(($I75:U75)*($I$6:U$6<=(U$6-$E17))) -> -38960887 | V80: =SUMPRODUCT(($I75:V75))-SUMPRODUCT(($I75:V75)*($I$6:V$6<=(V$6-$E17))) -> -38960887 | W80: =SUMPRODUCT(($I75:W75))-SUMPRODUCT(($I75:W75)*($I$6:W$6<=(W$6-$E17))) -> -38960887 | X80: =SUMPRODUCT(($I75:X75))-SUMPRODUCT(($I75:X75)*($I$6:X$6<=(X$6-$E17))) -> -38960887 | Y80: =SUMPRODUCT(($I75:Y75))-SUMPRODUCT(($I75:Y75)*($I$6:Y$6<=(Y$6-$E17))) -> -38960887 | Z80: =SUMPRODUCT(($I75:Z75))-SUMPRODUCT(($I75:Z75)*($I$6:Z$6<=(Z$6-$E17))) -> -38960887 | AA80: =SUMPRODUCT(($I75:AA75))-SUMPRODUCT(($I75:AA75)*($I$6:AA$6<=(AA$6-$E17))) -> -38960887 | AB80: =SUMPRODUCT(($I75:AB75))-SUMPRODUCT(($I75:AB75)*($I$6:AB$6<=(AB$6-$E17))) -> -38960887 | AC80: =SUMPRODUCT(($I75:AC75))-SUMPRODUCT(($I75:AC75)*($I$6:AC$6<=(AC$6-$E17))) -> -38960887 | AD80: =SUMPRODUCT(($I75:AD75))-SUMPRODUCT(($I75:AD75)*($I$6:AD$6<=(AD$6-$E17))) -> -38960887 | AE80: =SUMPRODUCT(($I75:AE75))-SUMPRODUCT(($I75:AE75)*($I$6:AE$6<=(AE$6-$E17))) -> -38960887 | AF80: =SUMPRODUCT(($I75:AF75))-SUMPRODUCT(($I75:AF75)*($I$6:AF$6<=(AF$6-$E17))) -> -38960887 | AG80: =SUMPRODUCT(($I75:AG75))-SUMPRODUCT(($I75:AG75)*($I$6:AG$6<=(AG$6-$E17))) -> -38960887
C82: Annualised capex
C83: =$C$82&" - "&C14 -> Annualised capex - MTC 3rd Tx | G83: =input_dollars -> 2023-12-31 | I83: =IF($E14=0,0,-PMT(real_disc, $E14,H78,)) -> 0 | J83: -609306.0127 | K83: -609306.0127 | L83: -609306.0127 | M83: -609306.0127 | N83: -609306.0127 | O83: -609306.0127 | P83: -609306.0127 | Q83: -609306.0127 | R83: -609306.0127 | S83: -609306.0127 | T83: -609306.0127 | U83: -609306.0127 | V83: -609306.0127 | W83: -609306.0127 | X83: -609306.0127 | Y83: -609306.0127 | Z83: -609306.0127 | AA83: -609306.0127 | AB83: -609306.0127 | AC83: -609306.0127 | AD83: -609306.0127 | AE83: -609306.0127 | AF83: -609306.0127 | AG83: -609306.0127
C84: =$C$82&" - "&C16 -> Annualised capex - PCK Stage 1 | G84: =input_dollars -> 2023-12-31 | I84: =IF($E16=0,0,-PMT(real_disc, $E16,H79,)) -> 0 | J84: 0 | K84: -230579.9544 | L84: -1266005.912 | M84: -2214374.837 | N84: -2214374.837 | O84: -2214374.837 | P84: -2214374.837 | Q84: -2214374.837 | R84: -2658873.055 | S84: -2658873.055 | T84: -2658873.055 | U84: -2658873.055 | V84: -2658873.055 | W84: -2658873.055 | X84: -2658873.055 | Y84: -2658873.055 | Z84: -2658873.055 | AA84: -2658873.055 | AB84: -2658873.055 | AC84: -2658873.055 | AD84: -2658873.055 | AE84: -2658873.055 | AF84: -2658873.055 | AG84: -2658873.055
C85: =$C$82&" - "&C17 -> Annualised capex - New RBE ZSS | G85: =input_dollars -> 2023-12-31 | I85: =IF($E17=0,0,-PMT(real_disc, $E17,H80,)) -> 0 | J85: 0 | K85: 0 | L85: -225609.4424 | M85: -974430.5282 | N85: -1661047.141 | O85: -1661047.141 | P85: -1661047.141 | Q85: -1661047.141 | R85: -1661047.141 | S85: -1661047.141 | T85: -1661047.141 | U85: -1661047.141 | V85: -1661047.141 | W85: -1661047.141 | X85: -1661047.141 | Y85: -1661047.141 | Z85: -1661047.141 | AA85: -1661047.141 | AB85: -1661047.141 | AC85: -1661047.141 | AD85: -1661047.141 | AE85: -1661047.141 | AF85: -1661047.141 | AG85: -1661047.141
C86: Total annualised capex | G86: =input_dollars -> 2023-12-31 | I86: =SUM(I83:I85) -> 0 | J86: =SUM(J83:J85) -> -609306.0127 | K86: -839885.9671 | L86: -2100921.367 | M86: -3798111.378 | N86: -4484727.991 | O86: -4484727.991 | P86: -4484727.991 | Q86: -4484727.991 | R86: -4929226.208 | S86: -4929226.208 | T86: -4929226.208 | U86: -4929226.208 | V86: -4929226.208 | W86: -4929226.208 | X86: -4929226.208 | Y86: -4929226.208 | Z86: -4929226.208 | AA86: -4929226.208 | AB86: -4929226.208 | AC86: =SUM(AC83:AC85) -> -4929226.208 | AD86: =SUM(AD83:AD85) -> -4929226.208 | AE86: =SUM(AE83:AE85) -> -4929226.208 | AF86: =SUM(AF83:AF85) -> -4929226.208 | AG86: =SUM(AG83:AG85) -> -4929226.208
C88: Annualised capex | G88: =input_dollars -> 2023-12-31 | I88: =I86 -> 0 | J88: =J86 -> -609306.0127 | K88: -839885.9671 | L88: -2100921.367 | M88: -3798111.378 | N88: -4484727.991 | O88: -4484727.991 | P88: -4484727.991 | Q88: -4484727.991 | R88: -4929226.208 | S88: -4929226.208 | T88: -4929226.208 | U88: -4929226.208 | V88: -4929226.208 | W88: -4929226.208 | X88: -4929226.208 | Y88: -4929226.208 | Z88: -4929226.208 | AA88: -4929226.208 | AB88: -4929226.208 | AC88: =AC86 -> -4929226.208 | AD88: =AD86 -> -4929226.208 | AE88: =AE86 -> -4929226.208 | AF88: =AF86 -> -4929226.208 | AG88: =AG86 -> -4929226.208
C89: Operating expenditure | G89: 2023-12-31 | I89: =-I20 -> 0 | J89: 0 | K89: 0 | L89: 0 | M89: 0 | N89: 0 | O89: 0 | P89: 0 | Q89: 0 | R89: 0 | S89: 0 | T89: 0 | U89: 0 | V89: 0 | W89: 0 | X89: 0 | Y89: 0 | Z89: 0 | AA89: 0 | AB89: 0 | AC89: 0 | AD89: 0 | AE89: 0 | AF89: 0 | AG89: 0
C90: Risk mitigated | G90: 2023-12-31 | I90: =I69 -> 0 | J90: =J69 -> 6892644.784 | K90: 14592907.16 | L90: 22090213.3 | M90: 44221736.51 | N90: 96249176.58 | O90: 190053940.4 | P90: 328904199.3 | Q90: 506487477.8 | R90: 506489961.3 | S90: 506491350 | T90: 506492716.5 | U90: 506494090.5 | V90: 506495513.1 | W90: 506496889.4 | X90: 506498324.6 | Y90: 506499753.4 | Z90: 506501247.2 | AA90: 506502626.2 | AB90: 506504122.5 | AC90: =AC69 -> 506505618.8 | AD90: =AD69 -> 506507117.9 | AE90: =AE69 -> 506508616.4 | AF90: =AF69 -> 506510117.3 | AG90: =AG69 -> 515646763.2
C91: Other benefits value | G91: 2023-12-31 | I91: =I62 -> 0 | J91: 0 | K91: 0 | L91: 0 | M91: 0 | N91: 0 | O91: 0 | P91: 0 | Q91: 0 | R91: 0 | S91: 0 | T91: 0 | U91: 0 | V91: 0 | W91: 0 | X91: 0 | Y91: 0 | Z91: 0 | AA91: 0 | AB91: 0 | AC91: 0 | AD91: 0 | AE91: 0 | AF91: 0 | AG91: 0
C93: Net benefits | G93: 2023-12-31 | I93: =SUM(I88:I92) -> 0 | J93: 6283338.771 | K93: 13753021.19 | L93: 19989291.93 | M93: 40423625.13 | N93: 91764448.59 | O93: 185569212.4 | P93: 324419471.4 | Q93: 502002749.8 | R93: 501560735.1 | S93: 501562123.8 | T93: 501563490.3 | U93: 501564864.3 | V93: 501566286.8 | W93: 501567663.2 | X93: 501569098.3 | Y93: 501570527.2 | Z93: 501572021 | AA93: 501573400 | AB93: 501574896.3 | AC93: =SUM(AC88:AC92) -> 501576392.6 | AD93: =SUM(AD88:AD92) -> 501577891.7 | AE93: =SUM(AE88:AE92) -> 501579390.2 | AF93: =SUM(AF88:AF92) -> 501580891.1 | AG93: =SUM(AG88:AG92) -> 510717537
C96: First capex year | G96: =IF(SUM($I18:$AG18)=0,0,(INDEX(I$6:AG$6,MATCH(TRUE,INDEX($I18:$AG18<>0,),0)))) -> 1
C98: First year | G98: =IF(_xlfn.MINIFS($G$96:$G$97, $G$96:$G$97, ">"&0)=0, $A$4, _xlfn.MINIFS($G$96:$G$97, $G$96:$G$97, ">"&0)) -> 1
A108: SENSITIVITIES
A112: NPV | C112: Net benefits | G112: =PROPER($A$3)&A112 -> Option 2NPV | I112: =I93 -> 0 | J112: =J93 -> 6283338.771 | K112: 13753021.19 | L112: 19989291.93 | M112: 40423625.13 | N112: 91764448.59 | O112: 185569212.4 | P112: 324419471.4 | Q112: 502002749.8 | R112: 501560735.1 | S112: 501562123.8 | T112: 501563490.3 | U112: 501564864.3 | V112: 501566286.8 | W112: 501567663.2 | X112: 501569098.3 | Y112: 501570527.2 | Z112: 501572021 | AA112: 501573400 | AB112: 501574896.3 | AC112: 501576392.6 | AD112: 501577891.7 | AE112: 501579390.2 | AF112: 501580891.1 | AG112: 510717537
C113: Total annualised capex | I113: =I88 -> 0 | J113: =J88 -> -609306.0127 | K113: -839885.9671 | L113: -2100921.367 | M113: -3798111.378 | N113: -4484727.991 | O113: -4484727.991 | P113: -4484727.991 | Q113: -4484727.991 | R113: -4929226.208 | S113: -4929226.208 | T113: -4929226.208 | U113: -4929226.208 | V113: -4929226.208 | W113: -4929226.208 | X113: -4929226.208 | Y113: -4929226.208 | Z113: -4929226.208 | AA113: -4929226.208 | AB113: -4929226.208 | AC113: -4929226.208 | AD113: -4929226.208 | AE113: -4929226.208 | AF113: -4929226.208 | AG113: -4929226.208
C114: Total benefits | I114: =SUM(I90:I91) -> 0 | J114: =SUM(J90:J91) -> 6892644.784 | K114: 14592907.16 | L114: 22090213.3 | M114: 44221736.51 | N114: 96249176.58 | O114: 190053940.4 | P114: 328904199.3 | Q114: 506487477.8 | R114: 506489961.3 | S114: 506491350 | T114: 506492716.5 | U114: 506494090.5 | V114: 506495513.1 | W114: 506496889.4 | X114: 506498324.6 | Y114: 506499753.4 | Z114: 506501247.2 | AA114: 506502626.2 | AB114: 506504122.5 | AC114: 506505618.8 | AD114: 506507117.9 | AE114: 506508616.4 | AF114: 506510117.3 | AG114: 515646763.2
D115: =Assumptions!G110 -> Capex | E115: =Assumptions!H110 -> Total benefits
A116: ="sens"&Assumptions!B111 -> sens1 | C116: =Assumptions!C111 -> Capex 10% higher | D116: =Assumptions!G111 -> 0.1 | E116: =Assumptions!H111 -> 0 | G116: =PROPER($A$3)&A116 -> Option 2sens1 | I116: =I$112+IF($C116<>0,SUMPRODUCT((I$113:I$114)*TRANSPOSE(($D116:$E116))),0) -> 0 | J116: =J$112+IF($C116<>0,SUMPRODUCT((J$113:J$114)*TRANSPOSE(($D116:$E116))),0) -> 6222408.17 | K116: =K$112+IF($C116<>0,SUMPRODUCT((K$113:K$114)*TRANSPOSE(($D116:$E116))),0) -> 13669032.6 | L116: =L$112+IF($C116<>0,SUMPRODUCT((L$113:L$114)*TRANSPOSE(($D116:$E116))),0) -> 19779199.79 | M116: =M$112+IF($C116<>0,SUMPRODUCT((M$113:M$114)*TRANSPOSE(($D116:$E116))),0) -> 40043813.99 | N116: =N$112+IF($C116<>0,SUMPRODUCT((N$113:N$114)*TRANSPOSE(($D116:$E116))),0) -> 91315975.79 | O116: =O$112+IF($C116<>0,SUMPRODUCT((O$113:O$114)*TRANSPOSE(($D116:$E116))),0) -> 185120739.6 | P116: =P$112+IF($C116<>0,SUMPRODUCT((P$113:P$114)*TRANSPOSE(($D116:$E116))),0) -> 323970998.6 | Q116: =Q$112+IF($C116<>0,SUMPRODUCT((Q$113:Q$114)*TRANSPOSE(($D116:$E116))),0) -> 501554277 | R116: =R$112+IF($C116<>0,SUMPRODUCT((R$113:R$114)*TRANSPOSE(($D116:$E116))),0) -> 501067812.5 | S116: =S$112+IF($C116<>0,SUMPRODUCT((S$113:S$114)*TRANSPOSE(($D116:$E116))),0) -> 501069201.1 | T116: =T$112+IF($C116<>0,SUMPRODUCT((T$113:T$114)*TRANSPOSE(($D116:$E116))),0) -> 501070567.7 | U116: =U$112+IF($C116<>0,SUMPRODUCT((U$113:U$114)*TRANSPOSE(($D116:$E116))),0) -> 501071941.6 | V116: =V$112+IF($C116<>0,SUMPRODUCT((V$113:V$114)*TRANSPOSE(($D116:$E116))),0) -> 501073364.2 | W116: =W$112+IF($C116<>0,SUMPRODUCT((W$113:W$114)*TRANSPOSE(($D116:$E116))),0) -> 501074740.6 | X116: =X$112+IF($C116<>0,SUMPRODUCT((X$113:X$114)*TRANSPOSE(($D116:$E116))),0) -> 501076175.7 | Y116: =Y$112+IF($C116<>0,SUMPRODUCT((Y$113:Y$114)*TRANSPOSE(($D116:$E116))),0) -> 501077604.6 | Z116: =Z$112+IF($C116<>0,SUMPRODUCT((Z$113:Z$114)*TRANSPOSE(($D116:$E116))),0) -> 501079098.3 | AA116: =AA$112+IF($C116<>0,SUMPRODUCT((AA$113:AA$114)*TRANSPOSE(($D116:$E116))),0) -> 501080477.4 | AB116: =AB$112+IF($C116<>0,SUMPRODUCT((AB$113:AB$114)*TRANSPOSE(($D116:$E116))),0) -> 501081973.7 | AC116: =AC$112+IF($C116<>0,SUMPRODUCT((AC$113:AC$114)*TRANSPOSE(($D116:$E116))),0) -> 501083470 | AD116: =AD$112+IF($C116<>0,SUMPRODUCT((AD$113:AD$114)*TRANSPOSE(($D116:$E116))),0) -> 501084969.1 | AE116: =AE$112+IF($C116<>0,SUMPRODUCT((AE$113:AE$114)*TRANSPOSE(($D116:$E116))),0) -> 501086467.5 | AF116: =AF$112+IF($C116<>0,SUMPRODUCT((AF$113:AF$114)*TRANSPOSE(($D116:$E116))),0) -> 501087968.5 | AG116: =AG$112+IF($C116<>0,SUMPRODUCT((AG$113:AG$114)*TRANSPOSE(($D116:$E116))),0) -> 510224614.4
A117: ="sens"&Assumptions!B112 -> sens2 | C117: =Assumptions!C112 -> Capex 10% lower | D117: =Assumptions!G112 -> -0.1 | E117: =Assumptions!H112 -> 0 | G117: =PROPER($A$3)&A117 -> Option 2sens2 | I117: =I$112+IF($C117<>0,SUMPRODUCT((I$113:I$114)*TRANSPOSE(($D117:$E117))),0) -> 0 | J117: =J$112+IF($C117<>0,SUMPRODUCT((J$113:J$114)*TRANSPOSE(($D117:$E117))),0) -> 6344269.373 | K117: =K$112+IF($C117<>0,SUMPRODUCT((K$113:K$114)*TRANSPOSE(($D117:$E117))),0) -> 13837009.79 | L117: =L$112+IF($C117<>0,SUMPRODUCT((L$113:L$114)*TRANSPOSE(($D117:$E117))),0) -> 20199384.07 | M117: =M$112+IF($C117<>0,SUMPRODUCT((M$113:M$114)*TRANSPOSE(($D117:$E117))),0) -> 40803436.27 | N117: =N$112+IF($C117<>0,SUMPRODUCT((N$113:N$114)*TRANSPOSE(($D117:$E117))),0) -> 92212921.39 | O117: =O$112+IF($C117<>0,SUMPRODUCT((O$113:O$114)*TRANSPOSE(($D117:$E117))),0) -> 186017685.2 | P117: =P$112+IF($C117<>0,SUMPRODUCT((P$113:P$114)*TRANSPOSE(($D117:$E117))),0) -> 324867944.2 | Q117: =Q$112+IF($C117<>0,SUMPRODUCT((Q$113:Q$114)*TRANSPOSE(($D117:$E117))),0) -> 502451222.6 | R117: =R$112+IF($C117<>0,SUMPRODUCT((R$113:R$114)*TRANSPOSE(($D117:$E117))),0) -> 502053657.8 | S117: =S$112+IF($C117<>0,SUMPRODUCT((S$113:S$114)*TRANSPOSE(($D117:$E117))),0) -> 502055046.4 | T117: =T$112+IF($C117<>0,SUMPRODUCT((T$113:T$114)*TRANSPOSE(($D117:$E117))),0) -> 502056412.9 | U117: =U$112+IF($C117<>0,SUMPRODUCT((U$113:U$114)*TRANSPOSE(($D117:$E117))),0) -> 502057786.9 | V117: =V$112+IF($C117<>0,SUMPRODUCT((V$113:V$114)*TRANSPOSE(($D117:$E117))),0) -> 502059209.5 | W117: =W$112+IF($C117<>0,SUMPRODUCT((W$113:W$114)*TRANSPOSE(($D117:$E117))),0) -> 502060585.9 | X117: =X$112+IF($C117<>0,SUMPRODUCT((X$113:X$114)*TRANSPOSE(($D117:$E117))),0) -> 502062021 | Y117: =Y$112+IF($C117<>0,SUMPRODUCT((Y$113:Y$114)*TRANSPOSE(($D117:$E117))),0) -> 502063449.8 | Z117: =Z$112+IF($C117<>0,SUMPRODUCT((Z$113:Z$114)*TRANSPOSE(($D117:$E117))),0) -> 502064943.6 | AA117: =AA$112+IF($C117<>0,SUMPRODUCT((AA$113:AA$114)*TRANSPOSE(($D117:$E117))),0) -> 502066322.6 | AB117: =AB$112+IF($C117<>0,SUMPRODUCT((AB$113:AB$114)*TRANSPOSE(($D117:$E117))),0) -> 502067818.9 | AC117: =AC$112+IF($C117<>0,SUMPRODUCT((AC$113:AC$114)*TRANSPOSE(($D117:$E117))),0) -> 502069315.2 | AD117: =AD$112+IF($C117<>0,SUMPRODUCT((AD$113:AD$114)*TRANSPOSE(($D117:$E117))),0) -> 502070814.3 | AE117: =AE$112+IF($C117<>0,SUMPRODUCT((AE$113:AE$114)*TRANSPOSE(($D117:$E117))),0) -> 502072312.8 | AF117: =AF$112+IF($C117<>0,SUMPRODUCT((AF$113:AF$114)*TRANSPOSE(($D117:$E117))),0) -> 502073813.7 | AG117: =AG$112+IF($C117<>0,SUMPRODUCT((AG$113:AG$114)*TRANSPOSE(($D117:$E117))),0) -> 511210459.6
A118: ="sens"&Assumptions!B113 -> sens3 | C118: =Assumptions!C113 -> Total benefits 10% higher | D118: =Assumptions!G113 -> 0 | E118: =Assumptions!H113 -> 0.1 | G118: Option 2sens3 | I118: =I$112+IF($C118<>0,SUMPRODUCT((I$113:I$114)*TRANSPOSE(($D118:$E118))),0) -> 0 | J118: =J$112+IF($C118<>0,SUMPRODUCT((J$113:J$114)*TRANSPOSE(($D118:$E118))),0) -> 6972603.25 | K118: =K$112+IF($C118<>0,SUMPRODUCT((K$113:K$114)*TRANSPOSE(($D118:$E118))),0) -> 15212311.91 | L118: =L$112+IF($C118<>0,SUMPRODUCT((L$113:L$114)*TRANSPOSE(($D118:$E118))),0) -> 22198313.26 | M118: =M$112+IF($C118<>0,SUMPRODUCT((M$113:M$114)*TRANSPOSE(($D118:$E118))),0) -> 44845798.78 | N118: =N$112+IF($C118<>0,SUMPRODUCT((N$113:N$114)*TRANSPOSE(($D118:$E118))),0) -> 101389366.2 | O118: =O$112+IF($C118<>0,SUMPRODUCT((O$113:O$114)*TRANSPOSE(($D118:$E118))),0) -> 204574606.4 | P118: =P$112+IF($C118<>0,SUMPRODUCT((P$113:P$114)*TRANSPOSE(($D118:$E118))),0) -> 357309891.3 | Q118: =Q$112+IF($C118<>0,SUMPRODUCT((Q$113:Q$114)*TRANSPOSE(($D118:$E118))),0) -> 552651497.6 | R118: =R$112+IF($C118<>0,SUMPRODUCT((R$113:R$114)*TRANSPOSE(($D118:$E118))),0) -> 552209731.3 | S118: =S$112+IF($C118<>0,SUMPRODUCT((S$113:S$114)*TRANSPOSE(($D118:$E118))),0) -> 552211258.7 | T118: =T$112+IF($C118<>0,SUMPRODUCT((T$113:T$114)*TRANSPOSE(($D118:$E118))),0) -> 552212762 | U118: =U$112+IF($C118<>0,SUMPRODUCT((U$113:U$114)*TRANSPOSE(($D118:$E118))),0) -> 552214273.3 | V118: =V$112+IF($C118<>0,SUMPRODUCT((V$113:V$114)*TRANSPOSE(($D118:$E118))),0) -> 552215838.1 | W118: =W$112+IF($C118<>0,SUMPRODUCT((W$113:W$114)*TRANSPOSE(($D118:$E118))),0) -> 552217352.2 | X118: =X$112+IF($C118<>0,SUMPRODUCT((X$113:X$114)*TRANSPOSE(($D118:$E118))),0) -> 552218930.8 | Y118: =Y$112+IF($C118<>0,SUMPRODUCT((Y$113:Y$114)*TRANSPOSE(($D118:$E118))),0) -> 552220502.6 | Z118: =Z$112+IF($C118<>0,SUMPRODUCT((Z$113:Z$114)*TRANSPOSE(($D118:$E118))),0) -> 552222145.7 | AA118: =AA$112+IF($C118<>0,SUMPRODUCT((AA$113:AA$114)*TRANSPOSE(($D118:$E118))),0) -> 552223662.7 | AB118: =AB$112+IF($C118<>0,SUMPRODUCT((AB$113:AB$114)*TRANSPOSE(($D118:$E118))),0) -> 552225308.5 | AC118: =AC$112+IF($C118<>0,SUMPRODUCT((AC$113:AC$114)*TRANSPOSE(($D118:$E118))),0) -> 552226954.5 | AD118: =AD$112+IF($C118<>0,SUMPRODUCT((AD$113:AD$114)*TRANSPOSE(($D118:$E118))),0) -> 552228603.5 | AE118: =AE$112+IF($C118<>0,SUMPRODUCT((AE$113:AE$114)*TRANSPOSE(($D118:$E118))),0) -> 552230251.8 | AF118: =AF$112+IF($C118<>0,SUMPRODUCT((AF$113:AF$114)*TRANSPOSE(($D118:$E118))),0) -> 552231902.8 | AG118: =AG$112+IF($C118<>0,SUMPRODUCT((AG$113:AG$114)*TRANSPOSE(($D118:$E118))),0) -> 562282213.3
A119: ="sens"&Assumptions!B114 -> sens4 | C119: =Assumptions!C114 -> Total benefits 10% lower | D119: =Assumptions!G114 -> 0 | E119: =Assumptions!H114 -> -0.1 | G119: Option 2sens4 | I119: =I$112+IF($C119<>0,SUMPRODUCT((I$113:I$114)*TRANSPOSE(($D119:$E119))),0) -> 0 | J119: =J$112+IF($C119<>0,SUMPRODUCT((J$113:J$114)*TRANSPOSE(($D119:$E119))),0) -> 5594074.293 | K119: =K$112+IF($C119<>0,SUMPRODUCT((K$113:K$114)*TRANSPOSE(($D119:$E119))),0) -> 12293730.48 | L119: =L$112+IF($C119<>0,SUMPRODUCT((L$113:L$114)*TRANSPOSE(($D119:$E119))),0) -> 17780270.6 | M119: =M$112+IF($C119<>0,SUMPRODUCT((M$113:M$114)*TRANSPOSE(($D119:$E119))),0) -> 36001451.48 | N119: =N$112+IF($C119<>0,SUMPRODUCT((N$113:N$114)*TRANSPOSE(($D119:$E119))),0) -> 82139530.93 | O119: =O$112+IF($C119<>0,SUMPRODUCT((O$113:O$114)*TRANSPOSE(($D119:$E119))),0) -> 166563818.4 | P119: =P$112+IF($C119<>0,SUMPRODUCT((P$113:P$114)*TRANSPOSE(($D119:$E119))),0) -> 291529051.4 | Q119: =Q$112+IF($C119<>0,SUMPRODUCT((Q$113:Q$114)*TRANSPOSE(($D119:$E119))),0) -> 451354002 | R119: =R$112+IF($C119<>0,SUMPRODUCT((R$113:R$114)*TRANSPOSE(($D119:$E119))),0) -> 450911739 | S119: =S$112+IF($C119<>0,SUMPRODUCT((S$113:S$114)*TRANSPOSE(($D119:$E119))),0) -> 450912988.8 | T119: =T$112+IF($C119<>0,SUMPRODUCT((T$113:T$114)*TRANSPOSE(($D119:$E119))),0) -> 450914218.7 | U119: =U$112+IF($C119<>0,SUMPRODUCT((U$113:U$114)*TRANSPOSE(($D119:$E119))),0) -> 450915455.2 | V119: =V$112+IF($C119<>0,SUMPRODUCT((V$113:V$114)*TRANSPOSE(($D119:$E119))),0) -> 450916735.5 | W119: =W$112+IF($C119<>0,SUMPRODUCT((W$113:W$114)*TRANSPOSE(($D119:$E119))),0) -> 450917974.3 | X119: =X$112+IF($C119<>0,SUMPRODUCT((X$113:X$114)*TRANSPOSE(($D119:$E119))),0) -> 450919265.9 | Y119: =Y$112+IF($C119<>0,SUMPRODUCT((Y$113:Y$114)*TRANSPOSE(($D119:$E119))),0) -> 450920551.9 | Z119: =Z$112+IF($C119<>0,SUMPRODUCT((Z$113:Z$114)*TRANSPOSE(($D119:$E119))),0) -> 450921896.3 | AA119: =AA$112+IF($C119<>0,SUMPRODUCT((AA$113:AA$114)*TRANSPOSE(($D119:$E119))),0) -> 450923137.4 | AB119: =AB$112+IF($C119<>0,SUMPRODUCT((AB$113:AB$114)*TRANSPOSE(($D119:$E119))),0) -> 450924484 | AC119: =AC$112+IF($C119<>0,SUMPRODUCT((AC$113:AC$114)*TRANSPOSE(($D119:$E119))),0) -> 450925830.7 | AD119: =AD$112+IF($C119<>0,SUMPRODUCT((AD$113:AD$114)*TRANSPOSE(($D119:$E119))),0) -> 450927179.9 | AE119: =AE$112+IF($C119<>0,SUMPRODUCT((AE$113:AE$114)*TRANSPOSE(($D119:$E119))),0) -> 450928528.5 | AF119: =AF$112+IF($C119<>0,SUMPRODUCT((AF$113:AF$114)*TRANSPOSE(($D119:$E119))),0) -> 450929879.4 | AG119: =AG$112+IF($C119<>0,SUMPRODUCT((AG$113:AG$114)*TRANSPOSE(($D119:$E119))),0) -> 459152860.7
A120: ="sens"&Assumptions!B115 -> sens5 | C120: =Assumptions!C115 -> Capex 10% higher & Total benefits 10% lower | D120: =Assumptions!G115 -> 0.1 | E120: =Assumptions!H115 -> -0.1 | G120: Option 2sens5 | I120: =I$112+IF($C120<>0,SUMPRODUCT((I$113:I$114)*TRANSPOSE(($D120:$E120))),0) -> 0 | J120: =J$112+IF($C120<>0,SUMPRODUCT((J$113:J$114)*TRANSPOSE(($D120:$E120))),0) -> 5533143.692 | K120: =K$112+IF($C120<>0,SUMPRODUCT((K$113:K$114)*TRANSPOSE(($D120:$E120))),0) -> 12209741.88 | L120: =L$112+IF($C120<>0,SUMPRODUCT((L$113:L$114)*TRANSPOSE(($D120:$E120))),0) -> 17570178.46 | M120: =M$112+IF($C120<>0,SUMPRODUCT((M$113:M$114)*TRANSPOSE(($D120:$E120))),0) -> 35621640.34 | N120: =N$112+IF($C120<>0,SUMPRODUCT((N$113:N$114)*TRANSPOSE(($D120:$E120))),0) -> 81691058.13 | O120: =O$112+IF($C120<>0,SUMPRODUCT((O$113:O$114)*TRANSPOSE(($D120:$E120))),0) -> 166115345.6 | P120: =P$112+IF($C120<>0,SUMPRODUCT((P$113:P$114)*TRANSPOSE(($D120:$E120))),0) -> 291080578.6 | Q120: =Q$112+IF($C120<>0,SUMPRODUCT((Q$113:Q$114)*TRANSPOSE(($D120:$E120))),0) -> 450905529.2 | R120: =R$112+IF($C120<>0,SUMPRODUCT((R$113:R$114)*TRANSPOSE(($D120:$E120))),0) -> 450418816.4 | S120: =S$112+IF($C120<>0,SUMPRODUCT((S$113:S$114)*TRANSPOSE(($D120:$E120))),0) -> 450420066.1 | T120: =T$112+IF($C120<>0,SUMPRODUCT((T$113:T$114)*TRANSPOSE(($D120:$E120))),0) -> 450421296 | U120: =U$112+IF($C120<>0,SUMPRODUCT((U$113:U$114)*TRANSPOSE(($D120:$E120))),0) -> 450422532.6 | V120: =V$112+IF($C120<>0,SUMPRODUCT((V$113:V$114)*TRANSPOSE(($D120:$E120))),0) -> 450423812.9 | W120: =W$112+IF($C120<>0,SUMPRODUCT((W$113:W$114)*TRANSPOSE(($D120:$E120))),0) -> 450425051.7 | X120: =X$112+IF($C120<>0,SUMPRODUCT((X$113:X$114)*TRANSPOSE(($D120:$E120))),0) -> 450426343.3 | Y120: =Y$112+IF($C120<>0,SUMPRODUCT((Y$113:Y$114)*TRANSPOSE(($D120:$E120))),0) -> 450427629.3 | Z120: =Z$112+IF($C120<>0,SUMPRODUCT((Z$113:Z$114)*TRANSPOSE(($D120:$E120))),0) -> 450428973.6 | AA120: =AA$112+IF($C120<>0,SUMPRODUCT((AA$113:AA$114)*TRANSPOSE(($D120:$E120))),0) -> 450430214.8 | AB120: =AB$112+IF($C120<>0,SUMPRODUCT((AB$113:AB$114)*TRANSPOSE(($D120:$E120))),0) -> 450431561.4 | AC120: =AC$112+IF($C120<>0,SUMPRODUCT((AC$113:AC$114)*TRANSPOSE(($D120:$E120))),0) -> 450432908.1 | AD120: =AD$112+IF($C120<>0,SUMPRODUCT((AD$113:AD$114)*TRANSPOSE(($D120:$E120))),0) -> 450434257.3 | AE120: =AE$112+IF($C120<>0,SUMPRODUCT((AE$113:AE$114)*TRANSPOSE(($D120:$E120))),0) -> 450435605.9 | AF120: =AF$112+IF($C120<>0,SUMPRODUCT((AF$113:AF$114)*TRANSPOSE(($D120:$E120))),0) -> 450436956.8 | AG120: =AG$112+IF($C120<>0,SUMPRODUCT((AG$113:AG$114)*TRANSPOSE(($D120:$E120))),0) -> 458659938
A121: ="sens"&Assumptions!B116 -> sens | C121: =Assumptions!C116 -> 0 | D121: =Assumptions!G116 -> 0 | E121: =Assumptions!H116 -> 0 | G121: Option 2sens | I121: =I$112+IF($C121<>0,SUMPRODUCT((I$113:I$114)*TRANSPOSE(($D121:$E121))),0) -> 0 | J121: =J$112+IF($C121<>0,SUMPRODUCT((J$113:J$114)*TRANSPOSE(($D121:$E121))),0) -> 6283338.771 | K121: =K$112+IF($C121<>0,SUMPRODUCT((K$113:K$114)*TRANSPOSE(($D121:$E121))),0) -> 13753021.19 | L121: =L$112+IF($C121<>0,SUMPRODUCT((L$113:L$114)*TRANSPOSE(($D121:$E121))),0) -> 19989291.93 | M121: =M$112+IF($C121<>0,SUMPRODUCT((M$113:M$114)*TRANSPOSE(($D121:$E121))),0) -> 40423625.13 | N121: =N$112+IF($C121<>0,SUMPRODUCT((N$113:N$114)*TRANSPOSE(($D121:$E121))),0) -> 91764448.59 | O121: =O$112+IF($C121<>0,SUMPRODUCT((O$113:O$114)*TRANSPOSE(($D121:$E121))),0) -> 185569212.4 | P121: =P$112+IF($C121<>0,SUMPRODUCT((P$113:P$114)*TRANSPOSE(($D121:$E121))),0) -> 324419471.4 | Q121: =Q$112+IF($C121<>0,SUMPRODUCT((Q$113:Q$114)*TRANSPOSE(($D121:$E121))),0) -> 502002749.8 | R121: =R$112+IF($C121<>0,SUMPRODUCT((R$113:R$114)*TRANSPOSE(($D121:$E121))),0) -> 501560735.1 | S121: =S$112+IF($C121<>0,SUMPRODUCT((S$113:S$114)*TRANSPOSE(($D121:$E121))),0) -> 501562123.8 | T121: =T$112+IF($C121<>0,SUMPRODUCT((T$113:T$114)*TRANSPOSE(($D121:$E121))),0) -> 501563490.3 | U121: =U$112+IF($C121<>0,SUMPRODUCT((U$113:U$114)*TRANSPOSE(($D121:$E121))),0) -> 501564864.3 | V121: =V$112+IF($C121<>0,SUMPRODUCT((V$113:V$114)*TRANSPOSE(($D121:$E121))),0) -> 501566286.8 | W121: =W$112+IF($C121<>0,SUMPRODUCT((W$113:W$114)*TRANSPOSE(($D121:$E121))),0) -> 501567663.2 | X121: =X$112+IF($C121<>0,SUMPRODUCT((X$113:X$114)*TRANSPOSE(($D121:$E121))),0) -> 501569098.3 | Y121: =Y$112+IF($C121<>0,SUMPRODUCT((Y$113:Y$114)*TRANSPOSE(($D121:$E121))),0) -> 501570527.2 | Z121: =Z$112+IF($C121<>0,SUMPRODUCT((Z$113:Z$114)*TRANSPOSE(($D121:$E121))),0) -> 501572021 | AA121: =AA$112+IF($C121<>0,SUMPRODUCT((AA$113:AA$114)*TRANSPOSE(($D121:$E121))),0) -> 501573400 | AB121: =AB$112+IF($C121<>0,SUMPRODUCT((AB$113:AB$114)*TRANSPOSE(($D121:$E121))),0) -> 501574896.3 | AC121: =AC$112+IF($C121<>0,SUMPRODUCT((AC$113:AC$114)*TRANSPOSE(($D121:$E121))),0) -> 501576392.6 | AD121: =AD$112+IF($C121<>0,SUMPRODUCT((AD$113:AD$114)*TRANSPOSE(($D121:$E121))),0) -> 501577891.7 | AE121: =AE$112+IF($C121<>0,SUMPRODUCT((AE$113:AE$114)*TRANSPOSE(($D121:$E121))),0) -> 501579390.2 | AF121: =AF$112+IF($C121<>0,SUMPRODUCT((AF$113:AF$114)*TRANSPOSE(($D121:$E121))),0) -> 501580891.1 | AG121: =AG$112+IF($C121<>0,SUMPRODUCT((AG$113:AG$114)*TRANSPOSE(($D121:$E121))),0) -> 510717537
A122: ="sens"&Assumptions!B117 -> sens | C122: =Assumptions!C117 -> 0 | D122: =Assumptions!G117 -> 0 | E122: =Assumptions!H117 -> 0 | G122: Option 2sens | I122: =I$112+IF($C122<>0,SUMPRODUCT((I$113:I$114)*TRANSPOSE(($D122:$E122))),0) -> 0 | J122: =J$112+IF($C122<>0,SUMPRODUCT((J$113:J$114)*TRANSPOSE(($D122:$E122))),0) -> 6283338.771 | K122: =K$112+IF($C122<>0,SUMPRODUCT((K$113:K$114)*TRANSPOSE(($D122:$E122))),0) -> 13753021.19 | L122: =L$112+IF($C122<>0,SUMPRODUCT((L$113:L$114)*TRANSPOSE(($D122:$E122))),0) -> 19989291.93 | M122: =M$112+IF($C122<>0,SUMPRODUCT((M$113:M$114)*TRANSPOSE(($D122:$E122))),0) -> 40423625.13 | N122: =N$112+IF($C122<>0,SUMPRODUCT((N$113:N$114)*TRANSPOSE(($D122:$E122))),0) -> 91764448.59 | O122: =O$112+IF($C122<>0,SUMPRODUCT((O$113:O$114)*TRANSPOSE(($D122:$E122))),0) -> 185569212.4 | P122: =P$112+IF($C122<>0,SUMPRODUCT((P$113:P$114)*TRANSPOSE(($D122:$E122))),0) -> 324419471.4 | Q122: =Q$112+IF($C122<>0,SUMPRODUCT((Q$113:Q$114)*TRANSPOSE(($D122:$E122))),0) -> 502002749.8 | R122: =R$112+IF($C122<>0,SUMPRODUCT((R$113:R$114)*TRANSPOSE(($D122:$E122))),0) -> 501560735.1 | S122: =S$112+IF($C122<>0,SUMPRODUCT((S$113:S$114)*TRANSPOSE(($D122:$E122))),0) -> 501562123.8 | T122: =T$112+IF($C122<>0,SUMPRODUCT((T$113:T$114)*TRANSPOSE(($D122:$E122))),0) -> 501563490.3 | U122: =U$112+IF($C122<>0,SUMPRODUCT((U$113:U$114)*TRANSPOSE(($D122:$E122))),0) -> 501564864.3 | V122: =V$112+IF($C122<>0,SUMPRODUCT((V$113:V$114)*TRANSPOSE(($D122:$E122))),0) -> 501566286.8 | W122: =W$112+IF($C122<>0,SUMPRODUCT((W$113:W$114)*TRANSPOSE(($D122:$E122))),0) -> 501567663.2 | X122: =X$112+IF($C122<>0,SUMPRODUCT((X$113:X$114)*TRANSPOSE(($D122:$E122))),0) -> 501569098.3 | Y122: =Y$112+IF($C122<>0,SUMPRODUCT((Y$113:Y$114)*TRANSPOSE(($D122:$E122))),0) -> 501570527.2 | Z122: =Z$112+IF($C122<>0,SUMPRODUCT((Z$113:Z$114)*TRANSPOSE(($D122:$E122))),0) -> 501572021 | AA122: =AA$112+IF($C122<>0,SUMPRODUCT((AA$113:AA$114)*TRANSPOSE(($D122:$E122))),0) -> 501573400 | AB122: =AB$112+IF($C122<>0,SUMPRODUCT((AB$113:AB$114)*TRANSPOSE(($D122:$E122))),0) -> 501574896.3 | AC122: =AC$112+IF($C122<>0,SUMPRODUCT((AC$113:AC$114)*TRANSPOSE(($D122:$E122))),0) -> 501576392.6 | AD122: =AD$112+IF($C122<>0,SUMPRODUCT((AD$113:AD$114)*TRANSPOSE(($D122:$E122))),0) -> 501577891.7 | AE122: =AE$112+IF($C122<>0,SUMPRODUCT((AE$113:AE$114)*TRANSPOSE(($D122:$E122))),0) -> 501579390.2 | AF122: =AF$112+IF($C122<>0,SUMPRODUCT((AF$113:AF$114)*TRANSPOSE(($D122:$E122))),0) -> 501580891.1 | AG122: =AG$112+IF($C122<>0,SUMPRODUCT((AG$113:AG$114)*TRANSPOSE(($D122:$E122))),0) -> 510717537
A123: ="sens"&Assumptions!B118 -> sens | C123: =Assumptions!C118 -> 0 | D123: =Assumptions!G118 -> 0 | E123: =Assumptions!H118 -> 0 | G123: Option 2sens | I123: =I$112+IF($C123<>0,SUMPRODUCT((I$113:I$114)*TRANSPOSE(($D123:$E123))),0) -> 0 | J123: =J$112+IF($C123<>0,SUMPRODUCT((J$113:J$114)*TRANSPOSE(($D123:$E123))),0) -> 6283338.771 | K123: =K$112+IF($C123<>0,SUMPRODUCT((K$113:K$114)*TRANSPOSE(($D123:$E123))),0) -> 13753021.19 | L123: =L$112+IF($C123<>0,SUMPRODUCT((L$113:L$114)*TRANSPOSE(($D123:$E123))),0) -> 19989291.93 | M123: =M$112+IF($C123<>0,SUMPRODUCT((M$113:M$114)*TRANSPOSE(($D123:$E123))),0) -> 40423625.13 | N123: =N$112+IF($C123<>0,SUMPRODUCT((N$113:N$114)*TRANSPOSE(($D123:$E123))),0) -> 91764448.59 | O123: =O$112+IF($C123<>0,SUMPRODUCT((O$113:O$114)*TRANSPOSE(($D123:$E123))),0) -> 185569212.4 | P123: =P$112+IF($C123<>0,SUMPRODUCT((P$113:P$114)*TRANSPOSE(($D123:$E123))),0) -> 324419471.4 | Q123: =Q$112+IF($C123<>0,SUMPRODUCT((Q$113:Q$114)*TRANSPOSE(($D123:$E123))),0) -> 502002749.8 | R123: =R$112+IF($C123<>0,SUMPRODUCT((R$113:R$114)*TRANSPOSE(($D123:$E123))),0) -> 501560735.1 | S123: =S$112+IF($C123<>0,SUMPRODUCT((S$113:S$114)*TRANSPOSE(($D123:$E123))),0) -> 501562123.8 | T123: =T$112+IF($C123<>0,SUMPRODUCT((T$113:T$114)*TRANSPOSE(($D123:$E123))),0) -> 501563490.3 | U123: =U$112+IF($C123<>0,SUMPRODUCT((U$113:U$114)*TRANSPOSE(($D123:$E123))),0) -> 501564864.3 | V123: =V$112+IF($C123<>0,SUMPRODUCT((V$113:V$114)*TRANSPOSE(($D123:$E123))),0) -> 501566286.8 | W123: =W$112+IF($C123<>0,SUMPRODUCT((W$113:W$114)*TRANSPOSE(($D123:$E123))),0) -> 501567663.2 | X123: =X$112+IF($C123<>0,SUMPRODUCT((X$113:X$114)*TRANSPOSE(($D123:$E123))),0) -> 501569098.3 | Y123: =Y$112+IF($C123<>0,SUMPRODUCT((Y$113:Y$114)*TRANSPOSE(($D123:$E123))),0) -> 501570527.2 | Z123: =Z$112+IF($C123<>0,SUMPRODUCT((Z$113:Z$114)*TRANSPOSE(($D123:$E123))),0) -> 501572021 | AA123: =AA$112+IF($C123<>0,SUMPRODUCT((AA$113:AA$114)*TRANSPOSE(($D123:$E123))),0) -> 501573400 | AB123: =AB$112+IF($C123<>0,SUMPRODUCT((AB$113:AB$114)*TRANSPOSE(($D123:$E123))),0) -> 501574896.3 | AC123: =AC$112+IF($C123<>0,SUMPRODUCT((AC$113:AC$114)*TRANSPOSE(($D123:$E123))),0) -> 501576392.6 | AD123: =AD$112+IF($C123<>0,SUMPRODUCT((AD$113:AD$114)*TRANSPOSE(($D123:$E123))),0) -> 501577891.7 | AE123: =AE$112+IF($C123<>0,SUMPRODUCT((AE$113:AE$114)*TRANSPOSE(($D123:$E123))),0) -> 501579390.2 | AF123: =AF$112+IF($C123<>0,SUMPRODUCT((AF$113:AF$114)*TRANSPOSE(($D123:$E123))),0) -> 501580891.1 | AG123: =AG$112+IF($C123<>0,SUMPRODUCT((AG$113:AG$114)*TRANSPOSE(($D123:$E123))),0) -> 510717537

Sheet Option3
A1: =bus -> Powercor
A2: =proj -> Melton & Wyndham Transformation Capacity Project
A3: OPTION 3 | C3: =INDEX(Assumptions!$E$14:$E$18, MATCH(A3,_xlfn.ANCHORARRAY( Assumptions!$C$14),0)) -> Northern capacity priority
A4: =(INDEX(Data!$D$9:$D$13, MATCH(A3, options,0))) -> 
A6: ='Option1 (base case)'!A6 -> Count | I6: ='Option1 (base case)'!I6 -> 1 | J6: ='Option1 (base case)'!J6 -> 2 | K6: ='Option1 (base case)'!K6 -> 3 | L6: ='Option1 (base case)'!L6 -> 4 | M6: ='Option1 (base case)'!M6 -> 5 | N6: ='Option1 (base case)'!N6 -> 6 | O6: ='Option1 (base case)'!O6 -> 7 | P6: ='Option1 (base case)'!P6 -> 8 | Q6: ='Option1 (base case)'!Q6 -> 9 | R6: ='Option1 (base case)'!R6 -> 10 | S6: ='Option1 (base case)'!S6 -> 11 | T6: ='Option1 (base case)'!T6 -> 12 | U6: ='Option1 (base case)'!U6 -> 13 | V6: ='Option1 (base case)'!V6 -> 14 | W6: ='Option1 (base case)'!W6 -> 15 | X6: ='Option1 (base case)'!X6 -> 16 | Y6: ='Option1 (base case)'!Y6 -> 17 | Z6: ='Option1 (base case)'!Z6 -> 18 | AA6: ='Option1 (base case)'!AA6 -> 19 | AB6: ='Option1 (base case)'!AB6 -> 20 | AC6: ='Option1 (base case)'!AC6 -> 21 | AD6: ='Option1 (base case)'!AD6 -> 22 | AE6: ='Option1 (base case)'!AE6 -> 23 | AF6: ='Option1 (base case)'!AF6 -> 24 | AG6: ='Option1 (base case)'!AG6 -> 25
A7: ='Option1 (base case)'!A7 -> Value of CO2 reductions | G7: $/MWh | I7: ='Option1 (base case)'!I7 -> 24.7304868 | J7: ='Option1 (base case)'!J7 -> 22.34074009 | K7: ='Option1 (base case)'!K7 -> 20.19632912 | L7: ='Option1 (base case)'!L7 -> 18.06294208 | M7: ='Option1 (base case)'!M7 -> 15.91339762 | N7: ='Option1 (base case)'!N7 -> 13.71506943 | O7: ='Option1 (base case)'!O7 -> 13.71506943 | P7: ='Option1 (base case)'!P7 -> 13.71506943 | Q7: ='Option1 (base case)'!Q7 -> 13.71506943 | R7: ='Option1 (base case)'!R7 -> 13.71506943 | S7: ='Option1 (base case)'!S7 -> 13.71506943 | T7: ='Option1 (base case)'!T7 -> 13.71506943 | U7: ='Option1 (base case)'!U7 -> 13.71506943 | V7: ='Option1 (base case)'!V7 -> 13.71506943 | W7: ='Option1 (base case)'!W7 -> 13.71506943 | X7: ='Option1 (base case)'!X7 -> 13.71506943 | Y7: ='Option1 (base case)'!Y7 -> 13.71506943 | Z7: ='Option1 (base case)'!Z7 -> 13.71506943 | AA7: ='Option1 (base case)'!AA7 -> 13.71506943 | AB7: ='Option1 (base case)'!AB7 -> 13.71506943 | AC7: ='Option1 (base case)'!AC7 -> 13.71506943 | AD7: ='Option1 (base case)'!AD7 -> 13.71506943 | AE7: ='Option1 (base case)'!AE7 -> 13.71506943 | AF7: ='Option1 (base case)'!AF7 -> 13.71506943 | AG7: ='Option1 (base case)'!AG7 -> 13.71506943
I8: =_xlfn.NUMBERVALUE(LEFT(I$9,4))+1 -> 2027 | J8: =_xlfn.NUMBERVALUE(LEFT(J$9,4))+1 -> 2028 | K8: 2029 | L8: 2030 | M8: 2031 | N8: 2032 | O8: 2033 | P8: 2034 | Q8: 2035 | R8: 2036 | S8: 2037 | T8: 2038 | U8: 2039 | V8: 2040 | W8: 2041 | X8: 2042 | Y8: 2043 | Z8: 2044 | AA8: 2045 | AB8: 2046 | AC8: 2047 | AD8: 2048 | AE8: 2049 | AF8: 2050 | AG8: 2051
G9: Units | I9: ='Option1 (base case)'!I9 -> 2026-27 | J9: ='Option1 (base case)'!J9 -> 2027-28 | K9: ='Option1 (base case)'!K9 -> 2028-29 | L9: ='Option1 (base case)'!L9 -> 2029-30 | M9: ='Option1 (base case)'!M9 -> 2030-31 | N9: ='Option1 (base case)'!N9 -> 2031-32 | O9: ='Option1 (base case)'!O9 -> 2032-33 | P9: ='Option1 (base case)'!P9 -> 2033-34 | Q9: ='Option1 (base case)'!Q9 -> 2034-35 | R9: ='Option1 (base case)'!R9 -> 2035-36 | S9: ='Option1 (base case)'!S9 -> 2036-37 | T9: ='Option1 (base case)'!T9 -> 2037-38 | U9: ='Option1 (base case)'!U9 -> 2038-39 | V9: ='Option1 (base case)'!V9 -> 2039-40 | W9: ='Option1 (base case)'!W9 -> 2040-41 | X9: ='Option1 (base case)'!X9 -> 2041-42 | Y9: ='Option1 (base case)'!Y9 -> 2042-43 | Z9: ='Option1 (base case)'!Z9 -> 2043-44 | AA9: ='Option1 (base case)'!AA9 -> 2044-45 | AB9: ='Option1 (base case)'!AB9 -> 2045-46 | AC9: ='Option1 (base case)'!AC9 -> 2046-47 | AD9: ='Option1 (base case)'!AD9 -> 2047-48 | AE9: ='Option1 (base case)'!AE9 -> 2048-49 | AF9: ='Option1 (base case)'!AF9 -> 2049-50 | AG9: ='Option1 (base case)'!AG9 -> 2050-51
A11: INVESTMENT & OPERATING COST
C13: Capex | E13: Asset life (yrs)
C14: MTC 3rd Tx | E14: 50 | G14: =input_dollars -> 2023-12-31 | I14: 14291649 | J14: 0 | K14: 0 | L14: 0 | M14: 0 | N14: 0 | O14: 0 | P14: 0 | Q14: 0 | R14: 0 | S14: 0 | T14: 0 | U14: 0 | V14: 0 | W14: 0 | X14: 0 | Y14: 0 | Z14: 0 | AA14: 0 | AB14: 0 | AC14: 0 | AD14: 0 | AE14: 0 | AF14: 0 | AG14: 0
C15: BMH Rebuild | E15: 50 | G15: =input_dollars -> 2023-12-31 | I15: 13551742.67 | J15: 13551742.67 | K15: 0 | L15: 0 | M15: 0 | N15: 0 | O15: 0 | P15: 0 | Q15: 0 | R15: 0
C16: New RBE ZSS | E16: 50 | G16: =input_dollars -> 2023-12-31 | I16: 0 | J16: 5291808.87 | K16: 17564061.24 | L16: 16105016.89 | M16: 0 | N16: 0 | O16: 0 | P16: 0 | Q16: 0 | R16: 0 | S16: 0 | T16: 0 | U16: 0 | V16: 0 | W16: 0 | X16: 0 | Y16: 0 | Z16: 0 | AA16: 0 | AB16: 0 | AC16: 0 | AD16: 0 | AE16: 0 | AF16: 0 | AG16: 0
C17: PCK Stage 1 | E17: 50 | G17: =input_dollars -> 2023-12-31 | I17: 0 | J17: 0 | K17: 5408395.3 | L17: 24286555.6 | M17: 22244579.1 | N17: 0 | O17: 0 | P17: 0 | Q17: 0 | R17: 10425980.33 | S17: 0 | T17: 0 | U17: 0 | V17: 0 | W17: 0 | X17: 0 | Y17: 0 | Z17: 0 | AA17: 0 | AB17: 0 | AC17: 0 | AD17: 0 | AE17: 0 | AF17: 0 | AG17: 0
C18: Capital expenditure | G18: =input_dollars -> 2023-12-31 | I18: =SUM(I14:I17) -> 27843391.67 | J18: =SUM(J14:J17) -> 18843551.54 | K18: 22972456.54 | L18: 40391572.49 | M18: 22244579.1 | N18: 0 | O18: 0 | P18: 0 | Q18: 0 | R18: 10425980.33 | S18: 0 | T18: 0 | U18: 0 | V18: 0 | W18: 0 | X18: 0 | Y18: 0 | Z18: 0 | AA18: 0 | AB18: 0 | AC18: 0 | AD18: 0 | AE18: 0 | AF18: 0 | AG18: 0
C20: Operating expenditure | G20: =input_dollars -> 2023-12-31 | I20: 0 | J20: 0 | K20: 0 | L20: 0 | M20: 0 | N20: 0 | O20: 0 | P20: 0 | Q20: 0 | R20: 0 | S20: 0 | T20: 0 | U20: 0 | V20: 0 | W20: 0 | X20: 0 | Y20: 0 | Z20: 0 | AA20: 0 | AB20: 0 | AC20: 0 | AD20: 0 | AE20: 0 | AF20: 0 | AG20: 0
A23: RISK ASSUMPTIONS
C25: PoF (major) | I25: 0 | J25: 0 | K25: 0 | L25: 0 | M25: 0 | N25: 0 | O25: 0 | P25: 0 | Q25: 0 | R25: 0 | S25: 0 | T25: 0 | U25: 0 | V25: 0 | W25: 0 | X25: 0 | Y25: 0 | Z25: 0 | AA25: 0 | AB25: 0 | AC25: 0 | AD25: 0 | AE25: 0 | AF25: 0 | AG25: 0
C26: PoF (reparable) | I26: 0 | J26: 0 | K26: 0 | L26: 0 | M26: 0 | N26: 0 | O26: 0 | P26: 0 | Q26: 0 | R26: 0 | S26: 0 | T26: 0 | U26: 0 | V26: 0 | W26: 0 | X26: 0 | Y26: 0 | Z26: 0 | AA26: 0 | AB26: 0 | AC26: 0 | AD26: 0 | AE26: 0 | AF26: 0 | AG26: 0
C28: Const end date | E28: 2027
C29: Energy at risk 10% PoE | E29: 0.3 | G29: MWh | I29: =_xlfn.IFS(I$8<=$E$28,'Option1 (base case)'!I$29,I$8>$E$28,SUM('EaR Opt3 BMH Rebuild - BMH'!I$15,'EaR Opt3 New PCK - LV'!I$15,'EaR Opt3 New PCK - LVN'!I$15,'EaR Opt3 New PCK - MLN'!I$15,'EaR Opt3 New PCK - MTC'!I$15,'EaR Opt3 New PCK - PCK'!I$15,'EaR Opt3 New PCK - TNA'!I$15,'EaR Opt3 New PCK - WBE'!I$15,'EaR Opt3 New RBE - RBE'!I$15)) -> 377.3473715 | J29: =_xlfn.IFS(J$8<=$E$28,'Option1 (base case)'!J$29,J$8>$E$28,SUM('EaR Opt3 BMH Rebuild - BMH'!J$15,'EaR Opt3 New PCK - LV'!J$15,'EaR Opt3 New PCK - LVN'!J$15,'EaR Opt3 New PCK - MLN'!J$15,'EaR Opt3 New PCK - MTC'!J$15,'EaR Opt3 New PCK - PCK'!J$15,'EaR Opt3 New PCK - TNA'!J$15,'EaR Opt3 New PCK - WBE'!J$15,'EaR Opt3 New RBE - RBE'!J$15)) -> 274.0509402 | K29: =_xlfn.IFS(K$8<=$E$28,'Option1 (base case)'!K$29,K$8>$E$28,SUM('EaR Opt3 BMH Rebuild - BMH'!K$15,'EaR Opt3 New PCK - LV'!K$15,'EaR Opt3 New PCK - LVN'!K$15,'EaR Opt3 New PCK - MLN'!K$15,'EaR Opt3 New PCK - MTC'!K$15,'EaR Opt3 New PCK - PCK'!K$15,'EaR Opt3 New PCK - TNA'!K$15,'EaR Opt3 New PCK - WBE'!K$15,'EaR Opt3 New RBE - RBE'!K$15)) -> 244.357033 | L29: =_xlfn.IFS(L$8<=$E$28,'Option1 (base case)'!L$29,L$8>$E$28,SUM('EaR Opt3 BMH Rebuild - BMH'!L$15,'EaR Opt3 New PCK - LV'!L$15,'EaR Opt3 New PCK - LVN'!L$15,'EaR Opt3 New PCK - MLN'!L$15,'EaR Opt3 New PCK - MTC'!L$15,'EaR Opt3 New PCK - PCK'!L$15,'EaR Opt3 New PCK - TNA'!L$15,'EaR Opt3 New PCK - WBE'!L$15,'EaR Opt3 New RBE - RBE'!L$15)) -> 468.8293917 | M29: =_xlfn.IFS(M$8<=$E$28,'Option1 (base case)'!M$29,M$8>$E$28,SUM('EaR Opt3 BMH Rebuild - BMH'!M$15,'EaR Opt3 New PCK - LV'!M$15,'EaR Opt3 New PCK - LVN'!M$15,'EaR Opt3 New PCK - MLN'!M$15,'EaR Opt3 New PCK - MTC'!M$15,'EaR Opt3 New PCK - PCK'!M$15,'EaR Opt3 New PCK - TNA'!M$15,'EaR Opt3 New PCK - WBE'!M$15,'EaR Opt3 New RBE - RBE'!M$15)) -> 289.7851519 | N29: =_xlfn.IFS(N$8<=$E$28,'Option1 (base case)'!N$29,N$8>$E$28,SUM('EaR Opt3 BMH Rebuild - BMH'!N$15,'EaR Opt3 New PCK - LV'!N$15,'EaR Opt3 New PCK - LVN'!N$15,'EaR Opt3 New PCK - MLN'!N$15,'EaR Opt3 New PCK - MTC'!N$15,'EaR Opt3 New PCK - PCK'!N$15,'EaR Opt3 New PCK - TNA'!N$15,'EaR Opt3 New PCK - WBE'!N$15,'EaR Opt3 New RBE - RBE'!N$15)) -> 132.2563385 | O29: =_xlfn.IFS(O$8<=$E$28,'Option1 (base case)'!O$29,O$8>$E$28,SUM('EaR Opt3 BMH Rebuild - BMH'!O$15,'EaR Opt3 New PCK - LV'!O$15,'EaR Opt3 New PCK - LVN'!O$15,'EaR Opt3 New PCK - MLN'!O$15,'EaR Opt3 New PCK - MTC'!O$15,'EaR Opt3 New PCK - PCK'!O$15,'EaR Opt3 New PCK - TNA'!O$15,'EaR Opt3 New PCK - WBE'!O$15,'EaR Opt3 New RBE - RBE'!O$15)) -> 245.1274729 | P29: =_xlfn.IFS(P$8<=$E$28,'Option1 (base case)'!P$29,P$8>$E$28,SUM('EaR Opt3 BMH Rebuild - BMH'!P$15,'EaR Opt3 New PCK - LV'!P$15,'EaR Opt3 New PCK - LVN'!P$15,'EaR Opt3 New PCK - MLN'!P$15,'EaR Opt3 New PCK - MTC'!P$15,'EaR Opt3 New PCK - PCK'!P$15,'EaR Opt3 New PCK - TNA'!P$15,'EaR Opt3 New PCK - WBE'!P$15,'EaR Opt3 New RBE - RBE'!P$15)) -> 413.8056312 | Q29: =_xlfn.IFS(Q$8<=$E$28,'Option1 (base case)'!Q$29,Q$8>$E$28,SUM('EaR Opt3 BMH Rebuild - BMH'!Q$15,'EaR Opt3 New PCK - LV'!Q$15,'EaR Opt3 New PCK - LVN'!Q$15,'EaR Opt3 New PCK - MLN'!Q$15,'EaR Opt3 New PCK - MTC'!Q$15,'EaR Opt3 New PCK - PCK'!Q$15,'EaR Opt3 New PCK - TNA'!Q$15,'EaR Opt3 New PCK - WBE'!Q$15,'EaR Opt3 New RBE - RBE'!Q$15)) -> 636.6972646 | R29: =_xlfn.IFS(R$8<=$E$28,'Option1 (base case)'!R$29,R$8>$E$28,SUM('EaR Opt3 BMH Rebuild - BMH'!R$15,'EaR Opt3 New PCK - LV'!R$15,'EaR Opt3 New PCK - LVN'!R$15,'EaR Opt3 New PCK - MLN'!R$15,'EaR Opt3 New PCK - MTC'!R$15,'EaR Opt3 New PCK - PCK'!R$15,'EaR Opt3 New PCK - TNA'!R$15,'EaR Opt3 New PCK - WBE'!R$15,'EaR Opt3 New RBE - RBE'!R$15)) -> 570.8729161 | S29: =_xlfn.IFS(S$8<=$E$28,'Option1 (base case)'!S$29,S$8>$E$28,SUM('EaR Opt3 BMH Rebuild - BMH'!S$15,'EaR Opt3 New PCK - LV'!S$15,'EaR Opt3 New PCK - LVN'!S$15,'EaR Opt3 New PCK - MLN'!S$15,'EaR Opt3 New PCK - MTC'!S$15,'EaR Opt3 New PCK - PCK'!S$15,'EaR Opt3 New PCK - TNA'!S$15,'EaR Opt3 New PCK - WBE'!S$15,'EaR Opt3 New RBE - RBE'!S$15)) -> 570.8725645 | T29: =_xlfn.IFS(T$8<=$E$28,'Option1 (base case)'!T$29,T$8>$E$28,SUM('EaR Opt3 BMH Rebuild - BMH'!T$15,'EaR Opt3 New PCK - LV'!T$15,'EaR Opt3 New PCK - LVN'!T$15,'EaR Opt3 New PCK - MLN'!T$15,'EaR Opt3 New PCK - MTC'!T$15,'EaR Opt3 New PCK - PCK'!T$15,'EaR Opt3 New PCK - TNA'!T$15,'EaR Opt3 New PCK - WBE'!T$15,'EaR Opt3 New RBE - RBE'!T$15)) -> 570.8776062 | U29: =_xlfn.IFS(U$8<=$E$28,'Option1 (base case)'!U$29,U$8>$E$28,SUM('EaR Opt3 BMH Rebuild - BMH'!U$15,'EaR Opt3 New PCK - LV'!U$15,'EaR Opt3 New PCK - LVN'!U$15,'EaR Opt3 New PCK - MLN'!U$15,'EaR Opt3 New PCK - MTC'!U$15,'EaR Opt3 New PCK - PCK'!U$15,'EaR Opt3 New PCK - TNA'!U$15,'EaR Opt3 New PCK - WBE'!U$15,'EaR Opt3 New RBE - RBE'!U$15)) -> 570.8826534 | V29: =_xlfn.IFS(V$8<=$E$28,'Option1 (base case)'!V$29,V$8>$E$28,SUM('EaR Opt3 BMH Rebuild - BMH'!V$15,'EaR Opt3 New PCK - LV'!V$15,'EaR Opt3 New PCK - LVN'!V$15,'EaR Opt3 New PCK - MLN'!V$15,'EaR Opt3 New PCK - MTC'!V$15,'EaR Opt3 New PCK - PCK'!V$15,'EaR Opt3 New PCK - TNA'!V$15,'EaR Opt3 New PCK - WBE'!V$15,'EaR Opt3 New RBE - RBE'!V$15)) -> 570.8877062 | W29: =_xlfn.IFS(W$8<=$E$28,'Option1 (base case)'!W$29,W$8>$E$28,SUM('EaR Opt3 BMH Rebuild - BMH'!W$15,'EaR Opt3 New PCK - LV'!W$15,'EaR Opt3 New PCK - LVN'!W$15,'EaR Opt3 New PCK - MLN'!W$15,'EaR Opt3 New PCK - MTC'!W$15,'EaR Opt3 New PCK - PCK'!W$15,'EaR Opt3 New PCK - TNA'!W$15,'EaR Opt3 New PCK - WBE'!W$15,'EaR Opt3 New RBE - RBE'!W$15)) -> 570.8967462 | X29: =_xlfn.IFS(X$8<=$E$28,'Option1 (base case)'!X$29,X$8>$E$28,SUM('EaR Opt3 BMH Rebuild - BMH'!X$15,'EaR Opt3 New PCK - LV'!X$15,'EaR Opt3 New PCK - LVN'!X$15,'EaR Opt3 New PCK - MLN'!X$15,'EaR Opt3 New PCK - MTC'!X$15,'EaR Opt3 New PCK - PCK'!X$15,'EaR Opt3 New PCK - TNA'!X$15,'EaR Opt3 New PCK - WBE'!X$15,'EaR Opt3 New RBE - RBE'!X$15)) -> 570.9018117 | Y29: =_xlfn.IFS(Y$8<=$E$28,'Option1 (base case)'!Y$29,Y$8>$E$28,SUM('EaR Opt3 BMH Rebuild - BMH'!Y$15,'EaR Opt3 New PCK - LV'!Y$15,'EaR Opt3 New PCK - LVN'!Y$15,'EaR Opt3 New PCK - MLN'!Y$15,'EaR Opt3 New PCK - MTC'!Y$15,'EaR Opt3 New PCK - PCK'!Y$15,'EaR Opt3 New PCK - TNA'!Y$15,'EaR Opt3 New PCK - WBE'!Y$15,'EaR Opt3 New RBE - RBE'!Y$15)) -> 570.9068835 | Z29: =_xlfn.IFS(Z$8<=$E$28,'Option1 (base case)'!Z$29,Z$8>$E$28,SUM('EaR Opt3 BMH Rebuild - BMH'!Z$15,'EaR Opt3 New PCK - LV'!Z$15,'EaR Opt3 New PCK - LVN'!Z$15,'EaR Opt3 New PCK - MLN'!Z$15,'EaR Opt3 New PCK - MTC'!Z$15,'EaR Opt3 New PCK - PCK'!Z$15,'EaR Opt3 New PCK - TNA'!Z$15,'EaR Opt3 New PCK - WBE'!Z$15,'EaR Opt3 New RBE - RBE'!Z$15)) -> 570.9119612 | AA29: =_xlfn.IFS(AA$8<=$E$28,'Option1 (base case)'!AA$29,AA$8>$E$28,SUM('EaR Opt3 BMH Rebuild - BMH'!AA$15,'EaR Opt3 New PCK - LV'!AA$15,'EaR Opt3 New PCK - LVN'!AA$15,'EaR Opt3 New PCK - MLN'!AA$15,'EaR Opt3 New PCK - MTC'!AA$15,'EaR Opt3 New PCK - PCK'!AA$15,'EaR Opt3 New PCK - TNA'!AA$15,'EaR Opt3 New PCK - WBE'!AA$15,'EaR Opt3 New RBE - RBE'!AA$15)) -> 570.9172789 | AB29: =_xlfn.IFS(AB$8<=$E$28,'Option1 (base case)'!AB$29,AB$8>$E$28,SUM('EaR Opt3 BMH Rebuild - BMH'!AB$15,'EaR Opt3 New PCK - LV'!AB$15,'EaR Opt3 New PCK - LVN'!AB$15,'EaR Opt3 New PCK - MLN'!AB$15,'EaR Opt3 New PCK - MTC'!AB$15,'EaR Opt3 New PCK - PCK'!AB$15,'EaR Opt3 New PCK - TNA'!AB$15,'EaR Opt3 New PCK - WBE'!AB$15,'EaR Opt3 New RBE - RBE'!AB$15)) -> 570.9263537 | AC29: =_xlfn.IFS(AC$8<=$E$28,'Option1 (base case)'!AC$29,AC$8>$E$28,SUM('EaR Opt3 BMH Rebuild - BMH'!AC$15,'EaR Opt3 New PCK - LV'!AC$15,'EaR Opt3 New PCK - LVN'!AC$15,'EaR Opt3 New PCK - MLN'!AC$15,'EaR Opt3 New PCK - MTC'!AC$15,'EaR Opt3 New PCK - PCK'!AC$15,'EaR Opt3 New PCK - TNA'!AC$15,'EaR Opt3 New PCK - WBE'!AC$15,'EaR Opt3 New RBE - RBE'!AC$15)) -> 570.931452 | AD29: =_xlfn.IFS(AD$8<=$E$28,'Option1 (base case)'!AD$29,AD$8>$E$28,SUM('EaR Opt3 BMH Rebuild - BMH'!AD$15,'EaR Opt3 New PCK - LV'!AD$15,'EaR Opt3 New PCK - LVN'!AD$15,'EaR Opt3 New PCK - MLN'!AD$15,'EaR Opt3 New PCK - MTC'!AD$15,'EaR Opt3 New PCK - PCK'!AD$15,'EaR Opt3 New PCK - TNA'!AD$15,'EaR Opt3 New PCK - WBE'!AD$15,'EaR Opt3 New RBE - RBE'!AD$15)) -> 570.9365562 | AE29: =_xlfn.IFS(AE$8<=$E$28,'Option1 (base case)'!AE$29,AE$8>$E$28,SUM('EaR Opt3 BMH Rebuild - BMH'!AE$15,'EaR Opt3 New PCK - LV'!AE$15,'EaR Opt3 New PCK - LVN'!AE$15,'EaR Opt3 New PCK - MLN'!AE$15,'EaR Opt3 New PCK - MTC'!AE$15,'EaR Opt3 New PCK - PCK'!AE$15,'EaR Opt3 New PCK - TNA'!AE$15,'EaR Opt3 New PCK - WBE'!AE$15,'EaR Opt3 New RBE - RBE'!AE$15)) -> 570.9419 | AF29: =_xlfn.IFS(AF$8<=$E$28,'Option1 (base case)'!AF$29,AF$8>$E$28,SUM('EaR Opt3 BMH Rebuild - BMH'!AF$15,'EaR Opt3 New PCK - LV'!AF$15,'EaR Opt3 New PCK - LVN'!AF$15,'EaR Opt3 New PCK - MLN'!AF$15,'EaR Opt3 New PCK - MTC'!AF$15,'EaR Opt3 New PCK - PCK'!AF$15,'EaR Opt3 New PCK - TNA'!AF$15,'EaR Opt3 New PCK - WBE'!AF$15,'EaR Opt3 New RBE - RBE'!AF$15)) -> 570.947017 | AG29: =_xlfn.IFS(AG$8<=$E$28,'Option1 (base case)'!AG$29,AG$8>$E$28,SUM('EaR Opt3 BMH Rebuild - BMH'!AG$15,'EaR Opt3 New PCK - LV'!AG$15,'EaR Opt3 New PCK - LVN'!AG$15,'EaR Opt3 New PCK - MLN'!AG$15,'EaR Opt3 New PCK - MTC'!AG$15,'EaR Opt3 New PCK - PCK'!AG$15,'EaR Opt3 New PCK - TNA'!AG$15,'EaR Opt3 New PCK - WBE'!AG$15,'EaR Opt3 New RBE - RBE'!AG$15)) -> 0
C30: Energy at risk 50% PoE | E30: 0.7 | G30: MWh | I30: =_xlfn.IFS(I$8<=$E$28,'Option1 (base case)'!I$30,I$8>$E$28,SUM('EaR Opt3 BMH Rebuild - BMH'!I$14,'EaR Opt3 New PCK - LV'!I$14,'EaR Opt3 New PCK - LVN'!I$14,'EaR Opt3 New PCK - MLN'!I$14,'EaR Opt3 New PCK - MTC'!I$14,'EaR Opt3 New PCK - PCK'!I$14,'EaR Opt3 New PCK - TNA'!I$14,'EaR Opt3 New PCK - WBE'!I$14,'EaR Opt3 New RBE - RBE'!I$14)) -> 101.3053814 | J30: =_xlfn.IFS(J$8<=$E$28,'Option1 (base case)'!J$30,J$8>$E$28,SUM('EaR Opt3 BMH Rebuild - BMH'!J$14,'EaR Opt3 New PCK - LV'!J$14,'EaR Opt3 New PCK - LVN'!J$14,'EaR Opt3 New PCK - MLN'!J$14,'EaR Opt3 New PCK - MTC'!J$14,'EaR Opt3 New PCK - PCK'!J$14,'EaR Opt3 New PCK - TNA'!J$14,'EaR Opt3 New PCK - WBE'!J$14,'EaR Opt3 New RBE - RBE'!J$14)) -> 44.75071255 | K30: =_xlfn.IFS(K$8<=$E$28,'Option1 (base case)'!K$30,K$8>$E$28,SUM('EaR Opt3 BMH Rebuild - BMH'!K$14,'EaR Opt3 New PCK - LV'!K$14,'EaR Opt3 New PCK - LVN'!K$14,'EaR Opt3 New PCK - MLN'!K$14,'EaR Opt3 New PCK - MTC'!K$14,'EaR Opt3 New PCK - PCK'!K$14,'EaR Opt3 New PCK - TNA'!K$14,'EaR Opt3 New PCK - WBE'!K$14,'EaR Opt3 New RBE - RBE'!K$14)) -> 24.97342322 | L30: =_xlfn.IFS(L$8<=$E$28,'Option1 (base case)'!L$30,L$8>$E$28,SUM('EaR Opt3 BMH Rebuild - BMH'!L$14,'EaR Opt3 New PCK - LV'!L$14,'EaR Opt3 New PCK - LVN'!L$14,'EaR Opt3 New PCK - MLN'!L$14,'EaR Opt3 New PCK - MTC'!L$14,'EaR Opt3 New PCK - PCK'!L$14,'EaR Opt3 New PCK - TNA'!L$14,'EaR Opt3 New PCK - WBE'!L$14,'EaR Opt3 New RBE - RBE'!L$14)) -> 47.60174976 | M30: =_xlfn.IFS(M$8<=$E$28,'Option1 (base case)'!M$30,M$8>$E$28,SUM('EaR Opt3 BMH Rebuild - BMH'!M$14,'EaR Opt3 New PCK - LV'!M$14,'EaR Opt3 New PCK - LVN'!M$14,'EaR Opt3 New PCK - MLN'!M$14,'EaR Opt3 New PCK - MTC'!M$14,'EaR Opt3 New PCK - PCK'!M$14,'EaR Opt3 New PCK - TNA'!M$14,'EaR Opt3 New PCK - WBE'!M$14,'EaR Opt3 New RBE - RBE'!M$14)) -> 23.73040226 | N30: =_xlfn.IFS(N$8<=$E$28,'Option1 (base case)'!N$30,N$8>$E$28,SUM('EaR Opt3 BMH Rebuild - BMH'!N$14,'EaR Opt3 New PCK - LV'!N$14,'EaR Opt3 New PCK - LVN'!N$14,'EaR Opt3 New PCK - MLN'!N$14,'EaR Opt3 New PCK - MTC'!N$14,'EaR Opt3 New PCK - PCK'!N$14,'EaR Opt3 New PCK - TNA'!N$14,'EaR Opt3 New PCK - WBE'!N$14,'EaR Opt3 New RBE - RBE'!N$14)) -> 22.52222939 | O30: =_xlfn.IFS(O$8<=$E$28,'Option1 (base case)'!O$30,O$8>$E$28,SUM('EaR Opt3 BMH Rebuild - BMH'!O$14,'EaR Opt3 New PCK - LV'!O$14,'EaR Opt3 New PCK - LVN'!O$14,'EaR Opt3 New PCK - MLN'!O$14,'EaR Opt3 New PCK - MTC'!O$14,'EaR Opt3 New PCK - PCK'!O$14,'EaR Opt3 New PCK - TNA'!O$14,'EaR Opt3 New PCK - WBE'!O$14,'EaR Opt3 New RBE - RBE'!O$14)) -> 46.0361216 | P30: =_xlfn.IFS(P$8<=$E$28,'Option1 (base case)'!P$30,P$8>$E$28,SUM('EaR Opt3 BMH Rebuild - BMH'!P$14,'EaR Opt3 New PCK - LV'!P$14,'EaR Opt3 New PCK - LVN'!P$14,'EaR Opt3 New PCK - MLN'!P$14,'EaR Opt3 New PCK - MTC'!P$14,'EaR Opt3 New PCK - PCK'!P$14,'EaR Opt3 New PCK - TNA'!P$14,'EaR Opt3 New PCK - WBE'!P$14,'EaR Opt3 New RBE - RBE'!P$14)) -> 80.38195227 | Q30: =_xlfn.IFS(Q$8<=$E$28,'Option1 (base case)'!Q$30,Q$8>$E$28,SUM('EaR Opt3 BMH Rebuild - BMH'!Q$14,'EaR Opt3 New PCK - LV'!Q$14,'EaR Opt3 New PCK - LVN'!Q$14,'EaR Opt3 New PCK - MLN'!Q$14,'EaR Opt3 New PCK - MTC'!Q$14,'EaR Opt3 New PCK - PCK'!Q$14,'EaR Opt3 New PCK - TNA'!Q$14,'EaR Opt3 New PCK - WBE'!Q$14,'EaR Opt3 New RBE - RBE'!Q$14)) -> 124.5658246 | R30: =_xlfn.IFS(R$8<=$E$28,'Option1 (base case)'!R$30,R$8>$E$28,SUM('EaR Opt3 BMH Rebuild - BMH'!R$14,'EaR Opt3 New PCK - LV'!R$14,'EaR Opt3 New PCK - LVN'!R$14,'EaR Opt3 New PCK - MLN'!R$14,'EaR Opt3 New PCK - MTC'!R$14,'EaR Opt3 New PCK - PCK'!R$14,'EaR Opt3 New PCK - TNA'!R$14,'EaR Opt3 New PCK - WBE'!R$14,'EaR Opt3 New RBE - RBE'!R$14)) -> 123.851675 | S30: =_xlfn.IFS(S$8<=$E$28,'Option1 (base case)'!S$30,S$8>$E$28,SUM('EaR Opt3 BMH Rebuild - BMH'!S$14,'EaR Opt3 New PCK - LV'!S$14,'EaR Opt3 New PCK - LVN'!S$14,'EaR Opt3 New PCK - MLN'!S$14,'EaR Opt3 New PCK - MTC'!S$14,'EaR Opt3 New PCK - PCK'!S$14,'EaR Opt3 New PCK - TNA'!S$14,'EaR Opt3 New PCK - WBE'!S$14,'EaR Opt3 New RBE - RBE'!S$14)) -> 123.8556512 | T30: =_xlfn.IFS(T$8<=$E$28,'Option1 (base case)'!T$30,T$8>$E$28,SUM('EaR Opt3 BMH Rebuild - BMH'!T$14,'EaR Opt3 New PCK - LV'!T$14,'EaR Opt3 New PCK - LVN'!T$14,'EaR Opt3 New PCK - MLN'!T$14,'EaR Opt3 New PCK - MTC'!T$14,'EaR Opt3 New PCK - PCK'!T$14,'EaR Opt3 New PCK - TNA'!T$14,'EaR Opt3 New PCK - WBE'!T$14,'EaR Opt3 New RBE - RBE'!T$14)) -> 123.857826 | U30: =_xlfn.IFS(U$8<=$E$28,'Option1 (base case)'!U$30,U$8>$E$28,SUM('EaR Opt3 BMH Rebuild - BMH'!U$14,'EaR Opt3 New PCK - LV'!U$14,'EaR Opt3 New PCK - LVN'!U$14,'EaR Opt3 New PCK - MLN'!U$14,'EaR Opt3 New PCK - MTC'!U$14,'EaR Opt3 New PCK - PCK'!U$14,'EaR Opt3 New PCK - TNA'!U$14,'EaR Opt3 New PCK - WBE'!U$14,'EaR Opt3 New RBE - RBE'!U$14)) -> 123.8600032 | V30: =_xlfn.IFS(V$8<=$E$28,'Option1 (base case)'!V$30,V$8>$E$28,SUM('EaR Opt3 BMH Rebuild - BMH'!V$14,'EaR Opt3 New PCK - LV'!V$14,'EaR Opt3 New PCK - LVN'!V$14,'EaR Opt3 New PCK - MLN'!V$14,'EaR Opt3 New PCK - MTC'!V$14,'EaR Opt3 New PCK - PCK'!V$14,'EaR Opt3 New PCK - TNA'!V$14,'EaR Opt3 New PCK - WBE'!V$14,'EaR Opt3 New RBE - RBE'!V$14)) -> 123.8622503 | W30: =_xlfn.IFS(W$8<=$E$28,'Option1 (base case)'!W$30,W$8>$E$28,SUM('EaR Opt3 BMH Rebuild - BMH'!W$14,'EaR Opt3 New PCK - LV'!W$14,'EaR Opt3 New PCK - LVN'!W$14,'EaR Opt3 New PCK - MLN'!W$14,'EaR Opt3 New PCK - MTC'!W$14,'EaR Opt3 New PCK - PCK'!W$14,'EaR Opt3 New PCK - TNA'!W$14,'EaR Opt3 New PCK - WBE'!W$14,'EaR Opt3 New RBE - RBE'!W$14)) -> 123.866264 | X30: =_xlfn.IFS(X$8<=$E$28,'Option1 (base case)'!X$30,X$8>$E$28,SUM('EaR Opt3 BMH Rebuild - BMH'!X$14,'EaR Opt3 New PCK - LV'!X$14,'EaR Opt3 New PCK - LVN'!X$14,'EaR Opt3 New PCK - MLN'!X$14,'EaR Opt3 New PCK - MTC'!X$14,'EaR Opt3 New PCK - PCK'!X$14,'EaR Opt3 New PCK - TNA'!X$14,'EaR Opt3 New PCK - WBE'!X$14,'EaR Opt3 New RBE - RBE'!X$14)) -> 123.868448 | Y30: =_xlfn.IFS(Y$8<=$E$28,'Option1 (base case)'!Y$30,Y$8>$E$28,SUM('EaR Opt3 BMH Rebuild - BMH'!Y$14,'EaR Opt3 New PCK - LV'!Y$14,'EaR Opt3 New PCK - LVN'!Y$14,'EaR Opt3 New PCK - MLN'!Y$14,'EaR Opt3 New PCK - MTC'!Y$14,'EaR Opt3 New PCK - PCK'!Y$14,'EaR Opt3 New PCK - TNA'!Y$14,'EaR Opt3 New PCK - WBE'!Y$14,'EaR Opt3 New RBE - RBE'!Y$14)) -> 123.8707024 | Z30: =_xlfn.IFS(Z$8<=$E$28,'Option1 (base case)'!Z$30,Z$8>$E$28,SUM('EaR Opt3 BMH Rebuild - BMH'!Z$14,'EaR Opt3 New PCK - LV'!Z$14,'EaR Opt3 New PCK - LVN'!Z$14,'EaR Opt3 New PCK - MLN'!Z$14,'EaR Opt3 New PCK - MTC'!Z$14,'EaR Opt3 New PCK - PCK'!Z$14,'EaR Opt3 New PCK - TNA'!Z$14,'EaR Opt3 New PCK - WBE'!Z$14,'EaR Opt3 New RBE - RBE'!Z$14)) -> 123.8728908 | AA30: =_xlfn.IFS(AA$8<=$E$28,'Option1 (base case)'!AA$30,AA$8>$E$28,SUM('EaR Opt3 BMH Rebuild - BMH'!AA$14,'EaR Opt3 New PCK - LV'!AA$14,'EaR Opt3 New PCK - LVN'!AA$14,'EaR Opt3 New PCK - MLN'!AA$14,'EaR Opt3 New PCK - MTC'!AA$14,'EaR Opt3 New PCK - PCK'!AA$14,'EaR Opt3 New PCK - TNA'!AA$14,'EaR Opt3 New PCK - WBE'!AA$14,'EaR Opt3 New RBE - RBE'!AA$14)) -> 123.8769826 | AB30: =_xlfn.IFS(AB$8<=$E$28,'Option1 (base case)'!AB$30,AB$8>$E$28,SUM('EaR Opt3 BMH Rebuild - BMH'!AB$14,'EaR Opt3 New PCK - LV'!AB$14,'EaR Opt3 New PCK - LVN'!AB$14,'EaR Opt3 New PCK - MLN'!AB$14,'EaR Opt3 New PCK - MTC'!AB$14,'EaR Opt3 New PCK - PCK'!AB$14,'EaR Opt3 New PCK - TNA'!AB$14,'EaR Opt3 New PCK - WBE'!AB$14,'EaR Opt3 New RBE - RBE'!AB$14)) -> 123.8791759 | AC30: =_xlfn.IFS(AC$8<=$E$28,'Option1 (base case)'!AC$30,AC$8>$E$28,SUM('EaR Opt3 BMH Rebuild - BMH'!AC$14,'EaR Opt3 New PCK - LV'!AC$14,'EaR Opt3 New PCK - LVN'!AC$14,'EaR Opt3 New PCK - MLN'!AC$14,'EaR Opt3 New PCK - MTC'!AC$14,'EaR Opt3 New PCK - PCK'!AC$14,'EaR Opt3 New PCK - TNA'!AC$14,'EaR Opt3 New PCK - WBE'!AC$14,'EaR Opt3 New RBE - RBE'!AC$14)) -> 123.8814405 | AD30: =_xlfn.IFS(AD$8<=$E$28,'Option1 (base case)'!AD$30,AD$8>$E$28,SUM('EaR Opt3 BMH Rebuild - BMH'!AD$14,'EaR Opt3 New PCK - LV'!AD$14,'EaR Opt3 New PCK - LVN'!AD$14,'EaR Opt3 New PCK - MLN'!AD$14,'EaR Opt3 New PCK - MTC'!AD$14,'EaR Opt3 New PCK - PCK'!AD$14,'EaR Opt3 New PCK - TNA'!AD$14,'EaR Opt3 New PCK - WBE'!AD$14,'EaR Opt3 New RBE - RBE'!AD$14)) -> 123.885475 | AE30: =_xlfn.IFS(AE$8<=$E$28,'Option1 (base case)'!AE$30,AE$8>$E$28,SUM('EaR Opt3 BMH Rebuild - BMH'!AE$14,'EaR Opt3 New PCK - LV'!AE$14,'EaR Opt3 New PCK - LVN'!AE$14,'EaR Opt3 New PCK - MLN'!AE$14,'EaR Opt3 New PCK - MTC'!AE$14,'EaR Opt3 New PCK - PCK'!AE$14,'EaR Opt3 New PCK - TNA'!AE$14,'EaR Opt3 New PCK - WBE'!AE$14,'EaR Opt3 New RBE - RBE'!AE$14)) -> 123.8877455 | AF30: =_xlfn.IFS(AF$8<=$E$28,'Option1 (base case)'!AF$30,AF$8>$E$28,SUM('EaR Opt3 BMH Rebuild - BMH'!AF$14,'EaR Opt3 New PCK - LV'!AF$14,'EaR Opt3 New PCK - LVN'!AF$14,'EaR Opt3 New PCK - MLN'!AF$14,'EaR Opt3 New PCK - MTC'!AF$14,'EaR Opt3 New PCK - PCK'!AF$14,'EaR Opt3 New PCK - TNA'!AF$14,'EaR Opt3 New PCK - WBE'!AF$14,'EaR Opt3 New RBE - RBE'!AF$14)) -> 123.8917848 | AG30: =_xlfn.IFS(AG$8<=$E$28,'Option1 (base case)'!AG$30,AG$8>$E$28,SUM('EaR Opt3 BMH Rebuild - BMH'!AG$14,'EaR Opt3 New PCK - LV'!AG$14,'EaR Opt3 New PCK - LVN'!AG$14,'EaR Opt3 New PCK - MLN'!AG$14,'EaR Opt3 New PCK - MTC'!AG$14,'EaR Opt3 New PCK - PCK'!AG$14,'EaR Opt3 New PCK - TNA'!AG$14,'EaR Opt3 New PCK - WBE'!AG$14,'EaR Opt3 New RBE - RBE'!AG$14)) -> 0
C32: Energy at risk (weighted) | G32: MWh | I32: =SUMPRODUCT(I$29:I$30, $E$29:$E$30) -> 184.1179785 | J32: =SUMPRODUCT(J$29:J$30, $E$29:$E$30) -> 113.5407808 | K32: 90.78850615 | L32: 173.9700423 | M32: 103.5468271 | N32: 55.44246211 | O32: 105.763527 | P32: 180.409056 | Q32: 278.2052566 | R32: 257.9580473 | S32: 257.9607252 | T32: 257.9637601 | U32: 257.9667983 | V32: 257.9698871 | W32: 257.9754087 | X32: 257.9784571 | Y32: 257.9815567 | Z32: 257.9846119 | AA32: 257.9890715 | AB32: 257.9933292 | AC32: 257.996444 | AD32: 258.0007993 | AE32: 258.0039919 | AF32: 258.0083544 | AG32: 0
C33: Energy at risk value | D33: $/MWh | E33: =Assumptions!H41*vcr_esc -> 33863.33108 | F33: =IF(AND(SUM(I32:AG32)<>0, E33=0), "!", "") ->  | G33: =input_dollars -> 2023-12-31 | I33: =I32*$E$33 -> 6234848.062 | J33: =J32*$E$33 -> 3844869.052 | K33: 3074401.242 | L33: 5891205.141 | M33: 3506440.489 | N33: 1877466.45 | O33: 3581505.33 | P33: 6109251.591 | Q33: 9420956.71 | R33: 8735318.76 | S33: 8735409.442 | T33: 8735512.213 | U33: 8735615.097 | V33: 8735719.694 | W33: 8735906.673 | X33: 8736009.904 | Y33: 8736114.866 | Z33: 8736218.327 | AA33: 8736369.343 | AB33: 8736513.522 | AC33: 8736618.998 | AD33: 8736766.485 | AE33: 8736874.595 | AF33: 8737022.326 | AG33: 0
C35: Safety consequence | D35: (after DF) | G35: =input_dollars -> 2023-12-31 | I35: 0 | J35: 0 | K35: 0 | L35: 0 | M35: 0 | N35: 0 | O35: 0 | P35: 0 | Q35: 0 | R35: 0 | S35: 0 | T35: 0 | U35: 0 | V35: 0 | W35: 0 | X35: 0 | Y35: 0 | Z35: 0 | AA35: 0 | AB35: 0 | AC35: 0 | AD35: 0 | AE35: 0 | AF35: 0 | AG35: 0
C36: Unplanned replacements | G36: =input_dollars -> 2023-12-31 | I36: 0 | J36: 0 | K36: 0 | L36: 0 | M36: 0 | N36: 0 | O36: 0 | P36: 0 | Q36: 0 | R36: 0 | S36: 0 | T36: 0 | U36: 0 | V36: 0 | W36: 0 | X36: 0 | Y36: 0 | Z36: 0 | AA36: 0 | AB36: 0 | AC36: 0 | AD36: 0 | AE36: 0 | AF36: 0 | AG36: 0
C37: Environmental consequence | D37: (after DF) | G37: =input_dollars -> 2023-12-31 | I37: 0 | J37: 0 | K37: 0 | L37: 0 | M37: 0 | N37: 0 | O37: 0 | P37: 0 | Q37: 0 | R37: 0 | S37: 0 | T37: 0 | U37: 0 | V37: 0 | W37: 0 | X37: 0 | Y37: 0 | Z37: 0 | AA37: 0 | AB37: 0 | AC37: 0 | AD37: 0 | AE37: 0 | AF37: 0 | AG37: 0
C38: < Other risk - enter description > | G38: =input_dollars -> 2023-12-31 | I38: 0 | J38: 0 | K38: 0 | L38: 0 | M38: 0 | N38: 0 | O38: 0 | P38: 0 | Q38: 0 | R38: 0 | S38: 0 | T38: 0 | U38: 0 | V38: 0 | W38: 0 | X38: 0 | Y38: 0 | Z38: 0 | AA38: 0 | AB38: 0 | AC38: 0 | AD38: 0 | AE38: 0 | AF38: 0 | AG38: 0
C39: < Other risk - enter description > | G39: =input_dollars -> 2023-12-31 | I39: 0 | J39: 0 | K39: 0 | L39: 0 | M39: 0 | N39: 0 | O39: 0 | P39: 0 | Q39: 0 | R39: 0 | S39: 0 | T39: 0 | U39: 0 | V39: 0 | W39: 0 | X39: 0 | Y39: 0 | Z39: 0 | AA39: 0 | AB39: 0 | AC39: 0 | AD39: 0 | AE39: 0 | AF39: 0 | AG39: 0
C41: Total risk cost | I41: =SUM(I33:I39) -> 6234848.062 | J41: =SUM(J33:J39) -> 3844869.052 | K41: 3074401.242 | L41: 5891205.141 | M41: 3506440.489 | N41: 1877466.45 | O41: 3581505.33 | P41: 6109251.591 | Q41: 9420956.71 | R41: 8735318.76 | S41: 8735409.442 | T41: 8735512.213 | U41: 8735615.097 | V41: 8735719.694 | W41: 8735906.673 | X41: 8736009.904 | Y41: 8736114.866 | Z41: 8736218.327 | AA41: 8736369.343 | AB41: 8736513.522 | AC41: =SUM(AC33:AC39) -> 8736618.998 | AD41: =SUM(AD33:AD39) -> 8736766.485 | AE41: =SUM(AE33:AE39) -> 8736874.595 | AF41: =SUM(AF33:AF39) -> 8737022.326 | AG41: =SUM(AG33:AG39) -> 0
A43: OTHER BENEFITS
C46: Reduction in CO2 emissions | G46: MWh | I46: 0 | J46: 0 | K46: 0 | L46: 0 | M46: 0 | N46: 0 | O46: 0 | P46: 0 | Q46: 0 | R46: 0 | S46: 0 | T46: 0 | U46: 0 | V46: 0 | W46: 0 | X46: 0 | Y46: 0 | Z46: 0 | AA46: 0 | AB46: 0 | AC46: 0 | AD46: 0 | AE46: 0 | AF46: 0 | AG46: 0
C47: Value of reduction in CO2 emissions | G47: $ | I47: =I46*I7 -> 0 | J47: 0 | K47: 0 | L47: 0 | M47: 0 | N47: 0 | O47: 0 | P47: 0 | Q47: 0 | R47: 0 | S47: 0 | T47: 0 | U47: 0 | V47: 0 | W47: 0 | X47: 0 | Y47: 0 | Z47: 0 | AA47: 0 | AB47: 0 | AC47: 0 | AD47: 0 | AE47: 0 | AF47: 0 | AG47: 0
C50: Reliability in worst-served areas | D50: $/MWh | E50: =Assumptions!G94 -> 151432.8174 | G50: MWh | I50: 0 | J50: 0 | K50: 0 | L50: 0 | M50: 0 | N50: 0 | O50: 0 | P50: 0 | Q50: 0 | R50: 0 | S50: 0 | T50: 0 | U50: 0 | V50: 0 | W50: 0 | X50: 0 | Y50: 0 | Z50: 0 | AA50: 0 | AB50: 0 | AC50: 0 | AD50: 0 | AE50: 0 | AF50: 0 | AG50: 0
C51: Network resilience | D51: $/MWh | E51: =Assumptions!G95 -> 24590 | G51: MWh | I51: 0 | J51: 0 | K51: 0 | L51: 0 | M51: 0 | N51: 0 | O51: 0 | P51: 0 | Q51: 0 | R51: 0 | S51: 0 | T51: 0 | U51: 0 | V51: 0 | W51: 0 | X51: 0 | Y51: 0 | Z51: 0 | AA51: 0 | AB51: 0 | AC51: 0 | AD51: 0 | AE51: 0 | AF51: 0 | AG51: 0
C52: Enabling solar exports | D52: $/MWh | E52: =Assumptions!G96 -> 88.35771951 | G52: MWh | I52: 0 | J52: 0 | K52: 0 | L52: 0 | M52: 0 | N52: 0 | O52: 0 | P52: 0 | Q52: 0 | R52: 0 | S52: 0 | T52: 0 | U52: 0 | V52: 0 | W52: 0 | X52: 0 | Y52: 0 | Z52: 0 | AA52: 0 | AB52: 0 | AC52: 0 | AD52: 0 | AE52: 0 | AF52: 0 | AG52: 0
C53: Aesthetics | D53: $/customer | E53: =Assumptions!G97 -> 0 | G53: customers | I53: 0 | J53: 0 | K53: 0 | L53: 0 | M53: 0 | N53: 0 | O53: 0 | P53: 0 | Q53: 0 | R53: 0 | S53: 0 | T53: 0 | U53: 0 | V53: 0 | W53: 0 | X53: 0 | Y53: 0 | Z53: 0 | AA53: 0 | AB53: 0 | AC53: 0 | AD53: 0 | AE53: 0 | AF53: 0 | AG53: 0
C54: Customer value of time (res) | D54: $/customer min | E54: =Assumptions!G98 -> 0.3518133654 | G54: mins | I54: 0 | J54: 0 | K54: 0 | L54: 0 | M54: 0 | N54: 0 | O54: 0 | P54: 0 | Q54: 0 | R54: 0 | S54: 0 | T54: 0 | U54: 0 | V54: 0 | W54: 0 | X54: 0 | Y54: 0 | Z54: 0 | AA54: 0 | AB54: 0 | AC54: 0 | AD54: 0 | AE54: 0 | AF54: 0 | AG54: 0
C55: Customer value of time (bus) | D55: $/customer min | E55: =Assumptions!G99 -> 0.3518133654 | G55: mins | I55: 0 | J55: 0 | K55: 0 | L55: 0 | M55: 0 | N55: 0 | O55: 0 | P55: 0 | Q55: 0 | R55: 0 | S55: 0 | T55: 0 | U55: 0 | V55: 0 | W55: 0 | X55: 0 | Y55: 0 | Z55: 0 | AA55: 0 | AB55: 0 | AC55: 0 | AD55: 0 | AE55: 0 | AF55: 0 | AG55: 0
C56: Communication | D56: $/customer | E56: =Assumptions!G100 -> 0 | G56: customers | I56: 0 | J56: 0 | K56: 0 | L56: 0 | M56: 0 | N56: 0 | O56: 0 | P56: 0 | Q56: 0 | R56: 0 | S56: 0 | T56: 0 | U56: 0 | V56: 0 | W56: 0 | X56: 0 | Y56: 0 | Z56: 0 | AA56: 0 | AB56: 0 | AC56: 0 | AD56: 0 | AE56: 0 | AF56: 0 | AG56: 0
C57: Information accessibility | D57: $/customer | E57: =Assumptions!G101 -> 0 | G57: customers | I57: 0 | J57: 0 | K57: 0 | L57: 0 | M57: 0 | N57: 0 | O57: 0 | P57: 0 | Q57: 0 | R57: 0 | S57: 0 | T57: 0 | U57: 0 | V57: 0 | W57: 0 | X57: 0 | Y57: 0 | Z57: 0 | AA57: 0 | AB57: 0 | AC57: 0 | AD57: 0 | AE57: 0 | AF57: 0 | AG57: 0
C59: Other benefits 1 | G59: =input_dollars -> 2023-12-31 | I59: 0 | J59: 0 | K59: 0 | L59: 0 | M59: 0 | N59: 0 | O59: 0 | P59: 0 | Q59: 0 | R59: 0 | S59: 0 | T59: 0 | U59: 0 | V59: 0 | W59: 0 | X59: 0 | Y59: 0 | Z59: 0 | AA59: 0 | AB59: 0 | AC59: 0 | AD59: 0 | AE59: 0 | AF59: 0 | AG59: 0
C60: Other benefits 2 | G60: =input_dollars -> 2023-12-31 | I60: 0 | J60: 0 | K60: 0 | L60: 0 | M60: 0 | N60: 0 | O60: 0 | P60: 0 | Q60: 0 | R60: 0 | S60: 0 | T60: 0 | U60: 0 | V60: 0 | W60: 0 | X60: 0 | Y60: 0 | Z60: 0 | AA60: 0 | AB60: 0 | AC60: 0 | AD60: 0 | AE60: 0 | AF60: 0 | AG60: 0
C62: Total other benefits | G62: =input_dollars -> 2023-12-31 | I62: =SUMPRODUCT((I$50:I$57)*($E$50:$E$57))+SUM(I59:I60)+I47 -> 0 | J62: =SUMPRODUCT((J$50:J$57)*($E$50:$E$57))+SUM(J59:J60)+J47 -> 0 | K62: =SUMPRODUCT((K$50:K$57)*($E$50:$E$57))+SUM(K59:K60)+K47 -> 0 | L62: =SUMPRODUCT((L$50:L$57)*($E$50:$E$57))+SUM(L59:L60)+L47 -> 0 | M62: =SUMPRODUCT((M$50:M$57)*($E$50:$E$57))+SUM(M59:M60)+M47 -> 0 | N62: =SUMPRODUCT((N$50:N$57)*($E$50:$E$57))+SUM(N59:N60)+N47 -> 0 | O62: =SUMPRODUCT((O$50:O$57)*($E$50:$E$57))+SUM(O59:O60)+O47 -> 0 | P62: =SUMPRODUCT((P$50:P$57)*($E$50:$E$57))+SUM(P59:P60)+P47 -> 0 | Q62: =SUMPRODUCT((Q$50:Q$57)*($E$50:$E$57))+SUM(Q59:Q60)+Q47 -> 0 | R62: =SUMPRODUCT((R$50:R$57)*($E$50:$E$57))+SUM(R59:R60)+R47 -> 0 | S62: =SUMPRODUCT((S$50:S$57)*($E$50:$E$57))+SUM(S59:S60)+S47 -> 0 | T62: =SUMPRODUCT((T$50:T$57)*($E$50:$E$57))+SUM(T59:T60)+T47 -> 0 | U62: =SUMPRODUCT((U$50:U$57)*($E$50:$E$57))+SUM(U59:U60)+U47 -> 0 | V62: =SUMPRODUCT((V$50:V$57)*($E$50:$E$57))+SUM(V59:V60)+V47 -> 0 | W62: =SUMPRODUCT((W$50:W$57)*($E$50:$E$57))+SUM(W59:W60)+W47 -> 0 | X62: =SUMPRODUCT((X$50:X$57)*($E$50:$E$57))+SUM(X59:X60)+X47 -> 0 | Y62: =SUMPRODUCT((Y$50:Y$57)*($E$50:$E$57))+SUM(Y59:Y60)+Y47 -> 0 | Z62: =SUMPRODUCT((Z$50:Z$57)*($E$50:$E$57))+SUM(Z59:Z60)+Z47 -> 0 | AA62: =SUMPRODUCT((AA$50:AA$57)*($E$50:$E$57))+SUM(AA59:AA60)+AA47 -> 0 | AB62: =SUMPRODUCT((AB$50:AB$57)*($E$50:$E$57))+SUM(AB59:AB60)+AB47 -> 0 | AC62: =SUMPRODUCT((AC$50:AC$57)*($E$50:$E$57))+SUM(AC59:AC60)+AC47 -> 0 | AD62: =SUMPRODUCT((AD$50:AD$57)*($E$50:$E$57))+SUM(AD59:AD60)+AD47 -> 0 | AE62: =SUMPRODUCT((AE$50:AE$57)*($E$50:$E$57))+SUM(AE59:AE60)+AE47 -> 0 | AF62: =SUMPRODUCT((AF$50:AF$57)*($E$50:$E$57))+SUM(AF59:AF60)+AF47 -> 0 | AG62: =SUMPRODUCT((AG$50:AG$57)*($E$50:$E$57))+SUM(AG59:AG60)+AG47 -> 0
A65: SUMMARY
C69: ='Option1 (base case)'!C69 -> Risks mitigated vs base case | G69: =input_dollars -> 2023-12-31 | I69: =(1-INDEX(Data!$C$9:$C$13, MATCH($A$3, options,0)))*('Option1 (base case)'!I41-I41) -> 0 | J69: =(1-INDEX(Data!$C$9:$C$13, MATCH($A$3, options,0)))*('Option1 (base case)'!J41-J41) -> 6820420.769 | K69: =(1-INDEX(Data!$C$9:$C$13, MATCH($A$3, options,0)))*('Option1 (base case)'!K41-K41) -> 14452107.1 | L69: =(1-INDEX(Data!$C$9:$C$13, MATCH($A$3, options,0)))*('Option1 (base case)'!L41-L41) -> 21875543.71 | M69: =(1-INDEX(Data!$C$9:$C$13, MATCH($A$3, options,0)))*('Option1 (base case)'!M41-M41) -> 45541600.08 | N69: =(1-INDEX(Data!$C$9:$C$13, MATCH($A$3, options,0)))*('Option1 (base case)'!N41-N41) -> 96265884.95 | O69: =(1-INDEX(Data!$C$9:$C$13, MATCH($A$3, options,0)))*('Option1 (base case)'!O41-O41) -> 190164288.1 | P69: =(1-INDEX(Data!$C$9:$C$13, MATCH($A$3, options,0)))*('Option1 (base case)'!P41-P41) -> 329124446.2 | Q69: =(1-INDEX(Data!$C$9:$C$13, MATCH($A$3, options,0)))*('Option1 (base case)'!Q41-Q41) -> 506225806.5 | R69: =(1-INDEX(Data!$C$9:$C$13, MATCH($A$3, options,0)))*('Option1 (base case)'!R41-R41) -> 506911444.4 | S69: =(1-INDEX(Data!$C$9:$C$13, MATCH($A$3, options,0)))*('Option1 (base case)'!S41-S41) -> 506911353.8 | T69: =(1-INDEX(Data!$C$9:$C$13, MATCH($A$3, options,0)))*('Option1 (base case)'!T41-T41) -> 506911251 | U69: =(1-INDEX(Data!$C$9:$C$13, MATCH($A$3, options,0)))*('Option1 (base case)'!U41-U41) -> 506911148.1 | V69: =(1-INDEX(Data!$C$9:$C$13, MATCH($A$3, options,0)))*('Option1 (base case)'!V41-V41) -> 506911043.5 | W69: =(1-INDEX(Data!$C$9:$C$13, MATCH($A$3, options,0)))*('Option1 (base case)'!W41-W41) -> 506910856.5 | X69: =(1-INDEX(Data!$C$9:$C$13, MATCH($A$3, options,0)))*('Option1 (base case)'!X41-X41) -> 506910753.3 | Y69: =(1-INDEX(Data!$C$9:$C$13, MATCH($A$3, options,0)))*('Option1 (base case)'!Y41-Y41) -> 506910648.3 | Z69: =(1-INDEX(Data!$C$9:$C$13, MATCH($A$3, options,0)))*('Option1 (base case)'!Z41-Z41) -> 506910544.9 | AA69: =(1-INDEX(Data!$C$9:$C$13, MATCH($A$3, options,0)))*('Option1 (base case)'!AA41-AA41) -> 506910393.9 | AB69: =(1-INDEX(Data!$C$9:$C$13, MATCH($A$3, options,0)))*('Option1 (base case)'!AB41-AB41) -> 506910249.7 | AC69: =(1-INDEX(Data!$C$9:$C$13, MATCH($A$3, options,0)))*('Option1 (base case)'!AC41-AC41) -> 506910144.2 | AD69: =(1-INDEX(Data!$C$9:$C$13, MATCH($A$3, options,0)))*('Option1 (base case)'!AD41-AD41) -> 506909996.7 | AE69: =(1-INDEX(Data!$C$9:$C$13, MATCH($A$3, options,0)))*('Option1 (base case)'!AE41-AE41) -> 506909888.6 | AF69: =(1-INDEX(Data!$C$9:$C$13, MATCH($A$3, options,0)))*('Option1 (base case)'!AF41-AF41) -> 506909740.9 | AG69: =(1-INDEX(Data!$C$9:$C$13, MATCH($A$3, options,0)))*('Option1 (base case)'!AG41-AG41) -> 515646763.2
C71: Capital expenditure
C72: =C14 -> MTC 3rd Tx | G72: =input_dollars -> 2023-12-31 | I72: =-I14 -> -14291649 | J72: 0 | K72: 0 | L72: 0 | M72: 0 | N72: 0 | O72: 0 | P72: 0 | Q72: 0 | R72: 0 | S72: 0 | T72: 0 | U72: 0 | V72: 0 | W72: 0 | X72: 0 | Y72: 0 | Z72: 0 | AA72: 0 | AB72: 0 | AC72: 0 | AD72: 0 | AE72: 0 | AF72: 0 | AG72: 0
C73: =C15 -> BMH Rebuild | G73: =input_dollars -> 2023-12-31 | I73: =-I15 -> -13551742.67 | J73: -13551742.67 | K73: 0 | L73: 0 | M73: 0 | N73: 0 | O73: 0 | P73: 0 | Q73: 0 | R73: 0 | S73: 0 | T73: 0 | U73: 0 | V73: 0 | W73: 0 | X73: 0 | Y73: 0 | Z73: 0 | AA73: 0 | AB73: 0 | AC73: 0 | AD73: 0 | AE73: 0 | AF73: 0 | AG73: 0
C74: =C16 -> New RBE ZSS | G74: =input_dollars -> 2023-12-31 | I74: =-I16 -> 0 | J74: -5291808.87 | K74: -17564061.24 | L74: -16105016.89 | M74: 0 | N74: 0 | O74: 0 | P74: 0 | Q74: 0 | R74: 0 | S74: 0 | T74: 0 | U74: 0 | V74: 0 | W74: 0 | X74: 0 | Y74: 0 | Z74: 0 | AA74: 0 | AB74: 0 | AC74: 0 | AD74: 0 | AE74: 0 | AF74: 0 | AG74: 0
C75: =C17 -> PCK Stage 1 | G75: =input_dollars -> 2023-12-31 | I75: =-I17 -> 0 | J75: 0 | K75: -5408395.3 | L75: -24286555.6 | M75: -22244579.1 | N75: 0 | O75: 0 | P75: 0 | Q75: 0 | R75: -10425980.33 | S75: 0 | T75: 0 | U75: 0 | V75: 0 | W75: 0 | X75: 0 | Y75: 0 | Z75: 0 | AA75: 0 | AB75: 0 | AC75: 0 | AD75: 0 | AE75: 0 | AF75: 0 | AG75: 0
C77: Cumulative capex
C78: =C14 -> MTC 3rd Tx | G78: =input_dollars -> 2023-12-31 | I78: =SUMPRODUCT(($I72:I72))-SUMPRODUCT(($I72:I72)*($I$6:I$6<=(I$6-$E14))) -> -14291649 | J78: =SUMPRODUCT(($I72:J72))-SUMPRODUCT(($I72:J72)*($I$6:J$6<=(J$6-$E14))) -> -14291649 | K78: =SUMPRODUCT(($I72:K72))-SUMPRODUCT(($I72:K72)*($I$6:K$6<=(K$6-$E14))) -> -14291649 | L78: =SUMPRODUCT(($I72:L72))-SUMPRODUCT(($I72:L72)*($I$6:L$6<=(L$6-$E14))) -> -14291649 | M78: =SUMPRODUCT(($I72:M72))-SUMPRODUCT(($I72:M72)*($I$6:M$6<=(M$6-$E14))) -> -14291649 | N78: =SUMPRODUCT(($I72:N72))-SUMPRODUCT(($I72:N72)*($I$6:N$6<=(N$6-$E14))) -> -14291649 | O78: =SUMPRODUCT(($I72:O72))-SUMPRODUCT(($I72:O72)*($I$6:O$6<=(O$6-$E14))) -> -14291649 | P78: =SUMPRODUCT(($I72:P72))-SUMPRODUCT(($I72:P72)*($I$6:P$6<=(P$6-$E14))) -> -14291649 | Q78: =SUMPRODUCT(($I72:Q72))-SUMPRODUCT(($I72:Q72)*($I$6:Q$6<=(Q$6-$E14))) -> -14291649 | R78: =SUMPRODUCT(($I72:R72))-SUMPRODUCT(($I72:R72)*($I$6:R$6<=(R$6-$E14))) -> -14291649 | S78: =SUMPRODUCT(($I72:S72))-SUMPRODUCT(($I72:S72)*($I$6:S$6<=(S$6-$E14))) -> -14291649 | T78: =SUMPRODUCT(($I72:T72))-SUMPRODUCT(($I72:T72)*($I$6:T$6<=(T$6-$E14))) -> -14291649 | U78: =SUMPRODUCT(($I72:U72))-SUMPRODUCT(($I72:U72)*($I$6:U$6<=(U$6-$E14))) -> -14291649 | V78: =SUMPRODUCT(($I72:V72))-SUMPRODUCT(($I72:V72)*($I$6:V$6<=(V$6-$E14))) -> -14291649 | W78: =SUMPRODUCT(($I72:W72))-SUMPRODUCT(($I72:W72)*($I$6:W$6<=(W$6-$E14))) -> -14291649 | X78: =SUMPRODUCT(($I72:X72))-SUMPRODUCT(($I72:X72)*($I$6:X$6<=(X$6-$E14))) -> -14291649 | Y78: =SUMPRODUCT(($I72:Y72))-SUMPRODUCT(($I72:Y72)*($I$6:Y$6<=(Y$6-$E14))) -> -14291649 | Z78: =SUMPRODUCT(($I72:Z72))-SUMPRODUCT(($I72:Z72)*($I$6:Z$6<=(Z$6-$E14))) -> -14291649 | AA78: =SUMPRODUCT(($I72:AA72))-SUMPRODUCT(($I72:AA72)*($I$6:AA$6<=(AA$6-$E14))) -> -14291649 | AB78: =SUMPRODUCT(($I72:AB72))-SUMPRODUCT(($I72:AB72)*($I$6:AB$6<=(AB$6-$E14))) -> -14291649 | AC78: =SUMPRODUCT(($I72:AC72))-SUMPRODUCT(($I72:AC72)*($I$6:AC$6<=(AC$6-$E14))) -> -14291649 | AD78: =SUMPRODUCT(($I72:AD72))-SUMPRODUCT(($I72:AD72)*($I$6:AD$6<=(AD$6-$E14))) -> -14291649 | AE78: =SUMPRODUCT(($I72:AE72))-SUMPRODUCT(($I72:AE72)*($I$6:AE$6<=(AE$6-$E14))) -> -14291649 | AF78: =SUMPRODUCT(($I72:AF72))-SUMPRODUCT(($I72:AF72)*($I$6:AF$6<=(AF$6-$E14))) -> -14291649 | AG78: =SUMPRODUCT(($I72:AG72))-SUMPRODUCT(($I72:AG72)*($I$6:AG$6<=(AG$6-$E14))) -> -14291649
C79: =C16 -> New RBE ZSS | G79: =input_dollars -> 2023-12-31 | I79: =SUMPRODUCT(($I74:I74))-SUMPRODUCT(($I74:I74)*($I$6:I$6<=(I$6-$E16))) -> 0 | J79: =SUMPRODUCT(($I74:J74))-SUMPRODUCT(($I74:J74)*($I$6:J$6<=(J$6-$E16))) -> -5291808.87 | K79: =SUMPRODUCT(($I74:K74))-SUMPRODUCT(($I74:K74)*($I$6:K$6<=(K$6-$E16))) -> -22855870.11 | L79: =SUMPRODUCT(($I74:L74))-SUMPRODUCT(($I74:L74)*($I$6:L$6<=(L$6-$E16))) -> -38960887 | M79: =SUMPRODUCT(($I74:M74))-SUMPRODUCT(($I74:M74)*($I$6:M$6<=(M$6-$E16))) -> -38960887 | N79: =SUMPRODUCT(($I74:N74))-SUMPRODUCT(($I74:N74)*($I$6:N$6<=(N$6-$E16))) -> -38960887 | O79: =SUMPRODUCT(($I74:O74))-SUMPRODUCT(($I74:O74)*($I$6:O$6<=(O$6-$E16))) -> -38960887 | P79: =SUMPRODUCT(($I74:P74))-SUMPRODUCT(($I74:P74)*($I$6:P$6<=(P$6-$E16))) -> -38960887 | Q79: =SUMPRODUCT(($I74:Q74))-SUMPRODUCT(($I74:Q74)*($I$6:Q$6<=(Q$6-$E16))) -> -38960887 | R79: =SUMPRODUCT(($I74:R74))-SUMPRODUCT(($I74:R74)*($I$6:R$6<=(R$6-$E16))) -> -38960887 | S79: =SUMPRODUCT(($I74:S74))-SUMPRODUCT(($I74:S74)*($I$6:S$6<=(S$6-$E16))) -> -38960887 | T79: =SUMPRODUCT(($I74:T74))-SUMPRODUCT(($I74:T74)*($I$6:T$6<=(T$6-$E16))) -> -38960887 | U79: =SUMPRODUCT(($I74:U74))-SUMPRODUCT(($I74:U74)*($I$6:U$6<=(U$6-$E16))) -> -38960887 | V79: =SUMPRODUCT(($I74:V74))-SUMPRODUCT(($I74:V74)*($I$6:V$6<=(V$6-$E16))) -> -38960887 | W79: =SUMPRODUCT(($I74:W74))-SUMPRODUCT(($I74:W74)*($I$6:W$6<=(W$6-$E16))) -> -38960887 | X79: =SUMPRODUCT(($I74:X74))-SUMPRODUCT(($I74:X74)*($I$6:X$6<=(X$6-$E16))) -> -38960887 | Y79: =SUMPRODUCT(($I74:Y74))-SUMPRODUCT(($I74:Y74)*($I$6:Y$6<=(Y$6-$E16))) -> -38960887 | Z79: =SUMPRODUCT(($I74:Z74))-SUMPRODUCT(($I74:Z74)*($I$6:Z$6<=(Z$6-$E16))) -> -38960887 | AA79: =SUMPRODUCT(($I74:AA74))-SUMPRODUCT(($I74:AA74)*($I$6:AA$6<=(AA$6-$E16))) -> -38960887 | AB79: =SUMPRODUCT(($I74:AB74))-SUMPRODUCT(($I74:AB74)*($I$6:AB$6<=(AB$6-$E16))) -> -38960887 | AC79: =SUMPRODUCT(($I74:AC74))-SUMPRODUCT(($I74:AC74)*($I$6:AC$6<=(AC$6-$E16))) -> -38960887 | AD79: =SUMPRODUCT(($I74:AD74))-SUMPRODUCT(($I74:AD74)*($I$6:AD$6<=(AD$6-$E16))) -> -38960887 | AE79: =SUMPRODUCT(($I74:AE74))-SUMPRODUCT(($I74:AE74)*($I$6:AE$6<=(AE$6-$E16))) -> -38960887 | AF79: =SUMPRODUCT(($I74:AF74))-SUMPRODUCT(($I74:AF74)*($I$6:AF$6<=(AF$6-$E16))) -> -38960887 | AG79: =SUMPRODUCT(($I74:AG74))-SUMPRODUCT(($I74:AG74)*($I$6:AG$6<=(AG$6-$E16))) -> -38960887
C80: =C17 -> PCK Stage 1 | G80: =input_dollars -> 2023-12-31 | I80: =SUMPRODUCT(($I75:I75))-SUMPRODUCT(($I75:I75)*($I$6:I$6<=(I$6-$E17))) -> 0 | J80: =SUMPRODUCT(($I75:J75))-SUMPRODUCT(($I75:J75)*($I$6:J$6<=(J$6-$E17))) -> 0 | K80: =SUMPRODUCT(($I75:K75))-SUMPRODUCT(($I75:K75)*($I$6:K$6<=(K$6-$E17))) -> -5408395.3 | L80: =SUMPRODUCT(($I75:L75))-SUMPRODUCT(($I75:L75)*($I$6:L$6<=(L$6-$E17))) -> -29694950.9 | M80: =SUMPRODUCT(($I75:M75))-SUMPRODUCT(($I75:M75)*($I$6:M$6<=(M$6-$E17))) -> -51939530 | N80: =SUMPRODUCT(($I75:N75))-SUMPRODUCT(($I75:N75)*($I$6:N$6<=(N$6-$E17))) -> -51939530 | O80: =SUMPRODUCT(($I75:O75))-SUMPRODUCT(($I75:O75)*($I$6:O$6<=(O$6-$E17))) -> -51939530 | P80: =SUMPRODUCT(($I75:P75))-SUMPRODUCT(($I75:P75)*($I$6:P$6<=(P$6-$E17))) -> -51939530 | Q80: =SUMPRODUCT(($I75:Q75))-SUMPRODUCT(($I75:Q75)*($I$6:Q$6<=(Q$6-$E17))) -> -51939530 | R80: =SUMPRODUCT(($I75:R75))-SUMPRODUCT(($I75:R75)*($I$6:R$6<=(R$6-$E17))) -> -62365510.33 | S80: =SUMPRODUCT(($I75:S75))-SUMPRODUCT(($I75:S75)*($I$6:S$6<=(S$6-$E17))) -> -62365510.33 | T80: =SUMPRODUCT(($I75:T75))-SUMPRODUCT(($I75:T75)*($I$6:T$6<=(T$6-$E17))) -> -62365510.33 | U80: =SUMPRODUCT(($I75:U75))-SUMPRODUCT(($I75:U75)*($I$6:U$6<=(U$6-$E17))) -> -62365510.33 | V80: =SUMPRODUCT(($I75:V75))-SUMPRODUCT(($I75:V75)*($I$6:V$6<=(V$6-$E17))) -> -62365510.33 | W80: =SUMPRODUCT(($I75:W75))-SUMPRODUCT(($I75:W75)*($I$6:W$6<=(W$6-$E17))) -> -62365510.33 | X80: =SUMPRODUCT(($I75:X75))-SUMPRODUCT(($I75:X75)*($I$6:X$6<=(X$6-$E17))) -> -62365510.33 | Y80: =SUMPRODUCT(($I75:Y75))-SUMPRODUCT(($I75:Y75)*($I$6:Y$6<=(Y$6-$E17))) -> -62365510.33 | Z80: =SUMPRODUCT(($I75:Z75))-SUMPRODUCT(($I75:Z75)*($I$6:Z$6<=(Z$6-$E17))) -> -62365510.33 | AA80: =SUMPRODUCT(($I75:AA75))-SUMPRODUCT(($I75:AA75)*($I$6:AA$6<=(AA$6-$E17))) -> -62365510.33 | AB80: =SUMPRODUCT(($I75:AB75))-SUMPRODUCT(($I75:AB75)*($I$6:AB$6<=(AB$6-$E17))) -> -62365510.33 | AC80: =SUMPRODUCT(($I75:AC75))-SUMPRODUCT(($I75:AC75)*($I$6:AC$6<=(AC$6-$E17))) -> -62365510.33 | AD80: =SUMPRODUCT(($I75:AD75))-SUMPRODUCT(($I75:AD75)*($I$6:AD$6<=(AD$6-$E17))) -> -62365510.33 | AE80: =SUMPRODUCT(($I75:AE75))-SUMPRODUCT(($I75:AE75)*($I$6:AE$6<=(AE$6-$E17))) -> -62365510.33 | AF80: =SUMPRODUCT(($I75:AF75))-SUMPRODUCT(($I75:AF75)*($I$6:AF$6<=(AF$6-$E17))) -> -62365510.33 | AG80: =SUMPRODUCT(($I75:AG75))-SUMPRODUCT(($I75:AG75)*($I$6:AG$6<=(AG$6-$E17))) -> -62365510.33
C82: Annualised capex
C83: =$C$82&" - "&C14 -> Annualised capex - MTC 3rd Tx | G83: =input_dollars -> 2023-12-31 | I83: =IF($E14=0,0,-PMT(real_disc, $E14,H78,)) -> 0 | J83: -609306.0127 | K83: -609306.0127 | L83: -609306.0127 | M83: -609306.0127 | N83: -609306.0127 | O83: -609306.0127 | P83: -609306.0127 | Q83: -609306.0127 | R83: -609306.0127 | S83: -609306.0127 | T83: -609306.0127 | U83: -609306.0127 | V83: -609306.0127 | W83: -609306.0127 | X83: -609306.0127 | Y83: -609306.0127 | Z83: -609306.0127 | AA83: -609306.0127 | AB83: -609306.0127 | AC83: -609306.0127 | AD83: -609306.0127 | AE83: -609306.0127 | AF83: -609306.0127 | AG83: -609306.0127
C84: =$C$82&" - "&C16 -> Annualised capex - New RBE ZSS | G84: =input_dollars -> 2023-12-31 | I84: =IF($E16=0,0,-PMT(real_disc, $E16,H79,)) -> 0 | J84: 0 | K84: -225609.4424 | L84: -974430.5282 | M84: -1661047.141 | N84: -1661047.141 | O84: -1661047.141 | P84: -1661047.141 | Q84: -1661047.141 | R84: -1661047.141 | S84: -1661047.141 | T84: -1661047.141 | U84: -1661047.141 | V84: -1661047.141 | W84: -1661047.141 | X84: -1661047.141 | Y84: -1661047.141 | Z84: -1661047.141 | AA84: -1661047.141 | AB84: -1661047.141 | AC84: -1661047.141 | AD84: -1661047.141 | AE84: -1661047.141 | AF84: -1661047.141 | AG84: -1661047.141
C85: =$C$82&" - "&C17 -> Annualised capex - PCK Stage 1 | G85: =input_dollars -> 2023-12-31 | I85: =IF($E17=0,0,-PMT(real_disc, $E17,H80,)) -> 0 | J85: 0 | K85: 0 | L85: -230579.9544 | M85: -1266005.912 | N85: -2214374.837 | O85: -2214374.837 | P85: -2214374.837 | Q85: -2214374.837 | R85: -2214374.837 | S85: -2658873.055 | T85: -2658873.055 | U85: -2658873.055 | V85: -2658873.055 | W85: -2658873.055 | X85: -2658873.055 | Y85: -2658873.055 | Z85: -2658873.055 | AA85: -2658873.055 | AB85: -2658873.055 | AC85: -2658873.055 | AD85: -2658873.055 | AE85: -2658873.055 | AF85: -2658873.055 | AG85: -2658873.055
C86: Total annualised capex | G86: =input_dollars -> 2023-12-31 | I86: =SUM(I83:I85) -> 0 | J86: =SUM(J83:J85) -> -609306.0127 | K86: -834915.4551 | L86: -1814316.495 | M86: -3536359.066 | N86: -4484727.991 | O86: -4484727.991 | P86: -4484727.991 | Q86: -4484727.991 | R86: -4484727.991 | S86: -4929226.208 | T86: -4929226.208 | U86: -4929226.208 | V86: -4929226.208 | W86: -4929226.208 | X86: -4929226.208 | Y86: -4929226.208 | Z86: -4929226.208 | AA86: -4929226.208 | AB86: -4929226.208 | AC86: =SUM(AC83:AC85) -> -4929226.208 | AD86: =SUM(AD83:AD85) -> -4929226.208 | AE86: =SUM(AE83:AE85) -> -4929226.208 | AF86: =SUM(AF83:AF85) -> -4929226.208 | AG86: =SUM(AG83:AG85) -> -4929226.208
C88: Annualised capex | G88: =input_dollars -> 2023-12-31 | I88: =I86 -> 0 | J88: =J86 -> -609306.0127 | K88: -834915.4551 | L88: -1814316.495 | M88: -3536359.066 | N88: -4484727.991 | O88: -4484727.991 | P88: -4484727.991 | Q88: -4484727.991 | R88: -4484727.991 | S88: -4929226.208 | T88: -4929226.208 | U88: -4929226.208 | V88: -4929226.208 | W88: -4929226.208 | X88: -4929226.208 | Y88: -4929226.208 | Z88: -4929226.208 | AA88: -4929226.208 | AB88: -4929226.208 | AC88: =AC86 -> -4929226.208 | AD88: =AD86 -> -4929226.208 | AE88: =AE86 -> -4929226.208 | AF88: =AF86 -> -4929226.208 | AG88: =AG86 -> -4929226.208
C89: Operating expenditure | G89: 2023-12-31 | I89: =-I20 -> 0 | J89: 0 | K89: 0 | L89: 0 | M89: 0 | N89: 0 | O89: 0 | P89: 0 | Q89: 0 | R89: 0 | S89: 0 | T89: 0 | U89: 0 | V89: 0 | W89: 0 | X89: 0 | Y89: 0 | Z89: 0 | AA89: 0 | AB89: 0 | AC89: 0 | AD89: 0 | AE89: 0 | AF89: 0 | AG89: 0
C90: Risk mitigated | G90: 2023-12-31 | I90: =I69 -> 0 | J90: 6820420.769 | K90: 14452107.1 | L90: 21875543.71 | M90: 45541600.08 | N90: 96265884.95 | O90: 190164288.1 | P90: 329124446.2 | Q90: 506225806.5 | R90: 506911444.4 | S90: 506911353.8 | T90: 506911251 | U90: 506911148.1 | V90: 506911043.5 | W90: 506910856.5 | X90: 506910753.3 | Y90: 506910648.3 | Z90: 506910544.9 | AA90: 506910393.9 | AB90: 506910249.7 | AC90: 506910144.2 | AD90: 506909996.7 | AE90: 506909888.6 | AF90: 506909740.9 | AG90: 515646763.2
C91: Other benefits value | G91: 2023-12-31 | I91: =I62 -> 0 | J91: 0 | K91: 0 | L91: 0 | M91: 0 | N91: 0 | O91: 0 | P91: 0 | Q91: 0 | R91: 0 | S91: 0 | T91: 0 | U91: 0 | V91: 0 | W91: 0 | X91: 0 | Y91: 0 | Z91: 0 | AA91: 0 | AB91: 0 | AC91: 0 | AD91: 0 | AE91: 0 | AF91: 0 | AG91: 0
C93: Net benefits | G93: 2023-12-31 | I93: =SUM(I88:I92) -> 0 | J93: 6211114.757 | K93: 13617191.64 | L93: 20061227.21 | M93: 42005241.01 | N93: 91781156.96 | O93: 185679560.1 | P93: 324639718.2 | Q93: 501741078.5 | R93: 502426716.4 | S93: 501982127.5 | T93: 501982024.8 | U93: 501981921.9 | V93: 501981817.3 | W93: 501981630.3 | X93: 501981527.1 | Y93: 501981422.1 | Z93: 501981318.7 | AA93: 501981167.6 | AB93: 501981023.5 | AC93: =SUM(AC88:AC92) -> 501980918 | AD93: =SUM(AD88:AD92) -> 501980770.5 | AE93: =SUM(AE88:AE92) -> 501980662.4 | AF93: =SUM(AF88:AF92) -> 501980514.7 | AG93: =SUM(AG88:AG92) -> 510717537
C96: First capex year | G96: =IF(SUM($I18:$AG18)=0,0,(INDEX(I$6:AG$6,MATCH(TRUE,INDEX($I18:$AG18<>0,),0)))) -> 1
C98: First year | G98: =IF(_xlfn.MINIFS($G$96:$G$97, $G$96:$G$97, ">"&0)=0, $A$4, _xlfn.MINIFS($G$96:$G$97, $G$96:$G$97, ">"&0)) -> 1
A108: SENSITIVITIES
A112: NPV | C112: Net benefits | G112: =PROPER($A$3)&A112 -> Option 3NPV | I112: =I93 -> 0 | J112: =J93 -> 6211114.757 | K112: 13617191.64 | L112: 20061227.21 | M112: 42005241.01 | N112: 91781156.96 | O112: 185679560.1 | P112: 324639718.2 | Q112: 501741078.5 | R112: 502426716.4 | S112: 501982127.5 | T112: 501982024.8 | U112: 501981921.9 | V112: 501981817.3 | W112: 501981630.3 | X112: 501981527.1 | Y112: 501981422.1 | Z112: 501981318.7 | AA112: 501981167.6 | AB112: 501981023.5 | AC112: 501980918 | AD112: 501980770.5 | AE112: 501980662.4 | AF112: 501980514.7 | AG112: 510717537
C113: Total annualised capex | I113: =I88 -> 0 | J113: =J88 -> -609306.0127 | K113: -834915.4551 | L113: -1814316.495 | M113: -3536359.066 | N113: -4484727.991 | O113: -4484727.991 | P113: -4484727.991 | Q113: -4484727.991 | R113: -4484727.991 | S113: -4929226.208 | T113: -4929226.208 | U113: -4929226.208 | V113: -4929226.208 | W113: -4929226.208 | X113: -4929226.208 | Y113: -4929226.208 | Z113: -4929226.208 | AA113: -4929226.208 | AB113: -4929226.208 | AC113: -4929226.208 | AD113: -4929226.208 | AE113: -4929226.208 | AF113: -4929226.208 | AG113: -4929226.208
C114: Total benefits | I114: =SUM(I90:I91) -> 0 | J114: =SUM(J90:J91) -> 6820420.769 | K114: 14452107.1 | L114: 21875543.71 | M114: 45541600.08 | N114: 96265884.95 | O114: 190164288.1 | P114: 329124446.2 | Q114: 506225806.5 | R114: 506911444.4 | S114: 506911353.8 | T114: 506911251 | U114: 506911148.1 | V114: 506911043.5 | W114: 506910856.5 | X114: 506910753.3 | Y114: 506910648.3 | Z114: 506910544.9 | AA114: 506910393.9 | AB114: 506910249.7 | AC114: 506910144.2 | AD114: 506909996.7 | AE114: 506909888.6 | AF114: 506909740.9 | AG114: 515646763.2
D115: =Assumptions!G110 -> Capex | E115: =Assumptions!H110 -> Total benefits
A116: ="sens"&Assumptions!B111 -> sens1 | C116: =Assumptions!C111 -> Capex 10% higher | D116: =Assumptions!G111 -> 0.1 | E116: =Assumptions!H111 -> 0 | G116: =PROPER($A$3)&A116 -> Option 3sens1 | I116: =I$112+IF($C116<>0,SUMPRODUCT((I$113:I$114)*TRANSPOSE(($D116:$E116))),0) -> 0 | J116: =J$112+IF($C116<>0,SUMPRODUCT((J$113:J$114)*TRANSPOSE(($D116:$E116))),0) -> 6150184.155 | K116: =K$112+IF($C116<>0,SUMPRODUCT((K$113:K$114)*TRANSPOSE(($D116:$E116))),0) -> 13533700.09 | L116: =L$112+IF($C116<>0,SUMPRODUCT((L$113:L$114)*TRANSPOSE(($D116:$E116))),0) -> 19879795.56 | M116: =M$112+IF($C116<>0,SUMPRODUCT((M$113:M$114)*TRANSPOSE(($D116:$E116))),0) -> 41651605.1 | N116: =N$112+IF($C116<>0,SUMPRODUCT((N$113:N$114)*TRANSPOSE(($D116:$E116))),0) -> 91332684.16 | O116: =O$112+IF($C116<>0,SUMPRODUCT((O$113:O$114)*TRANSPOSE(($D116:$E116))),0) -> 185231087.4 | P116: =P$112+IF($C116<>0,SUMPRODUCT((P$113:P$114)*TRANSPOSE(($D116:$E116))),0) -> 324191245.4 | Q116: =Q$112+IF($C116<>0,SUMPRODUCT((Q$113:Q$114)*TRANSPOSE(($D116:$E116))),0) -> 501292605.7 | R116: =R$112+IF($C116<>0,SUMPRODUCT((R$113:R$114)*TRANSPOSE(($D116:$E116))),0) -> 501978243.6 | S116: =S$112+IF($C116<>0,SUMPRODUCT((S$113:S$114)*TRANSPOSE(($D116:$E116))),0) -> 501489204.9 | T116: =T$112+IF($C116<>0,SUMPRODUCT((T$113:T$114)*TRANSPOSE(($D116:$E116))),0) -> 501489102.2 | U116: =U$112+IF($C116<>0,SUMPRODUCT((U$113:U$114)*TRANSPOSE(($D116:$E116))),0) -> 501488999.3 | V116: =V$112+IF($C116<>0,SUMPRODUCT((V$113:V$114)*TRANSPOSE(($D116:$E116))),0) -> 501488894.7 | W116: =W$112+IF($C116<>0,SUMPRODUCT((W$113:W$114)*TRANSPOSE(($D116:$E116))),0) -> 501488707.7 | X116: =X$112+IF($C116<>0,SUMPRODUCT((X$113:X$114)*TRANSPOSE(($D116:$E116))),0) -> 501488604.5 | Y116: =Y$112+IF($C116<>0,SUMPRODUCT((Y$113:Y$114)*TRANSPOSE(($D116:$E116))),0) -> 501488499.5 | Z116: =Z$112+IF($C116<>0,SUMPRODUCT((Z$113:Z$114)*TRANSPOSE(($D116:$E116))),0) -> 501488396 | AA116: =AA$112+IF($C116<>0,SUMPRODUCT((AA$113:AA$114)*TRANSPOSE(($D116:$E116))),0) -> 501488245 | AB116: =AB$112+IF($C116<>0,SUMPRODUCT((AB$113:AB$114)*TRANSPOSE(($D116:$E116))),0) -> 501488100.8 | AC116: =AC$112+IF($C116<>0,SUMPRODUCT((AC$113:AC$114)*TRANSPOSE(($D116:$E116))),0) -> 501487995.4 | AD116: =AD$112+IF($C116<>0,SUMPRODUCT((AD$113:AD$114)*TRANSPOSE(($D116:$E116))),0) -> 501487847.9 | AE116: =AE$112+IF($C116<>0,SUMPRODUCT((AE$113:AE$114)*TRANSPOSE(($D116:$E116))),0) -> 501487739.8 | AF116: =AF$112+IF($C116<>0,SUMPRODUCT((AF$113:AF$114)*TRANSPOSE(($D116:$E116))),0) -> 501487592 | AG116: =AG$112+IF($C116<>0,SUMPRODUCT((AG$113:AG$114)*TRANSPOSE(($D116:$E116))),0) -> 510224614.4
A117: ="sens"&Assumptions!B112 -> sens2 | C117: =Assumptions!C112 -> Capex 10% lower | D117: =Assumptions!G112 -> -0.1 | E117: =Assumptions!H112 -> 0 | G117: =PROPER($A$3)&A117 -> Option 3sens2 | I117: =I$112+IF($C117<>0,SUMPRODUCT((I$113:I$114)*TRANSPOSE(($D117:$E117))),0) -> 0 | J117: =J$112+IF($C117<>0,SUMPRODUCT((J$113:J$114)*TRANSPOSE(($D117:$E117))),0) -> 6272045.358 | K117: =K$112+IF($C117<>0,SUMPRODUCT((K$113:K$114)*TRANSPOSE(($D117:$E117))),0) -> 13700683.19 | L117: =L$112+IF($C117<>0,SUMPRODUCT((L$113:L$114)*TRANSPOSE(($D117:$E117))),0) -> 20242658.86 | M117: =M$112+IF($C117<>0,SUMPRODUCT((M$113:M$114)*TRANSPOSE(($D117:$E117))),0) -> 42358876.92 | N117: =N$112+IF($C117<>0,SUMPRODUCT((N$113:N$114)*TRANSPOSE(($D117:$E117))),0) -> 92229629.76 | O117: =O$112+IF($C117<>0,SUMPRODUCT((O$113:O$114)*TRANSPOSE(($D117:$E117))),0) -> 186128032.9 | P117: =P$112+IF($C117<>0,SUMPRODUCT((P$113:P$114)*TRANSPOSE(($D117:$E117))),0) -> 325088191 | Q117: =Q$112+IF($C117<>0,SUMPRODUCT((Q$113:Q$114)*TRANSPOSE(($D117:$E117))),0) -> 502189551.3 | R117: =R$112+IF($C117<>0,SUMPRODUCT((R$113:R$114)*TRANSPOSE(($D117:$E117))),0) -> 502875189.2 | S117: =S$112+IF($C117<>0,SUMPRODUCT((S$113:S$114)*TRANSPOSE(($D117:$E117))),0) -> 502475050.2 | T117: =T$112+IF($C117<>0,SUMPRODUCT((T$113:T$114)*TRANSPOSE(($D117:$E117))),0) -> 502474947.4 | U117: =U$112+IF($C117<>0,SUMPRODUCT((U$113:U$114)*TRANSPOSE(($D117:$E117))),0) -> 502474844.5 | V117: =V$112+IF($C117<>0,SUMPRODUCT((V$113:V$114)*TRANSPOSE(($D117:$E117))),0) -> 502474739.9 | W117: =W$112+IF($C117<>0,SUMPRODUCT((W$113:W$114)*TRANSPOSE(($D117:$E117))),0) -> 502474552.9 | X117: =X$112+IF($C117<>0,SUMPRODUCT((X$113:X$114)*TRANSPOSE(($D117:$E117))),0) -> 502474449.7 | Y117: =Y$112+IF($C117<>0,SUMPRODUCT((Y$113:Y$114)*TRANSPOSE(($D117:$E117))),0) -> 502474344.7 | Z117: =Z$112+IF($C117<>0,SUMPRODUCT((Z$113:Z$114)*TRANSPOSE(($D117:$E117))),0) -> 502474241.3 | AA117: =AA$112+IF($C117<>0,SUMPRODUCT((AA$113:AA$114)*TRANSPOSE(($D117:$E117))),0) -> 502474090.3 | AB117: =AB$112+IF($C117<>0,SUMPRODUCT((AB$113:AB$114)*TRANSPOSE(($D117:$E117))),0) -> 502473946.1 | AC117: =AC$112+IF($C117<>0,SUMPRODUCT((AC$113:AC$114)*TRANSPOSE(($D117:$E117))),0) -> 502473840.6 | AD117: =AD$112+IF($C117<>0,SUMPRODUCT((AD$113:AD$114)*TRANSPOSE(($D117:$E117))),0) -> 502473693.1 | AE117: =AE$112+IF($C117<>0,SUMPRODUCT((AE$113:AE$114)*TRANSPOSE(($D117:$E117))),0) -> 502473585 | AF117: =AF$112+IF($C117<>0,SUMPRODUCT((AF$113:AF$114)*TRANSPOSE(($D117:$E117))),0) -> 502473437.3 | AG117: =AG$112+IF($C117<>0,SUMPRODUCT((AG$113:AG$114)*TRANSPOSE(($D117:$E117))),0) -> 511210459.6
A118: ="sens"&Assumptions!B113 -> sens3 | C118: =Assumptions!C113 -> Total benefits 10% higher | D118: =Assumptions!G113 -> 0 | E118: =Assumptions!H113 -> 0.1 | G118: Option 3sens3 | I118: =I$112+IF($C118<>0,SUMPRODUCT((I$113:I$114)*TRANSPOSE(($D118:$E118))),0) -> 0 | J118: =J$112+IF($C118<>0,SUMPRODUCT((J$113:J$114)*TRANSPOSE(($D118:$E118))),0) -> 6893156.834 | K118: =K$112+IF($C118<>0,SUMPRODUCT((K$113:K$114)*TRANSPOSE(($D118:$E118))),0) -> 15062402.35 | L118: =L$112+IF($C118<>0,SUMPRODUCT((L$113:L$114)*TRANSPOSE(($D118:$E118))),0) -> 22248781.58 | M118: =M$112+IF($C118<>0,SUMPRODUCT((M$113:M$114)*TRANSPOSE(($D118:$E118))),0) -> 46559401.02 | N118: =N$112+IF($C118<>0,SUMPRODUCT((N$113:N$114)*TRANSPOSE(($D118:$E118))),0) -> 101407745.5 | O118: =O$112+IF($C118<>0,SUMPRODUCT((O$113:O$114)*TRANSPOSE(($D118:$E118))),0) -> 204695989 | P118: =P$112+IF($C118<>0,SUMPRODUCT((P$113:P$114)*TRANSPOSE(($D118:$E118))),0) -> 357552162.8 | Q118: =Q$112+IF($C118<>0,SUMPRODUCT((Q$113:Q$114)*TRANSPOSE(($D118:$E118))),0) -> 552363659.1 | R118: =R$112+IF($C118<>0,SUMPRODUCT((R$113:R$114)*TRANSPOSE(($D118:$E118))),0) -> 553117860.9 | S118: =S$112+IF($C118<>0,SUMPRODUCT((S$113:S$114)*TRANSPOSE(($D118:$E118))),0) -> 552673262.9 | T118: =T$112+IF($C118<>0,SUMPRODUCT((T$113:T$114)*TRANSPOSE(($D118:$E118))),0) -> 552673149.9 | U118: =U$112+IF($C118<>0,SUMPRODUCT((U$113:U$114)*TRANSPOSE(($D118:$E118))),0) -> 552673036.7 | V118: =V$112+IF($C118<>0,SUMPRODUCT((V$113:V$114)*TRANSPOSE(($D118:$E118))),0) -> 552672921.6 | W118: =W$112+IF($C118<>0,SUMPRODUCT((W$113:W$114)*TRANSPOSE(($D118:$E118))),0) -> 552672716 | X118: =X$112+IF($C118<>0,SUMPRODUCT((X$113:X$114)*TRANSPOSE(($D118:$E118))),0) -> 552672602.4 | Y118: =Y$112+IF($C118<>0,SUMPRODUCT((Y$113:Y$114)*TRANSPOSE(($D118:$E118))),0) -> 552672487 | Z118: =Z$112+IF($C118<>0,SUMPRODUCT((Z$113:Z$114)*TRANSPOSE(($D118:$E118))),0) -> 552672373.2 | AA118: =AA$112+IF($C118<>0,SUMPRODUCT((AA$113:AA$114)*TRANSPOSE(($D118:$E118))),0) -> 552672207 | AB118: =AB$112+IF($C118<>0,SUMPRODUCT((AB$113:AB$114)*TRANSPOSE(($D118:$E118))),0) -> 552672048.4 | AC118: =AC$112+IF($C118<>0,SUMPRODUCT((AC$113:AC$114)*TRANSPOSE(($D118:$E118))),0) -> 552671932.4 | AD118: =AD$112+IF($C118<>0,SUMPRODUCT((AD$113:AD$114)*TRANSPOSE(($D118:$E118))),0) -> 552671770.2 | AE118: =AE$112+IF($C118<>0,SUMPRODUCT((AE$113:AE$114)*TRANSPOSE(($D118:$E118))),0) -> 552671651.3 | AF118: =AF$112+IF($C118<>0,SUMPRODUCT((AF$113:AF$114)*TRANSPOSE(($D118:$E118))),0) -> 552671488.8 | AG118: =AG$112+IF($C118<>0,SUMPRODUCT((AG$113:AG$114)*TRANSPOSE(($D118:$E118))),0) -> 562282213.3
A119: ="sens"&Assumptions!B114 -> sens4 | C119: =Assumptions!C114 -> Total benefits 10% lower | D119: =Assumptions!G114 -> 0 | E119: =Assumptions!H114 -> -0.1 | G119: Option 3sens4 | I119: =I$112+IF($C119<>0,SUMPRODUCT((I$113:I$114)*TRANSPOSE(($D119:$E119))),0) -> 0 | J119: =J$112+IF($C119<>0,SUMPRODUCT((J$113:J$114)*TRANSPOSE(($D119:$E119))),0) -> 5529072.68 | K119: =K$112+IF($C119<>0,SUMPRODUCT((K$113:K$114)*TRANSPOSE(($D119:$E119))),0) -> 12171980.93 | L119: =L$112+IF($C119<>0,SUMPRODUCT((L$113:L$114)*TRANSPOSE(($D119:$E119))),0) -> 17873672.84 | M119: =M$112+IF($C119<>0,SUMPRODUCT((M$113:M$114)*TRANSPOSE(($D119:$E119))),0) -> 37451081 | N119: =N$112+IF($C119<>0,SUMPRODUCT((N$113:N$114)*TRANSPOSE(($D119:$E119))),0) -> 82154568.46 | O119: =O$112+IF($C119<>0,SUMPRODUCT((O$113:O$114)*TRANSPOSE(($D119:$E119))),0) -> 166663131.3 | P119: =P$112+IF($C119<>0,SUMPRODUCT((P$113:P$114)*TRANSPOSE(($D119:$E119))),0) -> 291727273.6 | Q119: =Q$112+IF($C119<>0,SUMPRODUCT((Q$113:Q$114)*TRANSPOSE(($D119:$E119))),0) -> 451118497.8 | R119: =R$112+IF($C119<>0,SUMPRODUCT((R$113:R$114)*TRANSPOSE(($D119:$E119))),0) -> 451735572 | S119: =S$112+IF($C119<>0,SUMPRODUCT((S$113:S$114)*TRANSPOSE(($D119:$E119))),0) -> 451290992.2 | T119: =T$112+IF($C119<>0,SUMPRODUCT((T$113:T$114)*TRANSPOSE(($D119:$E119))),0) -> 451290899.7 | U119: =U$112+IF($C119<>0,SUMPRODUCT((U$113:U$114)*TRANSPOSE(($D119:$E119))),0) -> 451290807.1 | V119: =V$112+IF($C119<>0,SUMPRODUCT((V$113:V$114)*TRANSPOSE(($D119:$E119))),0) -> 451290712.9 | W119: =W$112+IF($C119<>0,SUMPRODUCT((W$113:W$114)*TRANSPOSE(($D119:$E119))),0) -> 451290544.7 | X119: =X$112+IF($C119<>0,SUMPRODUCT((X$113:X$114)*TRANSPOSE(($D119:$E119))),0) -> 451290451.8 | Y119: =Y$112+IF($C119<>0,SUMPRODUCT((Y$113:Y$114)*TRANSPOSE(($D119:$E119))),0) -> 451290357.3 | Z119: =Z$112+IF($C119<>0,SUMPRODUCT((Z$113:Z$114)*TRANSPOSE(($D119:$E119))),0) -> 451290264.2 | AA119: =AA$112+IF($C119<>0,SUMPRODUCT((AA$113:AA$114)*TRANSPOSE(($D119:$E119))),0) -> 451290128.3 | AB119: =AB$112+IF($C119<>0,SUMPRODUCT((AB$113:AB$114)*TRANSPOSE(($D119:$E119))),0) -> 451289998.5 | AC119: =AC$112+IF($C119<>0,SUMPRODUCT((AC$113:AC$114)*TRANSPOSE(($D119:$E119))),0) -> 451289903.6 | AD119: =AD$112+IF($C119<>0,SUMPRODUCT((AD$113:AD$114)*TRANSPOSE(($D119:$E119))),0) -> 451289770.8 | AE119: =AE$112+IF($C119<>0,SUMPRODUCT((AE$113:AE$114)*TRANSPOSE(($D119:$E119))),0) -> 451289673.5 | AF119: =AF$112+IF($C119<>0,SUMPRODUCT((AF$113:AF$114)*TRANSPOSE(($D119:$E119))),0) -> 451289540.6 | AG119: =AG$112+IF($C119<>0,SUMPRODUCT((AG$113:AG$114)*TRANSPOSE(($D119:$E119))),0) -> 459152860.7
A120: ="sens"&Assumptions!B115 -> sens5 | C120: =Assumptions!C115 -> Capex 10% higher & Total benefits 10% lower | D120: =Assumptions!G115 -> 0.1 | E120: =Assumptions!H115 -> -0.1 | G120: Option 3sens5 | I120: =I$112+IF($C120<>0,SUMPRODUCT((I$113:I$114)*TRANSPOSE(($D120:$E120))),0) -> 0 | J120: =J$112+IF($C120<>0,SUMPRODUCT((J$113:J$114)*TRANSPOSE(($D120:$E120))),0) -> 5468142.078 | K120: =K$112+IF($C120<>0,SUMPRODUCT((K$113:K$114)*TRANSPOSE(($D120:$E120))),0) -> 12088489.39 | L120: =L$112+IF($C120<>0,SUMPRODUCT((L$113:L$114)*TRANSPOSE(($D120:$E120))),0) -> 17692241.19 | M120: =M$112+IF($C120<>0,SUMPRODUCT((M$113:M$114)*TRANSPOSE(($D120:$E120))),0) -> 37097445.1 | N120: =N$112+IF($C120<>0,SUMPRODUCT((N$113:N$114)*TRANSPOSE(($D120:$E120))),0) -> 81706095.66 | O120: =O$112+IF($C120<>0,SUMPRODUCT((O$113:O$114)*TRANSPOSE(($D120:$E120))),0) -> 166214658.5 | P120: =P$112+IF($C120<>0,SUMPRODUCT((P$113:P$114)*TRANSPOSE(($D120:$E120))),0) -> 291278800.8 | Q120: =Q$112+IF($C120<>0,SUMPRODUCT((Q$113:Q$114)*TRANSPOSE(($D120:$E120))),0) -> 450670025 | R120: =R$112+IF($C120<>0,SUMPRODUCT((R$113:R$114)*TRANSPOSE(($D120:$E120))),0) -> 451287099.2 | S120: =S$112+IF($C120<>0,SUMPRODUCT((S$113:S$114)*TRANSPOSE(($D120:$E120))),0) -> 450798069.6 | T120: =T$112+IF($C120<>0,SUMPRODUCT((T$113:T$114)*TRANSPOSE(($D120:$E120))),0) -> 450797977.1 | U120: =U$112+IF($C120<>0,SUMPRODUCT((U$113:U$114)*TRANSPOSE(($D120:$E120))),0) -> 450797884.5 | V120: =V$112+IF($C120<>0,SUMPRODUCT((V$113:V$114)*TRANSPOSE(($D120:$E120))),0) -> 450797790.3 | W120: =W$112+IF($C120<>0,SUMPRODUCT((W$113:W$114)*TRANSPOSE(($D120:$E120))),0) -> 450797622 | X120: =X$112+IF($C120<>0,SUMPRODUCT((X$113:X$114)*TRANSPOSE(($D120:$E120))),0) -> 450797529.1 | Y120: =Y$112+IF($C120<>0,SUMPRODUCT((Y$113:Y$114)*TRANSPOSE(($D120:$E120))),0) -> 450797434.7 | Z120: =Z$112+IF($C120<>0,SUMPRODUCT((Z$113:Z$114)*TRANSPOSE(($D120:$E120))),0) -> 450797341.6 | AA120: =AA$112+IF($C120<>0,SUMPRODUCT((AA$113:AA$114)*TRANSPOSE(($D120:$E120))),0) -> 450797205.6 | AB120: =AB$112+IF($C120<>0,SUMPRODUCT((AB$113:AB$114)*TRANSPOSE(($D120:$E120))),0) -> 450797075.9 | AC120: =AC$112+IF($C120<>0,SUMPRODUCT((AC$113:AC$114)*TRANSPOSE(($D120:$E120))),0) -> 450796981 | AD120: =AD$112+IF($C120<>0,SUMPRODUCT((AD$113:AD$114)*TRANSPOSE(($D120:$E120))),0) -> 450796848.2 | AE120: =AE$112+IF($C120<>0,SUMPRODUCT((AE$113:AE$114)*TRANSPOSE(($D120:$E120))),0) -> 450796750.9 | AF120: =AF$112+IF($C120<>0,SUMPRODUCT((AF$113:AF$114)*TRANSPOSE(($D120:$E120))),0) -> 450796618 | AG120: =AG$112+IF($C120<>0,SUMPRODUCT((AG$113:AG$114)*TRANSPOSE(($D120:$E120))),0) -> 458659938
A121: ="sens"&Assumptions!B116 -> sens | C121: =Assumptions!C116 -> 0 | D121: =Assumptions!G116 -> 0 | E121: =Assumptions!H116 -> 0 | G121: Option 3sens | I121: =I$112+IF($C121<>0,SUMPRODUCT((I$113:I$114)*TRANSPOSE(($D121:$E121))),0) -> 0 | J121: =J$112+IF($C121<>0,SUMPRODUCT((J$113:J$114)*TRANSPOSE(($D121:$E121))),0) -> 6211114.757 | K121: =K$112+IF($C121<>0,SUMPRODUCT((K$113:K$114)*TRANSPOSE(($D121:$E121))),0) -> 13617191.64 | L121: =L$112+IF($C121<>0,SUMPRODUCT((L$113:L$114)*TRANSPOSE(($D121:$E121))),0) -> 20061227.21 | M121: =M$112+IF($C121<>0,SUMPRODUCT((M$113:M$114)*TRANSPOSE(($D121:$E121))),0) -> 42005241.01 | N121: =N$112+IF($C121<>0,SUMPRODUCT((N$113:N$114)*TRANSPOSE(($D121:$E121))),0) -> 91781156.96 | O121: =O$112+IF($C121<>0,SUMPRODUCT((O$113:O$114)*TRANSPOSE(($D121:$E121))),0) -> 185679560.1 | P121: =P$112+IF($C121<>0,SUMPRODUCT((P$113:P$114)*TRANSPOSE(($D121:$E121))),0) -> 324639718.2 | Q121: =Q$112+IF($C121<>0,SUMPRODUCT((Q$113:Q$114)*TRANSPOSE(($D121:$E121))),0) -> 501741078.5 | R121: =R$112+IF($C121<>0,SUMPRODUCT((R$113:R$114)*TRANSPOSE(($D121:$E121))),0) -> 502426716.4 | S121: =S$112+IF($C121<>0,SUMPRODUCT((S$113:S$114)*TRANSPOSE(($D121:$E121))),0) -> 501982127.5 | T121: =T$112+IF($C121<>0,SUMPRODUCT((T$113:T$114)*TRANSPOSE(($D121:$E121))),0) -> 501982024.8 | U121: =U$112+IF($C121<>0,SUMPRODUCT((U$113:U$114)*TRANSPOSE(($D121:$E121))),0) -> 501981921.9 | V121: =V$112+IF($C121<>0,SUMPRODUCT((V$113:V$114)*TRANSPOSE(($D121:$E121))),0) -> 501981817.3 | W121: =W$112+IF($C121<>0,SUMPRODUCT((W$113:W$114)*TRANSPOSE(($D121:$E121))),0) -> 501981630.3 | X121: =X$112+IF($C121<>0,SUMPRODUCT((X$113:X$114)*TRANSPOSE(($D121:$E121))),0) -> 501981527.1 | Y121: =Y$112+IF($C121<>0,SUMPRODUCT((Y$113:Y$114)*TRANSPOSE(($D121:$E121))),0) -> 501981422.1 | Z121: =Z$112+IF($C121<>0,SUMPRODUCT((Z$113:Z$114)*TRANSPOSE(($D121:$E121))),0) -> 501981318.7 | AA121: =AA$112+IF($C121<>0,SUMPRODUCT((AA$113:AA$114)*TRANSPOSE(($D121:$E121))),0) -> 501981167.6 | AB121: =AB$112+IF($C121<>0,SUMPRODUCT((AB$113:AB$114)*TRANSPOSE(($D121:$E121))),0) -> 501981023.5 | AC121: =AC$112+IF($C121<>0,SUMPRODUCT((AC$113:AC$114)*TRANSPOSE(($D121:$E121))),0) -> 501980918 | AD121: =AD$112+IF($C121<>0,SUMPRODUCT((AD$113:AD$114)*TRANSPOSE(($D121:$E121))),0) -> 501980770.5 | AE121: =AE$112+IF($C121<>0,SUMPRODUCT((AE$113:AE$114)*TRANSPOSE(($D121:$E121))),0) -> 501980662.4 | AF121: =AF$112+IF($C121<>0,SUMPRODUCT((AF$113:AF$114)*TRANSPOSE(($D121:$E121))),0) -> 501980514.7 | AG121: =AG$112+IF($C121<>0,SUMPRODUCT((AG$113:AG$114)*TRANSPOSE(($D121:$E121))),0) -> 510717537
A122: ="sens"&Assumptions!B117 -> sens | C122: =Assumptions!C117 -> 0 | D122: =Assumptions!G117 -> 0 | E122: =Assumptions!H117 -> 0 | G122: Option 3sens | I122: =I$112+IF($C122<>0,SUMPRODUCT((I$113:I$114)*TRANSPOSE(($D122:$E122))),0) -> 0 | J122: =J$112+IF($C122<>0,SUMPRODUCT((J$113:J$114)*TRANSPOSE(($D122:$E122))),0) -> 6211114.757 | K122: =K$112+IF($C122<>0,SUMPRODUCT((K$113:K$114)*TRANSPOSE(($D122:$E122))),0) -> 13617191.64 | L122: =L$112+IF($C122<>0,SUMPRODUCT((L$113:L$114)*TRANSPOSE(($D122:$E122))),0) -> 20061227.21 | M122: =M$112+IF($C122<>0,SUMPRODUCT((M$113:M$114)*TRANSPOSE(($D122:$E122))),0) -> 42005241.01 | N122: =N$112+IF($C122<>0,SUMPRODUCT((N$113:N$114)*TRANSPOSE(($D122:$E122))),0) -> 91781156.96 | O122: =O$112+IF($C122<>0,SUMPRODUCT((O$113:O$114)*TRANSPOSE(($D122:$E122))),0) -> 185679560.1 | P122: =P$112+IF($C122<>0,SUMPRODUCT((P$113:P$114)*TRANSPOSE(($D122:$E122))),0) -> 324639718.2 | Q122: =Q$112+IF($C122<>0,SUMPRODUCT((Q$113:Q$114)*TRANSPOSE(($D122:$E122))),0) -> 501741078.5 | R122: =R$112+IF($C122<>0,SUMPRODUCT((R$113:R$114)*TRANSPOSE(($D122:$E122))),0) -> 502426716.4 | S122: =S$112+IF($C122<>0,SUMPRODUCT((S$113:S$114)*TRANSPOSE(($D122:$E122))),0) -> 501982127.5 | T122: =T$112+IF($C122<>0,SUMPRODUCT((T$113:T$114)*TRANSPOSE(($D122:$E122))),0) -> 501982024.8 | U122: =U$112+IF($C122<>0,SUMPRODUCT((U$113:U$114)*TRANSPOSE(($D122:$E122))),0) -> 501981921.9 | V122: =V$112+IF($C122<>0,SUMPRODUCT((V$113:V$114)*TRANSPOSE(($D122:$E122))),0) -> 501981817.3 | W122: =W$112+IF($C122<>0,SUMPRODUCT((W$113:W$114)*TRANSPOSE(($D122:$E122))),0) -> 501981630.3 | X122: =X$112+IF($C122<>0,SUMPRODUCT((X$113:X$114)*TRANSPOSE(($D122:$E122))),0) -> 501981527.1 | Y122: =Y$112+IF($C122<>0,SUMPRODUCT((Y$113:Y$114)*TRANSPOSE(($D122:$E122))),0) -> 501981422.1 | Z122: =Z$112+IF($C122<>0,SUMPRODUCT((Z$113:Z$114)*TRANSPOSE(($D122:$E122))),0) -> 501981318.7 | AA122: =AA$112+IF($C122<>0,SUMPRODUCT((AA$113:AA$114)*TRANSPOSE(($D122:$E122))),0) -> 501981167.6 | AB122: =AB$112+IF($C122<>0,SUMPRODUCT((AB$113:AB$114)*TRANSPOSE(($D122:$E122))),0) -> 501981023.5 | AC122: =AC$112+IF($C122<>0,SUMPRODUCT((AC$113:AC$114)*TRANSPOSE(($D122:$E122))),0) -> 501980918 | AD122: =AD$112+IF($C122<>0,SUMPRODUCT((AD$113:AD$114)*TRANSPOSE(($D122:$E122))),0) -> 501980770.5 | AE122: =AE$112+IF($C122<>0,SUMPRODUCT((AE$113:AE$114)*TRANSPOSE(($D122:$E122))),0) -> 501980662.4 | AF122: =AF$112+IF($C122<>0,SUMPRODUCT((AF$113:AF$114)*TRANSPOSE(($D122:$E122))),0) -> 501980514.7 | AG122: =AG$112+IF($C122<>0,SUMPRODUCT((AG$113:AG$114)*TRANSPOSE(($D122:$E122))),0) -> 510717537
A123: ="sens"&Assumptions!B118 -> sens | C123: =Assumptions!C118 -> 0 | D123: =Assumptions!G118 -> 0 | E123: =Assumptions!H118 -> 0 | G123: Option 3sens | I123: =I$112+IF($C123<>0,SUMPRODUCT((I$113:I$114)*TRANSPOSE(($D123:$E123))),0) -> 0 | J123: =J$112+IF($C123<>0,SUMPRODUCT((J$113:J$114)*TRANSPOSE(($D123:$E123))),0) -> 6211114.757 | K123: =K$112+IF($C123<>0,SUMPRODUCT((K$113:K$114)*TRANSPOSE(($D123:$E123))),0) -> 13617191.64 | L123: =L$112+IF($C123<>0,SUMPRODUCT((L$113:L$114)*TRANSPOSE(($D123:$E123))),0) -> 20061227.21 | M123: =M$112+IF($C123<>0,SUMPRODUCT((M$113:M$114)*TRANSPOSE(($D123:$E123))),0) -> 42005241.01 | N123: =N$112+IF($C123<>0,SUMPRODUCT((N$113:N$114)*TRANSPOSE(($D123:$E123))),0) -> 91781156.96 | O123: =O$112+IF($C123<>0,SUMPRODUCT((O$113:O$114)*TRANSPOSE(($D123:$E123))),0) -> 185679560.1 | P123: =P$112+IF($C123<>0,SUMPRODUCT((P$113:P$114)*TRANSPOSE(($D123:$E123))),0) -> 324639718.2 | Q123: =Q$112+IF($C123<>0,SUMPRODUCT((Q$113:Q$114)*TRANSPOSE(($D123:$E123))),0) -> 501741078.5 | R123: =R$112+IF($C123<>0,SUMPRODUCT((R$113:R$114)*TRANSPOSE(($D123:$E123))),0) -> 502426716.4 | S123: =S$112+IF($C123<>0,SUMPRODUCT((S$113:S$114)*TRANSPOSE(($D123:$E123))),0) -> 501982127.5 | T123: =T$112+IF($C123<>0,SUMPRODUCT((T$113:T$114)*TRANSPOSE(($D123:$E123))),0) -> 501982024.8 | U123: =U$112+IF($C123<>0,SUMPRODUCT((U$113:U$114)*TRANSPOSE(($D123:$E123))),0) -> 501981921.9 | V123: =V$112+IF($C123<>0,SUMPRODUCT((V$113:V$114)*TRANSPOSE(($D123:$E123))),0) -> 501981817.3 | W123: =W$112+IF($C123<>0,SUMPRODUCT((W$113:W$114)*TRANSPOSE(($D123:$E123))),0) -> 501981630.3 | X123: =X$112+IF($C123<>0,SUMPRODUCT((X$113:X$114)*TRANSPOSE(($D123:$E123))),0) -> 501981527.1 | Y123: =Y$112+IF($C123<>0,SUMPRODUCT((Y$113:Y$114)*TRANSPOSE(($D123:$E123))),0) -> 501981422.1 | Z123: =Z$112+IF($C123<>0,SUMPRODUCT((Z$113:Z$114)*TRANSPOSE(($D123:$E123))),0) -> 501981318.7 | AA123: =AA$112+IF($C123<>0,SUMPRODUCT((AA$113:AA$114)*TRANSPOSE(($D123:$E123))),0) -> 501981167.6 | AB123: =AB$112+IF($C123<>0,SUMPRODUCT((AB$113:AB$114)*TRANSPOSE(($D123:$E123))),0) -> 501981023.5 | AC123: =AC$112+IF($C123<>0,SUMPRODUCT((AC$113:AC$114)*TRANSPOSE(($D123:$E123))),0) -> 501980918 | AD123: =AD$112+IF($C123<>0,SUMPRODUCT((AD$113:AD$114)*TRANSPOSE(($D123:$E123))),0) -> 501980770.5 | AE123: =AE$112+IF($C123<>0,SUMPRODUCT((AE$113:AE$114)*TRANSPOSE(($D123:$E123))),0) -> 501980662.4 | AF123: =AF$112+IF($C123<>0,SUMPRODUCT((AF$113:AF$114)*TRANSPOSE(($D123:$E123))),0) -> 501980514.7 | AG123: =AG$112+IF($C123<>0,SUMPRODUCT((AG$113:AG$114)*TRANSPOSE(($D123:$E123))),0) -> 510717537

Sheet Option4
A1: =bus -> Powercor
A2: =proj -> Melton & Wyndham Transformation Capacity Project
A3: OPTION 4 | C3: =INDEX(Assumptions!$E$14:$E$18, MATCH(A3,_xlfn.ANCHORARRAY( Assumptions!$C$14),0)) -> Lean investment, Northern capacity priority
A4: =(INDEX(Data!$D$9:$D$13, MATCH(A3, options,0))) -> 
A6: ='Option1 (base case)'!A6 -> Count | I6: ='Option1 (base case)'!I6 -> 1 | J6: ='Option1 (base case)'!J6 -> 2 | K6: ='Option1 (base case)'!K6 -> 3 | L6: ='Option1 (base case)'!L6 -> 4 | M6: ='Option1 (base case)'!M6 -> 5 | N6: ='Option1 (base case)'!N6 -> 6 | O6: ='Option1 (base case)'!O6 -> 7 | P6: ='Option1 (base case)'!P6 -> 8 | Q6: ='Option1 (base case)'!Q6 -> 9 | R6: ='Option1 (base case)'!R6 -> 10 | S6: ='Option1 (base case)'!S6 -> 11 | T6: ='Option1 (base case)'!T6 -> 12 | U6: ='Option1 (base case)'!U6 -> 13 | V6: ='Option1 (base case)'!V6 -> 14 | W6: ='Option1 (base case)'!W6 -> 15 | X6: ='Option1 (base case)'!X6 -> 16 | Y6: ='Option1 (base case)'!Y6 -> 17 | Z6: ='Option1 (base case)'!Z6 -> 18 | AA6: ='Option1 (base case)'!AA6 -> 19 | AB6: ='Option1 (base case)'!AB6 -> 20 | AC6: ='Option1 (base case)'!AC6 -> 21 | AD6: ='Option1 (base case)'!AD6 -> 22 | AE6: ='Option1 (base case)'!AE6 -> 23 | AF6: ='Option1 (base case)'!AF6 -> 24 | AG6: ='Option1 (base case)'!AG6 -> 25
A7: ='Option1 (base case)'!A7 -> Value of CO2 reductions | G7: $/MWh | I7: ='Option1 (base case)'!I7 -> 24.7304868 | J7: ='Option1 (base case)'!J7 -> 22.34074009 | K7: ='Option1 (base case)'!K7 -> 20.19632912 | L7: ='Option1 (base case)'!L7 -> 18.06294208 | M7: ='Option1 (base case)'!M7 -> 15.91339762 | N7: ='Option1 (base case)'!N7 -> 13.71506943 | O7: ='Option1 (base case)'!O7 -> 13.71506943 | P7: ='Option1 (base case)'!P7 -> 13.71506943 | Q7: ='Option1 (base case)'!Q7 -> 13.71506943 | R7: ='Option1 (base case)'!R7 -> 13.71506943 | S7: ='Option1 (base case)'!S7 -> 13.71506943 | T7: ='Option1 (base case)'!T7 -> 13.71506943 | U7: ='Option1 (base case)'!U7 -> 13.71506943 | V7: ='Option1 (base case)'!V7 -> 13.71506943 | W7: ='Option1 (base case)'!W7 -> 13.71506943 | X7: ='Option1 (base case)'!X7 -> 13.71506943 | Y7: ='Option1 (base case)'!Y7 -> 13.71506943 | Z7: ='Option1 (base case)'!Z7 -> 13.71506943 | AA7: ='Option1 (base case)'!AA7 -> 13.71506943 | AB7: ='Option1 (base case)'!AB7 -> 13.71506943 | AC7: ='Option1 (base case)'!AC7 -> 13.71506943 | AD7: ='Option1 (base case)'!AD7 -> 13.71506943 | AE7: ='Option1 (base case)'!AE7 -> 13.71506943 | AF7: ='Option1 (base case)'!AF7 -> 13.71506943 | AG7: ='Option1 (base case)'!AG7 -> 13.71506943
I8: =_xlfn.NUMBERVALUE(LEFT(I$9,4))+1 -> 2027 | J8: =_xlfn.NUMBERVALUE(LEFT(J$9,4))+1 -> 2028 | K8: 2029 | L8: 2030 | M8: 2031 | N8: 2032 | O8: 2033 | P8: 2034 | Q8: 2035 | R8: 2036 | S8: 2037 | T8: 2038 | U8: 2039 | V8: 2040 | W8: 2041 | X8: 2042 | Y8: 2043 | Z8: 2044 | AA8: 2045 | AB8: 2046 | AC8: 2047 | AD8: 2048 | AE8: 2049 | AF8: 2050 | AG8: 2051
G9: Units | I9: ='Option1 (base case)'!I9 -> 2026-27 | J9: ='Option1 (base case)'!J9 -> 2027-28 | K9: ='Option1 (base case)'!K9 -> 2028-29 | L9: ='Option1 (base case)'!L9 -> 2029-30 | M9: ='Option1 (base case)'!M9 -> 2030-31 | N9: ='Option1 (base case)'!N9 -> 2031-32 | O9: ='Option1 (base case)'!O9 -> 2032-33 | P9: ='Option1 (base case)'!P9 -> 2033-34 | Q9: ='Option1 (base case)'!Q9 -> 2034-35 | R9: ='Option1 (base case)'!R9 -> 2035-36 | S9: ='Option1 (base case)'!S9 -> 2036-37 | T9: ='Option1 (base case)'!T9 -> 2037-38 | U9: ='Option1 (base case)'!U9 -> 2038-39 | V9: ='Option1 (base case)'!V9 -> 2039-40 | W9: ='Option1 (base case)'!W9 -> 2040-41 | X9: ='Option1 (base case)'!X9 -> 2041-42 | Y9: ='Option1 (base case)'!Y9 -> 2042-43 | Z9: ='Option1 (base case)'!Z9 -> 2043-44 | AA9: ='Option1 (base case)'!AA9 -> 2044-45 | AB9: ='Option1 (base case)'!AB9 -> 2045-46 | AC9: ='Option1 (base case)'!AC9 -> 2046-47 | AD9: ='Option1 (base case)'!AD9 -> 2047-48 | AE9: ='Option1 (base case)'!AE9 -> 2048-49 | AF9: ='Option1 (base case)'!AF9 -> 2049-50 | AG9: ='Option1 (base case)'!AG9 -> 2050-51
A11: INVESTMENT & OPERATING COST
C13: Capex | E13: Asset life (yrs)
C14: MTC 3rd Tx | E14: 50 | G14: =input_dollars -> 2023-12-31 | I14: 14291649 | J14: 0 | K14: 0 | L14: 0 | M14: 0 | N14: 0 | O14: 0 | P14: 0 | Q14: 0 | R14: 0 | S14: 0 | T14: 0 | U14: 0 | V14: 0 | W14: 0 | X14: 0 | Y14: 0 | Z14: 0 | AA14: 0 | AB14: 0 | AC14: 0 | AD14: 0 | AE14: 0 | AF14: 0 | AG14: 0
C15: New RBE ZSS | E15: 50 | G15: =input_dollars -> 2023-12-31 | I15: 5291808.87 | J15: 17564061.24 | K15: 16105016.89 | L15: 0 | M15: 0 | N15: 0 | O15: 0 | P15: 0 | Q15: 0 | R15: 0 | S15: 0 | T15: 0 | U15: 0 | V15: 0 | W15: 0 | X15: 0 | Y15: 0 | Z15: 0 | AA15: 0 | AB15: 0 | AC15: 0 | AD15: 0 | AE15: 0 | AF15: 0 | AG15: 0
C16: PCK Stage 1 | E16: 50 | G16: =input_dollars -> 2023-12-31 | I16: 0 | J16: 5408395.3 | K16: 24286555.6 | L16: 22244579.1 | M16: 0 | N16: 0 | O16: 0 | P16: 0 | Q16: 0 | R16: 10425980.33 | S16: 0 | T16: 0 | U16: 0 | V16: 0 | W16: 0 | X16: 0 | Y16: 0 | Z16: 0 | AA16: 0 | AB16: 0 | AC16: 0 | AD16: 0 | AE16: 0 | AF16: 0 | AG16: 0
G17: =input_dollars -> 2023-12-31 | I17: 0 | J17: 0 | K17: 0 | L17: 0 | M17: 0 | N17: 0 | O17: 0 | P17: 0 | Q17: 0 | R17: 0 | S17: 0 | T17: 0 | U17: 0 | V17: 0 | W17: 0 | X17: 0 | Y17: 0 | Z17: 0 | AA17: 0 | AB17: 0 | AC17: 0 | AD17: 0 | AE17: 0 | AF17: 0 | AG17: 0
C18: Capital expenditure | G18: =input_dollars -> 2023-12-31 | I18: =SUM(I14:I17) -> 19583457.87 | J18: =SUM(J14:J17) -> 22972456.54 | K18: 40391572.49 | L18: 22244579.1 | M18: 0 | N18: 0 | O18: 0 | P18: 0 | Q18: 0 | R18: 10425980.33 | S18: 0 | T18: 0 | U18: 0 | V18: 0 | W18: 0 | X18: 0 | Y18: 0 | Z18: 0 | AA18: 0 | AB18: 0 | AC18: 0 | AD18: 0 | AE18: 0 | AF18: 0 | AG18: 0
C20: Operating expenditure | G20: =input_dollars -> 2023-12-31 | I20: 0 | J20: 0 | K20: 0 | L20: 0 | M20: 0 | N20: 0 | O20: 0 | P20: 0 | Q20: 0 | R20: 0 | S20: 0 | T20: 0 | U20: 0 | V20: 0 | W20: 0 | X20: 0 | Y20: 0 | Z20: 0 | AA20: 0 | AB20: 0 | AC20: 0 | AD20: 0 | AE20: 0 | AF20: 0 | AG20: 0
A23: RISK ASSUMPTIONS
C25: PoF (major) | I25: 0 | J25: 0 | K25: 0 | L25: 0 | M25: 0 | N25: 0 | O25: 0 | P25: 0 | Q25: 0 | R25: 0 | S25: 0 | T25: 0 | U25: 0 | V25: 0 | W25: 0 | X25: 0 | Y25: 0 | Z25: 0 | AA25: 0 | AB25: 0 | AC25: 0 | AD25: 0 | AE25: 0 | AF25: 0 | AG25: 0
C26: PoF (reparable) | I26: 0 | J26: 0 | K26: 0 | L26: 0 | M26: 0 | N26: 0 | O26: 0 | P26: 0 | Q26: 0 | R26: 0 | S26: 0 | T26: 0 | U26: 0 | V26: 0 | W26: 0 | X26: 0 | Y26: 0 | Z26: 0 | AA26: 0 | AB26: 0 | AC26: 0 | AD26: 0 | AE26: 0 | AF26: 0 | AG26: 0
C28: Const end date | E28: 2027
C29: Energy at risk 10% PoE | E29: 0.3 | G29: MWh | I29: =_xlfn.IFS(I$8<=$E$28,'Option1 (base case)'!I$29,I$8>$E$28,SUM('EaR Opt4 New PCK - LV'!I$15,'EaR Opt4 New PCK - LVN'!I$15,'EaR Opt4 New PCK - MLN'!I$15,'EaR Opt4 New PCK - MTC'!I$15,'EaR Opt4 New PCK - PCK'!I$15,'EaR Opt4 New PCK - TNA'!I$15,'EaR Opt4 New PCK - WBE'!I$15,'EaR Opt4 New RBE - RBE'!I$15)) -> 377.3473715 | J29: =_xlfn.IFS(J$8<=$E$28,'Option1 (base case)'!J$29,J$8>$E$28,SUM('EaR Opt4 New PCK - LV'!J$15,'EaR Opt4 New PCK - LVN'!J$15,'EaR Opt4 New PCK - MLN'!J$15,'EaR Opt4 New PCK - MTC'!J$15,'EaR Opt4 New PCK - PCK'!J$15,'EaR Opt4 New PCK - TNA'!J$15,'EaR Opt4 New PCK - WBE'!J$15,'EaR Opt4 New RBE - RBE'!J$15)) -> 248.272023 | K29: =_xlfn.IFS(K$8<=$E$28,'Option1 (base case)'!K$29,K$8>$E$28,SUM('EaR Opt4 New PCK - LV'!K$15,'EaR Opt4 New PCK - LVN'!K$15,'EaR Opt4 New PCK - MLN'!K$15,'EaR Opt4 New PCK - MTC'!K$15,'EaR Opt4 New PCK - PCK'!K$15,'EaR Opt4 New PCK - TNA'!K$15,'EaR Opt4 New PCK - WBE'!K$15,'EaR Opt4 New RBE - RBE'!K$15)) -> 503.2564397 | L29: =_xlfn.IFS(L$8<=$E$28,'Option1 (base case)'!L$29,L$8>$E$28,SUM('EaR Opt4 New PCK - LV'!L$15,'EaR Opt4 New PCK - LVN'!L$15,'EaR Opt4 New PCK - MLN'!L$15,'EaR Opt4 New PCK - MTC'!L$15,'EaR Opt4 New PCK - PCK'!L$15,'EaR Opt4 New PCK - TNA'!L$15,'EaR Opt4 New PCK - WBE'!L$15,'EaR Opt4 New RBE - RBE'!L$15)) -> 219.0665655 | M29: =_xlfn.IFS(M$8<=$E$28,'Option1 (base case)'!M$29,M$8>$E$28,SUM('EaR Opt4 New PCK - LV'!M$15,'EaR Opt4 New PCK - LVN'!M$15,'EaR Opt4 New PCK - MLN'!M$15,'EaR Opt4 New PCK - MTC'!M$15,'EaR Opt4 New PCK - PCK'!M$15,'EaR Opt4 New PCK - TNA'!M$15,'EaR Opt4 New PCK - WBE'!M$15,'EaR Opt4 New RBE - RBE'!M$15)) -> 160.5929439 | N29: =_xlfn.IFS(N$8<=$E$28,'Option1 (base case)'!N$29,N$8>$E$28,SUM('EaR Opt4 New PCK - LV'!N$15,'EaR Opt4 New PCK - LVN'!N$15,'EaR Opt4 New PCK - MLN'!N$15,'EaR Opt4 New PCK - MTC'!N$15,'EaR Opt4 New PCK - PCK'!N$15,'EaR Opt4 New PCK - TNA'!N$15,'EaR Opt4 New PCK - WBE'!N$15,'EaR Opt4 New RBE - RBE'!N$15)) -> 298.5968843 | O29: =_xlfn.IFS(O$8<=$E$28,'Option1 (base case)'!O$29,O$8>$E$28,SUM('EaR Opt4 New PCK - LV'!O$15,'EaR Opt4 New PCK - LVN'!O$15,'EaR Opt4 New PCK - MLN'!O$15,'EaR Opt4 New PCK - MTC'!O$15,'EaR Opt4 New PCK - PCK'!O$15,'EaR Opt4 New PCK - TNA'!O$15,'EaR Opt4 New PCK - WBE'!O$15,'EaR Opt4 New RBE - RBE'!O$15)) -> 540.2540933 | P29: =_xlfn.IFS(P$8<=$E$28,'Option1 (base case)'!P$29,P$8>$E$28,SUM('EaR Opt4 New PCK - LV'!P$15,'EaR Opt4 New PCK - LVN'!P$15,'EaR Opt4 New PCK - MLN'!P$15,'EaR Opt4 New PCK - MTC'!P$15,'EaR Opt4 New PCK - PCK'!P$15,'EaR Opt4 New PCK - TNA'!P$15,'EaR Opt4 New PCK - WBE'!P$15,'EaR Opt4 New RBE - RBE'!P$15)) -> 919.944251 | Q29: =_xlfn.IFS(Q$8<=$E$28,'Option1 (base case)'!Q$29,Q$8>$E$28,SUM('EaR Opt4 New PCK - LV'!Q$15,'EaR Opt4 New PCK - LVN'!Q$15,'EaR Opt4 New PCK - MLN'!Q$15,'EaR Opt4 New PCK - MTC'!Q$15,'EaR Opt4 New PCK - PCK'!Q$15,'EaR Opt4 New PCK - TNA'!Q$15,'EaR Opt4 New PCK - WBE'!Q$15,'EaR Opt4 New RBE - RBE'!Q$15)) -> 1454.761808 | R29: =_xlfn.IFS(R$8<=$E$28,'Option1 (base case)'!R$29,R$8>$E$28,SUM('EaR Opt4 New PCK - LV'!R$15,'EaR Opt4 New PCK - LVN'!R$15,'EaR Opt4 New PCK - MLN'!R$15,'EaR Opt4 New PCK - MTC'!R$15,'EaR Opt4 New PCK - PCK'!R$15,'EaR Opt4 New PCK - TNA'!R$15,'EaR Opt4 New PCK - WBE'!R$15,'EaR Opt4 New RBE - RBE'!R$15)) -> 1270.186461 | S29: =_xlfn.IFS(S$8<=$E$28,'Option1 (base case)'!S$29,S$8>$E$28,SUM('EaR Opt4 New PCK - LV'!S$15,'EaR Opt4 New PCK - LVN'!S$15,'EaR Opt4 New PCK - MLN'!S$15,'EaR Opt4 New PCK - MTC'!S$15,'EaR Opt4 New PCK - PCK'!S$15,'EaR Opt4 New PCK - TNA'!S$15,'EaR Opt4 New PCK - WBE'!S$15,'EaR Opt4 New RBE - RBE'!S$15)) -> 1270.18099 | T29: =_xlfn.IFS(T$8<=$E$28,'Option1 (base case)'!T$29,T$8>$E$28,SUM('EaR Opt4 New PCK - LV'!T$15,'EaR Opt4 New PCK - LVN'!T$15,'EaR Opt4 New PCK - MLN'!T$15,'EaR Opt4 New PCK - MTC'!T$15,'EaR Opt4 New PCK - PCK'!T$15,'EaR Opt4 New PCK - TNA'!T$15,'EaR Opt4 New PCK - WBE'!T$15,'EaR Opt4 New RBE - RBE'!T$15)) -> 1270.18099 | U29: =_xlfn.IFS(U$8<=$E$28,'Option1 (base case)'!U$29,U$8>$E$28,SUM('EaR Opt4 New PCK - LV'!U$15,'EaR Opt4 New PCK - LVN'!U$15,'EaR Opt4 New PCK - MLN'!U$15,'EaR Opt4 New PCK - MTC'!U$15,'EaR Opt4 New PCK - PCK'!U$15,'EaR Opt4 New PCK - TNA'!U$15,'EaR Opt4 New PCK - WBE'!U$15,'EaR Opt4 New RBE - RBE'!U$15)) -> 1270.18099 | V29: =_xlfn.IFS(V$8<=$E$28,'Option1 (base case)'!V$29,V$8>$E$28,SUM('EaR Opt4 New PCK - LV'!V$15,'EaR Opt4 New PCK - LVN'!V$15,'EaR Opt4 New PCK - MLN'!V$15,'EaR Opt4 New PCK - MTC'!V$15,'EaR Opt4 New PCK - PCK'!V$15,'EaR Opt4 New PCK - TNA'!V$15,'EaR Opt4 New PCK - WBE'!V$15,'EaR Opt4 New RBE - RBE'!V$15)) -> 1270.18099 | W29: =_xlfn.IFS(W$8<=$E$28,'Option1 (base case)'!W$29,W$8>$E$28,SUM('EaR Opt4 New PCK - LV'!W$15,'EaR Opt4 New PCK - LVN'!W$15,'EaR Opt4 New PCK - MLN'!W$15,'EaR Opt4 New PCK - MTC'!W$15,'EaR Opt4 New PCK - PCK'!W$15,'EaR Opt4 New PCK - TNA'!W$15,'EaR Opt4 New PCK - WBE'!W$15,'EaR Opt4 New RBE - RBE'!W$15)) -> 1270.18099 | X29: =_xlfn.IFS(X$8<=$E$28,'Option1 (base case)'!X$29,X$8>$E$28,SUM('EaR Opt4 New PCK - LV'!X$15,'EaR Opt4 New PCK - LVN'!X$15,'EaR Opt4 New PCK - MLN'!X$15,'EaR Opt4 New PCK - MTC'!X$15,'EaR Opt4 New PCK - PCK'!X$15,'EaR Opt4 New PCK - TNA'!X$15,'EaR Opt4 New PCK - WBE'!X$15,'EaR Opt4 New RBE - RBE'!X$15)) -> 1270.18099 | Y29: =_xlfn.IFS(Y$8<=$E$28,'Option1 (base case)'!Y$29,Y$8>$E$28,SUM('EaR Opt4 New PCK - LV'!Y$15,'EaR Opt4 New PCK - LVN'!Y$15,'EaR Opt4 New PCK - MLN'!Y$15,'EaR Opt4 New PCK - MTC'!Y$15,'EaR Opt4 New PCK - PCK'!Y$15,'EaR Opt4 New PCK - TNA'!Y$15,'EaR Opt4 New PCK - WBE'!Y$15,'EaR Opt4 New RBE - RBE'!Y$15)) -> 1270.18099 | Z29: =_xlfn.IFS(Z$8<=$E$28,'Option1 (base case)'!Z$29,Z$8>$E$28,SUM('EaR Opt4 New PCK - LV'!Z$15,'EaR Opt4 New PCK - LVN'!Z$15,'EaR Opt4 New PCK - MLN'!Z$15,'EaR Opt4 New PCK - MTC'!Z$15,'EaR Opt4 New PCK - PCK'!Z$15,'EaR Opt4 New PCK - TNA'!Z$15,'EaR Opt4 New PCK - WBE'!Z$15,'EaR Opt4 New RBE - RBE'!Z$15)) -> 1270.18099 | AA29: =_xlfn.IFS(AA$8<=$E$28,'Option1 (base case)'!AA$29,AA$8>$E$28,SUM('EaR Opt4 New PCK - LV'!AA$15,'EaR Opt4 New PCK - LVN'!AA$15,'EaR Opt4 New PCK - MLN'!AA$15,'EaR Opt4 New PCK - MTC'!AA$15,'EaR Opt4 New PCK - PCK'!AA$15,'EaR Opt4 New PCK - TNA'!AA$15,'EaR Opt4 New PCK - WBE'!AA$15,'EaR Opt4 New RBE - RBE'!AA$15)) -> 1270.18099 | AB29: =_xlfn.IFS(AB$8<=$E$28,'Option1 (base case)'!AB$29,AB$8>$E$28,SUM('EaR Opt4 New PCK - LV'!AB$15,'EaR Opt4 New PCK - LVN'!AB$15,'EaR Opt4 New PCK - MLN'!AB$15,'EaR Opt4 New PCK - MTC'!AB$15,'EaR Opt4 New PCK - PCK'!AB$15,'EaR Opt4 New PCK - TNA'!AB$15,'EaR Opt4 New PCK - WBE'!AB$15,'EaR Opt4 New RBE - RBE'!AB$15)) -> 1270.18099 | AC29: =_xlfn.IFS(AC$8<=$E$28,'Option1 (base case)'!AC$29,AC$8>$E$28,SUM('EaR Opt4 New PCK - LV'!AC$15,'EaR Opt4 New PCK - LVN'!AC$15,'EaR Opt4 New PCK - MLN'!AC$15,'EaR Opt4 New PCK - MTC'!AC$15,'EaR Opt4 New PCK - PCK'!AC$15,'EaR Opt4 New PCK - TNA'!AC$15,'EaR Opt4 New PCK - WBE'!AC$15,'EaR Opt4 New RBE - RBE'!AC$15)) -> 1270.18099 | AD29: =_xlfn.IFS(AD$8<=$E$28,'Option1 (base case)'!AD$29,AD$8>$E$28,SUM('EaR Opt4 New PCK - LV'!AD$15,'EaR Opt4 New PCK - LVN'!AD$15,'EaR Opt4 New PCK - MLN'!AD$15,'EaR Opt4 New PCK - MTC'!AD$15,'EaR Opt4 New PCK - PCK'!AD$15,'EaR Opt4 New PCK - TNA'!AD$15,'EaR Opt4 New PCK - WBE'!AD$15,'EaR Opt4 New RBE - RBE'!AD$15)) -> 1270.18099 | AE29: =_xlfn.IFS(AE$8<=$E$28,'Option1 (base case)'!AE$29,AE$8>$E$28,SUM('EaR Opt4 New PCK - LV'!AE$15,'EaR Opt4 New PCK - LVN'!AE$15,'EaR Opt4 New PCK - MLN'!AE$15,'EaR Opt4 New PCK - MTC'!AE$15,'EaR Opt4 New PCK - PCK'!AE$15,'EaR Opt4 New PCK - TNA'!AE$15,'EaR Opt4 New PCK - WBE'!AE$15,'EaR Opt4 New RBE - RBE'!AE$15)) -> 1270.18099 | AF29: =_xlfn.IFS(AF$8<=$E$28,'Option1 (base case)'!AF$29,AF$8>$E$28,SUM('EaR Opt4 New PCK - LV'!AF$15,'EaR Opt4 New PCK - LVN'!AF$15,'EaR Opt4 New PCK - MLN'!AF$15,'EaR Opt4 New PCK - MTC'!AF$15,'EaR Opt4 New PCK - PCK'!AF$15,'EaR Opt4 New PCK - TNA'!AF$15,'EaR Opt4 New PCK - WBE'!AF$15,'EaR Opt4 New RBE - RBE'!AF$15)) -> 1270.18099 | AG29: =_xlfn.IFS(AG$8<=$E$28,'Option1 (base case)'!AG$29,AG$8>$E$28,SUM('EaR Opt4 New PCK - LV'!AG$15,'EaR Opt4 New PCK - LVN'!AG$15,'EaR Opt4 New PCK - MLN'!AG$15,'EaR Opt4 New PCK - MTC'!AG$15,'EaR Opt4 New PCK - PCK'!AG$15,'EaR Opt4 New PCK - TNA'!AG$15,'EaR Opt4 New PCK - WBE'!AG$15,'EaR Opt4 New RBE - RBE'!AG$15)) -> 0
C30: Energy at risk 50% PoE | E30: 0.7 | G30: MWh | I30: =_xlfn.IFS(I$8<=$E$28,'Option1 (base case)'!I$30,I$8>$E$28,SUM('EaR Opt4 New PCK - LV'!I$14,'EaR Opt4 New PCK - LVN'!I$14,'EaR Opt4 New PCK - MLN'!I$14,'EaR Opt4 New PCK - MTC'!I$14,'EaR Opt4 New PCK - PCK'!I$14,'EaR Opt4 New PCK - TNA'!I$14,'EaR Opt4 New PCK - WBE'!I$14,'EaR Opt4 New RBE - RBE'!I$14)) -> 101.3053814 | J30: =_xlfn.IFS(J$8<=$E$28,'Option1 (base case)'!J$30,J$8>$E$28,SUM('EaR Opt4 New PCK - LV'!J$14,'EaR Opt4 New PCK - LVN'!J$14,'EaR Opt4 New PCK - MLN'!J$14,'EaR Opt4 New PCK - MTC'!J$14,'EaR Opt4 New PCK - PCK'!J$14,'EaR Opt4 New PCK - TNA'!J$14,'EaR Opt4 New PCK - WBE'!J$14,'EaR Opt4 New RBE - RBE'!J$14)) -> 34.09130528 | K30: =_xlfn.IFS(K$8<=$E$28,'Option1 (base case)'!K$30,K$8>$E$28,SUM('EaR Opt4 New PCK - LV'!K$14,'EaR Opt4 New PCK - LVN'!K$14,'EaR Opt4 New PCK - MLN'!K$14,'EaR Opt4 New PCK - MTC'!K$14,'EaR Opt4 New PCK - PCK'!K$14,'EaR Opt4 New PCK - TNA'!K$14,'EaR Opt4 New PCK - WBE'!K$14,'EaR Opt4 New RBE - RBE'!K$14)) -> 76.84185973 | L30: =_xlfn.IFS(L$8<=$E$28,'Option1 (base case)'!L$30,L$8>$E$28,SUM('EaR Opt4 New PCK - LV'!L$14,'EaR Opt4 New PCK - LVN'!L$14,'EaR Opt4 New PCK - MLN'!L$14,'EaR Opt4 New PCK - MTC'!L$14,'EaR Opt4 New PCK - PCK'!L$14,'EaR Opt4 New PCK - TNA'!L$14,'EaR Opt4 New PCK - WBE'!L$14,'EaR Opt4 New RBE - RBE'!L$14)) -> 27.81951177 | M30: =_xlfn.IFS(M$8<=$E$28,'Option1 (base case)'!M$30,M$8>$E$28,SUM('EaR Opt4 New PCK - LV'!M$14,'EaR Opt4 New PCK - LVN'!M$14,'EaR Opt4 New PCK - MLN'!M$14,'EaR Opt4 New PCK - MTC'!M$14,'EaR Opt4 New PCK - PCK'!M$14,'EaR Opt4 New PCK - TNA'!M$14,'EaR Opt4 New PCK - WBE'!M$14,'EaR Opt4 New RBE - RBE'!M$14)) -> 34.1360999 | N30: =_xlfn.IFS(N$8<=$E$28,'Option1 (base case)'!N$30,N$8>$E$28,SUM('EaR Opt4 New PCK - LV'!N$14,'EaR Opt4 New PCK - LVN'!N$14,'EaR Opt4 New PCK - MLN'!N$14,'EaR Opt4 New PCK - MTC'!N$14,'EaR Opt4 New PCK - PCK'!N$14,'EaR Opt4 New PCK - TNA'!N$14,'EaR Opt4 New PCK - WBE'!N$14,'EaR Opt4 New RBE - RBE'!N$14)) -> 62.26103838 | O30: =_xlfn.IFS(O$8<=$E$28,'Option1 (base case)'!O$30,O$8>$E$28,SUM('EaR Opt4 New PCK - LV'!O$14,'EaR Opt4 New PCK - LVN'!O$14,'EaR Opt4 New PCK - MLN'!O$14,'EaR Opt4 New PCK - MTC'!O$14,'EaR Opt4 New PCK - PCK'!O$14,'EaR Opt4 New PCK - TNA'!O$14,'EaR Opt4 New PCK - WBE'!O$14,'EaR Opt4 New RBE - RBE'!O$14)) -> 110.1087602 | P30: =_xlfn.IFS(P$8<=$E$28,'Option1 (base case)'!P$30,P$8>$E$28,SUM('EaR Opt4 New PCK - LV'!P$14,'EaR Opt4 New PCK - LVN'!P$14,'EaR Opt4 New PCK - MLN'!P$14,'EaR Opt4 New PCK - MTC'!P$14,'EaR Opt4 New PCK - PCK'!P$14,'EaR Opt4 New PCK - TNA'!P$14,'EaR Opt4 New PCK - WBE'!P$14,'EaR Opt4 New RBE - RBE'!P$14)) -> 183.8515789 | Q30: =_xlfn.IFS(Q$8<=$E$28,'Option1 (base case)'!Q$30,Q$8>$E$28,SUM('EaR Opt4 New PCK - LV'!Q$14,'EaR Opt4 New PCK - LVN'!Q$14,'EaR Opt4 New PCK - MLN'!Q$14,'EaR Opt4 New PCK - MTC'!Q$14,'EaR Opt4 New PCK - PCK'!Q$14,'EaR Opt4 New PCK - TNA'!Q$14,'EaR Opt4 New PCK - WBE'!Q$14,'EaR Opt4 New RBE - RBE'!Q$14)) -> 298.3948286 | R30: =_xlfn.IFS(R$8<=$E$28,'Option1 (base case)'!R$30,R$8>$E$28,SUM('EaR Opt4 New PCK - LV'!R$14,'EaR Opt4 New PCK - LVN'!R$14,'EaR Opt4 New PCK - MLN'!R$14,'EaR Opt4 New PCK - MTC'!R$14,'EaR Opt4 New PCK - PCK'!R$14,'EaR Opt4 New PCK - TNA'!R$14,'EaR Opt4 New PCK - WBE'!R$14,'EaR Opt4 New RBE - RBE'!R$14)) -> 291.7879783 | S30: =_xlfn.IFS(S$8<=$E$28,'Option1 (base case)'!S$30,S$8>$E$28,SUM('EaR Opt4 New PCK - LV'!S$14,'EaR Opt4 New PCK - LVN'!S$14,'EaR Opt4 New PCK - MLN'!S$14,'EaR Opt4 New PCK - MTC'!S$14,'EaR Opt4 New PCK - PCK'!S$14,'EaR Opt4 New PCK - TNA'!S$14,'EaR Opt4 New PCK - WBE'!S$14,'EaR Opt4 New RBE - RBE'!S$14)) -> 291.7879303 | T30: =_xlfn.IFS(T$8<=$E$28,'Option1 (base case)'!T$30,T$8>$E$28,SUM('EaR Opt4 New PCK - LV'!T$14,'EaR Opt4 New PCK - LVN'!T$14,'EaR Opt4 New PCK - MLN'!T$14,'EaR Opt4 New PCK - MTC'!T$14,'EaR Opt4 New PCK - PCK'!T$14,'EaR Opt4 New PCK - TNA'!T$14,'EaR Opt4 New PCK - WBE'!T$14,'EaR Opt4 New RBE - RBE'!T$14)) -> 291.7879303 | U30: =_xlfn.IFS(U$8<=$E$28,'Option1 (base case)'!U$30,U$8>$E$28,SUM('EaR Opt4 New PCK - LV'!U$14,'EaR Opt4 New PCK - LVN'!U$14,'EaR Opt4 New PCK - MLN'!U$14,'EaR Opt4 New PCK - MTC'!U$14,'EaR Opt4 New PCK - PCK'!U$14,'EaR Opt4 New PCK - TNA'!U$14,'EaR Opt4 New PCK - WBE'!U$14,'EaR Opt4 New RBE - RBE'!U$14)) -> 291.7879303 | V30: =_xlfn.IFS(V$8<=$E$28,'Option1 (base case)'!V$30,V$8>$E$28,SUM('EaR Opt4 New PCK - LV'!V$14,'EaR Opt4 New PCK - LVN'!V$14,'EaR Opt4 New PCK - MLN'!V$14,'EaR Opt4 New PCK - MTC'!V$14,'EaR Opt4 New PCK - PCK'!V$14,'EaR Opt4 New PCK - TNA'!V$14,'EaR Opt4 New PCK - WBE'!V$14,'EaR Opt4 New RBE - RBE'!V$14)) -> 291.7879303 | W30: =_xlfn.IFS(W$8<=$E$28,'Option1 (base case)'!W$30,W$8>$E$28,SUM('EaR Opt4 New PCK - LV'!W$14,'EaR Opt4 New PCK - LVN'!W$14,'EaR Opt4 New PCK - MLN'!W$14,'EaR Opt4 New PCK - MTC'!W$14,'EaR Opt4 New PCK - PCK'!W$14,'EaR Opt4 New PCK - TNA'!W$14,'EaR Opt4 New PCK - WBE'!W$14,'EaR Opt4 New RBE - RBE'!W$14)) -> 291.7879303 | X30: =_xlfn.IFS(X$8<=$E$28,'Option1 (base case)'!X$30,X$8>$E$28,SUM('EaR Opt4 New PCK - LV'!X$14,'EaR Opt4 New PCK - LVN'!X$14,'EaR Opt4 New PCK - MLN'!X$14,'EaR Opt4 New PCK - MTC'!X$14,'EaR Opt4 New PCK - PCK'!X$14,'EaR Opt4 New PCK - TNA'!X$14,'EaR Opt4 New PCK - WBE'!X$14,'EaR Opt4 New RBE - RBE'!X$14)) -> 291.7879303 | Y30: =_xlfn.IFS(Y$8<=$E$28,'Option1 (base case)'!Y$30,Y$8>$E$28,SUM('EaR Opt4 New PCK - LV'!Y$14,'EaR Opt4 New PCK - LVN'!Y$14,'EaR Opt4 New PCK - MLN'!Y$14,'EaR Opt4 New PCK - MTC'!Y$14,'EaR Opt4 New PCK - PCK'!Y$14,'EaR Opt4 New PCK - TNA'!Y$14,'EaR Opt4 New PCK - WBE'!Y$14,'EaR Opt4 New RBE - RBE'!Y$14)) -> 291.7879303 | Z30: =_xlfn.IFS(Z$8<=$E$28,'Option1 (base case)'!Z$30,Z$8>$E$28,SUM('EaR Opt4 New PCK - LV'!Z$14,'EaR Opt4 New PCK - LVN'!Z$14,'EaR Opt4 New PCK - MLN'!Z$14,'EaR Opt4 New PCK - MTC'!Z$14,'EaR Opt4 New PCK - PCK'!Z$14,'EaR Opt4 New PCK - TNA'!Z$14,'EaR Opt4 New PCK - WBE'!Z$14,'EaR Opt4 New RBE - RBE'!Z$14)) -> 291.7879303 | AA30: =_xlfn.IFS(AA$8<=$E$28,'Option1 (base case)'!AA$30,AA$8>$E$28,SUM('EaR Opt4 New PCK - LV'!AA$14,'EaR Opt4 New PCK - LVN'!AA$14,'EaR Opt4 New PCK - MLN'!AA$14,'EaR Opt4 New PCK - MTC'!AA$14,'EaR Opt4 New PCK - PCK'!AA$14,'EaR Opt4 New PCK - TNA'!AA$14,'EaR Opt4 New PCK - WBE'!AA$14,'EaR Opt4 New RBE - RBE'!AA$14)) -> 291.7879303 | AB30: =_xlfn.IFS(AB$8<=$E$28,'Option1 (base case)'!AB$30,AB$8>$E$28,SUM('EaR Opt4 New PCK - LV'!AB$14,'EaR Opt4 New PCK - LVN'!AB$14,'EaR Opt4 New PCK - MLN'!AB$14,'EaR Opt4 New PCK - MTC'!AB$14,'EaR Opt4 New PCK - PCK'!AB$14,'EaR Opt4 New PCK - TNA'!AB$14,'EaR Opt4 New PCK - WBE'!AB$14,'EaR Opt4 New RBE - RBE'!AB$14)) -> 291.7879303 | AC30: =_xlfn.IFS(AC$8<=$E$28,'Option1 (base case)'!AC$30,AC$8>$E$28,SUM('EaR Opt4 New PCK - LV'!AC$14,'EaR Opt4 New PCK - LVN'!AC$14,'EaR Opt4 New PCK - MLN'!AC$14,'EaR Opt4 New PCK - MTC'!AC$14,'EaR Opt4 New PCK - PCK'!AC$14,'EaR Opt4 New PCK - TNA'!AC$14,'EaR Opt4 New PCK - WBE'!AC$14,'EaR Opt4 New RBE - RBE'!AC$14)) -> 291.7879303 | AD30: =_xlfn.IFS(AD$8<=$E$28,'Option1 (base case)'!AD$30,AD$8>$E$28,SUM('EaR Opt4 New PCK - LV'!AD$14,'EaR Opt4 New PCK - LVN'!AD$14,'EaR Opt4 New PCK - MLN'!AD$14,'EaR Opt4 New PCK - MTC'!AD$14,'EaR Opt4 New PCK - PCK'!AD$14,'EaR Opt4 New PCK - TNA'!AD$14,'EaR Opt4 New PCK - WBE'!AD$14,'EaR Opt4 New RBE - RBE'!AD$14)) -> 291.7879303 | AE30: =_xlfn.IFS(AE$8<=$E$28,'Option1 (base case)'!AE$30,AE$8>$E$28,SUM('EaR Opt4 New PCK - LV'!AE$14,'EaR Opt4 New PCK - LVN'!AE$14,'EaR Opt4 New PCK - MLN'!AE$14,'EaR Opt4 New PCK - MTC'!AE$14,'EaR Opt4 New PCK - PCK'!AE$14,'EaR Opt4 New PCK - TNA'!AE$14,'EaR Opt4 New PCK - WBE'!AE$14,'EaR Opt4 New RBE - RBE'!AE$14)) -> 291.7879303 | AF30: =_xlfn.IFS(AF$8<=$E$28,'Option1 (base case)'!AF$30,AF$8>$E$28,SUM('EaR Opt4 New PCK - LV'!AF$14,'EaR Opt4 New PCK - LVN'!AF$14,'EaR Opt4 New PCK - MLN'!AF$14,'EaR Opt4 New PCK - MTC'!AF$14,'EaR Opt4 New PCK - PCK'!AF$14,'EaR Opt4 New PCK - TNA'!AF$14,'EaR Opt4 New PCK - WBE'!AF$14,'EaR Opt4 New RBE - RBE'!AF$14)) -> 291.7879303 | AG30: =_xlfn.IFS(AG$8<=$E$28,'Option1 (base case)'!AG$30,AG$8>$E$28,SUM('EaR Opt4 New PCK - LV'!AG$14,'EaR Opt4 New PCK - LVN'!AG$14,'EaR Opt4 New PCK - MLN'!AG$14,'EaR Opt4 New PCK - MTC'!AG$14,'EaR Opt4 New PCK - PCK'!AG$14,'EaR Opt4 New PCK - TNA'!AG$14,'EaR Opt4 New PCK - WBE'!AG$14,'EaR Opt4 New RBE - RBE'!AG$14)) -> 0
C32: Energy at risk (weighted) | G32: MWh | I32: =SUMPRODUCT(I$29:I$30, $E$29:$E$30) -> 184.1179785 | J32: =SUMPRODUCT(J$29:J$30, $E$29:$E$30) -> 98.34552059 | K32: 204.7662337 | L32: 85.19362788 | M32: 72.07315309 | N32: 133.1617922 | O32: 239.1523601 | P32: 404.6793805 | Q32: 645.3049225 | R32: 585.3075231 | S32: 585.3058484 | T32: 585.3058484 | U32: 585.3058484 | V32: 585.3058484 | W32: 585.3058484 | X32: 585.3058484 | Y32: 585.3058484 | Z32: 585.3058484 | AA32: 585.3058484 | AB32: 585.3058484 | AC32: 585.3058484 | AD32: 585.3058484 | AE32: 585.3058484 | AF32: 585.3058484 | AG32: 0
C33: Energy at risk value | D33: $/MWh | E33: =Assumptions!H41*vcr_esc -> 33863.33108 | F33: =IF(AND(SUM(I32:AG32)<>0, E33=0), "!", "") ->  | G33: =input_dollars -> 2023-12-31 | I33: =I32*$E$33 -> 6234848.062 | J33: =J32*$E$33 -> 3330306.924 | K33: 6934066.766 | L33: 2884940.026 | M33: 2440637.045 | N33: 4509301.855 | O33: 8098495.548 | P33: 13703791.84 | Q33: 21852174.24 | R33: 19820462.43 | S33: 19820405.72 | T33: 19820405.72 | U33: 19820405.72 | V33: 19820405.72 | W33: 19820405.72 | X33: 19820405.72 | Y33: 19820405.72 | Z33: 19820405.72 | AA33: 19820405.72 | AB33: 19820405.72 | AC33: 19820405.72 | AD33: 19820405.72 | AE33: 19820405.72 | AF33: 19820405.72 | AG33: 0
C35: Safety consequence | D35: (after DF) | G35: =input_dollars -> 2023-12-31 | I35: =SUMPRODUCT((Assumptions!$H$70:$H$71)*(Assumptions!$G$70:$G$71)*(Assumptions!$I$70:$I$71)*(I$25:I$26)) -> 0 | J35: =SUMPRODUCT((Assumptions!$H$70:$H$71)*(Assumptions!$G$70:$G$71)*(Assumptions!$I$70:$I$71)*(J$25:J$26)) -> 0 | K35: =SUMPRODUCT((Assumptions!$H$70:$H$71)*(Assumptions!$G$70:$G$71)*(Assumptions!$I$70:$I$71)*(K$25:K$26)) -> 0 | L35: =SUMPRODUCT((Assumptions!$H$70:$H$71)*(Assumptions!$G$70:$G$71)*(Assumptions!$I$70:$I$71)*(L$25:L$26)) -> 0 | M35: =SUMPRODUCT((Assumptions!$H$70:$H$71)*(Assumptions!$G$70:$G$71)*(Assumptions!$I$70:$I$71)*(M$25:M$26)) -> 0 | N35: =SUMPRODUCT((Assumptions!$H$70:$H$71)*(Assumptions!$G$70:$G$71)*(Assumptions!$I$70:$I$71)*(N$25:N$26)) -> 0 | O35: =SUMPRODUCT((Assumptions!$H$70:$H$71)*(Assumptions!$G$70:$G$71)*(Assumptions!$I$70:$I$71)*(O$25:O$26)) -> 0 | P35: =SUMPRODUCT((Assumptions!$H$70:$H$71)*(Assumptions!$G$70:$G$71)*(Assumptions!$I$70:$I$71)*(P$25:P$26)) -> 0 | Q35: =SUMPRODUCT((Assumptions!$H$70:$H$71)*(Assumptions!$G$70:$G$71)*(Assumptions!$I$70:$I$71)*(Q$25:Q$26)) -> 0 | R35: =SUMPRODUCT((Assumptions!$H$70:$H$71)*(Assumptions!$G$70:$G$71)*(Assumptions!$I$70:$I$71)*(R$25:R$26)) -> 0 | S35: =SUMPRODUCT((Assumptions!$H$70:$H$71)*(Assumptions!$G$70:$G$71)*(Assumptions!$I$70:$I$71)*(S$25:S$26)) -> 0 | T35: =SUMPRODUCT((Assumptions!$H$70:$H$71)*(Assumptions!$G$70:$G$71)*(Assumptions!$I$70:$I$71)*(T$25:T$26)) -> 0 | U35: =SUMPRODUCT((Assumptions!$H$70:$H$71)*(Assumptions!$G$70:$G$71)*(Assumptions!$I$70:$I$71)*(U$25:U$26)) -> 0 | V35: =SUMPRODUCT((Assumptions!$H$70:$H$71)*(Assumptions!$G$70:$G$71)*(Assumptions!$I$70:$I$71)*(V$25:V$26)) -> 0 | W35: =SUMPRODUCT((Assumptions!$H$70:$H$71)*(Assumptions!$G$70:$G$71)*(Assumptions!$I$70:$I$71)*(W$25:W$26)) -> 0 | X35: =SUMPRODUCT((Assumptions!$H$70:$H$71)*(Assumptions!$G$70:$G$71)*(Assumptions!$I$70:$I$71)*(X$25:X$26)) -> 0 | Y35: =SUMPRODUCT((Assumptions!$H$70:$H$71)*(Assumptions!$G$70:$G$71)*(Assumptions!$I$70:$I$71)*(Y$25:Y$26)) -> 0 | Z35: =SUMPRODUCT((Assumptions!$H$70:$H$71)*(Assumptions!$G$70:$G$71)*(Assumptions!$I$70:$I$71)*(Z$25:Z$26)) -> 0 | AA35: =SUMPRODUCT((Assumptions!$H$70:$H$71)*(Assumptions!$G$70:$G$71)*(Assumptions!$I$70:$I$71)*(AA$25:AA$26)) -> 0 | AB35: =SUMPRODUCT((Assumptions!$H$70:$H$71)*(Assumptions!$G$70:$G$71)*(Assumptions!$I$70:$I$71)*(AB$25:AB$26)) -> 0 | AC35: =SUMPRODUCT((Assumptions!$H$70:$H$71)*(Assumptions!$G$70:$G$71)*(Assumptions!$I$70:$I$71)*(AC$25:AC$26)) -> 0 | AD35: =SUMPRODUCT((Assumptions!$H$70:$H$71)*(Assumptions!$G$70:$G$71)*(Assumptions!$I$70:$I$71)*(AD$25:AD$26)) -> 0 | AE35: =SUMPRODUCT((Assumptions!$H$70:$H$71)*(Assumptions!$G$70:$G$71)*(Assumptions!$I$70:$I$71)*(AE$25:AE$26)) -> 0 | AF35: =SUMPRODUCT((Assumptions!$H$70:$H$71)*(Assumptions!$G$70:$G$71)*(Assumptions!$I$70:$I$71)*(AF$25:AF$26)) -> 0 | AG35: =SUMPRODUCT((Assumptions!$H$70:$H$71)*(Assumptions!$G$70:$G$71)*(Assumptions!$I$70:$I$71)*(AG$25:AG$26)) -> 0
C36: Unplanned replacements | G36: =input_dollars -> 2023-12-31 | I36: =(1+Assumptions!$G$81)*SUMPRODUCT((Assumptions!$G$78:$G$79)*(I$25:I$26)) -> 0 | J36: =(1+Assumptions!$G$81)*SUMPRODUCT((Assumptions!$G$78:$G$79)*(J$25:J$26)) -> 0 | K36: =(1+Assumptions!$G$81)*SUMPRODUCT((Assumptions!$G$78:$G$79)*(K$25:K$26)) -> 0 | L36: =(1+Assumptions!$G$81)*SUMPRODUCT((Assumptions!$G$78:$G$79)*(L$25:L$26)) -> 0 | M36: =(1+Assumptions!$G$81)*SUMPRODUCT((Assumptions!$G$78:$G$79)*(M$25:M$26)) -> 0 | N36: =(1+Assumptions!$G$81)*SUMPRODUCT((Assumptions!$G$78:$G$79)*(N$25:N$26)) -> 0 | O36: =(1+Assumptions!$G$81)*SUMPRODUCT((Assumptions!$G$78:$G$79)*(O$25:O$26)) -> 0 | P36: =(1+Assumptions!$G$81)*SUMPRODUCT((Assumptions!$G$78:$G$79)*(P$25:P$26)) -> 0 | Q36: =(1+Assumptions!$G$81)*SUMPRODUCT((Assumptions!$G$78:$G$79)*(Q$25:Q$26)) -> 0 | R36: =(1+Assumptions!$G$81)*SUMPRODUCT((Assumptions!$G$78:$G$79)*(R$25:R$26)) -> 0 | S36: =(1+Assumptions!$G$81)*SUMPRODUCT((Assumptions!$G$78:$G$79)*(S$25:S$26)) -> 0 | T36: =(1+Assumptions!$G$81)*SUMPRODUCT((Assumptions!$G$78:$G$79)*(T$25:T$26)) -> 0 | U36: =(1+Assumptions!$G$81)*SUMPRODUCT((Assumptions!$G$78:$G$79)*(U$25:U$26)) -> 0 | V36: =(1+Assumptions!$G$81)*SUMPRODUCT((Assumptions!$G$78:$G$79)*(V$25:V$26)) -> 0 | W36: =(1+Assumptions!$G$81)*SUMPRODUCT((Assumptions!$G$78:$G$79)*(W$25:W$26)) -> 0 | X36: =(1+Assumptions!$G$81)*SUMPRODUCT((Assumptions!$G$78:$G$79)*(X$25:X$26)) -> 0 | Y36: =(1+Assumptions!$G$81)*SUMPRODUCT((Assumptions!$G$78:$G$79)*(Y$25:Y$26)) -> 0 | Z36: =(1+Assumptions!$G$81)*SUMPRODUCT((Assumptions!$G$78:$G$79)*(Z$25:Z$26)) -> 0 | AA36: =(1+Assumptions!$G$81)*SUMPRODUCT((Assumptions!$G$78:$G$79)*(AA$25:AA$26)) -> 0 | AB36: =(1+Assumptions!$G$81)*SUMPRODUCT((Assumptions!$G$78:$G$79)*(AB$25:AB$26)) -> 0 | AC36: =(1+Assumptions!$G$81)*SUMPRODUCT((Assumptions!$G$78:$G$79)*(AC$25:AC$26)) -> 0 | AD36: =(1+Assumptions!$G$81)*SUMPRODUCT((Assumptions!$G$78:$G$79)*(AD$25:AD$26)) -> 0 | AE36: =(1+Assumptions!$G$81)*SUMPRODUCT((Assumptions!$G$78:$G$79)*(AE$25:AE$26)) -> 0 | AF36: =(1+Assumptions!$G$81)*SUMPRODUCT((Assumptions!$G$78:$G$79)*(AF$25:AF$26)) -> 0 | AG36: =(1+Assumptions!$G$81)*SUMPRODUCT((Assumptions!$G$78:$G$79)*(AG$25:AG$26)) -> 0
C37: Environmental consequence | D37: (after DF) | G37: =input_dollars -> 2023-12-31 | I37: 0 | J37: 0 | K37: 0 | L37: 0 | M37: 0 | N37: 0 | O37: 0 | P37: 0 | Q37: 0 | R37: 0 | S37: 0 | T37: 0 | U37: 0 | V37: 0 | W37: 0 | X37: 0 | Y37: 0 | Z37: 0 | AA37: 0 | AB37: 0 | AC37: 0 | AD37: 0 | AE37: 0 | AF37: 0 | AG37: 0
C38: < Other risk - enter description > | G38: =input_dollars -> 2023-12-31 | I38: 0 | J38: 0 | K38: 0 | L38: 0 | M38: 0 | N38: 0 | O38: 0 | P38: 0 | Q38: 0 | R38: 0 | S38: 0 | T38: 0 | U38: 0 | V38: 0 | W38: 0 | X38: 0 | Y38: 0 | Z38: 0 | AA38: 0 | AB38: 0 | AC38: 0 | AD38: 0 | AE38: 0 | AF38: 0 | AG38: 0
C39: < Other risk - enter description > | G39: =input_dollars -> 2023-12-31 | I39: 0 | J39: 0 | K39: 0 | L39: 0 | M39: 0 | N39: 0 | O39: 0 | P39: 0 | Q39: 0 | R39: 0 | S39: 0 | T39: 0 | U39: 0 | V39: 0 | W39: 0 | X39: 0 | Y39: 0 | Z39: 0 | AA39: 0 | AB39: 0 | AC39: 0 | AD39: 0 | AE39: 0 | AF39: 0 | AG39: 0
C41: Total risk cost | I41: =SUM(I33:I39) -> 6234848.062 | J41: =SUM(J33:J39) -> 3330306.924 | K41: 6934066.766 | L41: 2884940.026 | M41: 2440637.045 | N41: 4509301.855 | O41: 8098495.548 | P41: 13703791.84 | Q41: 21852174.24 | R41: 19820462.43 | S41: 19820405.72 | T41: 19820405.72 | U41: 19820405.72 | V41: 19820405.72 | W41: 19820405.72 | X41: 19820405.72 | Y41: 19820405.72 | Z41: 19820405.72 | AA41: 19820405.72 | AB41: 19820405.72 | AC41: 19820405.72 | AD41: 19820405.72 | AE41: 19820405.72 | AF41: 19820405.72 | AG41: 0
A43: OTHER BENEFITS
C46: Reduction in CO2 emissions | G46: MWh | I46: 0 | J46: 0 | K46: 0 | L46: 0 | M46: 0 | N46: 0 | O46: 0 | P46: 0 | Q46: 0 | R46: 0 | S46: 0 | T46: 0 | U46: 0 | V46: 0 | W46: 0 | X46: 0 | Y46: 0 | Z46: 0 | AA46: 0 | AB46: 0 | AC46: 0 | AD46: 0 | AE46: 0 | AF46: 0 | AG46: 0
C47: Value of reduction in CO2 emissions | G47: $ | I47: =I46*I7 -> 0 | J47: 0 | K47: 0 | L47: 0 | M47: 0 | N47: 0 | O47: 0 | P47: 0 | Q47: 0 | R47: 0 | S47: 0 | T47: 0 | U47: 0 | V47: 0 | W47: 0 | X47: 0 | Y47: 0 | Z47: 0 | AA47: 0 | AB47: 0 | AC47: 0 | AD47: 0 | AE47: 0 | AF47: 0 | AG47: 0
C50: Reliability in worst-served areas | D50: $/MWh | E50: =Assumptions!G94 -> 151432.8174 | G50: MWh | I50: 0 | J50: 0 | K50: 0 | L50: 0 | M50: 0 | N50: 0 | O50: 0 | P50: 0 | Q50: 0 | R50: 0 | S50: 0 | T50: 0 | U50: 0 | V50: 0 | W50: 0 | X50: 0 | Y50: 0 | Z50: 0 | AA50: 0 | AB50: 0 | AC50: 0 | AD50: 0 | AE50: 0 | AF50: 0 | AG50: 0
C51: Network resilience | D51: $/MWh | E51: =Assumptions!G95 -> 24590 | G51: MWh | I51: 0 | J51: 0 | K51: 0 | L51: 0 | M51: 0 | N51: 0 | O51: 0 | P51: 0 | Q51: 0 | R51: 0 | S51: 0 | T51: 0 | U51: 0 | V51: 0 | W51: 0 | X51: 0 | Y51: 0 | Z51: 0 | AA51: 0 | AB51: 0 | AC51: 0 | AD51: 0 | AE51: 0 | AF51: 0 | AG51: 0
C52: Enabling solar exports | D52: $/MWh | E52: =Assumptions!G96 -> 88.35771951 | G52: MWh | I52: 0 | J52: 0 | K52: 0 | L52: 0 | M52: 0 | N52: 0 | O52: 0 | P52: 0 | Q52: 0 | R52: 0 | S52: 0 | T52: 0 | U52: 0 | V52: 0 | W52: 0 | X52: 0 | Y52: 0 | Z52: 0 | AA52: 0 | AB52: 0 | AC52: 0 | AD52: 0 | AE52: 0 | AF52: 0 | AG52: 0
C53: Aesthetics | D53: $/customer | E53: =Assumptions!G97 -> 0 | G53: customers | I53: 0 | J53: 0 | K53: 0 | L53: 0 | M53: 0 | N53: 0 | O53: 0 | P53: 0 | Q53: 0 | R53: 0 | S53: 0 | T53: 0 | U53: 0 | V53: 0 | W53: 0 | X53: 0 | Y53: 0 | Z53: 0 | AA53: 0 | AB53: 0 | AC53: 0 | AD53: 0 | AE53: 0 | AF53: 0 | AG53: 0
C54: Customer value of time (res) | D54: $/customer min | E54: =Assumptions!G98 -> 0.3518133654 | G54: mins | I54: 0 | J54: 0 | K54: 0 | L54: 0 | M54: 0 | N54: 0 | O54: 0 | P54: 0 | Q54: 0 | R54: 0 | S54: 0 | T54: 0 | U54: 0 | V54: 0 | W54: 0 | X54: 0 | Y54: 0 | Z54: 0 | AA54: 0 | AB54: 0 | AC54: 0 | AD54: 0 | AE54: 0 | AF54: 0 | AG54: 0
C55: Customer value of time (bus) | D55: $/customer min | E55: =Assumptions!G99 -> 0.3518133654 | G55: mins | I55: 0 | J55: 0 | K55: 0 | L55: 0 | M55: 0 | N55: 0 | O55: 0 | P55: 0 | Q55: 0 | R55: 0 | S55: 0 | T55: 0 | U55: 0 | V55: 0 | W55: 0 | X55: 0 | Y55: 0 | Z55: 0 | AA55: 0 | AB55: 0 | AC55: 0 | AD55: 0 | AE55: 0 | AF55: 0 | AG55: 0
C56: Communication | D56: $/customer | E56: =Assumptions!G100 -> 0 | G56: customers | I56: 0 | J56: 0 | K56: 0 | L56: 0 | M56: 0 | N56: 0 | O56: 0 | P56: 0 | Q56: 0 | R56: 0 | S56: 0 | T56: 0 | U56: 0 | V56: 0 | W56: 0 | X56: 0 | Y56: 0 | Z56: 0 | AA56: 0 | AB56: 0 | AC56: 0 | AD56: 0 | AE56: 0 | AF56: 0 | AG56: 0
C57: Information accessibility | D57: $/customer | E57: =Assumptions!G101 -> 0 | G57: customers | I57: 0 | J57: 0 | K57: 0 | L57: 0 | M57: 0 | N57: 0 | O57: 0 | P57: 0 | Q57: 0 | R57: 0 | S57: 0 | T57: 0 | U57: 0 | V57: 0 | W57: 0 | X57: 0 | Y57: 0 | Z57: 0 | AA57: 0 | AB57: 0 | AC57: 0 | AD57: 0 | AE57: 0 | AF57: 0 | AG57: 0
C59: Other benefits 1 | G59: =input_dollars -> 2023-12-31 | I59: 0 | J59: 0 | K59: 0 | L59: 0 | M59: 0 | N59: 0 | O59: 0 | P59: 0 | Q59: 0 | R59: 0 | S59: 0 | T59: 0 | U59: 0 | V59: 0 | W59: 0 | X59: 0 | Y59: 0 | Z59: 0 | AA59: 0 | AB59: 0 | AC59: 0 | AD59: 0 | AE59: 0 | AF59: 0 | AG59: 0
C60: Other benefits 2 | G60: =input_dollars -> 2023-12-31 | I60: 0 | J60: 0 | K60: 0 | L60: 0 | M60: 0 | N60: 0 | O60: 0 | P60: 0 | Q60: 0 | R60: 0 | S60: 0 | T60: 0 | U60: 0 | V60: 0 | W60: 0 | X60: 0 | Y60: 0 | Z60: 0 | AA60: 0 | AB60: 0 | AC60: 0 | AD60: 0 | AE60: 0 | AF60: 0 | AG60: 0
C62: Total other benefits | G62: =input_dollars -> 2023-12-31 | I62: =SUMPRODUCT((I$50:I$57)*($E$50:$E$57))+SUM(I59:I60)+I47 -> 0 | J62: =SUMPRODUCT((J$50:J$57)*($E$50:$E$57))+SUM(J59:J60)+J47 -> 0 | K62: =SUMPRODUCT((K$50:K$57)*($E$50:$E$57))+SUM(K59:K60)+K47 -> 0 | L62: =SUMPRODUCT((L$50:L$57)*($E$50:$E$57))+SUM(L59:L60)+L47 -> 0 | M62: =SUMPRODUCT((M$50:M$57)*($E$50:$E$57))+SUM(M59:M60)+M47 -> 0 | N62: =SUMPRODUCT((N$50:N$57)*($E$50:$E$57))+SUM(N59:N60)+N47 -> 0 | O62: =SUMPRODUCT((O$50:O$57)*($E$50:$E$57))+SUM(O59:O60)+O47 -> 0 | P62: =SUMPRODUCT((P$50:P$57)*($E$50:$E$57))+SUM(P59:P60)+P47 -> 0 | Q62: =SUMPRODUCT((Q$50:Q$57)*($E$50:$E$57))+SUM(Q59:Q60)+Q47 -> 0 | R62: =SUMPRODUCT((R$50:R$57)*($E$50:$E$57))+SUM(R59:R60)+R47 -> 0 | S62: =SUMPRODUCT((S$50:S$57)*($E$50:$E$57))+SUM(S59:S60)+S47 -> 0 | T62: =SUMPRODUCT((T$50:T$57)*($E$50:$E$57))+SUM(T59:T60)+T47 -> 0 | U62: =SUMPRODUCT((U$50:U$57)*($E$50:$E$57))+SUM(U59:U60)+U47 -> 0 | V62: =SUMPRODUCT((V$50:V$57)*($E$50:$E$57))+SUM(V59:V60)+V47 -> 0 | W62: =SUMPRODUCT((W$50:W$57)*($E$50:$E$57))+SUM(W59:W60)+W47 -> 0 | X62: =SUMPRODUCT((X$50:X$57)*($E$50:$E$57))+SUM(X59:X60)+X47 -> 0 | Y62: =SUMPRODUCT((Y$50:Y$57)*($E$50:$E$57))+SUM(Y59:Y60)+Y47 -> 0 | Z62: =SUMPRODUCT((Z$50:Z$57)*($E$50:$E$57))+SUM(Z59:Z60)+Z47 -> 0 | AA62: =SUMPRODUCT((AA$50:AA$57)*($E$50:$E$57))+SUM(AA59:AA60)+AA47 -> 0 | AB62: =SUMPRODUCT((AB$50:AB$57)*($E$50:$E$57))+SUM(AB59:AB60)+AB47 -> 0 | AC62: =SUMPRODUCT((AC$50:AC$57)*($E$50:$E$57))+SUM(AC59:AC60)+AC47 -> 0 | AD62: =SUMPRODUCT((AD$50:AD$57)*($E$50:$E$57))+SUM(AD59:AD60)+AD47 -> 0 | AE62: =SUMPRODUCT((AE$50:AE$57)*($E$50:$E$57))+SUM(AE59:AE60)+AE47 -> 0 | AF62: =SUMPRODUCT((AF$50:AF$57)*($E$50:$E$57))+SUM(AF59:AF60)+AF47 -> 0 | AG62: =SUMPRODUCT((AG$50:AG$57)*($E$50:$E$57))+SUM(AG59:AG60)+AG47 -> 0
A65: SUMMARY
C69: ='Option1 (base case)'!C69 -> Risks mitigated vs base case | G69: =input_dollars -> 2023-12-31 | I69: =(1-INDEX(Data!$C$9:$C$13, MATCH($A$3, options,0)))*('Option1 (base case)'!I41-I41) -> 0 | J69: =(1-INDEX(Data!$C$9:$C$13, MATCH($A$3, options,0)))*('Option1 (base case)'!J41-J41) -> 7334982.898 | K69: =(1-INDEX(Data!$C$9:$C$13, MATCH($A$3, options,0)))*('Option1 (base case)'!K41-K41) -> 10592441.57 | L69: =(1-INDEX(Data!$C$9:$C$13, MATCH($A$3, options,0)))*('Option1 (base case)'!L41-L41) -> 24881808.82 | M69: =(1-INDEX(Data!$C$9:$C$13, MATCH($A$3, options,0)))*('Option1 (base case)'!M41-M41) -> 46607403.52 | N69: =(1-INDEX(Data!$C$9:$C$13, MATCH($A$3, options,0)))*('Option1 (base case)'!N41-N41) -> 93634049.54 | O69: =(1-INDEX(Data!$C$9:$C$13, MATCH($A$3, options,0)))*('Option1 (base case)'!O41-O41) -> 185647297.9 | P69: =(1-INDEX(Data!$C$9:$C$13, MATCH($A$3, options,0)))*('Option1 (base case)'!P41-P41) -> 321529906 | Q69: =(1-INDEX(Data!$C$9:$C$13, MATCH($A$3, options,0)))*('Option1 (base case)'!Q41-Q41) -> 493794589 | R69: =(1-INDEX(Data!$C$9:$C$13, MATCH($A$3, options,0)))*('Option1 (base case)'!R41-R41) -> 495826300.8 | S69: =(1-INDEX(Data!$C$9:$C$13, MATCH($A$3, options,0)))*('Option1 (base case)'!S41-S41) -> 495826357.5 | T69: =(1-INDEX(Data!$C$9:$C$13, MATCH($A$3, options,0)))*('Option1 (base case)'!T41-T41) -> 495826357.5 | U69: =(1-INDEX(Data!$C$9:$C$13, MATCH($A$3, options,0)))*('Option1 (base case)'!U41-U41) -> 495826357.5 | V69: =(1-INDEX(Data!$C$9:$C$13, MATCH($A$3, options,0)))*('Option1 (base case)'!V41-V41) -> 495826357.5 | W69: =(1-INDEX(Data!$C$9:$C$13, MATCH($A$3, options,0)))*('Option1 (base case)'!W41-W41) -> 495826357.5 | X69: =(1-INDEX(Data!$C$9:$C$13, MATCH($A$3, options,0)))*('Option1 (base case)'!X41-X41) -> 495826357.5 | Y69: =(1-INDEX(Data!$C$9:$C$13, MATCH($A$3, options,0)))*('Option1 (base case)'!Y41-Y41) -> 495826357.5 | Z69: =(1-INDEX(Data!$C$9:$C$13, MATCH($A$3, options,0)))*('Option1 (base case)'!Z41-Z41) -> 495826357.5 | AA69: =(1-INDEX(Data!$C$9:$C$13, MATCH($A$3, options,0)))*('Option1 (base case)'!AA41-AA41) -> 495826357.5 | AB69: =(1-INDEX(Data!$C$9:$C$13, MATCH($A$3, options,0)))*('Option1 (base case)'!AB41-AB41) -> 495826357.5 | AC69: =(1-INDEX(Data!$C$9:$C$13, MATCH($A$3, options,0)))*('Option1 (base case)'!AC41-AC41) -> 495826357.5 | AD69: =(1-INDEX(Data!$C$9:$C$13, MATCH($A$3, options,0)))*('Option1 (base case)'!AD41-AD41) -> 495826357.5 | AE69: =(1-INDEX(Data!$C$9:$C$13, MATCH($A$3, options,0)))*('Option1 (base case)'!AE41-AE41) -> 495826357.5 | AF69: =(1-INDEX(Data!$C$9:$C$13, MATCH($A$3, options,0)))*('Option1 (base case)'!AF41-AF41) -> 495826357.5 | AG69: =(1-INDEX(Data!$C$9:$C$13, MATCH($A$3, options,0)))*('Option1 (base case)'!AG41-AG41) -> 515646763.2
C71: Capital expenditure
C72: =C14 -> MTC 3rd Tx | G72: =input_dollars -> 2023-12-31 | I72: =-I14 -> -14291649 | J72: 0 | K72: 0 | L72: 0 | M72: 0 | N72: 0 | O72: 0 | P72: 0 | Q72: 0 | R72: 0 | S72: 0 | T72: 0 | U72: 0 | V72: 0 | W72: 0 | X72: 0 | Y72: 0 | Z72: 0 | AA72: 0 | AB72: 0 | AC72: 0 | AD72: 0 | AE72: 0 | AF72: 0 | AG72: 0
C73: =C15 -> New RBE ZSS | G73: =input_dollars -> 2023-12-31 | I73: =-I15 -> -5291808.87 | J73: -17564061.24 | K73: -16105016.89 | L73: 0 | M73: 0 | N73: 0 | O73: 0 | P73: 0 | Q73: 0 | R73: 0 | S73: 0 | T73: 0 | U73: 0 | V73: 0 | W73: 0 | X73: 0 | Y73: 0 | Z73: 0 | AA73: 0 | AB73: 0 | AC73: 0 | AD73: 0 | AE73: 0 | AF73: 0 | AG73: 0
C74: =C16 -> PCK Stage 1 | G74: =input_dollars -> 2023-12-31 | I74: =-I16 -> 0 | J74: -5408395.3 | K74: -24286555.6 | L74: -22244579.1 | M74: 0 | N74: 0 | O74: 0 | P74: 0 | Q74: 0 | R74: -10425980.33 | S74: 0 | T74: 0 | U74: 0 | V74: 0 | W74: 0 | X74: 0 | Y74: 0 | Z74: 0 | AA74: 0 | AB74: 0 | AC74: 0 | AD74: 0 | AE74: 0 | AF74: 0 | AG74: 0
C76: Cumulative capex
C77: =C14 -> MTC 3rd Tx | G77: =input_dollars -> 2023-12-31 | I77: =SUMPRODUCT(($I72:I72))-SUMPRODUCT(($I72:I72)*($I$6:I$6<=(I$6-$E14))) -> -14291649 | J77: =SUMPRODUCT(($I72:J72))-SUMPRODUCT(($I72:J72)*($I$6:J$6<=(J$6-$E14))) -> -14291649 | K77: =SUMPRODUCT(($I72:K72))-SUMPRODUCT(($I72:K72)*($I$6:K$6<=(K$6-$E14))) -> -14291649 | L77: =SUMPRODUCT(($I72:L72))-SUMPRODUCT(($I72:L72)*($I$6:L$6<=(L$6-$E14))) -> -14291649 | M77: =SUMPRODUCT(($I72:M72))-SUMPRODUCT(($I72:M72)*($I$6:M$6<=(M$6-$E14))) -> -14291649 | N77: =SUMPRODUCT(($I72:N72))-SUMPRODUCT(($I72:N72)*($I$6:N$6<=(N$6-$E14))) -> -14291649 | O77: =SUMPRODUCT(($I72:O72))-SUMPRODUCT(($I72:O72)*($I$6:O$6<=(O$6-$E14))) -> -14291649 | P77: =SUMPRODUCT(($I72:P72))-SUMPRODUCT(($I72:P72)*($I$6:P$6<=(P$6-$E14))) -> -14291649 | Q77: =SUMPRODUCT(($I72:Q72))-SUMPRODUCT(($I72:Q72)*($I$6:Q$6<=(Q$6-$E14))) -> -14291649 | R77: =SUMPRODUCT(($I72:R72))-SUMPRODUCT(($I72:R72)*($I$6:R$6<=(R$6-$E14))) -> -14291649 | S77: =SUMPRODUCT(($I72:S72))-SUMPRODUCT(($I72:S72)*($I$6:S$6<=(S$6-$E14))) -> -14291649 | T77: =SUMPRODUCT(($I72:T72))-SUMPRODUCT(($I72:T72)*($I$6:T$6<=(T$6-$E14))) -> -14291649 | U77: =SUMPRODUCT(($I72:U72))-SUMPRODUCT(($I72:U72)*($I$6:U$6<=(U$6-$E14))) -> -14291649 | V77: =SUMPRODUCT(($I72:V72))-SUMPRODUCT(($I72:V72)*($I$6:V$6<=(V$6-$E14))) -> -14291649 | W77: =SUMPRODUCT(($I72:W72))-SUMPRODUCT(($I72:W72)*($I$6:W$6<=(W$6-$E14))) -> -14291649 | X77: =SUMPRODUCT(($I72:X72))-SUMPRODUCT(($I72:X72)*($I$6:X$6<=(X$6-$E14))) -> -14291649 | Y77: =SUMPRODUCT(($I72:Y72))-SUMPRODUCT(($I72:Y72)*($I$6:Y$6<=(Y$6-$E14))) -> -14291649 | Z77: =SUMPRODUCT(($I72:Z72))-SUMPRODUCT(($I72:Z72)*($I$6:Z$6<=(Z$6-$E14))) -> -14291649 | AA77: =SUMPRODUCT(($I72:AA72))-SUMPRODUCT(($I72:AA72)*($I$6:AA$6<=(AA$6-$E14))) -> -14291649 | AB77: =SUMPRODUCT(($I72:AB72))-SUMPRODUCT(($I72:AB72)*($I$6:AB$6<=(AB$6-$E14))) -> -14291649 | AC77: =SUMPRODUCT(($I72:AC72))-SUMPRODUCT(($I72:AC72)*($I$6:AC$6<=(AC$6-$E14))) -> -14291649 | AD77: =SUMPRODUCT(($I72:AD72))-SUMPRODUCT(($I72:AD72)*($I$6:AD$6<=(AD$6-$E14))) -> -14291649 | AE77: =SUMPRODUCT(($I72:AE72))-SUMPRODUCT(($I72:AE72)*($I$6:AE$6<=(AE$6-$E14))) -> -14291649 | AF77: =SUMPRODUCT(($I72:AF72))-SUMPRODUCT(($I72:AF72)*($I$6:AF$6<=(AF$6-$E14))) -> -14291649 | AG77: =SUMPRODUCT(($I72:AG72))-SUMPRODUCT(($I72:AG72)*($I$6:AG$6<=(AG$6-$E14))) -> -14291649
C78: =C15 -> New RBE ZSS | G78: =input_dollars -> 2023-12-31 | I78: =SUMPRODUCT(($I73:I73))-SUMPRODUCT(($I73:I73)*($I$6:I$6<=(I$6-$E15))) -> -5291808.87 | J78: =SUMPRODUCT(($I73:J73))-SUMPRODUCT(($I73:J73)*($I$6:J$6<=(J$6-$E15))) -> -22855870.11 | K78: =SUMPRODUCT(($I73:K73))-SUMPRODUCT(($I73:K73)*($I$6:K$6<=(K$6-$E15))) -> -38960887 | L78: =SUMPRODUCT(($I73:L73))-SUMPRODUCT(($I73:L73)*($I$6:L$6<=(L$6-$E15))) -> -38960887 | M78: =SUMPRODUCT(($I73:M73))-SUMPRODUCT(($I73:M73)*($I$6:M$6<=(M$6-$E15))) -> -38960887 | N78: =SUMPRODUCT(($I73:N73))-SUMPRODUCT(($I73:N73)*($I$6:N$6<=(N$6-$E15))) -> -38960887 | O78: =SUMPRODUCT(($I73:O73))-SUMPRODUCT(($I73:O73)*($I$6:O$6<=(O$6-$E15))) -> -38960887 | P78: =SUMPRODUCT(($I73:P73))-SUMPRODUCT(($I73:P73)*($I$6:P$6<=(P$6-$E15))) -> -38960887 | Q78: =SUMPRODUCT(($I73:Q73))-SUMPRODUCT(($I73:Q73)*($I$6:Q$6<=(Q$6-$E15))) -> -38960887 | R78: =SUMPRODUCT(($I73:R73))-SUMPRODUCT(($I73:R73)*($I$6:R$6<=(R$6-$E15))) -> -38960887 | S78: =SUMPRODUCT(($I73:S73))-SUMPRODUCT(($I73:S73)*($I$6:S$6<=(S$6-$E15))) -> -38960887 | T78: =SUMPRODUCT(($I73:T73))-SUMPRODUCT(($I73:T73)*($I$6:T$6<=(T$6-$E15))) -> -38960887 | U78: =SUMPRODUCT(($I73:U73))-SUMPRODUCT(($I73:U73)*($I$6:U$6<=(U$6-$E15))) -> -38960887 | V78: =SUMPRODUCT(($I73:V73))-SUMPRODUCT(($I73:V73)*($I$6:V$6<=(V$6-$E15))) -> -38960887 | W78: =SUMPRODUCT(($I73:W73))-SUMPRODUCT(($I73:W73)*($I$6:W$6<=(W$6-$E15))) -> -38960887 | X78: =SUMPRODUCT(($I73:X73))-SUMPRODUCT(($I73:X73)*($I$6:X$6<=(X$6-$E15))) -> -38960887 | Y78: =SUMPRODUCT(($I73:Y73))-SUMPRODUCT(($I73:Y73)*($I$6:Y$6<=(Y$6-$E15))) -> -38960887 | Z78: =SUMPRODUCT(($I73:Z73))-SUMPRODUCT(($I73:Z73)*($I$6:Z$6<=(Z$6-$E15))) -> -38960887 | AA78: =SUMPRODUCT(($I73:AA73))-SUMPRODUCT(($I73:AA73)*($I$6:AA$6<=(AA$6-$E15))) -> -38960887 | AB78: =SUMPRODUCT(($I73:AB73))-SUMPRODUCT(($I73:AB73)*($I$6:AB$6<=(AB$6-$E15))) -> -38960887 | AC78: =SUMPRODUCT(($I73:AC73))-SUMPRODUCT(($I73:AC73)*($I$6:AC$6<=(AC$6-$E15))) -> -38960887 | AD78: =SUMPRODUCT(($I73:AD73))-SUMPRODUCT(($I73:AD73)*($I$6:AD$6<=(AD$6-$E15))) -> -38960887 | AE78: =SUMPRODUCT(($I73:AE73))-SUMPRODUCT(($I73:AE73)*($I$6:AE$6<=(AE$6-$E15))) -> -38960887 | AF78: =SUMPRODUCT(($I73:AF73))-SUMPRODUCT(($I73:AF73)*($I$6:AF$6<=(AF$6-$E15))) -> -38960887 | AG78: =SUMPRODUCT(($I73:AG73))-SUMPRODUCT(($I73:AG73)*($I$6:AG$6<=(AG$6-$E15))) -> -38960887
C79: =C16 -> PCK Stage 1 | G79: =input_dollars -> 2023-12-31 | I79: =SUMPRODUCT(($I74:I74))-SUMPRODUCT(($I74:I74)*($I$6:I$6<=(I$6-$E16))) -> 0 | J79: =SUMPRODUCT(($I74:J74))-SUMPRODUCT(($I74:J74)*($I$6:J$6<=(J$6-$E16))) -> -5408395.3 | K79: =SUMPRODUCT(($I74:K74))-SUMPRODUCT(($I74:K74)*($I$6:K$6<=(K$6-$E16))) -> -29694950.9 | L79: =SUMPRODUCT(($I74:L74))-SUMPRODUCT(($I74:L74)*($I$6:L$6<=(L$6-$E16))) -> -51939530 | M79: =SUMPRODUCT(($I74:M74))-SUMPRODUCT(($I74:M74)*($I$6:M$6<=(M$6-$E16))) -> -51939530 | N79: =SUMPRODUCT(($I74:N74))-SUMPRODUCT(($I74:N74)*($I$6:N$6<=(N$6-$E16))) -> -51939530 | O79: =SUMPRODUCT(($I74:O74))-SUMPRODUCT(($I74:O74)*($I$6:O$6<=(O$6-$E16))) -> -51939530 | P79: =SUMPRODUCT(($I74:P74))-SUMPRODUCT(($I74:P74)*($I$6:P$6<=(P$6-$E16))) -> -51939530 | Q79: =SUMPRODUCT(($I74:Q74))-SUMPRODUCT(($I74:Q74)*($I$6:Q$6<=(Q$6-$E16))) -> -51939530 | R79: =SUMPRODUCT(($I74:R74))-SUMPRODUCT(($I74:R74)*($I$6:R$6<=(R$6-$E16))) -> -62365510.33 | S79: =SUMPRODUCT(($I74:S74))-SUMPRODUCT(($I74:S74)*($I$6:S$6<=(S$6-$E16))) -> -62365510.33 | T79: =SUMPRODUCT(($I74:T74))-SUMPRODUCT(($I74:T74)*($I$6:T$6<=(T$6-$E16))) -> -62365510.33 | U79: =SUMPRODUCT(($I74:U74))-SUMPRODUCT(($I74:U74)*($I$6:U$6<=(U$6-$E16))) -> -62365510.33 | V79: =SUMPRODUCT(($I74:V74))-SUMPRODUCT(($I74:V74)*($I$6:V$6<=(V$6-$E16))) -> -62365510.33 | W79: =SUMPRODUCT(($I74:W74))-SUMPRODUCT(($I74:W74)*($I$6:W$6<=(W$6-$E16))) -> -62365510.33 | X79: =SUMPRODUCT(($I74:X74))-SUMPRODUCT(($I74:X74)*($I$6:X$6<=(X$6-$E16))) -> -62365510.33 | Y79: =SUMPRODUCT(($I74:Y74))-SUMPRODUCT(($I74:Y74)*($I$6:Y$6<=(Y$6-$E16))) -> -62365510.33 | Z79: =SUMPRODUCT(($I74:Z74))-SUMPRODUCT(($I74:Z74)*($I$6:Z$6<=(Z$6-$E16))) -> -62365510.33 | AA79: =SUMPRODUCT(($I74:AA74))-SUMPRODUCT(($I74:AA74)*($I$6:AA$6<=(AA$6-$E16))) -> -62365510.33 | AB79: =SUMPRODUCT(($I74:AB74))-SUMPRODUCT(($I74:AB74)*($I$6:AB$6<=(AB$6-$E16))) -> -62365510.33 | AC79: =SUMPRODUCT(($I74:AC74))-SUMPRODUCT(($I74:AC74)*($I$6:AC$6<=(AC$6-$E16))) -> -62365510.33 | AD79: =SUMPRODUCT(($I74:AD74))-SUMPRODUCT(($I74:AD74)*($I$6:AD$6<=(AD$6-$E16))) -> -62365510.33 | AE79: =SUMPRODUCT(($I74:AE74))-SUMPRODUCT(($I74:AE74)*($I$6:AE$6<=(AE$6-$E16))) -> -62365510.33 | AF79: =SUMPRODUCT(($I74:AF74))-SUMPRODUCT(($I74:AF74)*($I$6:AF$6<=(AF$6-$E16))) -> -62365510.33 | AG79: =SUMPRODUCT(($I74:AG74))-SUMPRODUCT(($I74:AG74)*($I$6:AG$6<=(AG$6-$E16))) -> -62365510.33
C81: Annualised capex
C82: =$C$81&" - "&C14 -> Annualised capex - MTC 3rd Tx | G82: =input_dollars -> 2023-12-31 | I82: =IF($E14=0,0,-PMT(real_disc, $E14,H77,)) -> 0 | J82: -609306.0127 | K82: -609306.0127 | L82: -609306.0127 | M82: -609306.0127 | N82: -609306.0127 | O82: -609306.0127 | P82: -609306.0127 | Q82: -609306.0127 | R82: -609306.0127 | S82: -609306.0127 | T82: -609306.0127 | U82: -609306.0127 | V82: -609306.0127 | W82: -609306.0127 | X82: -609306.0127 | Y82: -609306.0127 | Z82: -609306.0127 | AA82: -609306.0127 | AB82: -609306.0127 | AC82: -609306.0127 | AD82: -609306.0127 | AE82: -609306.0127 | AF82: -609306.0127 | AG82: -609306.0127
C83: =$C$81&" - "&C15 -> Annualised capex - New RBE ZSS | G83: =input_dollars -> 2023-12-31 | I83: =IF($E15=0,0,-PMT(real_disc, $E15,H78,)) -> 0 | J83: -225609.4424 | K83: -974430.5282 | L83: -1661047.141 | M83: -1661047.141 | N83: -1661047.141 | O83: -1661047.141 | P83: -1661047.141 | Q83: -1661047.141 | R83: -1661047.141 | S83: -1661047.141 | T83: -1661047.141 | U83: -1661047.141 | V83: -1661047.141 | W83: -1661047.141 | X83: -1661047.141 | Y83: -1661047.141 | Z83: -1661047.141 | AA83: -1661047.141 | AB83: -1661047.141 | AC83: -1661047.141 | AD83: -1661047.141 | AE83: -1661047.141 | AF83: -1661047.141 | AG83: -1661047.141
C84: =$C$81&" - "&C16 -> Annualised capex - PCK Stage 1 | G84: =input_dollars -> 2023-12-31 | I84: =IF($E16=0,0,-PMT(real_disc, $E16,H79,)) -> 0 | J84: 0 | K84: -230579.9544 | L84: -1266005.912 | M84: -2214374.837 | N84: -2214374.837 | O84: -2214374.837 | P84: -2214374.837 | Q84: -2214374.837 | R84: -2214374.837 | S84: -2658873.055 | T84: -2658873.055 | U84: -2658873.055 | V84: -2658873.055 | W84: -2658873.055 | X84: -2658873.055 | Y84: -2658873.055 | Z84: -2658873.055 | AA84: -2658873.055 | AB84: -2658873.055 | AC84: -2658873.055 | AD84: -2658873.055 | AE84: -2658873.055 | AF84: -2658873.055 | AG84: -2658873.055
C85: Total annualised capex | G85: =input_dollars -> 2023-12-31 | I85: =SUM(I82:I84) -> 0 | J85: =SUM(J82:J84) -> -834915.4551 | K85: -1814316.495 | L85: -3536359.066 | M85: -4484727.991 | N85: -4484727.991 | O85: -4484727.991 | P85: -4484727.991 | Q85: -4484727.991 | R85: -4484727.991 | S85: -4929226.208 | T85: -4929226.208 | U85: -4929226.208 | V85: -4929226.208 | W85: -4929226.208 | X85: -4929226.208 | Y85: -4929226.208 | Z85: -4929226.208 | AA85: -4929226.208 | AB85: -4929226.208 | AC85: =SUM(AC82:AC84) -> -4929226.208 | AD85: =SUM(AD82:AD84) -> -4929226.208 | AE85: =SUM(AE82:AE84) -> -4929226.208 | AF85: =SUM(AF82:AF84) -> -4929226.208 | AG85: =SUM(AG82:AG84) -> -4929226.208
C87: Annualised capex | G87: =input_dollars -> 2023-12-31 | I87: =I85 -> 0 | J87: =J85 -> -834915.4551 | K87: -1814316.495 | L87: -3536359.066 | M87: -4484727.991 | N87: -4484727.991 | O87: -4484727.991 | P87: -4484727.991 | Q87: -4484727.991 | R87: -4484727.991 | S87: -4929226.208 | T87: -4929226.208 | U87: -4929226.208 | V87: -4929226.208 | W87: -4929226.208 | X87: -4929226.208 | Y87: -4929226.208 | Z87: -4929226.208 | AA87: -4929226.208 | AB87: -4929226.208 | AC87: =AC85 -> -4929226.208 | AD87: =AD85 -> -4929226.208 | AE87: =AE85 -> -4929226.208 | AF87: =AF85 -> -4929226.208 | AG87: =AG85 -> -4929226.208
C88: Operating expenditure | G88: 2023-12-31 | I88: =-I20 -> 0 | J88: 0 | K88: 0 | L88: 0 | M88: 0 | N88: 0 | O88: 0 | P88: 0 | Q88: 0 | R88: 0 | S88: 0 | T88: 0 | U88: 0 | V88: 0 | W88: 0 | X88: 0 | Y88: 0 | Z88: 0 | AA88: 0 | AB88: 0 | AC88: 0 | AD88: 0 | AE88: 0 | AF88: 0 | AG88: 0
C89: Risk mitigated | G89: 2023-12-31 | I89: =I69 -> 0 | J89: =J69 -> 7334982.898 | K89: 10592441.57 | L89: 24881808.82 | M89: 46607403.52 | N89: 93634049.54 | O89: 185647297.9 | P89: 321529906 | Q89: 493794589 | R89: 495826300.8 | S89: 495826357.5 | T89: 495826357.5 | U89: 495826357.5 | V89: 495826357.5 | W89: 495826357.5 | X89: 495826357.5 | Y89: 495826357.5 | Z89: 495826357.5 | AA89: 495826357.5 | AB89: 495826357.5 | AC89: =AC69 -> 495826357.5 | AD89: =AD69 -> 495826357.5 | AE89: =AE69 -> 495826357.5 | AF89: =AF69 -> 495826357.5 | AG89: =AG69 -> 515646763.2
C90: Other benefits value | G90: 2023-12-31 | I90: =I62 -> 0 | J90: 0 | K90: 0 | L90: 0 | M90: 0 | N90: 0 | O90: 0 | P90: 0 | Q90: 0 | R90: 0 | S90: 0 | T90: 0 | U90: 0 | V90: 0 | W90: 0 | X90: 0 | Y90: 0 | Z90: 0 | AA90: 0 | AB90: 0 | AC90: 0 | AD90: 0 | AE90: 0 | AF90: 0 | AG90: 0
C92: Net benefits | G92: 2023-12-31 | I92: =SUM(I87:I91) -> 0 | J92: 6500067.443 | K92: 8778125.076 | L92: 21345449.76 | M92: 42122675.53 | N92: 89149321.55 | O92: 181162569.9 | P92: 317045178 | Q92: 489309861 | R92: 491341572.8 | S92: 490897131.3 | T92: 490897131.3 | U92: 490897131.3 | V92: 490897131.3 | W92: 490897131.3 | X92: 490897131.3 | Y92: 490897131.3 | Z92: 490897131.3 | AA92: 490897131.3 | AB92: 490897131.3 | AC92: =SUM(AC87:AC91) -> 490897131.3 | AD92: =SUM(AD87:AD91) -> 490897131.3 | AE92: =SUM(AE87:AE91) -> 490897131.3 | AF92: =SUM(AF87:AF91) -> 490897131.3 | AG92: =SUM(AG87:AG91) -> 510717537
C95: First capex year | G95: =IF(SUM($I18:$AG18)=0,0,(INDEX(I$6:AG$6,MATCH(TRUE,INDEX($I18:$AG18<>0,),0)))) -> 1
C97: First year | G97: =IF(_xlfn.MINIFS($G$95:$G$96, $G$95:$G$96, ">"&0)=0, $A$4, _xlfn.MINIFS($G$95:$G$96, $G$95:$G$96, ">"&0)) -> 1
A107: SENSITIVITIES
A111: NPV | C111: Net benefits | G111: =PROPER($A$3)&A111 -> Option 4NPV | I111: =I92 -> 0 | J111: =J92 -> 6500067.443 | K111: 8778125.076 | L111: 21345449.76 | M111: 42122675.53 | N111: 89149321.55 | O111: 181162569.9 | P111: 317045178 | Q111: 489309861 | R111: 491341572.8 | S111: 490897131.3 | T111: 490897131.3 | U111: 490897131.3 | V111: 490897131.3 | W111: 490897131.3 | X111: 490897131.3 | Y111: 490897131.3 | Z111: 490897131.3 | AA111: 490897131.3 | AB111: 490897131.3 | AC111: 490897131.3 | AD111: 490897131.3 | AE111: 490897131.3 | AF111: 490897131.3 | AG111: 510717537
C112: Total annualised capex | I112: =I87 -> 0 | J112: =J87 -> -834915.4551 | K112: -1814316.495 | L112: -3536359.066 | M112: -4484727.991 | N112: -4484727.991 | O112: -4484727.991 | P112: -4484727.991 | Q112: -4484727.991 | R112: -4484727.991 | S112: -4929226.208 | T112: -4929226.208 | U112: -4929226.208 | V112: -4929226.208 | W112: -4929226.208 | X112: -4929226.208 | Y112: -4929226.208 | Z112: -4929226.208 | AA112: -4929226.208 | AB112: -4929226.208 | AC112: -4929226.208 | AD112: -4929226.208 | AE112: -4929226.208 | AF112: -4929226.208 | AG112: -4929226.208
C113: Total benefits | I113: =SUM(I89:I90) -> 0 | J113: =SUM(J89:J90) -> 7334982.898 | K113: 10592441.57 | L113: 24881808.82 | M113: 46607403.52 | N113: 93634049.54 | O113: 185647297.9 | P113: 321529906 | Q113: 493794589 | R113: 495826300.8 | S113: 495826357.5 | T113: 495826357.5 | U113: 495826357.5 | V113: 495826357.5 | W113: 495826357.5 | X113: 495826357.5 | Y113: 495826357.5 | Z113: 495826357.5 | AA113: 495826357.5 | AB113: 495826357.5 | AC113: 495826357.5 | AD113: 495826357.5 | AE113: 495826357.5 | AF113: 495826357.5 | AG113: 515646763.2
D114: =Assumptions!G110 -> Capex | E114: =Assumptions!H110 -> Total benefits
A115: ="sens"&Assumptions!B111 -> sens1 | C115: =Assumptions!C111 -> Capex 10% higher | D115: =Assumptions!G111 -> 0.1 | E115: =Assumptions!H111 -> 0 | G115: =PROPER($A$3)&A115 -> Option 4sens1 | I115: =I$111+IF($C115<>0,SUMPRODUCT((I$112:I$113)*TRANSPOSE(($D115:$E115))),0) -> 0 | J115: =J$111+IF($C115<>0,SUMPRODUCT((J$112:J$113)*TRANSPOSE(($D115:$E115))),0) -> 6416575.898 | K115: =K$111+IF($C115<>0,SUMPRODUCT((K$112:K$113)*TRANSPOSE(($D115:$E115))),0) -> 8596693.427 | L115: =L$111+IF($C115<>0,SUMPRODUCT((L$112:L$113)*TRANSPOSE(($D115:$E115))),0) -> 20991813.85 | M115: =M$111+IF($C115<>0,SUMPRODUCT((M$112:M$113)*TRANSPOSE(($D115:$E115))),0) -> 41674202.73 | N115: =N$111+IF($C115<>0,SUMPRODUCT((N$112:N$113)*TRANSPOSE(($D115:$E115))),0) -> 88700848.75 | O115: =O$111+IF($C115<>0,SUMPRODUCT((O$112:O$113)*TRANSPOSE(($D115:$E115))),0) -> 180714097.1 | P115: =P$111+IF($C115<>0,SUMPRODUCT((P$112:P$113)*TRANSPOSE(($D115:$E115))),0) -> 316596705.2 | Q115: =Q$111+IF($C115<>0,SUMPRODUCT((Q$112:Q$113)*TRANSPOSE(($D115:$E115))),0) -> 488861388.2 | R115: =R$111+IF($C115<>0,SUMPRODUCT((R$112:R$113)*TRANSPOSE(($D115:$E115))),0) -> 490893100 | S115: =S$111+IF($C115<>0,SUMPRODUCT((S$112:S$113)*TRANSPOSE(($D115:$E115))),0) -> 490404208.6 | T115: =T$111+IF($C115<>0,SUMPRODUCT((T$112:T$113)*TRANSPOSE(($D115:$E115))),0) -> 490404208.6 | U115: =U$111+IF($C115<>0,SUMPRODUCT((U$112:U$113)*TRANSPOSE(($D115:$E115))),0) -> 490404208.6 | V115: =V$111+IF($C115<>0,SUMPRODUCT((V$112:V$113)*TRANSPOSE(($D115:$E115))),0) -> 490404208.6 | W115: =W$111+IF($C115<>0,SUMPRODUCT((W$112:W$113)*TRANSPOSE(($D115:$E115))),0) -> 490404208.6 | X115: =X$111+IF($C115<>0,SUMPRODUCT((X$112:X$113)*TRANSPOSE(($D115:$E115))),0) -> 490404208.6 | Y115: =Y$111+IF($C115<>0,SUMPRODUCT((Y$112:Y$113)*TRANSPOSE(($D115:$E115))),0) -> 490404208.6 | Z115: =Z$111+IF($C115<>0,SUMPRODUCT((Z$112:Z$113)*TRANSPOSE(($D115:$E115))),0) -> 490404208.6 | AA115: =AA$111+IF($C115<>0,SUMPRODUCT((AA$112:AA$113)*TRANSPOSE(($D115:$E115))),0) -> 490404208.6 | AB115: =AB$111+IF($C115<>0,SUMPRODUCT((AB$112:AB$113)*TRANSPOSE(($D115:$E115))),0) -> 490404208.6 | AC115: =AC$111+IF($C115<>0,SUMPRODUCT((AC$112:AC$113)*TRANSPOSE(($D115:$E115))),0) -> 490404208.6 | AD115: =AD$111+IF($C115<>0,SUMPRODUCT((AD$112:AD$113)*TRANSPOSE(($D115:$E115))),0) -> 490404208.6 | AE115: =AE$111+IF($C115<>0,SUMPRODUCT((AE$112:AE$113)*TRANSPOSE(($D115:$E115))),0) -> 490404208.6 | AF115: =AF$111+IF($C115<>0,SUMPRODUCT((AF$112:AF$113)*TRANSPOSE(($D115:$E115))),0) -> 490404208.6 | AG115: =AG$111+IF($C115<>0,SUMPRODUCT((AG$112:AG$113)*TRANSPOSE(($D115:$E115))),0) -> 510224614.4
A116: ="sens"&Assumptions!B112 -> sens2 | C116: =Assumptions!C112 -> Capex 10% lower | D116: =Assumptions!G112 -> -0.1 | E116: =Assumptions!H112 -> 0 | G116: =PROPER($A$3)&A116 -> Option 4sens2 | I116: =I$111+IF($C116<>0,SUMPRODUCT((I$112:I$113)*TRANSPOSE(($D116:$E116))),0) -> 0 | J116: =J$111+IF($C116<>0,SUMPRODUCT((J$112:J$113)*TRANSPOSE(($D116:$E116))),0) -> 6583558.989 | K116: =K$111+IF($C116<>0,SUMPRODUCT((K$112:K$113)*TRANSPOSE(($D116:$E116))),0) -> 8959556.726 | L116: =L$111+IF($C116<>0,SUMPRODUCT((L$112:L$113)*TRANSPOSE(($D116:$E116))),0) -> 21699085.66 | M116: =M$111+IF($C116<>0,SUMPRODUCT((M$112:M$113)*TRANSPOSE(($D116:$E116))),0) -> 42571148.33 | N116: =N$111+IF($C116<>0,SUMPRODUCT((N$112:N$113)*TRANSPOSE(($D116:$E116))),0) -> 89597794.35 | O116: =O$111+IF($C116<>0,SUMPRODUCT((O$112:O$113)*TRANSPOSE(($D116:$E116))),0) -> 181611042.7 | P116: =P$111+IF($C116<>0,SUMPRODUCT((P$112:P$113)*TRANSPOSE(($D116:$E116))),0) -> 317493650.8 | Q116: =Q$111+IF($C116<>0,SUMPRODUCT((Q$112:Q$113)*TRANSPOSE(($D116:$E116))),0) -> 489758333.8 | R116: =R$111+IF($C116<>0,SUMPRODUCT((R$112:R$113)*TRANSPOSE(($D116:$E116))),0) -> 491790045.6 | S116: =S$111+IF($C116<>0,SUMPRODUCT((S$112:S$113)*TRANSPOSE(($D116:$E116))),0) -> 491390053.9 | T116: =T$111+IF($C116<>0,SUMPRODUCT((T$112:T$113)*TRANSPOSE(($D116:$E116))),0) -> 491390053.9 | U116: =U$111+IF($C116<>0,SUMPRODUCT((U$112:U$113)*TRANSPOSE(($D116:$E116))),0) -> 491390053.9 | V116: =V$111+IF($C116<>0,SUMPRODUCT((V$112:V$113)*TRANSPOSE(($D116:$E116))),0) -> 491390053.9 | W116: =W$111+IF($C116<>0,SUMPRODUCT((W$112:W$113)*TRANSPOSE(($D116:$E116))),0) -> 491390053.9 | X116: =X$111+IF($C116<>0,SUMPRODUCT((X$112:X$113)*TRANSPOSE(($D116:$E116))),0) -> 491390053.9 | Y116: =Y$111+IF($C116<>0,SUMPRODUCT((Y$112:Y$113)*TRANSPOSE(($D116:$E116))),0) -> 491390053.9 | Z116: =Z$111+IF($C116<>0,SUMPRODUCT((Z$112:Z$113)*TRANSPOSE(($D116:$E116))),0) -> 491390053.9 | AA116: =AA$111+IF($C116<>0,SUMPRODUCT((AA$112:AA$113)*TRANSPOSE(($D116:$E116))),0) -> 491390053.9 | AB116: =AB$111+IF($C116<>0,SUMPRODUCT((AB$112:AB$113)*TRANSPOSE(($D116:$E116))),0) -> 491390053.9 | AC116: =AC$111+IF($C116<>0,SUMPRODUCT((AC$112:AC$113)*TRANSPOSE(($D116:$E116))),0) -> 491390053.9 | AD116: =AD$111+IF($C116<>0,SUMPRODUCT((AD$112:AD$113)*TRANSPOSE(($D116:$E116))),0) -> 491390053.9 | AE116: =AE$111+IF($C116<>0,SUMPRODUCT((AE$112:AE$113)*TRANSPOSE(($D116:$E116))),0) -> 491390053.9 | AF116: =AF$111+IF($C116<>0,SUMPRODUCT((AF$112:AF$113)*TRANSPOSE(($D116:$E116))),0) -> 491390053.9 | AG116: =AG$111+IF($C116<>0,SUMPRODUCT((AG$112:AG$113)*TRANSPOSE(($D116:$E116))),0) -> 511210459.6
A117: ="sens"&Assumptions!B113 -> sens3 | C117: =Assumptions!C113 -> Total benefits 10% higher | D117: =Assumptions!G113 -> 0 | E117: =Assumptions!H113 -> 0.1 | G117: Option 4sens3 | I117: =I$111+IF($C117<>0,SUMPRODUCT((I$112:I$113)*TRANSPOSE(($D117:$E117))),0) -> 0 | J117: =J$111+IF($C117<>0,SUMPRODUCT((J$112:J$113)*TRANSPOSE(($D117:$E117))),0) -> 7233565.733 | K117: =K$111+IF($C117<>0,SUMPRODUCT((K$112:K$113)*TRANSPOSE(($D117:$E117))),0) -> 9837369.233 | L117: =L$111+IF($C117<>0,SUMPRODUCT((L$112:L$113)*TRANSPOSE(($D117:$E117))),0) -> 23833630.64 | M117: =M$111+IF($C117<>0,SUMPRODUCT((M$112:M$113)*TRANSPOSE(($D117:$E117))),0) -> 46783415.88 | N117: =N$111+IF($C117<>0,SUMPRODUCT((N$112:N$113)*TRANSPOSE(($D117:$E117))),0) -> 98512726.51 | O117: =O$111+IF($C117<>0,SUMPRODUCT((O$112:O$113)*TRANSPOSE(($D117:$E117))),0) -> 199727299.7 | P117: =P$111+IF($C117<>0,SUMPRODUCT((P$112:P$113)*TRANSPOSE(($D117:$E117))),0) -> 349198168.6 | Q117: =Q$111+IF($C117<>0,SUMPRODUCT((Q$112:Q$113)*TRANSPOSE(($D117:$E117))),0) -> 538689319.9 | R117: =R$111+IF($C117<>0,SUMPRODUCT((R$112:R$113)*TRANSPOSE(($D117:$E117))),0) -> 540924202.8 | S117: =S$111+IF($C117<>0,SUMPRODUCT((S$112:S$113)*TRANSPOSE(($D117:$E117))),0) -> 540479767 | T117: =T$111+IF($C117<>0,SUMPRODUCT((T$112:T$113)*TRANSPOSE(($D117:$E117))),0) -> 540479767 | U117: =U$111+IF($C117<>0,SUMPRODUCT((U$112:U$113)*TRANSPOSE(($D117:$E117))),0) -> 540479767 | V117: =V$111+IF($C117<>0,SUMPRODUCT((V$112:V$113)*TRANSPOSE(($D117:$E117))),0) -> 540479767 | W117: =W$111+IF($C117<>0,SUMPRODUCT((W$112:W$113)*TRANSPOSE(($D117:$E117))),0) -> 540479767 | X117: =X$111+IF($C117<>0,SUMPRODUCT((X$112:X$113)*TRANSPOSE(($D117:$E117))),0) -> 540479767 | Y117: =Y$111+IF($C117<>0,SUMPRODUCT((Y$112:Y$113)*TRANSPOSE(($D117:$E117))),0) -> 540479767 | Z117: =Z$111+IF($C117<>0,SUMPRODUCT((Z$112:Z$113)*TRANSPOSE(($D117:$E117))),0) -> 540479767 | AA117: =AA$111+IF($C117<>0,SUMPRODUCT((AA$112:AA$113)*TRANSPOSE(($D117:$E117))),0) -> 540479767 | AB117: =AB$111+IF($C117<>0,SUMPRODUCT((AB$112:AB$113)*TRANSPOSE(($D117:$E117))),0) -> 540479767 | AC117: =AC$111+IF($C117<>0,SUMPRODUCT((AC$112:AC$113)*TRANSPOSE(($D117:$E117))),0) -> 540479767 | AD117: =AD$111+IF($C117<>0,SUMPRODUCT((AD$112:AD$113)*TRANSPOSE(($D117:$E117))),0) -> 540479767 | AE117: =AE$111+IF($C117<>0,SUMPRODUCT((AE$112:AE$113)*TRANSPOSE(($D117:$E117))),0) -> 540479767 | AF117: =AF$111+IF($C117<>0,SUMPRODUCT((AF$112:AF$113)*TRANSPOSE(($D117:$E117))),0) -> 540479767 | AG117: =AG$111+IF($C117<>0,SUMPRODUCT((AG$112:AG$113)*TRANSPOSE(($D117:$E117))),0) -> 562282213.3
A118: ="sens"&Assumptions!B114 -> sens4 | C118: =Assumptions!C114 -> Total benefits 10% lower | D118: =Assumptions!G114 -> 0 | E118: =Assumptions!H114 -> -0.1 | G118: Option 4sens4 | I118: =I$111+IF($C118<>0,SUMPRODUCT((I$112:I$113)*TRANSPOSE(($D118:$E118))),0) -> 0 | J118: =J$111+IF($C118<>0,SUMPRODUCT((J$112:J$113)*TRANSPOSE(($D118:$E118))),0) -> 5766569.153 | K118: =K$111+IF($C118<>0,SUMPRODUCT((K$112:K$113)*TRANSPOSE(($D118:$E118))),0) -> 7718880.919 | L118: =L$111+IF($C118<>0,SUMPRODUCT((L$112:L$113)*TRANSPOSE(($D118:$E118))),0) -> 18857268.87 | M118: =M$111+IF($C118<>0,SUMPRODUCT((M$112:M$113)*TRANSPOSE(($D118:$E118))),0) -> 37461935.18 | N118: =N$111+IF($C118<>0,SUMPRODUCT((N$112:N$113)*TRANSPOSE(($D118:$E118))),0) -> 79785916.6 | O118: =O$111+IF($C118<>0,SUMPRODUCT((O$112:O$113)*TRANSPOSE(($D118:$E118))),0) -> 162597840.1 | P118: =P$111+IF($C118<>0,SUMPRODUCT((P$112:P$113)*TRANSPOSE(($D118:$E118))),0) -> 284892187.4 | Q118: =Q$111+IF($C118<>0,SUMPRODUCT((Q$112:Q$113)*TRANSPOSE(($D118:$E118))),0) -> 439930402.1 | R118: =R$111+IF($C118<>0,SUMPRODUCT((R$112:R$113)*TRANSPOSE(($D118:$E118))),0) -> 441758942.7 | S118: =S$111+IF($C118<>0,SUMPRODUCT((S$112:S$113)*TRANSPOSE(($D118:$E118))),0) -> 441314495.5 | T118: =T$111+IF($C118<>0,SUMPRODUCT((T$112:T$113)*TRANSPOSE(($D118:$E118))),0) -> 441314495.5 | U118: =U$111+IF($C118<>0,SUMPRODUCT((U$112:U$113)*TRANSPOSE(($D118:$E118))),0) -> 441314495.5 | V118: =V$111+IF($C118<>0,SUMPRODUCT((V$112:V$113)*TRANSPOSE(($D118:$E118))),0) -> 441314495.5 | W118: =W$111+IF($C118<>0,SUMPRODUCT((W$112:W$113)*TRANSPOSE(($D118:$E118))),0) -> 441314495.5 | X118: =X$111+IF($C118<>0,SUMPRODUCT((X$112:X$113)*TRANSPOSE(($D118:$E118))),0) -> 441314495.5 | Y118: =Y$111+IF($C118<>0,SUMPRODUCT((Y$112:Y$113)*TRANSPOSE(($D118:$E118))),0) -> 441314495.5 | Z118: =Z$111+IF($C118<>0,SUMPRODUCT((Z$112:Z$113)*TRANSPOSE(($D118:$E118))),0) -> 441314495.5 | AA118: =AA$111+IF($C118<>0,SUMPRODUCT((AA$112:AA$113)*TRANSPOSE(($D118:$E118))),0) -> 441314495.5 | AB118: =AB$111+IF($C118<>0,SUMPRODUCT((AB$112:AB$113)*TRANSPOSE(($D118:$E118))),0) -> 441314495.5 | AC118: =AC$111+IF($C118<>0,SUMPRODUCT((AC$112:AC$113)*TRANSPOSE(($D118:$E118))),0) -> 441314495.5 | AD118: =AD$111+IF($C118<>0,SUMPRODUCT((AD$112:AD$113)*TRANSPOSE(($D118:$E118))),0) -> 441314495.5 | AE118: =AE$111+IF($C118<>0,SUMPRODUCT((AE$112:AE$113)*TRANSPOSE(($D118:$E118))),0) -> 441314495.5 | AF118: =AF$111+IF($C118<>0,SUMPRODUCT((AF$112:AF$113)*TRANSPOSE(($D118:$E118))),0) -> 441314495.5 | AG118: =AG$111+IF($C118<>0,SUMPRODUCT((AG$112:AG$113)*TRANSPOSE(($D118:$E118))),0) -> 459152860.7
A119: ="sens"&Assumptions!B115 -> sens5 | C119: =Assumptions!C115 -> Capex 10% higher & Total benefits 10% lower | D119: =Assumptions!G115 -> 0.1 | E119: =Assumptions!H115 -> -0.1 | G119: Option 4sens5 | I119: =I$111+IF($C119<>0,SUMPRODUCT((I$112:I$113)*TRANSPOSE(($D119:$E119))),0) -> 0 | J119: =J$111+IF($C119<>0,SUMPRODUCT((J$112:J$113)*TRANSPOSE(($D119:$E119))),0) -> 5683077.608 | K119: =K$111+IF($C119<>0,SUMPRODUCT((K$112:K$113)*TRANSPOSE(($D119:$E119))),0) -> 7537449.269 | L119: =L$111+IF($C119<>0,SUMPRODUCT((L$112:L$113)*TRANSPOSE(($D119:$E119))),0) -> 18503632.97 | M119: =M$111+IF($C119<>0,SUMPRODUCT((M$112:M$113)*TRANSPOSE(($D119:$E119))),0) -> 37013462.38 | N119: =N$111+IF($C119<>0,SUMPRODUCT((N$112:N$113)*TRANSPOSE(($D119:$E119))),0) -> 79337443.8 | O119: =O$111+IF($C119<>0,SUMPRODUCT((O$112:O$113)*TRANSPOSE(($D119:$E119))),0) -> 162149367.3 | P119: =P$111+IF($C119<>0,SUMPRODUCT((P$112:P$113)*TRANSPOSE(($D119:$E119))),0) -> 284443714.6 | Q119: =Q$111+IF($C119<>0,SUMPRODUCT((Q$112:Q$113)*TRANSPOSE(($D119:$E119))),0) -> 439481929.3 | R119: =R$111+IF($C119<>0,SUMPRODUCT((R$112:R$113)*TRANSPOSE(($D119:$E119))),0) -> 441310469.9 | S119: =S$111+IF($C119<>0,SUMPRODUCT((S$112:S$113)*TRANSPOSE(($D119:$E119))),0) -> 440821572.9 | T119: =T$111+IF($C119<>0,SUMPRODUCT((T$112:T$113)*TRANSPOSE(($D119:$E119))),0) -> 440821572.9 | U119: =U$111+IF($C119<>0,SUMPRODUCT((U$112:U$113)*TRANSPOSE(($D119:$E119))),0) -> 440821572.9 | V119: =V$111+IF($C119<>0,SUMPRODUCT((V$112:V$113)*TRANSPOSE(($D119:$E119))),0) -> 440821572.9 | W119: =W$111+IF($C119<>0,SUMPRODUCT((W$112:W$113)*TRANSPOSE(($D119:$E119))),0) -> 440821572.9 | X119: =X$111+IF($C119<>0,SUMPRODUCT((X$112:X$113)*TRANSPOSE(($D119:$E119))),0) -> 440821572.9 | Y119: =Y$111+IF($C119<>0,SUMPRODUCT((Y$112:Y$113)*TRANSPOSE(($D119:$E119))),0) -> 440821572.9 | Z119: =Z$111+IF($C119<>0,SUMPRODUCT((Z$112:Z$113)*TRANSPOSE(($D119:$E119))),0) -> 440821572.9 | AA119: =AA$111+IF($C119<>0,SUMPRODUCT((AA$112:AA$113)*TRANSPOSE(($D119:$E119))),0) -> 440821572.9 | AB119: =AB$111+IF($C119<>0,SUMPRODUCT((AB$112:AB$113)*TRANSPOSE(($D119:$E119))),0) -> 440821572.9 | AC119: =AC$111+IF($C119<>0,SUMPRODUCT((AC$112:AC$113)*TRANSPOSE(($D119:$E119))),0) -> 440821572.9 | AD119: =AD$111+IF($C119<>0,SUMPRODUCT((AD$112:AD$113)*TRANSPOSE(($D119:$E119))),0) -> 440821572.9 | AE119: =AE$111+IF($C119<>0,SUMPRODUCT((AE$112:AE$113)*TRANSPOSE(($D119:$E119))),0) -> 440821572.9 | AF119: =AF$111+IF($C119<>0,SUMPRODUCT((AF$112:AF$113)*TRANSPOSE(($D119:$E119))),0) -> 440821572.9 | AG119: =AG$111+IF($C119<>0,SUMPRODUCT((AG$112:AG$113)*TRANSPOSE(($D119:$E119))),0) -> 458659938
A120: ="sens"&Assumptions!B116 -> sens | C120: =Assumptions!C116 -> 0 | D120: =Assumptions!G116 -> 0 | E120: =Assumptions!H116 -> 0 | G120: Option 4sens | I120: =I$111+IF($C120<>0,SUMPRODUCT((I$112:I$113)*TRANSPOSE(($D120:$E120))),0) -> 0 | J120: =J$111+IF($C120<>0,SUMPRODUCT((J$112:J$113)*TRANSPOSE(($D120:$E120))),0) -> 6500067.443 | K120: =K$111+IF($C120<>0,SUMPRODUCT((K$112:K$113)*TRANSPOSE(($D120:$E120))),0) -> 8778125.076 | L120: =L$111+IF($C120<>0,SUMPRODUCT((L$112:L$113)*TRANSPOSE(($D120:$E120))),0) -> 21345449.76 | M120: =M$111+IF($C120<>0,SUMPRODUCT((M$112:M$113)*TRANSPOSE(($D120:$E120))),0) -> 42122675.53 | N120: =N$111+IF($C120<>0,SUMPRODUCT((N$112:N$113)*TRANSPOSE(($D120:$E120))),0) -> 89149321.55 | O120: =O$111+IF($C120<>0,SUMPRODUCT((O$112:O$113)*TRANSPOSE(($D120:$E120))),0) -> 181162569.9 | P120: =P$111+IF($C120<>0,SUMPRODUCT((P$112:P$113)*TRANSPOSE(($D120:$E120))),0) -> 317045178 | Q120: =Q$111+IF($C120<>0,SUMPRODUCT((Q$112:Q$113)*TRANSPOSE(($D120:$E120))),0) -> 489309861 | R120: =R$111+IF($C120<>0,SUMPRODUCT((R$112:R$113)*TRANSPOSE(($D120:$E120))),0) -> 491341572.8 | S120: =S$111+IF($C120<>0,SUMPRODUCT((S$112:S$113)*TRANSPOSE(($D120:$E120))),0) -> 490897131.3 | T120: =T$111+IF($C120<>0,SUMPRODUCT((T$112:T$113)*TRANSPOSE(($D120:$E120))),0) -> 490897131.3 | U120: =U$111+IF($C120<>0,SUMPRODUCT((U$112:U$113)*TRANSPOSE(($D120:$E120))),0) -> 490897131.3 | V120: =V$111+IF($C120<>0,SUMPRODUCT((V$112:V$113)*TRANSPOSE(($D120:$E120))),0) -> 490897131.3 | W120: =W$111+IF($C120<>0,SUMPRODUCT((W$112:W$113)*TRANSPOSE(($D120:$E120))),0) -> 490897131.3 | X120: =X$111+IF($C120<>0,SUMPRODUCT((X$112:X$113)*TRANSPOSE(($D120:$E120))),0) -> 490897131.3 | Y120: =Y$111+IF($C120<>0,SUMPRODUCT((Y$112:Y$113)*TRANSPOSE(($D120:$E120))),0) -> 490897131.3 | Z120: =Z$111+IF($C120<>0,SUMPRODUCT((Z$112:Z$113)*TRANSPOSE(($D120:$E120))),0) -> 490897131.3 | AA120: =AA$111+IF($C120<>0,SUMPRODUCT((AA$112:AA$113)*TRANSPOSE(($D120:$E120))),0) -> 490897131.3 | AB120: =AB$111+IF($C120<>0,SUMPRODUCT((AB$112:AB$113)*TRANSPOSE(($D120:$E120))),0) -> 490897131.3 | AC120: =AC$111+IF($C120<>0,SUMPRODUCT((AC$112:AC$113)*TRANSPOSE(($D120:$E120))),0) -> 490897131.3 | AD120: =AD$111+IF($C120<>0,SUMPRODUCT((AD$112:AD$113)*TRANSPOSE(($D120:$E120))),0) -> 490897131.3 | AE120: =AE$111+IF($C120<>0,SUMPRODUCT((AE$112:AE$113)*TRANSPOSE(($D120:$E120))),0) -> 490897131.3 | AF120: =AF$111+IF($C120<>0,SUMPRODUCT((AF$112:AF$113)*TRANSPOSE(($D120:$E120))),0) -> 490897131.3 | AG120: =AG$111+IF($C120<>0,SUMPRODUCT((AG$112:AG$113)*TRANSPOSE(($D120:$E120))),0) -> 510717537
A121: ="sens"&Assumptions!B117 -> sens | C121: =Assumptions!C117 -> 0 | D121: =Assumptions!G117 -> 0 | E121: =Assumptions!H117 -> 0 | G121: Option 4sens | I121: =I$111+IF($C121<>0,SUMPRODUCT((I$112:I$113)*TRANSPOSE(($D121:$E121))),0) -> 0 | J121: =J$111+IF($C121<>0,SUMPRODUCT((J$112:J$113)*TRANSPOSE(($D121:$E121))),0) -> 6500067.443 | K121: =K$111+IF($C121<>0,SUMPRODUCT((K$112:K$113)*TRANSPOSE(($D121:$E121))),0) -> 8778125.076 | L121: =L$111+IF($C121<>0,SUMPRODUCT((L$112:L$113)*TRANSPOSE(($D121:$E121))),0) -> 21345449.76 | M121: =M$111+IF($C121<>0,SUMPRODUCT((M$112:M$113)*TRANSPOSE(($D121:$E121))),0) -> 42122675.53 | N121: =N$111+IF($C121<>0,SUMPRODUCT((N$112:N$113)*TRANSPOSE(($D121:$E121))),0) -> 89149321.55 | O121: =O$111+IF($C121<>0,SUMPRODUCT((O$112:O$113)*TRANSPOSE(($D121:$E121))),0) -> 181162569.9 | P121: =P$111+IF($C121<>0,SUMPRODUCT((P$112:P$113)*TRANSPOSE(($D121:$E121))),0) -> 317045178 | Q121: =Q$111+IF($C121<>0,SUMPRODUCT((Q$112:Q$113)*TRANSPOSE(($D121:$E121))),0) -> 489309861 | R121: =R$111+IF($C121<>0,SUMPRODUCT((R$112:R$113)*TRANSPOSE(($D121:$E121))),0) -> 491341572.8 | S121: =S$111+IF($C121<>0,SUMPRODUCT((S$112:S$113)*TRANSPOSE(($D121:$E121))),0) -> 490897131.3 | T121: =T$111+IF($C121<>0,SUMPRODUCT((T$112:T$113)*TRANSPOSE(($D121:$E121))),0) -> 490897131.3 | U121: =U$111+IF($C121<>0,SUMPRODUCT((U$112:U$113)*TRANSPOSE(($D121:$E121))),0) -> 490897131.3 | V121: =V$111+IF($C121<>0,SUMPRODUCT((V$112:V$113)*TRANSPOSE(($D121:$E121))),0) -> 490897131.3 | W121: =W$111+IF($C121<>0,SUMPRODUCT((W$112:W$113)*TRANSPOSE(($D121:$E121))),0) -> 490897131.3 | X121: =X$111+IF($C121<>0,SUMPRODUCT((X$112:X$113)*TRANSPOSE(($D121:$E121))),0) -> 490897131.3 | Y121: =Y$111+IF($C121<>0,SUMPRODUCT((Y$112:Y$113)*TRANSPOSE(($D121:$E121))),0) -> 490897131.3 | Z121: =Z$111+IF($C121<>0,SUMPRODUCT((Z$112:Z$113)*TRANSPOSE(($D121:$E121))),0) -> 490897131.3 | AA121: =AA$111+IF($C121<>0,SUMPRODUCT((AA$112:AA$113)*TRANSPOSE(($D121:$E121))),0) -> 490897131.3 | AB121: =AB$111+IF($C121<>0,SUMPRODUCT((AB$112:AB$113)*TRANSPOSE(($D121:$E121))),0) -> 490897131.3 | AC121: =AC$111+IF($C121<>0,SUMPRODUCT((AC$112:AC$113)*TRANSPOSE(($D121:$E121))),0) -> 490897131.3 | AD121: =AD$111+IF($C121<>0,SUMPRODUCT((AD$112:AD$113)*TRANSPOSE(($D121:$E121))),0) -> 490897131.3 | AE121: =AE$111+IF($C121<>0,SUMPRODUCT((AE$112:AE$113)*TRANSPOSE(($D121:$E121))),0) -> 490897131.3 | AF121: =AF$111+IF($C121<>0,SUMPRODUCT((AF$112:AF$113)*TRANSPOSE(($D121:$E121))),0) -> 490897131.3 | AG121: =AG$111+IF($C121<>0,SUMPRODUCT((AG$112:AG$113)*TRANSPOSE(($D121:$E121))),0) -> 510717537
A122: ="sens"&Assumptions!B118 -> sens | C122: =Assumptions!C118 -> 0 | D122: =Assumptions!G118 -> 0 | E122: =Assumptions!H118 -> 0 | G122: Option 4sens | I122: =I$111+IF($C122<>0,SUMPRODUCT((I$112:I$113)*TRANSPOSE(($D122:$E122))),0) -> 0 | J122: =J$111+IF($C122<>0,SUMPRODUCT((J$112:J$113)*TRANSPOSE(($D122:$E122))),0) -> 6500067.443 | K122: =K$111+IF($C122<>0,SUMPRODUCT((K$112:K$113)*TRANSPOSE(($D122:$E122))),0) -> 8778125.076 | L122: =L$111+IF($C122<>0,SUMPRODUCT((L$112:L$113)*TRANSPOSE(($D122:$E122))),0) -> 21345449.76 | M122: =M$111+IF($C122<>0,SUMPRODUCT((M$112:M$113)*TRANSPOSE(($D122:$E122))),0) -> 42122675.53 | N122: =N$111+IF($C122<>0,SUMPRODUCT((N$112:N$113)*TRANSPOSE(($D122:$E122))),0) -> 89149321.55 | O122: =O$111+IF($C122<>0,SUMPRODUCT((O$112:O$113)*TRANSPOSE(($D122:$E122))),0) -> 181162569.9 | P122: =P$111+IF($C122<>0,SUMPRODUCT((P$112:P$113)*TRANSPOSE(($D122:$E122))),0) -> 317045178 | Q122: =Q$111+IF($C122<>0,SUMPRODUCT((Q$112:Q$113)*TRANSPOSE(($D122:$E122))),0) -> 489309861 | R122: =R$111+IF($C122<>0,SUMPRODUCT((R$112:R$113)*TRANSPOSE(($D122:$E122))),0) -> 491341572.8 | S122: =S$111+IF($C122<>0,SUMPRODUCT((S$112:S$113)*TRANSPOSE(($D122:$E122))),0) -> 490897131.3 | T122: =T$111+IF($C122<>0,SUMPRODUCT((T$112:T$113)*TRANSPOSE(($D122:$E122))),0) -> 490897131.3 | U122: =U$111+IF($C122<>0,SUMPRODUCT((U$112:U$113)*TRANSPOSE(($D122:$E122))),0) -> 490897131.3 | V122: =V$111+IF($C122<>0,SUMPRODUCT((V$112:V$113)*TRANSPOSE(($D122:$E122))),0) -> 490897131.3 | W122: =W$111+IF($C122<>0,SUMPRODUCT((W$112:W$113)*TRANSPOSE(($D122:$E122))),0) -> 490897131.3 | X122: =X$111+IF($C122<>0,SUMPRODUCT((X$112:X$113)*TRANSPOSE(($D122:$E122))),0) -> 490897131.3 | Y122: =Y$111+IF($C122<>0,SUMPRODUCT((Y$112:Y$113)*TRANSPOSE(($D122:$E122))),0) -> 490897131.3 | Z122: =Z$111+IF($C122<>0,SUMPRODUCT((Z$112:Z$113)*TRANSPOSE(($D122:$E122))),0) -> 490897131.3 | AA122: =AA$111+IF($C122<>0,SUMPRODUCT((AA$112:AA$113)*TRANSPOSE(($D122:$E122))),0) -> 490897131.3 | AB122: =AB$111+IF($C122<>0,SUMPRODUCT((AB$112:AB$113)*TRANSPOSE(($D122:$E122))),0) -> 490897131.3 | AC122: =AC$111+IF($C122<>0,SUMPRODUCT((AC$112:AC$113)*TRANSPOSE(($D122:$E122))),0) -> 490897131.3 | AD122: =AD$111+IF($C122<>0,SUMPRODUCT((AD$112:AD$113)*TRANSPOSE(($D122:$E122))),0) -> 490897131.3 | AE122: =AE$111+IF($C122<>0,SUMPRODUCT((AE$112:AE$113)*TRANSPOSE(($D122:$E122))),0) -> 490897131.3 | AF122: =AF$111+IF($C122<>0,SUMPRODUCT((AF$112:AF$113)*TRANSPOSE(($D122:$E122))),0) -> 490897131.3 | AG122: =AG$111+IF($C122<>0,SUMPRODUCT((AG$112:AG$113)*TRANSPOSE(($D122:$E122))),0) -> 510717537

Sheet Option5
A1: =bus -> Powercor
A2: =proj -> Melton & Wyndham Transformation Capacity Project
A3: OPTION 5 | C3: =INDEX(Assumptions!$E$14:$E$18, MATCH(A3,_xlfn.ANCHORARRAY( Assumptions!$C$14),0)) -> Lean investment, Southern capacity priority
A4: =(INDEX(Data!$D$9:$D$13, MATCH(A3, options,0))) -> 
A6: ='Option1 (base case)'!A6 -> Count | I6: ='Option1 (base case)'!I6 -> 1 | J6: ='Option1 (base case)'!J6 -> 2 | K6: ='Option1 (base case)'!K6 -> 3 | L6: ='Option1 (base case)'!L6 -> 4 | M6: ='Option1 (base case)'!M6 -> 5 | N6: ='Option1 (base case)'!N6 -> 6 | O6: ='Option1 (base case)'!O6 -> 7 | P6: ='Option1 (base case)'!P6 -> 8 | Q6: ='Option1 (base case)'!Q6 -> 9 | R6: ='Option1 (base case)'!R6 -> 10 | S6: ='Option1 (base case)'!S6 -> 11 | T6: ='Option1 (base case)'!T6 -> 12 | U6: ='Option1 (base case)'!U6 -> 13 | V6: ='Option1 (base case)'!V6 -> 14 | W6: ='Option1 (base case)'!W6 -> 15 | X6: ='Option1 (base case)'!X6 -> 16 | Y6: ='Option1 (base case)'!Y6 -> 17 | Z6: ='Option1 (base case)'!Z6 -> 18 | AA6: ='Option1 (base case)'!AA6 -> 19 | AB6: ='Option1 (base case)'!AB6 -> 20 | AC6: ='Option1 (base case)'!AC6 -> 21 | AD6: ='Option1 (base case)'!AD6 -> 22 | AE6: ='Option1 (base case)'!AE6 -> 23 | AF6: ='Option1 (base case)'!AF6 -> 24 | AG6: ='Option1 (base case)'!AG6 -> 25
A7: ='Option1 (base case)'!A7 -> Value of CO2 reductions | G7: $/MWh | I7: ='Option1 (base case)'!I7 -> 24.7304868 | J7: ='Option1 (base case)'!J7 -> 22.34074009 | K7: ='Option1 (base case)'!K7 -> 20.19632912 | L7: ='Option1 (base case)'!L7 -> 18.06294208 | M7: ='Option1 (base case)'!M7 -> 15.91339762 | N7: ='Option1 (base case)'!N7 -> 13.71506943 | O7: ='Option1 (base case)'!O7 -> 13.71506943 | P7: ='Option1 (base case)'!P7 -> 13.71506943 | Q7: ='Option1 (base case)'!Q7 -> 13.71506943 | R7: ='Option1 (base case)'!R7 -> 13.71506943 | S7: ='Option1 (base case)'!S7 -> 13.71506943 | T7: ='Option1 (base case)'!T7 -> 13.71506943 | U7: ='Option1 (base case)'!U7 -> 13.71506943 | V7: ='Option1 (base case)'!V7 -> 13.71506943 | W7: ='Option1 (base case)'!W7 -> 13.71506943 | X7: ='Option1 (base case)'!X7 -> 13.71506943 | Y7: ='Option1 (base case)'!Y7 -> 13.71506943 | Z7: ='Option1 (base case)'!Z7 -> 13.71506943 | AA7: ='Option1 (base case)'!AA7 -> 13.71506943 | AB7: ='Option1 (base case)'!AB7 -> 13.71506943 | AC7: ='Option1 (base case)'!AC7 -> 13.71506943 | AD7: ='Option1 (base case)'!AD7 -> 13.71506943 | AE7: ='Option1 (base case)'!AE7 -> 13.71506943 | AF7: ='Option1 (base case)'!AF7 -> 13.71506943 | AG7: ='Option1 (base case)'!AG7 -> 13.71506943
I8: =_xlfn.NUMBERVALUE(LEFT(I$9,4))+1 -> 2027 | J8: =_xlfn.NUMBERVALUE(LEFT(J$9,4))+1 -> 2028 | K8: 2029 | L8: 2030 | M8: 2031 | N8: 2032 | O8: 2033 | P8: 2034 | Q8: 2035 | R8: 2036 | S8: 2037 | T8: 2038 | U8: 2039 | V8: 2040 | W8: 2041 | X8: 2042 | Y8: 2043 | Z8: 2044 | AA8: 2045 | AB8: 2046 | AC8: 2047 | AD8: 2048 | AE8: 2049 | AF8: 2050 | AG8: 2051
G9: Units | I9: ='Option1 (base case)'!I9 -> 2026-27 | J9: ='Option1 (base case)'!J9 -> 2027-28 | K9: ='Option1 (base case)'!K9 -> 2028-29 | L9: ='Option1 (base case)'!L9 -> 2029-30 | M9: ='Option1 (base case)'!M9 -> 2030-31 | N9: ='Option1 (base case)'!N9 -> 2031-32 | O9: ='Option1 (base case)'!O9 -> 2032-33 | P9: ='Option1 (base case)'!P9 -> 2033-34 | Q9: ='Option1 (base case)'!Q9 -> 2034-35 | R9: ='Option1 (base case)'!R9 -> 2035-36 | S9: ='Option1 (base case)'!S9 -> 2036-37 | T9: ='Option1 (base case)'!T9 -> 2037-38 | U9: ='Option1 (base case)'!U9 -> 2038-39 | V9: ='Option1 (base case)'!V9 -> 2039-40 | W9: ='Option1 (base case)'!W9 -> 2040-41 | X9: ='Option1 (base case)'!X9 -> 2041-42 | Y9: ='Option1 (base case)'!Y9 -> 2042-43 | Z9: ='Option1 (base case)'!Z9 -> 2043-44 | AA9: ='Option1 (base case)'!AA9 -> 2044-45 | AB9: ='Option1 (base case)'!AB9 -> 2045-46 | AC9: ='Option1 (base case)'!AC9 -> 2046-47 | AD9: ='Option1 (base case)'!AD9 -> 2047-48 | AE9: ='Option1 (base case)'!AE9 -> 2048-49 | AF9: ='Option1 (base case)'!AF9 -> 2049-50 | AG9: ='Option1 (base case)'!AG9 -> 2050-51
A11: INVESTMENT & OPERATING COST
C13: Capex | E13: Asset life (yrs)
C14: MTC 3rd Tx | E14: 50 | G14: =input_dollars -> 2023-12-31 | I14: 14291649 | J14: 0 | K14: 0 | L14: 0 | M14: 0 | N14: 0 | O14: 0 | P14: 0 | Q14: 0 | R14: 0 | S14: 0 | T14: 0 | U14: 0 | V14: 0 | W14: 0 | X14: 0 | Y14: 0 | Z14: 0 | AA14: 0 | AB14: 0 | AC14: 0 | AD14: 0 | AE14: 0 | AF14: 0 | AG14: 0
C15: BMH Rebuild | E15: 50 | G15: =input_dollars -> 2023-12-31 | I15: 13551742.67 | J15: 13551742.67 | K15: 0 | L15: 0 | M15: 0 | N15: 0 | O15: 0 | P15: 0 | Q15: 0 | R15: 0 | S15: 0 | T15: 0 | U15: 0 | V15: 0 | W15: 0 | X15: 0 | Y15: 0 | Z15: 0 | AA15: 0 | AB15: 0 | AC15: 0 | AD15: 0 | AE15: 0 | AF15: 0 | AG15: 0
C16: PCK Stage 1 | E16: 50 | G16: =input_dollars -> 2023-12-31 | I16: 0 | J16: 5408395.3 | K16: 24286555.6 | L16: 22244579.1 | M16: 0 | N16: 0 | O16: 0 | P16: 0 | Q16: 0 | R16: 0 | S16: 0 | T16: 0 | U16: 0 | V16: 0 | W16: 0 | X16: 0 | Y16: 0 | Z16: 0 | AA16: 0 | AB16: 0 | AC16: 0 | AD16: 0 | AE16: 0 | AF16: 0 | AG16: 0
G17: =input_dollars -> 2023-12-31 | I17: 0 | J17: 0 | K17: 0 | L17: 0 | M17: 0 | N17: 0 | O17: 0 | P17: 0 | Q17: 0 | R17: 0 | S17: 0 | T17: 0 | U17: 0 | V17: 0 | W17: 0 | X17: 0 | Y17: 0 | Z17: 0 | AA17: 0 | AB17: 0 | AC17: 0 | AD17: 0 | AE17: 0 | AF17: 0 | AG17: 0
C18: Capital expenditure | G18: =input_dollars -> 2023-12-31 | I18: =SUM(I14:I17) -> 27843391.67 | J18: =SUM(J14:J17) -> 18960137.97 | K18: 24286555.6 | L18: 22244579.1 | M18: 0 | N18: 0 | O18: 0 | P18: 0 | Q18: 0 | R18: 0 | S18: 0 | T18: 0 | U18: 0 | V18: 0 | W18: 0 | X18: 0 | Y18: 0 | Z18: 0 | AA18: 0 | AB18: 0 | AC18: 0 | AD18: 0 | AE18: 0 | AF18: 0 | AG18: 0
C20: Operating expenditure | G20: =input_dollars -> 2023-12-31 | I20: 0 | J20: 0 | K20: 0 | L20: 0 | M20: 0 | N20: 0 | O20: 0 | P20: 0 | Q20: 0 | R20: 0 | S20: 0 | T20: 0 | U20: 0 | V20: 0 | W20: 0 | X20: 0 | Y20: 0 | Z20: 0 | AA20: 0 | AB20: 0 | AC20: 0 | AD20: 0 | AE20: 0 | AF20: 0 | AG20: 0
A23: RISK ASSUMPTIONS
C25: PoF (major) | I25: 0 | J25: 0 | K25: 0 | L25: 0 | M25: 0 | N25: 0 | O25: 0 | P25: 0 | Q25: 0 | R25: 0 | S25: 0 | T25: 0 | U25: 0 | V25: 0 | W25: 0 | X25: 0 | Y25: 0 | Z25: 0 | AA25: 0 | AB25: 0 | AC25: 0 | AD25: 0 | AE25: 0 | AF25: 0 | AG25: 0
C26: PoF (reparable) | I26: 0 | J26: 0 | K26: 0 | L26: 0 | M26: 0 | N26: 0 | O26: 0 | P26: 0 | Q26: 0 | R26: 0 | S26: 0 | T26: 0 | U26: 0 | V26: 0 | W26: 0 | X26: 0 | Y26: 0 | Z26: 0 | AA26: 0 | AB26: 0 | AC26: 0 | AD26: 0 | AE26: 0 | AF26: 0 | AG26: 0
C28: Const end date | E28: 2027
